Workbook

Sheet evolutions (hidden)
E1: Informations sur le GHM | F1: Evolution | O1: 2011 | X1: 2010
B2: CMD | C2: sous CMD | D2: racine | E2: GHM V11 | F2: Evo_couttot | G2: evo_coutclin | H2: evo_coutsc | I2: evo_coutsi | J2: evo_coutmt | K2: evo_coutlgg | L2: evo_coutlm | M2: evo_coutcd | N2: evo_couthono | O2: Coût complet hors structure | P2: Dépenses cliniques | Q2: Dépenses SC | R2: Dépenses SI | S2: TOTAL Dépenses MT | T2: TOTAL Dépenses LGG | U2: TOTAL Dépenses LM | V2: TOTAL Charges directes hors honoraires | W2: TOTAL Honoraires | X2: Coût complet hors structure | Y2: Dépenses cliniques | Z2: Dépenses SC | AA2: Dépenses SI | AB2: TOTAL Dépenses MT | AC2: TOTAL Dépenses LGG | AD2: TOTAL Dépenses LM | AE2: TOTAL Charges directes hors honoraires | AF2: TOTAL Honoraires
A3: 0101C01C0501C051 | B3: 1 | C3: 01C | D3: 01C05 | E3: 01C051 | F3: =O3/X3-1 -> 0.02248044353 | G3: =P3/Y3-1 -> 0.1729562729 | H3: -0.6102062975 | I3: 0.7724014337 | J3: 0.05403188702 | K3: -0.1343693049 | L3: -0.08433501223 | M3: 0.1783661717 | N3: -0.07490239507 | O3: 3769.64 | P3: 618.84 | Q3: 10.77 | R3: 9.89 | S3: 526.9 | T3: 441.74 | U3: 132.168 | V3: 1043.62 | W3: 985.71 | X3: 3686.76 | Y3: 527.59 | Z3: 27.63 | AA3: 5.58 | AB3: 499.89 | AC3: 510.31 | AD3: 144.341 | AE3: 885.65 | AF3: 1065.52
A4: 0101C01C0501C052 | B4: 1 | C4: 01C | D4: 01C05 | E4: 01C052 | F4: =O4/X4-1 -> 0.02850927002 | G4: =P4/Y4-1 -> 0.1777530825 | H4: =Q4/Z4-1 -> -0.6474826465 | I4: 0.5882794891 | J4: =S4/AB4-1 -> 0.0001292633834 | K4: =T4/AC4-1 -> -0.1169078074 | L4: =U4/AD4-1 -> -0.1790499174 | M4: =V4/AE4-1 -> 0.2097152936 | N4: =W4/AF4-1 -> 0.00661863952 | O4: 4618.85 | P4: 890.24 | Q4: 40.12 | R4: 21.14 | S4: 541.6 | T4: 631.72 | U4: 138.115 | V4: 1117.91 | W4: 1238 | X4: 4490.82 | Y4: 755.88 | Z4: 113.81 | AA4: 13.31 | AB4: 541.53 | AC4: 715.35 | AD4: 168.238 | AE4: 924.11 | AF4: 1229.86
A5: 0101C01C05TOTAL | B5: 1 | C5: 01C | D5: 01C05 | F5: -0.01061782086 | G5: 0.1181331318 | H5: -0.7054852321 | I5: 0.4277522936 | J5: 0.02309562399 | K5: -0.1742994314 | L5: -0.1224837177 | M5: 0.1632937357 | N5: -0.0798055803 | O5: 3963 | P5: 680.63 | Q5: 17.45 | R5: 12.45 | S5: 530.25 | T5: 485 | U5: 133.522 | V5: 1060.54 | W5: 1043.16 | X5: 4005.53 | Y5: 608.72 | Z5: 59.25 | AA5: 8.72 | AB5: 518.28 | AC5: 587.38 | AD5: 152.159 | AE5: 911.67 | AF5: 1133.63
A6: 0101C01C0601C061 | B6: 1 | C6: 01C | D6: 01C06 | E6: 01C061 | F6: 0.02592853886 | G6: -0.03272112236 | H6: 0.05345493049 | I6: 0.00840672538 | J6: 0.1639413425 | K6: -0.06755141323 | L6: 0.06521869924 | M6: 0.09881059875 | N6: -0.02843432638 | O6: 4522.57 | P6: 446.08 | Q6: 308.42 | R6: 75.57 | S6: 800.07 | T6: 460.21 | U6: 230.165 | V6: 705.81 | W6: 1496.25 | X6: 4408.27 | Y6: 461.17 | Z6: 292.77 | AA6: 74.94 | AB6: 687.38 | AC6: 493.55 | AD6: 216.073 | AE6: 642.34 | AF6: 1540.04
A7: 0101C01C0601C062 | B7: 1 | C7: 01C | D7: 01C06 | E7: 01C062 | F7: 0.04756273999 | G7: 0.02230310416 | H7: 0.1652777059 | I7: -0.05600228115 | J7: 0.04975657854 | K7: 0.09977711167 | L7: 0.0372545535 | M7: 0.1611545743 | N7: -0.0159896444 | O7: 5944.51 | P7: 637.59 | Q7: 450.24 | R7: 165.53 | S7: 851.72 | T7: 715.46 | U7: 250.971 | V7: 1018.17 | W7: 1854.83 | X7: 5674.61 | Y7: 623.68 | Z7: 386.38 | AA7: 175.35 | AB7: 811.35 | AC7: 650.55 | AD7: 241.957 | AE7: 876.86 | AF7: 1884.97
A8: 0101C01C06TOTAL | B8: 1 | C8: 01C | D8: 01C06 | F8: 0.03186346541 | G8: -0.01708663789 | H8: 0.08467883188 | I8: -0.0178041543 | J8: 0.1345613618 | K8: -0.02086246646 | L8: 0.05829743904 | M8: 0.1166381529 | N8: -0.02514938239 | O8: 4845.28 | P8: 489.54 | Q8: 340.6 | R8: 95.99 | S8: 811.79 | T8: 518.14 | U8: 234.887 | V8: 776.7 | W8: 1577.63 | X8: 4695.66 | Y8: 498.05 | Z8: 314.01 | AA8: 97.73 | AB8: 715.51 | AC8: 529.18 | AD8: 221.948 | AE8: 695.57 | AF8: 1618.33
A9: 0101C01C0801C081 | B9: 1 | C9: 01C | D9: 01C08 | E9: 01C081 | F9: 0.03419599817 | G9: -0.07459638577 | J9: 0.07728715108 | K9: 0.005787189267 | L9: 0.06823946214 | M9: 0.1018607636 | N9: 0.01251578111 | O9: 1920.14 | P9: 240.17 | Q9: 19.45 | R9: 0 | S9: 400.6 | T9: 229.41 | U9: 106.136 | V9: 274.76 | W9: 649.62 | X9: 1856.65 | Y9: 259.53 | Z9: 0 | AA9: 6.86 | AB9: 371.86 | AC9: 228.09 | AD9: 99.356 | AE9: 249.36 | AF9: 641.59
A10: 0101C01C0801C08J | B10: 1 | C10: 01C | D10: 01C08 | E10: 01C08J | F10: -0.1287805106 | G10: -0.07149195082 | J10: -0.2553669146 | K10: -0.2116860122 | L10: -0.2028595318 | M10: -0.2727404719 | N10: -0.003291298399 | O10: 1119.7 | P10: 73.25 | Q10: 0 | R10: 0 | S10: 159.21 | T10: 200.35 | U10: 47.669 | V10: 100.18 | W10: 539.04 | X10: 1285.21 | Y10: 78.89 | Z10: 0 | AA10: 0 | AB10: 213.81 | AC10: 254.15 | AD10: 59.8 | AE10: 137.75 | AF10: 540.82
A11: 0101C01C08TOTAL | B11: 1 | C11: 01C | D11: 01C08 | F11: -0.05906397584 | G11: -0.07345718556 | J11: -0.09779238728 | K11: -0.1427057001 | L11: -0.07752762996 | M11: -0.09151925374 | N11: 0.00271214729 | O11: 1392.67 | P11: 130.17 | Q11: 6.63 | R11: 0 | S11: 241.53 | T11: 210.26 | U11: 67.608 | V11: 159.72 | W11: 576.75 | X11: 1480.09 | Y11: 140.49 | Z11: 0 | AA11: 2.34 | AB11: 267.71 | AC11: 245.26 | AD11: 73.29 | AE11: 175.81 | AF11: 575.19
A12: 0101C01C1001C101 | B12: 1 | C12: 01C | D12: 01C10 | E12: 01C101 | F12: -0.2019006445 | G12: 0.06254384242 | J12: -0.1252575445 | K12: -0.07888169326 | L12: -0.09592553899 | M12: -0.2238130821 | N12: -0.1616707243 | O12: 6427.98 | P12: 378.68 | Q12: 0 | R12: 0 | S12: 144.35 | T12: 291.58 | U12: 47.595 | V12: 5235.21 | W12: 330.57 | X12: 8054.11 | Y12: 356.39 | Z12: 24.41 | AA12: 0 | AB12: 165.02 | AC12: 316.55 | AD12: 52.645 | AE12: 6744.78 | AF12: 394.32
A13: 0101C01C10TOTAL | B13: 1 | C13: 01C | D13: 01C10 | F13: -0.2019006445 | G13: 0.06254384242 | J13: -0.1252575445 | K13: -0.07888169326 | L13: -0.09592553899 | M13: -0.2238130821 | N13: -0.1616707243 | O13: 6427.98 | P13: 378.68 | Q13: 0 | R13: 0 | S13: 144.35 | T13: 291.58 | U13: 47.595 | V13: 5235.21 | W13: 330.57 | X13: 8054.11 | Y13: 356.39 | Z13: 24.41 | AA13: 0 | AB13: 165.02 | AC13: 316.55 | AD13: 52.645 | AE13: 6744.78 | AF13: 394.32
A14: 0101C01C1401C141 | B14: 1 | C14: 01C | D14: 01C14 | E14: 01C141 | F14: -0.02669993196 | G14: -0.02608309045 | J14: -0.05400159267 | K14: -0.06694560669 | L14: 0.2426657931 | M14: -0.124223992 | N14: 0.02420326727 | O14: 1072.82 | P14: 197.15 | Q14: 0 | R14: 0 | S14: 190.07 | T14: 171.71 | U14: 68.282 | V14: 139.66 | W14: 305.95 | X14: 1102.25 | Y14: 202.43 | Z14: 0 | AA14: 1.72 | AB14: 200.92 | AC14: 184.03 | AD14: 54.948 | AE14: 159.47 | AF14: 298.72
A15: 0101C01C1401C14J | B15: 1 | C15: 01C | D15: 01C14 | E15: 01C14J | F15: -0.01216951927 | G15: 0.01709006928 | J15: -0.03733551596 | K15: -0.01607508901 | L15: 0.3372360078 | M15: -0.1424773615 | N15: 0.004351005484 | O15: 832.83 | P15: 66.06 | Q15: 0 | R15: 0 | S15: 152.9 | T15: 182.4 | U15: 53.567 | V15: 103.22 | W15: 274.69 | X15: 843.09 | Y15: 64.95 | Z15: 0 | AA15: 0 | AB15: 158.83 | AC15: 185.38 | AD15: 40.058 | AE15: 120.37 | AF15: 273.5
A16: 0101C01C14TOTAL | B16: 1 | C16: 01C | D16: 01C14 | F16: -0.01660335811 | G16: -0.005024115756 | J16: -0.04232335753 | K16: -0.02880458279 | L16: 0.3073832245 | M16: -0.1368663594 | N16: 0.009684105203 | O16: 893.17 | P16: 99.02 | Q16: 0 | R16: 0 | S16: 162.24 | T16: 179.71 | U16: 57.266 | V16: 112.38 | W16: 282.55 | X16: 908.25 | Y16: 99.52 | Z16: 0 | AA16: 0.43 | AB16: 169.41 | AC16: 185.04 | AD16: 43.802 | AE16: 130.2 | AF16: 279.84
A17: 0101C01C1501C151 | B17: 1 | C17: 01C | D17: 01C15 | E17: 01C151 | F17: -0.05455404235 | G17: -0.03889593177 | J17: 0.007490636704 | K17: -0.03764921947 | L17: 0.2840404371 | M17: -0.3385457952 | N17: 0.002526693292 | O17: 840.7 | P17: 166.79 | Q17: 0 | R17: 0 | S17: 131.81 | T17: 157.2 | U17: 47.123 | V17: 91.79 | W17: 246 | X17: 889.21 | Y17: 173.54 | Z17: 0.64 | AA17: 0 | AB17: 130.83 | AC17: 163.35 | AD17: 36.699 | AE17: 138.77 | AF17: 245.38
A18: 0101C01C1501C15J | B18: 1 | C18: 01C | D18: 01C15 | E18: 01C15J | F18: -0.0218491459 | G18: 0.03442805013 | J18: -0.05895411939 | K18: -0.05264315566 | L18: 0.2873497657 | M18: -0.1238109176 | N18: -0.007052529183 | O18: 566.32 | P18: 65.2 | Q18: 0 | R18: 0 | S18: 76.3 | T18: 129.21 | U18: 31.598 | V18: 59.87 | W18: 204.15 | X18: 578.97 | Y18: 63.03 | Z18: 0 | AA18: 0 | AB18: 81.08 | AC18: 136.39 | AD18: 24.545 | AE18: 68.33 | AF18: 205.6
A19: 0101C01C15TOTAL | B19: 1 | C19: 01C | D19: 01C15 | F19: -0.02454162683 | G19: 0.02429852473 | J19: -0.05320291065 | K19: -0.0517116333 | L19: 0.2871079034 | M19: -0.1464968153 | N19: -0.006448508181 | O19: 581.5 | P19: 70.82 | Q19: 0 | R19: 0 | S19: 79.37 | T19: 130.75 | U19: 32.457 | V19: 61.64 | W19: 206.46 | X19: 596.13 | Y19: 69.14 | Z19: 0.04 | AA19: 0 | AB19: 83.83 | AC19: 137.88 | AD19: 25.217 | AE19: 72.22 | AF19: 207.8
A20: 0101CTOTAL | B20: 1 | C20: 01C | F20: -0.08117331348 | G20: -0.02090043171 | H20: =Q20/Z20-1 -> -0.1682002208 | I20: =R20/AA20-1 -> -0.001483679525 | J20: -0.05616491209 | K20: -0.1100795756 | L20: 0.08999263309 | M20: -0.09183060219 | N20: -0.07793015905 | O20: 1184.68 | P20: 142.88 | Q20: 22.6 | R20: 6.73 | S20: 171.24 | T20: 187.88 | U20: 56.224 | V20: 226.67 | W20: 370.46 | X20: 1289.34 | Y20: 145.93 | Z20: 27.17 | AA20: 6.74 | AB20: 181.43 | AC20: 211.12 | AD20: 51.582 | AE20: 249.59 | AF20: 401.77
A21: 0101K01K0401K04J | B21: 1 | C21: 01K | D21: 01K04 | E21: 01K04J | F21: -0.1206965118 | G21: -0.2076639166 | J21: 0.08795669824 | K21: -0.1020343628 | L21: -0.05044601661 | M21: -0.1956697928 | N21: 0.03902439024 | O21: 309.55 | P21: 72.99 | Q21: 0 | R21: 0 | S21: 16.08 | T21: 85.19 | U21: 6.174 | V21: 69.47 | W21: 59.64 | X21: 352.04 | Y21: 92.12 | Z21: 0 | AA21: 0 | AB21: 14.78 | AC21: 94.87 | AD21: 6.502 | AE21: 86.37 | AF21: 57.4
A22: 0101K01K04TOTAL | B22: 1 | C22: 01K | D22: 01K04 | F22: -0.1206965118 | G22: -0.2076639166 | J22: 0.08795669824 | K22: -0.1020343628 | L22: -0.05044601661 | M22: -0.1956697928 | N22: 0.03902439024 | O22: 309.55 | P22: 72.99 | Q22: 0 | R22: 0 | S22: 16.08 | T22: 85.19 | U22: 6.174 | V22: 69.47 | W22: 59.64 | X22: 352.04 | Y22: 92.12 | Z22: 0 | AA22: 0 | AB22: 14.78 | AC22: 94.87 | AD22: 6.502 | AE22: 86.37 | AF22: 57.4
A23: 0101K01K0501K05J | B23: 1 | C23: 01K | D23: 01K05 | E23: 01K05J | O23: 442.26 | P23: 129.34 | Q23: 0 | R23: 0 | S23: 54.26 | T23: 151.94 | U23: 18.773 | V23: 45.98 | W23: 41.98
A24: 0101K01K05TOTAL | B24: 1 | C24: 01K | D24: 01K05 | O24: 442.26 | P24: 129.34 | Q24: 0 | R24: 0 | S24: 54.26 | T24: 151.94 | U24: 18.773 | V24: 45.98 | W24: 41.98
A25: 0101K01K0601K06J | B25: 1 | C25: 01K | D25: 01K06 | E25: 01K06J | F25: -0.182048505 | G25: -0.1480114313 | J25: -0.5511852876 | K25: -0.3077742279 | L25: 0.2940752646 | M25: 0.1043858612 | N25: -0.06039400301 | O25: 845.86 | P25: 71.55 | Q25: 0 | R25: 0 | S25: 84.44 | T25: 130 | U25: 23.349 | V25: 93.42 | W25: 443.09 | X25: 1034.12 | Y25: 83.98 | Z25: 0 | AA25: 0 | AB25: 188.14 | AC25: 187.8 | AD25: 18.043 | AE25: 84.59 | AF25: 471.57
A26: 0101K01K06TOTAL | B26: 1 | C26: 01K | D26: 01K06 | F26: -0.182048505 | G26: -0.1480114313 | J26: -0.5511852876 | K26: -0.3077742279 | L26: 0.2940752646 | M26: 0.1043858612 | N26: -0.06039400301 | O26: 845.86 | P26: 71.55 | Q26: 0 | R26: 0 | S26: 84.44 | T26: 130 | U26: 23.349 | V26: 93.42 | W26: 443.09 | X26: 1034.12 | Y26: 83.98 | Z26: 0 | AA26: 0 | AB26: 188.14 | AC26: 187.8 | AD26: 18.043 | AE26: 84.59 | AF26: 471.57
A27: 0101KTOTAL | B27: 1 | C27: 01K | F27: -0.1651441092 | G27: -0.1438816674 | J27: -0.4583442838 | K27: -0.1815406294 | L27: 0.199829932 | M27: -0.1166316772 | N27: -0.09411476214 | O27: 495.32 | P27: 76.4 | Q27: 0 | R27: 0 | S27: 41.22 | T27: 104.55 | U27: 12.699 | V27: 75.74 | W27: 184.71 | X27: 593.3 | Y27: 89.24 | Z27: 0 | AA27: 0 | AB27: 76.1 | AC27: 127.74 | AD27: 10.584 | AE27: 85.74 | AF27: 203.9
A28: 0101M01M0801M081 | B28: 1 | C28: 01M | D28: 01M08 | E28: 01M081 | F28: 0.1865965469 | G28: 0.1283176087 | J28: -0.1186440678 | K28: 0.03582883517 | L28: 0.1569644573 | M28: 1.423527862 | N28: 0.214309588 | O28: 1705.78 | P28: 511.85 | Q28: 0 | R28: 0 | S28: 43.68 | T28: 397.23 | U28: 24.088 | V28: 183.97 | W28: 544.97 | X28: 1437.54 | Y28: 453.64 | Z28: 3.49 | AA28: 1.84 | AB28: 49.56 | AC28: 383.49 | AD28: 20.82 | AE28: 75.91 | AF28: 448.79
A29: 0101M01M08TOTAL | B29: 1 | C29: 01M | D29: 01M08 | F29: -0.2178191489 | G29: -0.2340441452 | J29: -0.5440025055 | K29: -0.3418222789 | L29: -0.2781972911 | M29: 0.07572213776 | N29: -0.0791159026 | O29: 1705.78 | P29: 511.85 | Q29: 0 | R29: 0 | S29: 43.68 | T29: 397.23 | U29: 24.088 | V29: 183.97 | W29: 544.97 | X29: 2180.8 | Y29: 668.25 | Z29: 1.98 | AA29: 1.04 | AB29: 95.79 | AC29: 603.53 | AD29: 33.372 | AE29: 171.02 | AF29: 591.79
A30: 0101M01M1101M111 | B30: 1 | C30: 01M | D30: 01M11 | E30: 01M111 | F30: 0.1522122235 | G30: 0.07792090803 | J30: -0.7026281933 | K30: -0.04515589241 | L30: -0.03665736122 | M30: 0.4231515901 | N30: 0.04359939289 | O30: 3072.95 | P30: 478.64 | Q30: 0 | R30: 0 | S30: 48.54 | T30: 388.02 | U30: 21.05 | V30: 1634.76 | W30: 501.94 | X30: 2667 | Y30: 444.04 | Z30: 0 | AA30: 1.85 | AB30: 163.23 | AC30: 406.37 | AD30: 21.851 | AE30: 1148.69 | AF30: 480.97
A31: 0101M01M1101M11T | B31: 1 | C31: 01M | D31: 01M11 | E31: 01M11T | F31: -0.2577976404 | G31: 0.1613091759 | J31: -0.7090729783 | K31: -0.1802158553 | L31: 0.4438591627 | M31: -0.3934083788 | N31: -0.1189853448 | O31: 558.01 | P31: 119.22 | Q31: 0 | R31: 0 | S31: 53.1 | T31: 105.58 | U31: 15.624 | V31: 52.27 | W31: 212.21 | X31: 751.83 | Y31: 102.66 | Z31: 0 | AA31: 0 | AB31: 182.52 | AC31: 128.79 | AD31: 10.821 | AE31: 86.17 | AF31: 240.87
A32: 0101M01M11TOTAL | B32: 1 | C32: 01M | D32: 01M11 | F32: -0.0918028169 | G32: -0.1650629622 | J32: -0.6910868385 | K32: -0.2703785756 | L32: -0.009682952471 | M32: 0.2925141804 | N32: -0.1798829949 | O32: 1612.05 | P32: 269.86 | Q32: 0 | R32: 0 | S32: 51.19 | T32: 223.95 | U32: 17.898 | V32: 715.51 | W32: 333.64 | X32: 1775 | Y32: 323.21 | Z32: 0 | AA32: 0.67 | AB32: 165.71 | AC32: 306.94 | AD32: 18.073 | AE32: 553.58 | AF32: 406.82
A33: 0101M01M1501M15T | B33: 1 | C33: 01M | D33: 01M15 | E33: 01M15T | F33: -0.1255431259 | G33: 0.09507899384 | I33: =R33/AA33-1 -> -0.4451385117 | J33: -0.06980519481 | K33: -0.02423885708 | L33: -0.1024424285 | M33: -0.2880324544 | N33: -0.1705137751 | O33: 1267.91 | P33: 229.43 | Q33: 0 | R33: 20.43 | S33: 103.14 | T33: 182.36 | U33: 19.293 | V33: 122.85 | W33: 590.42 | X33: 1449.94 | Y33: 209.51 | Z33: 0 | AA33: 36.82 | AB33: 110.88 | AC33: 186.89 | AD33: 21.495 | AE33: 172.55 | AF33: 711.79
A34: 0101M01M15TOTAL | B34: 1 | C34: 01M | D34: 01M15 | F34: -0.1255431259 | G34: 0.09507899384 | I34: =R34/AA34-1 -> -0.4451385117 | J34: -0.06980519481 | K34: -0.02423885708 | L34: -0.1024424285 | M34: -0.2880324544 | N34: -0.1705137751 | O34: 1267.91 | P34: 229.43 | Q34: 0 | R34: 20.43 | S34: 103.14 | T34: 182.36 | U34: 19.293 | V34: 122.85 | W34: 590.42 | X34: 1449.94 | Y34: 209.51 | Z34: 0 | AA34: 36.82 | AB34: 110.88 | AC34: 186.89 | AD34: 21.495 | AE34: 172.55 | AF34: 711.79
A35: 0101M01M1601M161 | B35: 1 | C35: 01M | D35: 01M16 | E35: 01M161 | O35: 2248.55 | P35: 662.81 | Q35: 32.75 | R35: 0 | S35: 48.46 | T35: 473.28 | U35: 35.313 | V35: 178.01 | W35: 817.93
A36: 0101M01M1601M16T | B36: 1 | C36: 01M | D36: 01M16 | E36: 01M16T | F36: -0.1423681623 | G36: -0.02830713239 | J36: -0.1814796425 | K36: -0.01350638388 | L36: -0.1278867859 | M36: -0.07443982444 | N36: -0.2073176701 | O36: 1343 | P36: 192.23 | Q36: 0 | R36: 3.76 | S36: 131.88 | T36: 186.98 | U36: 20.09 | V36: 160.27 | W36: 647.78 | X36: 1565.94 | Y36: 197.83 | Z36: 1.85 | AA36: 0 | AB36: 161.12 | AC36: 189.54 | AD36: 23.036 | AE36: 173.16 | AF36: 817.2
A37: 0101M01M16TOTAL | B37: 1 | C37: 01M | D37: 01M16 | F37: 0.06927468485 | G37: 0.8422888338 | H37: =Q37/Z37-1 -> 5.481081081 | J37: -0.3709657398 | K37: 0.5393056875 | L37: 0.1139954853 | M37: -0.03696003696 | N37: -0.1311062163 | O37: 1674.42 | P37: 364.46 | Q37: 11.99 | R37: 2.38 | S37: 101.35 | T37: 291.76 | U37: 25.662 | V37: 166.76 | W37: 710.06 | X37: 1565.94 | Y37: 197.83 | Z37: 1.85 | AA37: 0 | AB37: 161.12 | AC37: 189.54 | AD37: 23.036 | AE37: 173.16 | AF37: 817.2
A38: 0101M01M1701M171 | B38: 1 | C38: 01M | D38: 01M17 | E38: 01M171 | F38: 0.007983884382 | G38: 0.06428458996 | J38: -0.7876128385 | K38: -0.02580359273 | L38: -0.3051011363 | M38: 0.8569335287 | N38: -0.09691963117 | O38: 1090.82 | P38: 338.07 | Q38: 0 | R38: 0 | S38: 8.47 | T38: 285.8 | U38: 8.623 | V38: 139.4 | W38: 310.47 | X38: 1082.18 | Y38: 317.65 | Z38: 0 | AA38: 0 | AB38: 39.88 | AC38: 293.37 | AD38: 12.409 | AE38: 75.07 | AF38: 343.79
A39: 0101M01M17TOTAL | B39: 1 | C39: 01M | D39: 01M17 | F39: 0.007983884382 | G39: 0.06428458996 | J39: -0.7876128385 | K39: -0.02580359273 | L39: -0.3051011363 | M39: 0.8569335287 | N39: -0.09691963117 | O39: 1090.82 | P39: 338.07 | Q39: 0 | R39: 0 | S39: 8.47 | T39: 285.8 | U39: 8.623 | V39: 139.4 | W39: 310.47 | X39: 1082.18 | Y39: 317.65 | Z39: 0 | AA39: 0 | AB39: 39.88 | AC39: 293.37 | AD39: 12.409 | AE39: 75.07 | AF39: 343.79
A40: 0101M01M2101M211 | B40: 1 | C40: 01M | D40: 01M21 | E40: 01M211 | F40: 0.05225927103 | G40: -0.0629508537 | H40: =Q40/Z40-1 -> 2.369716619 | J40: -0.6915755627 | K40: -0.02474591251 | L40: 0.3459887992 | M40: -0.1065806941 | N40: -0.02804983437 | O40: 1423.57 | P40: 361.12 | Q40: 280.63 | R40: 0 | S40: 23.98 | T40: 375.19 | U40: 18.506 | V40: 94.22 | W40: 269.93 | X40: 1352.87 | Y40: 385.38 | Z40: 83.28 | AA40: 24.83 | AB40: 77.75 | AC40: 384.71 | AD40: 13.749 | AE40: 105.46 | AF40: 277.72
A41: 0101M01M2101M21T | B41: 1 | C41: 01M | D41: 01M21 | E41: 01M21T | F41: 0.6551278898 | G41: -0.1442475075 | J41: 360.9545455 | K41: 0.4852076125 | L41: 8.583106267 | M41: 7.244946492 | N41: 0.13507109 | O41: 538.38 | P41: 108.15 | Q41: 0 | R41: 0 | S41: 79.63 | T41: 171.69 | U41: 28.136 | V41: 69.34 | W41: 81.43 | X41: 325.28 | Y41: 126.38 | Z41: 0 | AA41: 0 | AB41: 0.22 | AC41: 115.6 | AD41: 2.936 | AE41: 8.41 | AF41: 71.74
A42: 0101M01M21TOTAL | B42: 1 | C42: 01M | D42: 01M21 | F42: 0.167069186 | G42: -0.08266936142 | H42: =Q42/Z42-1 -> 2.36935867 | J42: 0.307106599 | K42: 0.09112948096 | L42: 1.769670277 | M42: 0.4256874347 | N42: 0.004890531703 | O42: 985.8 | P42: 236.02 | Q42: 141.85 | R42: 0 | S42: 51.5 | T42: 274.55 | U42: 23.268 | V42: 81.92 | W42: 176.71 | X42: 844.68 | Y42: 257.29 | Z42: 42.1 | AA42: 12.55 | AB42: 39.4 | AC42: 251.62 | AD42: 8.401 | AE42: 57.46 | AF42: 175.85
A43: 0101M01M2201M221 | B43: 1 | C43: 01M | D43: 01M22 | E43: 01M221 | F43: -0.09587622824 | G43: 0.04279249738 | H43: =Q43/Z43-1 -> 1.132311978 | J43: -0.5390171546 | K43: -0.09590648006 | L43: -0.04944824696 | M43: -0.2305979644 | N43: -0.1189756589 | O43: 925.66 | P43: 318.01 | Q43: 15.31 | R43: 0 | S43: 35.74 | T43: 223.51 | U43: 13.61 | V43: 48.38 | W43: 271.1 | X43: 1023.82 | Y43: 304.96 | Z43: 7.18 | AA43: 2.01 | AB43: 77.53 | AC43: 247.22 | AD43: 14.318 | AE43: 62.88 | AF43: 307.71
A44: 0101M01M2201M22T | B44: 1 | C44: 01M | D44: 01M22 | E44: 01M22T | F44: -0.1157533047 | G44: 0.2427031291 | J44: -0.5661513752 | K44: -0.04338394794 | L44: 0.157912179 | M44: -0.3472327521 | N44: -0.274655198 | O44: 404.03 | P44: 141.78 | Q44: 4.16 | R44: 0 | S44: 21.61 | T44: 105.84 | U44: 6.988 | V44: 25.83 | W44: 97.82 | X44: 456.92 | Y44: 114.09 | Z44: 0 | AA44: 0 | AB44: 49.81 | AC44: 110.64 | AD44: 6.035 | AE44: 39.57 | AF44: 134.86
A45: 0101M01M22TOTAL | B45: 1 | C45: 01M | D45: 01M22 | F45: -0.1014955714 | G45: 0.09251346833 | H45: =Q45/Z45-1 -> 1.643044619 | J45: -0.5487521315 | K45: -0.08095264107 | L45: 0.006904487917 | M45: -0.2724297266 | N45: -0.1624950338 | O45: 680.68 | P45: 235.24 | Q45: 10.07 | R45: 0 | S45: 29.11 | T45: 168.25 | U45: 10.5 | V45: 37.79 | W45: 189.72 | X45: 757.57 | Y45: 215.32 | Z45: 3.81 | AA45: 1.06 | AB45: 64.51 | AC45: 183.07 | AD45: 10.428 | AE45: 51.94 | AF45: 226.53
A46: 0101M01M2501M25T | B46: 1 | C46: 01M | D46: 01M25 | E46: 01M25T | F46: -0.05000076105 | G46: 0.2257668056 | J46: -0.3654434251 | K46: -0.08289184123 | L46: 0.06350280302 | M46: 0.9402158064 | N46: -0.3070707071 | O46: 624.14 | P46: 229.39 | Q46: 0 | R46: 0 | S46: 33.2 | T46: 112.52 | U46: 11.003 | V46: 66.53 | W46: 171.5 | X46: 656.99 | Y46: 187.14 | Z46: 2.69 | AA46: 0 | AB46: 52.32 | AC46: 122.69 | AD46: 10.346 | AE46: 34.29 | AF46: 247.5
A47: 0101M01M25TOTAL | B47: 1 | C47: 01M | D47: 01M25 | F47: -0.4388844937 | G47: -0.2959393512 | J47: -0.4547544753 | K47: -0.548003535 | L47: -0.2565540541 | M47: 0.1873996074 | N47: -0.5597032169 | O47: 624.14 | P47: 229.39 | Q47: 0 | R47: 0 | S47: 33.2 | T47: 112.52 | U47: 11.003 | V47: 66.53 | W47: 171.5 | X47: 1112.32 | Y47: 325.81 | Z47: 7.73 | AA47: 8.62 | AB47: 60.89 | AC47: 248.94 | AD47: 14.8 | AE47: 56.03 | AF47: 389.51
A48: 0101M01M3001M301 | B48: 1 | C48: 01M | D48: 01M30 | E48: 01M301 | F48: -0.2531450432 | G48: 0.03985407489 | I48: =R48/AA48-1 -> -0.8492217899 | J48: -0.8374251603 | K48: -0.117928479 | L48: -0.4133512111 | M48: -0.7013787869 | N48: -0.2239233315 | O48: 2625.83 | P48: 906.42 | Q48: 0 | R48: 6.2 | S48: 45.89 | T48: 695.09 | U48: 26.689 | V48: 94.43 | W48: 851.1 | X48: 3515.85 | Y48: 871.68 | Z48: 2.77 | AA48: 41.12 | AB48: 282.27 | AC48: 788.02 | AD48: 45.494 | AE48: 316.22 | AF48: 1096.67
A49: 0101M01M3001M302 | B49: 1 | C49: 01M | D49: 01M30 | E49: 01M302 | F49: -0.2231792102 | G49: 0.2259292411 | H49: =Q49/Z49-1 -> -0.1273514482 | I49: =R49/AA49-1 -> -0.8113188581 | J49: -0.8351109404 | K49: -0.1092739101 | L49: -0.3819994269 | M49: -0.6340268336 | N49: -0.3123147049 | O49: 3503.99 | P49: 1301.14 | Q49: 58.45 | R49: 18.77 | S49: 55.81 | T49: 988.51 | U49: 40.979 | V49: 142.66 | W49: 897.67 | X49: 4510.68 | Y49: 1061.35 | Z49: 66.98 | AA49: 99.48 | AB49: 338.47 | AC49: 1109.78 | AD49: 66.309 | AE49: 389.81 | AF49: 1305.35
A50: 0101M01M30TOTAL | B50: 1 | C50: 01M | D50: 01M30 | F50: -0.2379697519 | G50: 0.1316568512 | H50: =Q50/Z50-1 -> -0.1699680511 | I50: =R50/AA50-1 -> -0.824187295 | J50: -0.836284338 | K50: -0.1133500177 | L50: -0.3964818062 | M50: -0.6679468073 | N50: -0.267025391 | O50: 3016.07 | P50: 1081.83 | Q50: 25.98 | R50: 11.79 | S50: 50.3 | T50: 825.48 | U50: 33.039 | V50: 115.86 | W50: 871.8 | X50: 3957.94 | Y50: 955.97 | Z50: 31.3 | AA50: 67.06 | AB50: 307.24 | AC50: 931.01 | AD50: 54.744 | AE50: 348.92 | AF50: 1189.4
A51: 0101M01M3401M34Z | B51: 1 | C51: 01M | D51: 01M34 | E51: 01M34Z | F51: -0.09460934904 | G51: 0.03130557821 | J51: -0.7429627762 | K51: -0.1184742544 | L51: -0.1222832577 | M51: -0.2224901812 | N51: -0.09630585136 | O51: 2670.16 | P51: 1049.57 | Q51: 0 | R51: 0 | S51: 30.59 | T51: 789.23 | U51: 29.4 | V51: 112.84 | W51: 658.54 | X51: 2949.18 | Y51: 1017.71 | Z51: 4.35 | AA51: 4.25 | AB51: 119.01 | AC51: 895.3 | AD51: 33.496 | AE51: 145.13 | AF51: 728.72
A52: 0101M01M34TOTAL | B52: 1 | C52: 01M | D52: 01M34 | F52: -0.09460934904 | G52: 0.03130557821 | J52: -0.7429627762 | K52: -0.1184742544 | L52: -0.1222832577 | M52: -0.2224901812 | N52: -0.09630585136 | O52: 2670.16 | P52: 1049.57 | Q52: 0 | R52: 0 | S52: 30.59 | T52: 789.23 | U52: 29.4 | V52: 112.84 | W52: 658.54 | X52: 2949.18 | Y52: 1017.71 | Z52: 4.35 | AA52: 4.25 | AB52: 119.01 | AC52: 895.3 | AD52: 33.496 | AE52: 145.13 | AF52: 728.72
A53: 0101MTOTAL | B53: 1 | C53: 01M | F53: -0.05609972709 | G53: 0.03126931795 | H53: =Q53/Z53-1 -> 2.292063492 | I53: =R53/AA53-1 -> -0.8369565217 | J53: -0.5756684042 | K53: -0.05422224703 | L53: 0.1504781347 | M53: 0.1388200559 | N53: -0.1400164941 | O53: 1456.07 | P53: 400.38 | Q53: 51.85 | R53: 1.65 | S53: 50.47 | T53: 338.91 | U53: 21.415 | V53: 216 | W53: 375.4 | X53: 1542.61 | Y53: 388.24 | Z53: 15.75 | AA53: 10.12 | AB53: 118.94 | AC53: 358.34 | AD53: 18.614 | AE53: 189.67 | AF53: 436.52
A54: 01TOTAL | B54: 1 | F54: -0.08464628928 | G54: -0.03799721836 | H54: =Q54/Z54-1 -> 0.03714285714 | I54: =R54/AA54-1 -> -0.1673819742 | J54: -0.1050537443 | K54: -0.113870645 | L54: 0.1069296422 | M54: -0.06617834937 | N54: -0.09039745867 | O54: 1191.58 | P54: 172.92 | Q54: 25.41 | R54: 5.82 | S54: 150.7 | T54: 203.73 | U54: 50.062 | V54: 219.28 | W54: 363.65 | X54: 1301.77 | Y54: 179.75 | Z54: 24.5 | AA54: 6.99 | AB54: 168.39 | AC54: 229.91 | AD54: 45.226 | AE54: 234.82 | AF54: 399.79
A55: 0202C02C0202C021 | B55: 2 | C55: 02C | D55: 02C02 | E55: 02C021 | F55: 0.04175534155 | G55: 0.009472071319 | J55: 0.1008439732 | K55: 0.001397326853 | L55: 0.4713626851 | M55: -0.2022048364 | N55: 0.1391266893 | O55: 1855.21 | P55: 217.41 | Q55: 0.42 | R55: 0.39 | S55: 356.09 | T55: 164.83 | U55: 144.838 | V55: 336.51 | W55: 634.71 | X55: 1780.85 | Y55: 215.37 | Z55: 0 | AA55: 0 | AB55: 323.47 | AC55: 164.6 | AD55: 98.438 | AE55: 421.8 | AF55: 557.19
A56: 0202C02C0202C02J | B56: 2 | C56: 02C | D56: 02C02 | E56: 02C02J | F56: 0.02031572017 | G56: -0.02134797194 | J56: 0.1124947589 | K56: 0.0376993526 | L56: 0.6010409353 | M56: -0.1720593957 | N56: 0.01525489186 | O56: 1425.83 | P56: 64.18 | Q56: 0 | R56: 0 | S56: 265.33 | T56: 262.87 | U56: 104.897 | V56: 255.37 | W56: 473.19 | X56: 1397.44 | Y56: 65.58 | Z56: 0 | AA56: 0 | AB56: 238.5 | AC56: 253.32 | AD56: 65.518 | AE56: 308.44 | AF56: 466.08
A57: 0202C02C02TOTAL | B57: 2 | C57: 02C | D57: 02C02 | F57: 0.04016294353 | G57: 0.008585181877 | J57: 0.1016761193 | K57: 0.006365740741 | L57: 0.4796054218 | M57: -0.2001167003 | N57: 0.129400831 | O57: 1815.49 | P57: 203.24 | Q57: 0.38 | R57: 0.36 | S57: 347.7 | T57: 173.9 | U57: 141.144 | V57: 329 | W57: 619.77 | X57: 1745.39 | Y57: 201.51 | Z57: 0 | AA57: 0 | AB57: 315.61 | AC57: 172.8 | AD57: 95.393 | AE57: 411.31 | AF57: 548.76
A58: 0202C02C0502C051 | B58: 2 | C58: 02C | D58: 02C05 | E58: 02C051 | F58: -0.001967328889 | G58: -0.01563291139 | H58: =Q58/Z58-1 -> -0.1428571429 | J58: 0.008446641945 | K58: -0.045216919 | L58: 0.5695140147 | M58: -0.06310316705 | N58: 0.006765234077 | O58: 1187.09 | P58: 155.53 | Q58: 0.18 | R58: 0.04 | S58: 146.85 | T58: 140.63 | U58: 58.907 | V58: 275.71 | W58: 409.24 | X58: 1189.43 | Y58: 158 | Z58: 0.21 | AA58: 0 | AB58: 145.62 | AC58: 147.29 | AD58: 37.532 | AE58: 294.28 | AF58: 406.49
A59: 0202C02C0502C05J | B59: 2 | C59: 02C | D59: 02C05 | E59: 02C05J | F59: -0.0142127173 | G59: 0.0333595594 | J59: -0.009263987162 | K59: -0.05638970422 | L59: 0.5336979879 | M59: -0.09097605893 | N59: 0.003119320136 | O59: 1103.51 | P59: 65.67 | Q59: 0 | R59: 0 | S59: 135.82 | T59: 167.17 | U59: 54.957 | V59: 271.48 | W59: 408.41 | X59: 1119.42 | Y59: 63.55 | Z59: 0 | AA59: 0 | AB59: 137.09 | AC59: 177.16 | AD59: 35.833 | AE59: 298.65 | AF59: 407.14
A60: 0202C02C05TOTAL | B60: 2 | C60: 02C | D60: 02C05 | F60: -0.01222792426 | G60: 0.01805608913 | H60: =Q60/Z60-1 -> 0 | J60: -0.006358381503 | K60: -0.05487946222 | L60: 0.5394098906 | M60: -0.08675078864 | N60: 0.003685141509 | O60: 1116.38 | P60: 79.5 | Q60: 0.03 | R60: 0.01 | S60: 137.52 | T60: 163.09 | U60: 55.565 | V60: 272.13 | W60: 408.54 | X60: 1130.2 | Y60: 78.09 | Z60: 0.03 | AA60: 0 | AB60: 138.4 | AC60: 172.56 | AD60: 36.095 | AE60: 297.98 | AF60: 407.04
A61: 0202C02C0702C07J | B61: 2 | C61: 02C | D61: 02C07 | E61: 02C07J | F61: 0.03060928433 | G61: 0.01332534811 | J61: 0.1273176761 | K61: -0.003022860382 | L61: 1.269263772 | M61: -0.2319882372 | N61: 0.04458758575 | O61: 426.26 | P61: 67.68 | Q61: 0 | R61: 0 | S61: 54.72 | T61: 105.54 | U61: 26.446 | V61: 47.01 | W61: 124.87 | X61: 413.6 | Y61: 66.79 | Z61: 0 | AA61: 0 | AB61: 48.54 | AC61: 105.86 | AD61: 11.654 | AE61: 61.21 | AF61: 119.54
A62: 0202C02C07TOTAL | B62: 2 | C62: 02C | D62: 02C07 | F62: 0.03060928433 | G62: 0.01332534811 | J62: 0.1273176761 | K62: -0.003022860382 | L62: 1.269263772 | M62: -0.2319882372 | N62: 0.04458758575 | O62: 426.26 | P62: 67.68 | Q62: 0 | R62: 0 | S62: 54.72 | T62: 105.54 | U62: 26.446 | V62: 47.01 | W62: 124.87 | X62: 413.6 | Y62: 66.79 | Z62: 0 | AA62: 0 | AB62: 48.54 | AC62: 105.86 | AD62: 11.654 | AE62: 61.21 | AF62: 119.54
A63: 0202C02C0802C081 | B63: 2 | C63: 02C | D63: 02C08 | E63: 02C081 | F63: 0.0117925619 | G63: 0.01548477917 | H63: =Q63/Z63-1 -> -0.1363636364 | J63: -0.01993726408 | K63: 0.003112296748 | L63: 0.3469954036 | M63: -0.04767039328 | N63: 0.01639151636 | O63: 1093.94 | P63: 173.13 | Q63: 1.14 | R63: 0 | S63: 184.34 | T63: 157.93 | U63: 63.593 | V63: 167.81 | W63: 346 | X63: 1081.19 | Y63: 170.49 | Z63: 1.32 | AA63: 0 | AB63: 188.09 | AC63: 157.44 | AD63: 47.211 | AE63: 176.21 | AF63: 340.42
A64: 0202C02C0802C08J | B64: 2 | C64: 02C | D64: 02C08 | E64: 02C08J | F64: -0.03115886615 | G64: -0.008440693025 | J64: -0.001941590486 | K64: -0.03984568434 | L64: 0.4655761328 | M64: -0.2575052537 | N64: 0.0022879417 | O64: 747.49 | P64: 66.96 | Q64: 0 | R64: 0 | S64: 123.37 | T64: 166.75 | U64: 54.921 | V64: 98.93 | W64: 236.56 | X64: 771.53 | Y64: 67.53 | Z64: 0 | AA64: 0 | AB64: 123.61 | AC64: 173.67 | AD64: 37.474 | AE64: 133.24 | AF64: 236.02
A65: 0202C02C08TOTAL | B65: 2 | C65: 02C | D65: 02C08 | F65: -0.01980375948 | G65: 0.001016604541 | H65: =Q65/Z65-1 -> -0.1481481481 | J65: -0.006946475578 | K65: -0.03175628082 | L65: 0.4366447035 | M65: -0.2043661972 | N65: 0.006101589522 | O65: 818.16 | P65: 88.62 | Q65: 0.23 | R65: 0 | S65: 135.81 | T65: 164.95 | U65: 56.69 | V65: 112.98 | W65: 258.88 | X65: 834.69 | Y65: 88.53 | Z65: 0.27 | AA65: 0 | AB65: 136.76 | AC65: 170.36 | AD65: 39.46 | AE65: 142 | AF65: 257.31
A66: 0202C02C0902C091 | B66: 2 | C66: 02C | D66: 02C09 | E66: 02C091 | F66: 0.04908013514 | G66: -0.001204819277 | J66: -0.04561614944 | K66: -0.07319964437 | L66: -0.01280148726 | M66: 0.1260157499 | N66: -0.04125218864 | O66: 2536.98 | P66: 273.57 | Q66: 13.06 | R66: 0 | S66: 158.38 | T66: 187.64 | U66: 60.536 | V66: 1345.51 | W66: 498.29 | X66: 2418.29 | Y66: 273.9 | Z66: 0 | AA66: 0 | AB66: 165.95 | AC66: 202.46 | AD66: 61.321 | AE66: 1194.93 | AF66: 519.73
A67: 0202C02C09TOTAL | B67: 2 | C67: 02C | D67: 02C09 | F67: 0.3921551412 | G67: 0.5677363897 | J67: 0.04603394756 | K67: -0.073794363 | L67: 0.06220280395 | M67: 0.6948958255 | N67: 0.1248335177 | O67: 2536.98 | P67: 273.57 | Q67: 13.06 | R67: 0 | S67: 158.38 | T67: 187.64 | U67: 60.536 | V67: 1345.51 | W67: 498.29 | X67: 1822.34 | Y67: 174.5 | Z67: 0 | AA67: 0 | AB67: 151.41 | AC67: 202.59 | AD67: 56.991 | AE67: 793.86 | AF67: 442.99
A68: 0202C02C1102C111 | B68: 2 | C68: 02C | D68: 02C11 | E68: 02C111 | F68: =O68/X68-1 -> -0.003696028372 | G68: =P68/Y68-1 -> -0.01930056087 | J68: =S68/AB68-1 -> 0.03453416149 | K68: =T68/AC68-1 -> -0.008609093355 | L68: =U68/AD68-1 -> 1.956970456 | M68: =V68/AE68-1 -> -0.4791470226 | N68: =W68/AF68-1 -> 0.01222130992 | O68: 932.68 | P68: 178.35 | Q68: 0 | R68: 0 | S68: 124.92 | T68: 147.4 | U68: 89.679 | V68: 71.81 | W68: 320.53 | X68: 936.14 | Y68: 181.86 | Z68: 0 | AA68: 0 | AB68: 120.75 | AC68: 148.68 | AD68: 30.328 | AE68: 137.87 | AF68: 316.66
A69: 0202C02C1102C11J | B69: 2 | C69: 02C | D69: 02C11 | E69: 02C11J | F69: -0.0180591982 | G69: 0.1391193363 | J69: 0.007704036594 | K69: -0.07038434332 | L69: 0.4319437912 | M69: -0.1618186761 | N69: -0.01169078446 | O69: 786.24 | P69: 71.4 | Q69: 0 | R69: 0 | S69: 125.57 | T69: 157.7 | U69: 48.709 | V69: 123.33 | W69: 259.53 | X69: 800.7 | Y69: 62.68 | Z69: 0 | AA69: 0 | AB69: 124.61 | AC69: 169.64 | AD69: 34.016 | AE69: 147.14 | AF69: 262.6
A70: 0202C02C11TOTAL | B70: 2 | C70: 02C | D70: 02C11 | F70: -0.01372268004 | G70: 0.05701338392 | J70: 0.01472849397 | K70: -0.05531162337 | L70: 0.8105030437 | M70: -0.2435870843 | N70: -0.004328848166 | O70: 825.81 | P70: 100.3 | Q70: 0 | R70: 0 | S70: 125.39 | T70: 154.91 | U70: 59.781 | V70: 109.4 | W70: 276.01 | X70: 837.3 | Y70: 94.89 | Z70: 0 | AA70: 0 | AB70: 123.57 | AC70: 163.98 | AD70: 33.019 | AE70: 144.63 | AF70: 277.21
A71: 0202C02C1202C121 | B71: 2 | C71: 02C | D71: 02C12 | E71: 02C121 | F71: 0.002549655532 | G71: 0.0363280787 | J71: 0.01676245211 | K71: 0.007793127878 | L71: 0.594666568 | M71: -0.08421555137 | N71: -0.01662589954 | O71: 1517.79 | P71: 174.87 | Q71: 0 | R71: 0 | S71: 233.53 | T71: 142.25 | U71: 86.23 | V71: 326.12 | W71: 554.8 | X71: 1513.93 | Y71: 168.74 | Z71: 0 | AA71: 0 | AB71: 229.68 | AC71: 141.15 | AD71: 54.074 | AE71: 356.11 | AF71: 564.18
A72: 0202C02C1202C12J | B72: 2 | C72: 02C | D72: 02C12 | E72: 02C12J | F72: -0.03972161036 | G72: 0.1494277236 | J72: -0.1120646908 | K72: -0.07356905646 | L72: 0.1377602432 | M72: -0.03210712637 | N72: -0.0292727468 | O72: 1447.37 | P72: 54.23 | Q72: 0 | R72: 0 | S72: 232.79 | T72: 237.12 | U72: 66.617 | V72: 314.42 | W72: 542.19 | X72: 1507.24 | Y72: 47.18 | Z72: 0 | AA72: 0 | AB72: 262.17 | AC72: 255.95 | AD72: 58.551 | AE72: 324.85 | AF72: 558.54
A73: 0202C02C12TOTAL | B73: 2 | C73: 02C | D73: 02C12 | F73: -0.0223181764 | G73: 0.0685961479 | J73: -0.06325603826 | K73: -0.05100086199 | L73: 0.316594079 | M73: -0.05466714049 | N73: -0.02403494696 | O73: 1476.28 | P73: 103.75 | Q73: 0 | R73: 0 | S73: 233.09 | T73: 198.17 | U73: 74.668 | V73: 319.22 | W73: 547.37 | X73: 1509.98 | Y73: 97.09 | Z73: 0 | AA73: 0 | AB73: 248.83 | AC73: 208.82 | AD73: 56.713 | AE73: 337.68 | AF73: 560.85
A74: 0202C02C1302C131 | B74: 2 | C74: 02C | D74: 02C13 | E74: 02C131 | F74: -0.02343276343 | G74: 0.01388888889 | J74: -0.07626251137 | K74: -0.03720898937 | L74: 0.4611004149 | M74: -0.278429878 | N74: 0.03902175868 | O74: 966.45 | P74: 165.71 | Q74: 0 | R74: 0 | S74: 162.43 | T74: 143.09 | U74: 53.881 | V74: 94.67 | W74: 346.68 | X74: 989.64 | Y74: 163.44 | Z74: 0 | AA74: 0 | AB74: 175.84 | AC74: 148.62 | AD74: 36.877 | AE74: 131.2 | AF74: 333.66
A75: 0202C02C13TOTAL | B75: 2 | C75: 02C | D75: 02C13 | F75: -0.02343276343 | G75: 0.01388888889 | J75: -0.07626251137 | K75: -0.03720898937 | L75: 0.4611004149 | M75: -0.278429878 | N75: 0.03902175868 | O75: 966.45 | P75: 165.71 | Q75: 0 | R75: 0 | S75: 162.43 | T75: 143.09 | U75: 53.881 | V75: 94.67 | W75: 346.68 | X75: 989.64 | Y75: 163.44 | Z75: 0 | AA75: 0 | AB75: 175.84 | AC75: 148.62 | AD75: 36.877 | AE75: 131.2 | AF75: 333.66
A76: 0202CTOTAL | B76: 2 | C76: 02C | F76: -0.009343228595 | G76: 0.01747549888 | H76: =Q76/Z76-1 -> 0.6 | J76: 0.002269913331 | K76: -0.05101981521 | L76: 0.5269913566 | M76: -0.09738799516 | N76: 0.01036892328 | O76: 1118.61 | P76: 86.17 | Q76: 0.08 | R76: 0.02 | S76: 145.71 | T76: 163.31 | U76: 59.006 | V76: 260.9 | W76: 403.41 | X76: 1129.16 | Y76: 84.69 | Z76: 0.05 | AA76: 0 | AB76: 145.38 | AC76: 172.09 | AD76: 38.642 | AE76: 289.05 | AF76: 399.27
A77: 0202M02M0802M081 | B77: 2 | C77: 02M | D77: 02M08 | E77: 02M081 | F77: 0.06631072073 | G77: 0.09520483215 | H77: =Q77/Z77-1 -> -0.6056565657 | J77: -0.1346389229 | K77: -0.02751576169 | L77: 1.023737217 | M77: 0.1255516664 | N77: 0.175234477 | O77: 956.63 | P77: 266.54 | Q77: 9.76 | R77: 0 | S77: 77.77 | T77: 198.98 | U77: 32.653 | V77: 73.96 | W77: 296.97 | X77: 897.14 | Y77: 243.37 | Z77: 24.75 | AA77: 0 | AB77: 89.87 | AC77: 204.61 | AD77: 16.135 | AE77: 65.71 | AF77: 252.69
A78: 0202M02M0802M08T | B78: 2 | C78: 02M | D78: 02M08 | E78: 02M08T | F78: -0.1361763191 | G78: 0.1833488002 | J78: -0.3416326531 | K78: -0.1210680612 | L78: 0.1517720875 | M78: -0.1956402271 | N78: -0.2012338126 | O78: 469.54 | P78: 89.26 | Q78: 0 | R78: 0 | S78: 48.39 | T78: 110.93 | U78: 20.376 | V78: 43.91 | W78: 156.67 | X78: 543.56 | Y78: 75.43 | Z78: 0 | AA78: 0 | AB78: 73.5 | AC78: 126.21 | AD78: 17.691 | AE78: 54.59 | AF78: 196.14
A79: 0202M02M08TOTAL | B79: 2 | C79: 02M | D79: 02M08 | F79: -0.03392028291 | G79: 0.1245702006 | H79: =Q79/Z79-1 -> -0.6057082452 | J79: -0.252539185 | K79: -0.07421875 | L79: 0.4661909219 | M79: -0.0586335826 | N79: -0.03430697162 | O79: 655.63 | P79: 156.99 | Q79: 3.73 | R79: 0 | S79: 59.61 | T79: 144.57 | U79: 25.066 | V79: 55.39 | W79: 210.27 | X79: 678.65 | Y79: 139.6 | Z79: 9.46 | AA79: 0 | AB79: 79.75 | AC79: 156.16 | AD79: 17.096 | AE79: 58.84 | AF79: 217.74
A80: 0202MTOTAL | B80: 2 | C80: 02M | F80: -0.03392028291 | G80: 0.1245702006 | H80: =Q80/Z80-1 -> -0.6057082452 | J80: -0.252539185 | K80: -0.07421875 | L80: 0.4661909219 | M80: -0.0586335826 | N80: -0.03430697162 | O80: 655.63 | P80: 156.99 | Q80: 3.73 | R80: 0 | S80: 59.61 | T80: 144.57 | U80: 25.066 | V80: 55.39 | W80: 210.27 | X80: 678.65 | Y80: 139.6 | Z80: 9.46 | AA80: 0 | AB80: 79.75 | AC80: 156.16 | AD80: 17.096 | AE80: 58.84 | AF80: 217.74
A81: 02TOTAL | B81: 2 | F81: -0.009411368152 | G81: 0.01825462254 | H81: =Q81/Z81-1 -> 0.125 | J81: 0.001722830956 | K81: -0.05109870945 | L81: 0.5269096096 | M81: -0.09735188977 | N81: 0.01026245797 | O81: 1116.75 | P81: 86.46 | Q81: 0.09 | R81: 0.02 | S81: 145.36 | T81: 163.23 | U81: 58.87 | V81: 260.08 | W81: 402.63 | X81: 1127.36 | Y81: 84.91 | Z81: 0.08 | AA81: 0 | AB81: 145.11 | AC81: 172.02 | AD81: 38.555 | AE81: 288.13 | AF81: 398.54
A82: 0303C03C0703C071 | B82: 3 | C82: 03C | D82: 03C07 | E82: 03C071 | F82: 0.0007875068721 | G82: -0.03416551486 | H82: =Q82/Z82-1 -> -0.1284046693 | I82: =R82/AA82-1 -> 8.904761905 | J82: 0.01327482782 | K82: -0.03135750198 | L82: 0.1167729181 | M82: -0.01466558033 | N82: 0.01687876248 | O82: 1347.08 | P82: 223.61 | Q82: 2.24 | R82: 2.08 | S82: 182.43 | T82: 219.63 | U82: 50.276 | V82: 133.03 | W82: 533.78 | X82: 1346.02 | Y82: 231.52 | Z82: 2.57 | AA82: 0.21 | AB82: 180.04 | AC82: 226.74 | AD82: 45.019 | AE82: 135.01 | AF82: 524.92
A83: 0303C03C0703C072 | B83: 3 | C83: 03C | D83: 03C07 | E83: 03C072 | O83: 2122.68 | P83: 490.25 | Q83: 20.98 | R83: 0 | S83: 187.09 | T83: 460.42 | U83: 61.189 | V83: 175.56 | W83: 727.2
A84: 0303C03C0703C07J | B84: 3 | C84: 03C | D84: 03C07 | E84: 03C07J | F84: -0.2460620525 | G84: 0.03916198822 | J84: -0.299118305 | K84: -0.2994462025 | L84: -0.4105507818 | M84: -0.42157553 | N84: -0.1857528681 | O84: 758.16 | P84: 75.89 | Q84: 0 | R84: 0 | S84: 106.52 | T84: 123.97 | U84: 25.107 | V84: 73.94 | W84: 352.74 | X84: 1005.6 | Y84: 73.03 | Z84: 0 | AA84: 0 | AB84: 151.98 | AC84: 176.96 | AD84: 42.594 | AE84: 127.83 | AF84: 433.21
A85: 0303C03C07TOTAL | B85: 3 | C85: 03C | D85: 03C07 | F85: -0.03638410197 | G85: -0.002029347487 | H85: =Q85/Z85-1 -> 0.0310880829 | I85: =R85/AA85-1 -> 8.625 | J85: -0.05263461983 | K85: -0.06656404515 | L85: -0.002566584866 | M85: -0.1047061473 | N85: -0.01893818703 | O85: 1215.64 | P85: 191.79 | Q85: 1.99 | R85: 1.54 | S85: 163.97 | T85: 200.11 | U85: 44.303 | V85: 119.28 | W85: 492.65 | X85: 1261.54 | Y85: 192.18 | Z85: 1.93 | AA85: 0.16 | AB85: 173.08 | AC85: 214.38 | AD85: 44.417 | AE85: 133.23 | AF85: 502.16
A86: 0303C03C0903C091 | B86: 3 | C86: 03C | D86: 03C09 | E86: 03C091 | F86: -0.0518250826 | G86: -0.03248663102 | H86: =Q86/Z86-1 -> -0.4534883721 | I86: =R86/AA86-1 -> 0.1012658228 | J86: -0.07539516851 | K86: -0.02852812695 | L86: -0.003076109683 | M86: -0.1566551426 | N86: -0.02804306831 | O86: 1070.48 | P86: 217.11 | Q86: 1.41 | R86: 0.87 | S86: 155.01 | T86: 217.94 | U86: 41.483 | V86: 117.09 | W86: 319.56 | X86: 1128.99 | Y86: 224.4 | Z86: 2.58 | AA86: 0.79 | AB86: 167.65 | AC86: 224.34 | AD86: 41.611 | AE86: 138.84 | AF86: 328.78
A87: 0303C03C0903C09J | B87: 3 | C87: 03C | D87: 03C09 | E87: 03C09J | F87: -0.1261680076 | G87: 0.02402088773 | J87: -0.1658753709 | K87: -0.1585662572 | L87: -0.249785088 | M87: -0.2495652894 | N87: -0.06951070336 | O87: 753.75 | P87: 78.44 | Q87: 0 | R87: 0 | S87: 112.44 | T87: 141.79 | U87: 26.181 | V87: 90.63 | W87: 304.27 | X87: 862.58 | Y87: 76.6 | Z87: 0 | AA87: 0 | AB87: 134.8 | AC87: 168.51 | AD87: 34.898 | AE87: 120.77 | AF87: 327
A88: 0303C03C09TOTAL | B88: 3 | C88: 03C | D88: 03C09 | F88: -0.06237980769 | G88: -0.02862046338 | H88: =Q88/Z88-1 -> -0.4528301887 | I88: =R88/AA88-1 -> 0.09230769231 | J88: -0.08880786107 | K88: -0.04673289492 | L88: -0.04097285796 | M88: -0.1713485217 | N88: -0.03540658203 | O88: 1014.13 | P88: 192.44 | Q88: 1.16 | R88: 0.71 | S88: 147.44 | T88: 204.39 | U88: 38.761 | V88: 112.39 | W88: 316.84 | X88: 1081.6 | Y88: 198.11 | Z88: 2.12 | AA88: 0.65 | AB88: 161.81 | AC88: 214.41 | AD88: 40.417 | AE88: 135.63 | AF88: 328.47
A89: 0303C03C1003C101 | B89: 3 | C89: 03C | D89: 03C10 | E89: 03C101 | F89: -0.01139154062 | G89: 0.007595239519 | J89: -0.01587054613 | K89: -0.03083757162 | L89: 0.5541715629 | M89: -0.1691507799 | N89: -0.01105070061 | O89: 680.39 | P89: 168.48 | Q89: 0 | R89: 0 | S89: 63.25 | T89: 150.54 | U89: 26.452 | V89: 47.94 | W89: 223.73 | X89: 688.23 | Y89: 167.21 | Z89: 0.17 | AA89: 0.3 | AB89: 64.27 | AC89: 155.33 | AD89: 17.02 | AE89: 57.7 | AF89: 226.23
A90: 0303C03C10TOTAL | B90: 3 | C90: 03C | D90: 03C10 | F90: -0.01139154062 | G90: 0.007595239519 | J90: -0.01587054613 | K90: -0.03083757162 | L90: 0.5541715629 | M90: -0.1691507799 | N90: -0.01105070061 | O90: 680.39 | P90: 168.48 | Q90: 0 | R90: 0 | S90: 63.25 | T90: 150.54 | U90: 26.452 | V90: 47.94 | W90: 223.73 | X90: 688.23 | Y90: 167.21 | Z90: 0.17 | AA90: 0.3 | AB90: 64.27 | AC90: 155.33 | AD90: 17.02 | AE90: 57.7 | AF90: 226.23
A91: 0303C03C1103C111 | B91: 3 | C91: 03C | D91: 03C11 | E91: 03C111 | F91: -0.02313819243 | G91: -0.01938000933 | H91: =Q91/Z91-1 -> 0.4 | J91: 0.01250801796 | K91: -0.03678898217 | L91: 0.4495914252 | M91: -0.1447532792 | N91: -0.02574656642 | O91: 813.13 | P91: 231.24 | Q91: 0.49 | R91: 0 | S91: 63.14 | T91: 204.22 | U91: 27.319 | V91: 54.77 | W91: 231.96 | X91: 832.39 | Y91: 235.81 | Z91: 0.35 | AA91: 0.88 | AB91: 62.36 | AC91: 212.02 | AD91: 18.846 | AE91: 64.04 | AF91: 238.09
A92: 0303C03C11TOTAL | B92: 3 | C92: 03C | D92: 03C11 | F92: -0.02313819243 | G92: -0.01938000933 | H92: =Q92/Z92-1 -> 0.4 | J92: 0.01250801796 | K92: -0.03678898217 | L92: 0.4495914252 | M92: -0.1447532792 | N92: -0.02574656642 | O92: 813.13 | P92: 231.24 | Q92: 0.49 | R92: 0 | S92: 63.14 | T92: 204.22 | U92: 27.319 | V92: 54.77 | W92: 231.96 | X92: 832.39 | Y92: 235.81 | Z92: 0.35 | AA92: 0.88 | AB92: 62.36 | AC92: 212.02 | AD92: 18.846 | AE92: 64.04 | AF92: 238.09
A93: 0303C03C1203C121 | B93: 3 | C93: 03C | D93: 03C12 | E93: 03C121 | F93: 0.03303260911 | G93: -0.021633607 | J93: -0.00093643919 | K93: -0.03453004238 | L93: 0.7123062148 | M93: -0.1364715742 | N93: 0.07431417793 | O93: 804.97 | P93: 163.26 | Q93: 8.89 | R93: 0 | S93: 85.35 | T93: 154.9 | U93: 37.443 | V93: 61.82 | W93: 293.32 | X93: 779.23 | Y93: 166.87 | Z93: 0 | AA93: 0 | AB93: 85.43 | AC93: 160.44 | AD93: 21.867 | AE93: 71.59 | AF93: 273.03
A94: 0303C03C12TOTAL | B94: 3 | C94: 03C | D94: 03C12 | F94: 0.03303260911 | G94: -0.021633607 | J94: -0.00093643919 | K94: -0.03453004238 | L94: 0.7123062148 | M94: -0.1364715742 | N94: 0.07431417793 | O94: 804.97 | P94: 163.26 | Q94: 8.89 | R94: 0 | S94: 85.35 | T94: 154.9 | U94: 37.443 | V94: 61.82 | W94: 293.32 | X94: 779.23 | Y94: 166.87 | Z94: 0 | AA94: 0 | AB94: 85.43 | AC94: 160.44 | AD94: 21.867 | AE94: 71.59 | AF94: 273.03
A95: 0303C03C1303C131 | B95: 3 | C95: 03C | D95: 03C13 | E95: 03C131 | F95: -0.01911239524 | G95: 0.04176600817 | H95: =Q95/Z95-1 -> -0.4525993884 | I95: =R95/AA95-1 -> 3.50955414 | J95: -0.126040528 | K95: -0.01922221233 | L95: 0.07325622152 | M95: -0.2004122092 | N95: 0.01500225698 | O95: 1093.16 | P95: 244.69 | Q95: 12.53 | R95: 14.16 | S95: 103.94 | T95: 220.42 | U95: 33.682 | V95: 81.47 | W95: 382.26 | X95: 1114.46 | Y95: 234.88 | Z95: 22.89 | AA95: 3.14 | AB95: 118.93 | AC95: 224.74 | AD95: 31.383 | AE95: 101.89 | AF95: 376.61
A96: 0303C03C13TOTAL | B96: 3 | C96: 03C | D96: 03C13 | F96: -0.01911239524 | G96: 0.04176600817 | H96: =Q96/Z96-1 -> -0.4525993884 | I96: =R96/AA96-1 -> 3.50955414 | J96: -0.126040528 | K96: -0.01922221233 | L96: 0.07325622152 | M96: -0.2004122092 | N96: 0.01500225698 | O96: 1093.16 | P96: 244.69 | Q96: 12.53 | R96: 14.16 | S96: 103.94 | T96: 220.42 | U96: 33.682 | V96: 81.47 | W96: 382.26 | X96: 1114.46 | Y96: 234.88 | Z96: 22.89 | AA96: 3.14 | AB96: 118.93 | AC96: 224.74 | AD96: 31.383 | AE96: 101.89 | AF96: 376.61
A97: 0303C03C1403C14J | B97: 3 | C97: 03C | D97: 03C14 | E97: 03C14J | F97: -0.0009451566779 | G97: 0.002477411833 | J97: 0.01418826739 | K97: -0.01387096774 | L97: 1.067908654 | M97: -0.2880733945 | N97: 0.004268574066 | O97: 412.24 | P97: 68.79 | Q97: 0 | R97: 0 | S97: 37.17 | T97: 91.71 | U97: 17.205 | V97: 23.28 | W97: 174.1 | X97: 412.63 | Y97: 68.62 | Z97: 0 | AA97: 0 | AB97: 36.65 | AC97: 93 | AD97: 8.32 | AE97: 32.7 | AF97: 173.36
A98: 0303C03C14TOTAL | B98: 3 | C98: 03C | D98: 03C14 | F98: -0.0009451566779 | G98: 0.002477411833 | J98: 0.01418826739 | K98: -0.01387096774 | L98: 1.067908654 | M98: -0.2880733945 | N98: 0.004268574066 | O98: 412.24 | P98: 68.79 | Q98: 0 | R98: 0 | S98: 37.17 | T98: 91.71 | U98: 17.205 | V98: 23.28 | W98: 174.1 | X98: 412.63 | Y98: 68.62 | Z98: 0 | AA98: 0 | AB98: 36.65 | AC98: 93 | AD98: 8.32 | AE98: 32.7 | AF98: 173.36
A99: 0303C03C1503C15J | B99: 3 | C99: 03C | D99: 03C15 | E99: 03C15J | F99: 0.001072702406 | G99: -0.02627779382 | J99: -0.005042546486 | K99: -0.02705223881 | L99: 0.601214343 | M99: -0.2609346914 | N99: 0.06323132313 | O99: 373.29 | P99: 67.44 | Q99: 0 | R99: 0 | S99: 31.57 | T99: 93.87 | U99: 13.977 | V99: 24.67 | W99: 141.75 | X99: 372.89 | Y99: 69.26 | Z99: 0 | AA99: 0 | AB99: 31.73 | AC99: 96.48 | AD99: 8.729 | AE99: 33.38 | AF99: 133.32
A100: 0303C03C15TOTAL | B100: 3 | C100: 03C | D100: 03C15 | F100: 0.001072702406 | G100: -0.02627779382 | J100: -0.005042546486 | K100: -0.02705223881 | L100: 0.601214343 | M100: -0.2609346914 | N100: 0.06323132313 | O100: 373.29 | P100: 67.44 | Q100: 0 | R100: 0 | S100: 31.57 | T100: 93.87 | U100: 13.977 | V100: 24.67 | W100: 141.75 | X100: 372.89 | Y100: 69.26 | Z100: 0 | AA100: 0 | AB100: 31.73 | AC100: 96.48 | AD100: 8.729 | AE100: 33.38 | AF100: 133.32
A101: 0303C03C1603C161 | B101: 3 | C101: 03C | D101: 03C16 | E101: 03C161 | F101: -0.008576919997 | G101: 0.03624636971 | H101: =Q101/Z101-1 -> -0.1369565217 | J101: 0.1062509236 | K101: -0.05012623178 | L101: 0.2685538068 | M101: 0.05266757866 | N101: -0.01512318075 | O101: 1237.99 | P101: 274.74 | Q101: 3.97 | R101: 0 | S101: 149.72 | T101: 233.27 | U101: 43.604 | V101: 169.29 | W101: 363.39 | X101: 1248.7 | Y101: 265.13 | Z101: 4.6 | AA101: 4.11 | AB101: 135.34 | AC101: 245.58 | AD101: 34.373 | AE101: 160.82 | AF101: 368.97
A102: 0303C03C1603C16J | B102: 3 | C102: 03C | D102: 03C16 | E102: 03C16J | F102: 0.09898612593 | G102: 0.01748898052 | J102: 0.02316006176 | K102: -0.04287386596 | L102: 0.1968627451 | M102: 0.5657849926 | N102: 0.05000901063 | O102: 700.23 | P102: 71.56 | Q102: 0 | R102: 0 | S102: 99.4 | T102: 130.82 | U102: 27.468 | V102: 137.93 | W102: 233.06 | X102: 637.16 | Y102: 70.33 | Z102: 0 | AA102: 0 | AB102: 97.15 | AC102: 136.68 | AD102: 22.95 | AE102: 88.09 | AF102: 221.96
A103: 0303C03C16TOTAL | B103: 3 | C103: 03C | D103: 03C16 | F103: 0.03762893594 | G103: 0.03100463056 | H103: =Q103/Z103-1 -> -0.1397849462 | J103: 0.06351603447 | K103: -0.04682829625 | L103: 0.232985053 | M103: 0.2821386004 | N103: 0.0155333594 | O103: 917.43 | P103: 153.63 | Q103: 1.6 | R103: 0 | S103: 119.72 | T103: 172.2 | U103: 33.986 | V103: 150.6 | W103: 285.7 | X103: 884.16 | Y103: 149.01 | Z103: 1.86 | AA103: 1.66 | AB103: 112.57 | AC103: 180.66 | AD103: 27.564 | AE103: 117.46 | AF103: 281.33
A104: 0303C03C1703C171 | B104: 3 | C104: 03C | D104: 03C17 | E104: 03C171 | F104: -0.09435157521 | G104: 0.02503086766 | H104: =Q104/Z104-1 -> 1.268987342 | J104: -0.1492289442 | K104: -0.1052716082 | L104: -0.0287429297 | M104: -0.2223081085 | N104: -0.09599034926 | O104: 957.85 | P104: 182.64 | Q104: 7.17 | R104: 0 | S104: 143.44 | T104: 167.18 | U104: 42.07 | V104: 100.61 | W104: 314.74 | X104: 1057.64 | Y104: 178.18 | Z104: 3.16 | AA104: 0 | AB104: 168.6 | AC104: 186.85 | AD104: 43.315 | AE104: 129.37 | AF104: 348.16
A105: 0303C03C1703C17J | B105: 3 | C105: 03C | D105: 03C17 | E105: 03C17J | F105: -0.01376159228 | G105: 0.03512672299 | J105: 0.0758407687 | K105: -0.05405045597 | L105: 0.05416368408 | M105: -0.08893994093 | N105: -0.02486078678 | O105: 727.41 | P105: 69.84 | Q105: 0 | R105: 0 | S105: 125.4 | T105: 142.11 | U105: 35.344 | V105: 83.28 | W105: 271.43 | X105: 737.56 | Y105: 67.47 | Z105: 0 | AA105: 0 | AB105: 116.56 | AC105: 150.23 | AD105: 33.528 | AE105: 91.41 | AF105: 278.35
A106: 0303C03C17TOTAL | B106: 3 | C106: 03C | D106: 03C17 | F106: -0.03306169672 | G106: 0.03146453089 | H106: =Q106/Z106-1 -> 1.263157895 | J106: 0.021519892 | K106: -0.06504272414 | L106: 0.03584584868 | M106: -0.1205211726 | N106: -0.04018286814 | O106: 768.89 | P106: 90.15 | Q106: 1.29 | R106: 0 | S106: 128.64 | T106: 146.62 | U106: 36.555 | V106: 86.4 | W106: 279.23 | X106: 795.18 | Y106: 87.4 | Z106: 0.57 | AA106: 0 | AB106: 125.93 | AC106: 156.82 | AD106: 35.29 | AE106: 98.24 | AF106: 290.92
A107: 0303C03C1903C191 | B107: 3 | C107: 03C | D107: 03C19 | E107: 03C191 | F107: -0.002968291001 | G107: -0.1130267129 | H107: =Q107/Z107-1 -> 0.1465919701 | J107: -0.1127807711 | K107: 0.02023075707 | L107: -0.0499424786 | M107: 0.04527121795 | N107: 0.01842056788 | O107: 4222.19 | P107: 317.43 | Q107: 12.28 | R107: 0 | S107: 507.17 | T107: 516.4 | U107: 150.301 | V107: 1557.59 | W107: 1161.03 | X107: 4234.76 | Y107: 357.88 | Z107: 10.71 | AA107: 0 | AB107: 571.64 | AC107: 506.16 | AD107: 158.202 | AE107: 1490.13 | AF107: 1140.03
A108: 0303C03C1903C19J | B108: 3 | C108: 03C | D108: 03C19 | E108: 03C19J | O108: 1075.74 | P108: 86.67 | Q108: 0 | R108: 0 | S108: 215.82 | T108: 175.73 | U108: 58.066 | V108: 178.71 | W108: 360.74
A109: 0303C03C19TOTAL | B109: 3 | C109: 03C | D109: 03C19 | F109: -0.05703038661 | G109: -0.15994188 | H109: =Q109/Z109-1 -> 0.06349206349 | J109: -0.1498670492 | K109: -0.02874585111 | L109: -0.09236292841 | M109: -0.02205847812 | N109: -0.03265703534 | O109: 3993.25 | P109: 300.64 | Q109: 11.39 | R109: 0 | S109: 485.97 | T109: 491.61 | U109: 143.59 | V109: 1457.26 | W109: 1102.8 | X109: 4234.76 | Y109: 357.88 | Z109: 10.71 | AA109: 0 | AB109: 571.64 | AC109: 506.16 | AD109: 158.202 | AE109: 1490.13 | AF109: 1140.03
A110: 0303C03C2003C201 | B110: 3 | C110: 03C | D110: 03C20 | E110: 03C201 | F110: 0.01887263053 | G110: -0.03492391575 | H110: =Q110/Z110-1 -> -0.2816901408 | I110: =R110/AA110-1 -> 0.05555555556 | J110: 0.01532605429 | K110: -0.03866909966 | L110: 0.1601167019 | M110: 0.07863702776 | N110: 0.04117857691 | O110: 1593.15 | P110: 270.81 | Q110: 1.02 | R110: 0.38 | S110: 202.72 | T110: 247.61 | U110: 53.283 | V110: 206.71 | W110: 610.62 | X110: 1563.64 | Y110: 280.61 | Z110: 1.42 | AA110: 0.36 | AB110: 199.66 | AC110: 257.57 | AD110: 45.929 | AE110: 191.64 | AF110: 586.47
A111: 0303C03C2003C20J | B111: 3 | C111: 03C | D111: 03C20 | E111: 03C20J | F111: -0.07729304802 | G111: -0.04684289823 | J111: -0.03648405927 | K111: -0.08469314079 | L111: 0.8079727998 | M111: -0.3656599687 | N111: -0.07430159054 | O111: 734.77 | P111: 69.59 | Q111: 0 | R111: 0 | S111: 85.83 | T111: 126.77 | U111: 36.691 | V111: 52.72 | W111: 363.17 | X111: 796.32 | Y111: 73.01 | Z111: 0 | AA111: 0 | AB111: 89.08 | AC111: 138.5 | AD111: 20.294 | AE111: 83.11 | AF111: 392.32
A112: 0303C03C20TOTAL | B112: 3 | C112: 03C | D112: 03C20 | F112: 0.006198198198 | G112: -0.03575874651 | H112: =Q112/Z112-1 -> -0.2752293578 | I112: =R112/AA112-1 -> 0.03571428571 | J112: 0.009295920124 | K112: -0.04499847978 | L112: 0.2354909599 | M112: 0.02783109405 | N112: 0.02197822476 | O112: 1396.1 | P112: 224.62 | Q112: 0.79 | R112: 0.29 | S112: 175.89 | T112: 219.87 | U112: 49.474 | V112: 171.36 | W112: 553.81 | X112: 1387.5 | Y112: 232.95 | Z112: 1.09 | AA112: 0.28 | AB112: 174.27 | AC112: 230.23 | AD112: 40.044 | AE112: 166.72 | AF112: 541.9
A113: 0303C03C2103C211 | B113: 3 | C113: 03C | D113: 03C21 | E113: 03C211 | F113: -0.01910257585 | G113: 0.005152278452 | J113: -0.02211582307 | K113: -0.0214130243 | L113: 0.3587322093 | M113: -0.155671571 | N113: -0.0294673215 | O113: 963.82 | P113: 175.58 | Q113: 0 | R113: 0 | S113: 171.56 | T113: 166.35 | U113: 61.003 | V113: 106.74 | W113: 282.59 | X113: 982.59 | Y113: 174.68 | Z113: 0 | AA113: 0 | AB113: 175.44 | AC113: 169.99 | AD113: 44.897 | AE113: 126.42 | AF113: 291.17
A114: 0303C03C2103C21J | B114: 3 | C114: 03C | D114: 03C21 | E114: 03C21J | F114: -0.0150393652 | G114: 0.1213872832 | J114: 0.001684295628 | K114: -0.07569952398 | L114: -0.06105033366 | M114: -0.04101360863 | N114: -0.006657029823 | O114: 794.42 | P114: 85.36 | Q114: 0 | R114: 0 | S114: 148.68 | T114: 159.22 | U114: 37.85 | V114: 102.18 | W114: 261.13 | X114: 806.55 | Y114: 76.12 | Z114: 0 | AA114: 0 | AB114: 148.43 | AC114: 172.26 | AD114: 40.311 | AE114: 106.55 | AF114: 262.88
A115: 0303C03C21TOTAL | B115: 3 | C115: 03C | D115: 03C21 | F115: -0.01748993942 | G115: 0.03512254715 | J115: -0.01254129451 | K115: -0.04567251462 | L115: 0.1836549005 | M115: -0.1095238095 | N115: -0.01991960376 | O115: 888.7 | P115: 135.57 | Q115: 0 | R115: 0 | S115: 161.41 | T115: 163.19 | U115: 50.735 | V115: 104.72 | W115: 273.07 | X115: 904.52 | Y115: 130.97 | Z115: 0 | AA115: 0 | AB115: 163.46 | AC115: 171 | AD115: 42.863 | AE115: 117.6 | AF115: 278.62
A116: 0303C03C2403C241 | B116: 3 | C116: 03C | D116: 03C24 | E116: 03C241 | F116: -0.02635207442 | G116: 0.002877275396 | H116: =Q116/Z116-1 -> 0.04957264957 | I116: =R116/AA116-1 -> -0.7692307692 | J116: 0.0271638888 | K116: 0.01462441072 | L116: 0.1416164695 | M116: -0.112426283 | N116: -0.0604058658 | O116: 1892.46 | P116: 341.58 | Q116: 6.14 | R116: 2.67 | S116: 306.29 | T116: 294.86 | U116: 94.382 | V116: 212.21 | W116: 634.32 | X116: 1943.68 | Y116: 340.6 | Z116: 5.85 | AA116: 11.57 | AB116: 298.19 | AC116: 290.61 | AD116: 82.674 | AE116: 239.09 | AF116: 675.1
A117: 0303C03C2403C24J | B117: 3 | C117: 03C | D117: 03C24 | E117: 03C24J | F117: -0.02226561875 | G117: -0.04072086945 | J117: -0.03930131004 | K117: -0.06507797697 | L117: 0.3407365439 | M117: -0.16478725 | N117: 0.01579224425 | O117: 610.82 | P117: 69.73 | Q117: 0 | R117: 0 | S117: 90.2 | T117: 128.29 | U117: 35.496 | V117: 55.55 | W117: 231.56 | X117: 624.73 | Y117: 72.69 | Z117: 0 | AA117: 0 | AB117: 93.89 | AC117: 137.22 | AD117: 26.475 | AE117: 66.51 | AF117: 227.96
A118: 0303C03C24TOTAL | B118: 3 | C118: 03C | D118: 03C24 | F118: -0.02578764212 | G118: -0.001271657924 | H118: =Q118/Z118-1 -> 0.04859335038 | I118: -0.7684346701 | J118: 0.01814551137 | K118: -0.0005423898531 | L118: 0.1689603999 | M118: -0.1187634083 | N118: -0.04946452985 | O118: 1466.93 | P118: 251.32 | Q118: 4.1 | R118: 1.79 | S118: 234.54 | T118: 239.55 | U118: 74.831 | V118: 160.2 | W118: 500.59 | X118: 1505.76 | Y118: 251.64 | Z118: 3.91 | AA118: 7.73 | AB118: 230.36 | AC118: 239.68 | AD118: 64.015 | AE118: 181.79 | AF118: 526.64
A119: 0303C03C2603C261 | B119: 3 | C119: 03C | D119: 03C26 | E119: 03C261 | F119: 0.03059676528 | G119: 0.1479335962 | H119: -0.3871354135 | I119: -0.5960995638 | J119: 0.1158173006 | K119: -0.03289624443 | L119: 0.615538186 | M119: 0.06838329961 | N119: 0.01700650184 | O119: 2649.52 | P119: 428.03 | Q119: 102.33 | R119: 15.74 | S119: 379.88 | T119: 379.83 | U119: 133.521 | V119: 290.44 | W119: 919.74 | X119: 2570.86 | Y119: 372.87 | Z119: 166.97 | AA119: 38.97 | AB119: 340.45 | AC119: 392.75 | AD119: 82.648 | AE119: 271.85 | AF119: 904.36
A120: 0303C03C26TOTAL | B120: 3 | C120: 03C | D120: 03C26 | F120: 0.03059676528 | G120: 0.1479335962 | H120: -0.3871354135 | I120: -0.5960995638 | J120: 0.1158173006 | K120: -0.03289624443 | L120: 0.615538186 | M120: 0.06838329961 | N120: 0.01700650184 | O120: 2649.52 | P120: 428.03 | Q120: 102.33 | R120: 15.74 | S120: 379.88 | T120: 379.83 | U120: 133.521 | V120: 290.44 | W120: 919.74 | X120: 2570.86 | Y120: 372.87 | Z120: 166.97 | AA120: 38.97 | AB120: 340.45 | AC120: 392.75 | AD120: 82.648 | AE120: 271.85 | AF120: 904.36
A121: 0303C03C2703C27J | B121: 3 | C121: 03C | D121: 03C27 | E121: 03C27J | F121: -0.04063462668 | G121: 0.02719120625 | J121: -0.170767215 | K121: -0.02862362972 | L121: -0.0582624684 | M121: -0.2162364385 | N121: 0.0121448983 | O121: 538.77 | P121: 71.02 | Q121: 0 | R121: 0 | S121: 56.96 | T121: 111.65 | U121: 16.39 | V121: 41.9 | W121: 240.85 | X121: 561.59 | Y121: 69.14 | Z121: 0 | AA121: 0 | AB121: 68.69 | AC121: 114.94 | AD121: 17.404 | AE121: 53.46 | AF121: 237.96
A122: 0303C03C27TOTAL | B122: 3 | C122: 03C | D122: 03C27 | F122: -0.04063462668 | G122: 0.02719120625 | J122: -0.170767215 | K122: -0.02862362972 | L122: -0.0582624684 | M122: -0.2162364385 | N122: 0.0121448983 | O122: 538.77 | P122: 71.02 | Q122: 0 | R122: 0 | S122: 56.96 | T122: 111.65 | U122: 16.39 | V122: 41.9 | W122: 240.85 | X122: 561.59 | Y122: 69.14 | Z122: 0 | AA122: 0 | AB122: 68.69 | AC122: 114.94 | AD122: 17.404 | AE122: 53.46 | AF122: 237.96
A123: 0303C03C2803C28J | B123: 3 | C123: 03C | D123: 03C28 | E123: 03C28J | F123: 0.003389998268 | G123: 0.004557598617 | J123: -0.007616629641 | K123: -0.01011078843 | L123: 0.5015095606 | M123: -0.1282051282 | N123: 0.009092962837 | O123: 405.5 | P123: 63.92 | Q123: 0 | R123: 0 | S123: 31.27 | T123: 92.03 | U123: 13.428 | V123: 26.18 | W123: 178.67 | X123: 404.13 | Y123: 63.63 | Z123: 0 | AA123: 0 | AB123: 31.51 | AC123: 92.97 | AD123: 8.943 | AE123: 30.03 | AF123: 177.06
A124: 0303C03C28TOTAL | B124: 3 | C124: 03C | D124: 03C28 | F124: 0.003389998268 | G124: 0.004557598617 | J124: -0.007616629641 | K124: -0.01011078843 | L124: 0.5015095606 | M124: -0.1282051282 | N124: 0.009092962837 | O124: 405.5 | P124: 63.92 | Q124: 0 | R124: 0 | S124: 31.27 | T124: 92.03 | U124: 13.428 | V124: 26.18 | W124: 178.67 | X124: 404.13 | Y124: 63.63 | Z124: 0 | AA124: 0 | AB124: 31.51 | AC124: 92.97 | AD124: 8.943 | AE124: 30.03 | AF124: 177.06
A125: 0303C03C3003C30J | B125: 3 | C125: 03C | D125: 03C30 | E125: 03C30J | F125: 0.08434290131 | G125: -0.03615803434 | J125: 0.05922991894 | K125: 0.04274333218 | L125: 0.3741461395 | M125: -0.07597821958 | N125: 0.1743329309 | O125: 729.47 | P125: 69.04 | Q125: 0 | R125: 0 | S125: 114.99 | T125: 150.52 | U125: 39.831 | V125: 72.97 | W125: 282.11 | X125: 672.73 | Y125: 71.63 | Z125: 0 | AA125: 0 | AB125: 108.56 | AC125: 144.35 | AD125: 28.986 | AE125: 78.97 | AF125: 240.23
A126: 0303C03C30TOTAL | B126: 3 | C126: 03C | D126: 03C30 | F126: 0.08434290131 | G126: -0.03615803434 | J126: 0.05922991894 | K126: 0.04274333218 | L126: 0.3741461395 | M126: -0.07597821958 | N126: 0.1743329309 | O126: 729.47 | P126: 69.04 | Q126: 0 | R126: 0 | S126: 114.99 | T126: 150.52 | U126: 39.831 | V126: 72.97 | W126: 282.11 | X126: 672.73 | Y126: 71.63 | Z126: 0 | AA126: 0 | AB126: 108.56 | AC126: 144.35 | AD126: 28.986 | AE126: 78.97 | AF126: 240.23
A127: 0303CTOTAL | B127: 3 | C127: 03C | F127: -0.01563620714 | G127: -0.008133655749 | H127: =Q127/Z127-1 -> -0.1639344262 | I127: =R127/AA127-1 -> -0.1964285714 | J127: -0.03269807488 | K127: -0.03412221387 | L127: 0.1836567164 | M127: -0.05938086304 | N127: -0.002992419205 | O127: 823.44 | P127: 135.36 | Q127: 1.53 | R127: 0.45 | S127: 99.99 | T127: 154.27 | U127: 31.722 | V127: 100.27 | W127: 299.86 | X127: 836.52 | Y127: 136.47 | Z127: 1.83 | AA127: 0.56 | AB127: 103.37 | AC127: 159.72 | AD127: 26.8 | AE127: 106.6 | AF127: 300.76
A128: 0303K03K0203K021 | B128: 3 | C128: 03K | D128: 03K02 | E128: 03K021 | F128: 0.009285339189 | G128: 0.05340198602 | H128: =Q128/Z128-1 -> -0.03149606299 | I128: =R128/AA128-1 -> 2 | J128: 0.02120300752 | K128: -0.03435710567 | L128: 0.05836966574 | M128: 0.06582077716 | N128: -0.02320839988 | O128: 845.66 | P128: 143.21 | Q128: 1.23 | R128: 0.51 | S128: 135.82 | T128: 129.85 | U128: 40.054 | V128: 107.52 | W128: 287.46 | X128: 837.88 | Y128: 135.95 | Z128: 1.27 | AA128: 0.17 | AB128: 133 | AC128: 134.47 | AD128: 37.845 | AE128: 100.88 | AF128: 294.29
A129: 0303K03K0203K02J | B129: 3 | C129: 03K | D129: 03K02 | E129: 03K02J | F129: 0.02702161996 | G129: 0.08785197104 | J129: 0.04238135528 | K129: 0.004471808166 | L129: 0.05607292921 | M129: 0.05295807007 | N129: 0.006241834809 | O129: 770.03 | P129: 67.61 | Q129: 0 | R129: 0 | S129: 135.52 | T129: 154.99 | U129: 42.979 | V129: 91.66 | W129: 277.28 | X129: 749.77 | Y129: 62.15 | Z129: 0 | AA129: 0 | AB129: 130.01 | AC129: 154.3 | AD129: 40.697 | AE129: 87.05 | AF129: 275.56
A130: 0303K03K02TOTAL | B130: 3 | C130: 03K | D130: 03K02 | F130: 0.0256505232 | G130: 0.08290001486 | H130: =Q130/Z130-1 -> 0 | I130: =R130/AA130-1 -> 3 | J130: 0.04085393949 | K130: 0.002027203767 | L130: 0.05620030619 | M130: 0.05396500795 | N130: 0.004045219778 | O130: 775.32 | P130: 72.89 | Q130: 0.09 | R130: 0.04 | S130: 135.54 | T130: 153.23 | U130: 42.774 | V130: 92.77 | W130: 277.99 | X130: 755.93 | Y130: 67.31 | Z130: 0.09 | AA130: 0.01 | AB130: 130.22 | AC130: 152.92 | AD130: 40.498 | AE130: 88.02 | AF130: 276.87
A131: 0303K03K0303K03J | B131: 3 | C131: 03K | D131: 03K03 | E131: 03K03J | F131: -0.05321314842 | G131: 0.002544529262 | J131: -0.09690964058 | K131: -0.08587701344 | L131: 0.04969305331 | M131: -0.2787218323 | N131: -0.003829547588 | O131: 544.09 | P131: 66.98 | Q131: 0 | R131: 0 | S131: 53.77 | T131: 102.72 | U131: 16.244 | V131: 39.05 | W131: 265.33 | X131: 574.67 | Y131: 66.81 | Z131: 0 | AA131: 0 | AB131: 59.54 | AC131: 112.37 | AD131: 15.475 | AE131: 54.14 | AF131: 266.35
A132: 0303K03K03TOTAL | B132: 3 | C132: 03K | D132: 03K03 | F132: =O132/X132-1 -> -0.05321314842 | G132: =P132/Y132-1 -> 0.002544529262 | J132: =S132/AB132-1 -> -0.09690964058 | K132: =T132/AC132-1 -> -0.08587701344 | L132: =U132/AD132-1 -> 0.04969305331 | M132: =V132/AE132-1 -> -0.2787218323 | N132: =W132/AF132-1 -> -0.003829547588 | O132: 544.09 | P132: 66.98 | Q132: 0 | R132: 0 | S132: 53.77 | T132: 102.72 | U132: 16.244 | V132: 39.05 | W132: 265.33 | X132: 574.67 | Y132: 66.81 | Z132: 0 | AA132: 0 | AB132: 59.54 | AC132: 112.37 | AD132: 15.475 | AE132: 54.14 | AF132: 266.35
A133: 0303K03K0403K04J | B133: 3 | C133: 03K | D133: 03K04 | E133: 03K04J | F133: -0.03119802429 | G133: 0.03535660091 | J133: -0.09464922711 | K133: -0.06706539857 | L133: 0.4366815989 | M133: -0.2647312446 | N133: 0.001779612756 | O133: 384.44 | P133: 68.23 | Q133: 0 | R133: 0 | S133: 38.07 | T133: 95.15 | U133: 16.677 | V133: 25.58 | W133: 140.73 | X133: 396.82 | Y133: 65.9 | Z133: 0 | AA133: 0 | AB133: 42.05 | AC133: 101.99 | AD133: 11.608 | AE133: 34.79 | AF133: 140.48
A134: 0303K03K04TOTAL | B134: 3 | C134: 03K | D134: 03K04 | F134: -0.03119802429 | G134: 0.03535660091 | J134: -0.09464922711 | K134: -0.06706539857 | L134: 0.4366815989 | M134: -0.2647312446 | N134: 0.001779612756 | O134: 384.44 | P134: 68.23 | Q134: 0 | R134: 0 | S134: 38.07 | T134: 95.15 | U134: 16.677 | V134: 25.58 | W134: 140.73 | X134: 396.82 | Y134: 65.9 | Z134: 0 | AA134: 0 | AB134: 42.05 | AC134: 101.99 | AD134: 11.608 | AE134: 34.79 | AF134: 140.48
A135: 0303KTOTAL | B135: 3 | C135: 03K | F135: 0.02228773904 | G135: 0.07851301115 | H135: =Q135/Z135-1 -> 0 | I135: =R135/AA135-1 -> 2 | J135: 0.03694522191 | K135: -0.001867413632 | L135: 0.05887821506 | M135: 0.04174973613 | N135: 0.003735169181 | O135: 755.9 | P135: 72.53 | Q135: 0.08 | R135: 0.03 | S135: 129.67 | T135: 149.66 | U135: 41.004 | V135: 88.83 | W135: 274.1 | X135: 739.42 | Y135: 67.25 | Z135: 0.08 | AA135: 0.01 | AB135: 125.05 | AC135: 149.94 | AD135: 38.724 | AE135: 85.27 | AF135: 273.08
A136: 0303M03M0203M021 | B136: 3 | C136: 03M | D136: 03M02 | E136: 03M021 | F136: 0.02459338818 | G136: 0.1590830549 | J136: 0.07734173589 | K136: 0.003044045474 | L136: 0.3080942623 | M136: -0.07380568975 | N136: -0.06330757342 | O136: 599.09 | P136: 201.24 | Q136: 0 | R136: 0 | S136: 37.61 | T136: 161.46 | U136: 12.767 | V136: 34.51 | W136: 151.51 | X136: 584.71 | Y136: 173.62 | Z136: 4.83 | AA136: 0 | AB136: 34.91 | AC136: 160.97 | AD136: 9.76 | AE136: 37.26 | AF136: 161.75
A137: 0303M03M0203M02T | B137: 3 | C137: 03M | D137: 03M02 | E137: 03M02T | F137: 0.01050681641 | G137: -0.02254887969 | J137: 0.09475150952 | K137: -0.02129518401 | L137: 0.1751824818 | M137: -0.0618002687 | N137: 0.03959054644 | O137: 349.12 | P137: 68.49 | Q137: 0 | R137: 0 | S137: 23.57 | T137: 89.62 | U137: 8.372 | V137: 20.95 | W137: 138.12 | X137: 345.49 | Y137: 70.07 | Z137: 0 | AA137: 0 | AB137: 21.53 | AC137: 91.57 | AD137: 7.124 | AE137: 22.33 | AF137: 132.86
A138: 0303M03M02TOTAL | B138: 3 | C138: 03M | D138: 03M02 | F138: 0.0139420947 | G138: 0.03567305472 | J138: 0.09040980144 | K138: -0.01519431187 | L138: 0.2026239067 | M138: -0.06512944984 | N138: 0.02022112307 | O138: 389.08 | P138: 89.71 | Q138: 0 | R138: 0 | S138: 25.81 | T138: 101.11 | U138: 9.075 | V138: 23.11 | W138: 140.26 | X138: 383.73 | Y138: 86.62 | Z138: 0.77 | AA138: 0 | AB138: 23.67 | AC138: 102.67 | AD138: 7.546 | AE138: 24.72 | AF138: 137.48
A139: 0303M03M0403M04T | B139: 3 | C139: 03M | D139: 03M04 | E139: 03M04T | F139: -0.1703301757 | G139: 0.07140789347 | J139: -0.3867318436 | K139: -0.1973128599 | L139: -0.297491212 | M139: -0.3838240511 | N139: -0.1166863317 | O139: 451.05 | P139: 111.03 | Q139: 0 | R139: 0 | S139: 43.91 | T139: 104.55 | U139: 14.589 | V139: 34.74 | W139: 142.24 | X139: 543.65 | Y139: 103.63 | Z139: 0 | AA139: 0 | AB139: 71.6 | AC139: 130.25 | AD139: 20.767 | AE139: 56.38 | AF139: 161.03
A140: 0303M03M04TOTAL | B140: 3 | C140: 03M | D140: 03M04 | F140: -0.3459915612 | G140: -0.2701636758 | J140: -0.4384910486 | K140: -0.3719211823 | L140: -0.2956257242 | M140: -0.4330014689 | N140: -0.3255891138 | O140: 451.05 | P140: 111.03 | Q140: 0 | R140: 0 | S140: 43.91 | T140: 104.55 | U140: 14.589 | V140: 34.74 | W140: 142.24 | X140: 689.67 | Y140: 152.13 | Z140: 0 | AA140: 0 | AB140: 78.2 | AC140: 166.46 | AD140: 20.712 | AE140: 61.27 | AF140: 210.91
A141: 0303M03M0503M051 | B141: 3 | C141: 03M | D141: 03M05 | E141: 03M051 | F141: -0.08288360686 | G141: -0.01801718133 | I141: 2.389189189 | J141: -0.5833550971 | K141: -0.03714606112 | L141: -0.1330110436 | M141: -0.2810392206 | N141: -0.04477543009 | O141: 1323.83 | P141: 422.94 | Q141: 0 | R141: 18.81 | S141: 47.86 | T141: 343.45 | U141: 19.548 | V141: 57.56 | W141: 413.66 | X141: 1443.47 | Y141: 430.7 | Z141: 0 | AA141: 5.55 | AB141: 114.87 | AC141: 356.7 | AD141: 22.547 | AE141: 80.06 | AF141: 433.05
A142: 0303M03M0503M05T | B142: 3 | C142: 03M | D142: 03M05 | E142: 03M05T | F142: -0.01818765165 | G142: 0.1307801195 | J142: -0.4112699748 | K142: -0.05209111277 | L142: -0.0787783299 | M142: 0.04871287129 | N142: -0.01527217192 | O142: 489.62 | P142: 143.79 | Q142: 0 | R142: 1.66 | S142: 28 | T142: 101.54 | U142: 7.601 | V142: 26.48 | W142: 180.54 | X142: 498.69 | Y142: 127.16 | Z142: 0 | AA142: 0 | AB142: 47.56 | AC142: 107.12 | AD142: 8.251 | AE142: 25.25 | AF142: 183.34
A143: 0303M03M05TOTAL | B143: 3 | C143: 03M | D143: 03M05 | F143: -0.2332935168 | G143: -0.1773915308 | I143: 0.09868421053 | J143: -0.551780341 | K143: -0.2482255899 | L143: -0.2668300849 | M143: -0.3140877598 | N143: -0.189371548 | O143: 815.17 | P143: 252.73 | Q143: 0 | R143: 8.35 | S143: 35.75 | T143: 195.95 | U143: 12.263 | V143: 38.61 | W143: 271.52 | X143: 1063.21 | Y143: 307.23 | Z143: 0 | AA143: 7.6 | AB143: 79.76 | AC143: 260.65 | AD143: 16.726 | AE143: 56.29 | AF143: 334.95
A144: 0303M03M0603M061 | B144: 3 | C144: 03M | D144: 03M06 | E144: 03M061 | F144: -0.05764876405 | G144: -0.0558829455 | J144: 0.1857585139 | K144: -0.02705560393 | L144: -0.07972972973 | M144: 0.01887357699 | N144: -0.2793202895 | O144: 1202.77 | P144: 374.89 | Q144: 62.47 | R144: 0 | S144: 45.96 | T144: 312.86 | U144: 15.663 | V144: 136.04 | W144: 254.89 | X144: 1276.35 | Y144: 397.08 | Z144: 0 | AA144: 14.73 | AB144: 38.76 | AC144: 321.56 | AD144: 17.02 | AE144: 133.52 | AF144: 353.68
A145: 0303M03M0603M06T | B145: 3 | C145: 03M | D145: 03M06 | E145: 03M06T | F145: -0.06036479444 | G145: 0.1365564658 | J145: -0.1999248403 | K145: 0.02958015267 | L145: 0.03155141409 | M145: -0.3605807705 | N145: -0.131016523 | O145: 454.37 | P145: 155.39 | Q145: 0 | R145: 0 | S145: 21.29 | T145: 118.69 | U145: 6.31 | V145: 55.93 | W145: 96.77 | X145: 483.56 | Y145: 136.72 | Z145: 0 | AA145: 0 | AB145: 26.61 | AC145: 115.28 | AD145: 6.117 | AE145: 87.47 | AF145: 111.36
A146: 0303M03M06TOTAL | B146: 3 | C146: 03M | D146: 03M06 | F146: -0.05860015535 | G146: 0.007327656787 | J146: -0.004742333228 | K146: -0.007930174564 | L146: -0.04217661457 | M146: -0.1639590572 | N146: -0.233508299 | O146: 763.56 | P146: 246.07 | Q146: 25.81 | R146: 0 | S146: 31.48 | T146: 198.91 | U146: 10.174 | V146: 89.03 | W146: 162.09 | X146: 811.09 | Y146: 244.28 | Z146: 0 | AA146: 6.09 | AB146: 31.63 | AC146: 200.5 | AD146: 10.622 | AE146: 106.49 | AF146: 211.47
A147: 0303M03M0703M071 | B147: 3 | C147: 03M | D147: 03M07 | E147: 03M071 | F147: -0.03755460222 | G147: -0.05326633166 | H147: 2.153132251 | J147: -0.1690187799 | K147: -0.04397801099 | L147: 0.2015010813 | M147: -0.09817351598 | N147: -0.0339487336 | O147: 984.88 | P147: 216.66 | Q147: 13.59 | R147: 5.28 | S147: 74.78 | T147: 191.3 | U147: 28.335 | V147: 75.05 | W147: 379.89 | X147: 1023.31 | Y147: 228.85 | Z147: 4.31 | AA147: 0 | AB147: 89.99 | AC147: 200.1 | AD147: 23.583 | AE147: 83.22 | AF147: 393.24
A148: 0303M03M07TOTAL | B148: 3 | C148: 03M | D148: 03M07 | F148: -0.03755460222 | G148: -0.05326633166 | H148: 2.153132251 | J148: -0.1690187799 | K148: -0.04397801099 | L148: 0.2015010813 | M148: -0.09817351598 | N148: -0.0339487336 | O148: 984.88 | P148: 216.66 | Q148: 13.59 | R148: 5.28 | S148: 74.78 | T148: 191.3 | U148: 28.335 | V148: 75.05 | W148: 379.89 | X148: 1023.31 | Y148: 228.85 | Z148: 4.31 | AA148: 0 | AB148: 89.99 | AC148: 200.1 | AD148: 23.583 | AE148: 83.22 | AF148: 393.24
A149: 0303M03M0903M091 | B149: 3 | C149: 03M | D149: 03M09 | E149: 03M091 | F149: -0.02317967905 | G149: 0.0418938307 | J149: -0.1253154972 | K149: -0.02204822562 | L149: 0.5676145663 | M149: -0.1445147679 | N149: -0.07701309381 | O149: 1002.54 | P149: 290.48 | Q149: 4.35 | R149: 0 | S149: 69.31 | T149: 251.05 | U149: 30.65 | V149: 64.88 | W149: 291.83 | X149: 1026.33 | Y149: 278.8 | Z149: 0 | AA149: 0 | AB149: 79.24 | AC149: 256.71 | AD149: 19.552 | AE149: 75.84 | AF149: 316.18
A150: 0303M03M0903M09T | B150: 3 | C150: 03M | D150: 03M09 | E150: 03M09T | F150: -0.03193195807 | G150: 0.00200060018 | J150: -0.1515499426 | K150: -0.01653839856 | L150: 0.1942365865 | M150: -0.2403452976 | N150: -0.004873531849 | O150: 519.02 | P150: 100.17 | Q150: 1.76 | R150: 0 | S150: 44.34 | T150: 120.12 | U150: 15.002 | V150: 33.44 | W150: 204.19 | X150: 536.14 | Y150: 99.97 | Z150: 0 | AA150: 0 | AB150: 52.26 | AC150: 122.14 | AD150: 12.562 | AE150: 44.02 | AF150: 205.19
A151: 0303M03M09TOTAL | B151: 3 | C151: 03M | D151: 03M09 | F151: -0.02790068114 | G151: 0.02412436303 | J151: -0.1409938914 | K151: -0.01919550067 | L151: 0.3470164469 | M151: -0.198810851 | N151: -0.03417446524 | O151: 667.91 | P151: 158.77 | Q151: 2.56 | R151: 0 | S151: 52.03 | T151: 160.44 | U151: 19.82 | V151: 43.12 | W151: 231.18 | X151: 687.08 | Y151: 155.03 | Z151: 0 | AA151: 0 | AB151: 60.57 | AC151: 163.58 | AD151: 14.714 | AE151: 53.82 | AF151: 239.36
A152: 0303M03M1003M10T | B152: 3 | C152: 03M | D152: 03M10 | E152: 03M10T | F152: 0.07128103528 | G152: -0.006308637981 | J152: 0.4081632653 | K152: 0.1786625364 | L152: 0.6310668939 | M152: 0.3563370936 | N152: -0.2165867419 | O152: 508.28 | P152: 61.43 | Q152: 0 | R152: 0 | S152: 87.63 | T152: 129.37 | U152: 29.674 | V152: 61.32 | W152: 138.86 | X152: 474.46 | Y152: 61.82 | Z152: 0 | AA152: 0 | AB152: 62.23 | AC152: 109.76 | AD152: 18.193 | AE152: 45.21 | AF152: 177.25
A153: 0303M03M10TOTAL | B153: 3 | C153: 03M | D153: 03M10 | F153: 0.07128103528 | G153: -0.006308637981 | J153: 0.4081632653 | K153: 0.1786625364 | L153: 0.6310668939 | M153: 0.3563370936 | N153: -0.2165867419 | O153: 508.28 | P153: 61.43 | Q153: 0 | R153: 0 | S153: 87.63 | T153: 129.37 | U153: 29.674 | V153: 61.32 | W153: 138.86 | X153: 474.46 | Y153: 61.82 | Z153: 0 | AA153: 0 | AB153: 62.23 | AC153: 109.76 | AD153: 18.193 | AE153: 45.21 | AF153: 177.25
A154: 0303M03M1103M111 | B154: 3 | C154: 03M | D154: 03M11 | E154: 03M111 | F154: 0.01768846908 | G154: -0.0007386303683 | J154: 0.0419306184 | K154: -0.05751604033 | L154: 0.1592633315 | M154: 0.3629642366 | N154: -0.02815633067 | O154: 685.23 | P154: 189.4 | Q154: 0 | R154: 0 | S154: 69.08 | T154: 164.52 | U154: 21.087 | V154: 79.27 | W154: 161.88 | X154: 673.32 | Y154: 189.54 | Z154: 0 | AA154: 0 | AB154: 66.3 | AC154: 174.56 | AD154: 18.19 | AE154: 58.16 | AF154: 166.57
A155: 0303M03M1103M11T | B155: 3 | C155: 03M | D155: 03M11 | E155: 03M11T | F155: 0.02831663142 | G155: -0.004643309413 | J155: 0.08274751025 | K155: -0.01931567329 | L155: 0.1144234296 | M155: 0.09825976231 | N155: 0.02157855424 | O155: 447.4 | P155: 70.74 | Q155: 0 | R155: 0 | S155: 73.93 | T155: 106.62 | U155: 21.271 | V155: 51.75 | W155: 123.09 | X155: 435.08 | Y155: 71.07 | Z155: 0 | AA155: 0.31 | AB155: 68.28 | AC155: 108.72 | AD155: 19.087 | AE155: 47.12 | AF155: 120.49
A156: 0303M03M11TOTAL | B156: 3 | C156: 03M | D156: 03M11 | F156: 0.02560247254 | G156: -0.003123653598 | J156: 0.0753939037 | K156: -0.02946532031 | L156: 0.1223443611 | M156: 0.1558494405 | N156: 0.009770471464 | O156: 491.12 | P156: 92.55 | Q156: 0 | R156: 0 | S156: 73.03 | T156: 117.26 | U156: 21.237 | V156: 56.81 | W156: 130.22 | X156: 478.86 | Y156: 92.84 | Z156: 0 | AA156: 0.25 | AB156: 67.91 | AC156: 120.82 | AD156: 18.922 | AE156: 49.15 | AF156: 128.96
A157: 0303M03M1303M131 | B157: 3 | C157: 03M | D157: 03M13 | E157: 03M131 | O157: 717.6 | P157: 279.24 | Q157: 0 | R157: 0 | S157: 25.98 | T157: 234.85 | U157: 10.646 | V157: 38.62 | W157: 128.26
A158: 0303M03M13TOTAL | B158: 3 | C158: 03M | D158: 03M13 | O158: 717.6 | P158: 279.24 | Q158: 0 | R158: 0 | S158: 25.98 | T158: 234.85 | U158: 10.646 | V158: 38.62 | W158: 128.26
A159: 0303MTOTAL | B159: 3 | C159: 03M | F159: -0.07608189482 | G159: -0.09340540541 | H159: 4.357142857 | I159: -0.06363636364 | J159: -0.0330420969 | K159: -0.08632094192 | L159: 0.1758468336 | M159: -0.01899696049 | N159: -0.1158472145 | O159: 575.37 | P159: 125.79 | Q159: 2.25 | R159: 1.03 | S159: 60.87 | T159: 138.13 | U159: 19.96 | V159: 51.64 | W159: 175.69 | X159: 622.75 | Y159: 138.75 | Z159: 0.42 | AA159: 1.1 | AB159: 62.95 | AC159: 151.18 | AD159: 16.975 | AE159: 52.64 | AF159: 198.71
A160: 03TOTAL | B160: 3 | F160: -0.001969264036 | G160: 0.009150700601 | H160: -0.02150537634 | I160: -0.1428571429 | J160: 0.004255319149 | K160: -0.02327987584 | L160: 0.1141237211 | M160: -0.01440550419 | N160: -0.004842097768 | O160: 775.41 | P160: 105.87 | Q160: 0.91 | R160: 0.3 | S160: 110.92 | T160: 151.04 | U160: 35.174 | V160: 91.68 | W160: 279.51 | X160: 776.94 | Y160: 104.91 | Z160: 0.93 | AA160: 0.35 | AB160: 110.45 | AC160: 154.64 | AD160: 31.571 | AE160: 93.02 | AF160: 280.87
A161: 0404C04C0204C021 | B161: 4 | C161: 04C | D161: 04C02 | E161: 04C021 | F161: 0.03074248086 | G161: 0.06708430706 | H161: -0.02436393521 | I161: -0.179707003 | J161: 0.2139182834 | K161: -0.03182066371 | L161: 0.1787182912 | M161: 0.1567582007 | N161: -0.02466791473 | O161: 6129.64 | P161: 543.37 | Q161: 569.83 | R161: 249.73 | S161: 660.76 | T161: 638.34 | U161: 202.083 | V161: 1082.61 | W161: 2182.92 | X161: 5946.82 | Y161: 509.21 | Z161: 584.06 | AA161: 304.44 | AB161: 544.32 | AC161: 659.32 | AD161: 171.443 | AE161: 935.9 | AF161: 2238.13
A162: 0404C04C0204C022 | B162: 4 | C162: 04C | D162: 04C02 | E162: 04C022 | F162: 0.02325870153 | G162: 0.1128104825 | H162: 0.04233951645 | I162: -0.1580793645 | J162: 0.2196553428 | K162: -0.02718710019 | L162: 0.425692921 | M162: 0.236487654 | N162: -0.02280808285 | O162: 8241.08 | P162: 756.7 | Q162: 807.49 | R162: 453.61 | S162: 814.62 | T162: 882.03 | U162: 270.357 | V162: 1359.58 | W162: 2896.69 | X162: 8053.76 | Y162: 679.99 | Z162: 774.69 | AA162: 538.78 | AB162: 667.91 | AC162: 906.68 | AD162: 189.632 | AE162: 1099.55 | AF162: 2964.3
A163: 0404C04C0204C023 | B163: 4 | C163: 04C | D163: 04C02 | E163: 04C023 | F163: 0.01895271383 | G163: 0.03601842803 | H163: -0.1065432781 | I163: -0.2375139978 | J163: 0.5622768031 | K163: -0.08801874956 | L163: 0.6119880524 | M163: 0.3579762782 | N163: -0.0301313531 | O163: 10550.43 | P163: 964.73 | Q163: 1147.94 | R163: 680.9 | S163: 1001.81 | T163: 1155.69 | U163: 310.859 | V163: 1547.93 | W163: 3740.57 | X163: 10354.19 | Y163: 931.19 | Z163: 1284.83 | AA163: 893 | AB163: 641.25 | AC163: 1267.23 | AD163: 192.842 | AE163: 1139.88 | AF163: 3856.78
A164: 0404C04C0204C024 | B164: 4 | C164: 04C | D164: 04C02 | E164: 04C024 | F164: -0.06868353248 | G164: 0.1492446129 | H164: -0.1108064139 | I164: -0.1004559973 | J164: 0.4330670458 | K164: -0.0203459214 | L164: 0.6191184399 | M164: 0.03654275502 | N164: -0.06114297359 | O164: 17093.28 | P164: 1109.86 | Q164: 2208.17 | R164: 1712.3 | S164: 1270.07 | T164: 1924.07 | U164: 348.376 | V164: 2070.66 | W164: 6449.76 | X164: 18353.89 | Y164: 965.73 | Z164: 2483.34 | AA164: 1903.52 | AB164: 886.26 | AC164: 1964.03 | AD164: 215.164 | AE164: 1997.66 | AF164: 6869.8
A165: 0404C04C02TOTAL | B165: 4 | C165: 04C | D165: 04C02 | F165: 0.01012121639 | G165: 0.08962655602 | H165: -0.03210925989 | I165: -0.1637925147 | J165: 0.2810153056 | K165: -0.0374880019 | L165: 0.3740391855 | M165: 0.1988979817 | N165: -0.03059628128 | O165: 8311.54 | P165: 722.15 | Q165: 853.97 | R165: 489.75 | S165: 808.5 | T165: 892.47 | U165: 253.66 | V165: 1322.9 | W165: 2968.13 | X165: 8228.26 | Y165: 662.75 | Z165: 882.3 | AA165: 585.68 | AB165: 631.14 | AC165: 927.23 | AD165: 184.609 | AE165: 1103.43 | AF165: 3061.81
A166: 0404C04C0304C031 | B166: 4 | C166: 04C | D166: 04C03 | E166: 04C031 | F166: -0.04656712838 | G166: 0.1870933539 | H166: -0.9408607808 | J166: -0.1673150031 | K166: 0.0133912735 | L166: 0.02898550725 | M166: -0.1905840747 | N166: 0.03932458123 | O166: 1590.04 | P166: 246.31 | Q166: 5.62 | R166: 14.11 | S166: 188.37 | T166: 228.54 | U166: 66.314 | V166: 146.48 | W166: 694.3 | X166: 1667.7 | Y166: 207.49 | Z166: 95.03 | AA166: 0 | AB166: 226.22 | AC166: 225.52 | AD166: 64.446 | AE166: 180.97 | AF166: 668.03
A167: 0404C04C03TOTAL | B167: 4 | C167: 04C | D167: 04C03 | F167: -0.04656712838 | G167: 0.1870933539 | H167: -0.9408607808 | J167: -0.1673150031 | K167: 0.0133912735 | L167: 0.02898550725 | M167: -0.1905840747 | N167: 0.03932458123 | O167: 1590.04 | P167: 246.31 | Q167: 5.62 | R167: 14.11 | S167: 188.37 | T167: 228.54 | U167: 66.314 | V167: 146.48 | W167: 694.3 | X167: 1667.7 | Y167: 207.49 | Z167: 95.03 | AA167: 0 | AB167: 226.22 | AC167: 225.52 | AD167: 64.446 | AE167: 180.97 | AF167: 668.03
A168: 0404C04C0404C041 | B168: 4 | C168: 04C | D168: 04C04 | E168: 04C041 | F168: 0.01579309019 | G168: 0.03325020781 | H168: -0.1441157226 | I168: 0.08847889031 | J168: 0.1131360947 | K168: -0.02599665105 | L168: 0.1658332003 | M168: 0.1223335667 | N168: -0.0120754129 | O168: 4597.51 | P168: 559.35 | Q168: 366.25 | R168: 323.3 | S168: 376.24 | T168: 575.86 | U168: 138.712 | V168: 609.27 | W168: 1648.53 | X168: 4526.03 | Y168: 541.35 | Z168: 427.92 | AA168: 297.02 | AB168: 338 | AC168: 591.23 | AD168: 118.981 | AE168: 542.86 | AF168: 1668.68
A169: 0404C04C0404C042 | B169: 4 | C169: 04C | D169: 04C04 | E169: 04C042 | F169: -0.02933974437 | G169: 0.1761474967 | H169: -0.2697768202 | I169: -0.03350866419 | J169: -0.03018104622 | K169: -0.04362059488 | L169: 0.06627341405 | M169: 0.02232060243 | N169: -0.0272645598 | O169: 5882.57 | P169: 762.32 | Q169: 528.74 | R169: 361.98 | S169: 484.25 | T169: 782.94 | U169: 154.551 | V169: 718.17 | W169: 2089.64 | X169: 6060.38 | Y169: 648.15 | Z169: 724.08 | AA169: 374.53 | AB169: 499.32 | AC169: 818.65 | AD169: 144.945 | AE169: 702.49 | AF169: 2148.21
A170: 0404C04C04TOTAL | B170: 4 | C170: 04C | D170: 04C04 | F170: -0.005607098696 | G170: 0.09703421012 | H170: -0.2110400292 | I170: 0.03247920539 | J170: 0.04164598431 | K170: -0.03449336497 | L170: 0.1209697981 | M170: 0.07575358261 | N170: -0.01912819273 | O170: 5114.64 | P170: 641.03 | Q170: 431.64 | R170: 338.87 | S170: 419.7 | T170: 659.19 | U170: 145.086 | V170: 653.09 | W170: 1826.04 | X170: 5143.48 | Y170: 584.33 | Z170: 547.1 | AA170: 328.21 | AB170: 402.92 | AC170: 682.74 | AD170: 129.429 | AE170: 607.1 | AF170: 1861.65
A171: 0404CTOTAL | B171: 4 | C171: 04C | F171: 0.005529327884 | G171: 0.09424178873 | H171: -0.08161572596 | I171: -0.1198847386 | J171: 0.2125154895 | K171: -0.03566440543 | L171: 0.3018215863 | M171: 0.167659805 | N171: -0.02668943278 | O171: 6854.07 | P171: 662.64 | Q171: 664.35 | R171: 409.28 | S171: 645.81 | T171: 773.32 | U171: 207.181 | V171: 1034.64 | W171: 2456.85 | X171: 6816.38 | Y171: 605.57 | Z171: 723.39 | AA171: 465.03 | AB171: 532.62 | AC171: 801.92 | AD171: 159.147 | AE171: 886.08 | AF171: 2524.22
A172: 0404K04K0204K02J | B172: 4 | C172: 04K | D172: 04K02 | E172: 04K02J | F172: -0.1196764057 | G172: 0.03085165343 | J172: -0.3379179512 | K172: -0.1563558272 | L172: 0.2452590893 | M172: -0.3847432582 | N172: -0.03387427719 | O172: 526.68 | P172: 55.8 | Q172: 0 | R172: 0 | S172: 55.84 | T172: 102.14 | U172: 20.619 | V172: 33.31 | W172: 258.97 | X172: 598.28 | Y172: 54.13 | Z172: 0 | AA172: 0 | AB172: 84.34 | AC172: 121.07 | AD172: 16.558 | AE172: 54.14 | AF172: 268.05
A173: 0404K04K02TOTAL | B173: 4 | C173: 04K | D173: 04K02 | F173: -0.1196764057 | G173: 0.03085165343 | J173: -0.3379179512 | K173: -0.1563558272 | L173: 0.2452590893 | M173: -0.3847432582 | N173: -0.03387427719 | O173: 526.68 | P173: 55.8 | Q173: 0 | R173: 0 | S173: 55.84 | T173: 102.14 | U173: 20.619 | V173: 33.31 | W173: 258.97 | X173: 598.28 | Y173: 54.13 | Z173: 0 | AA173: 0 | AB173: 84.34 | AC173: 121.07 | AD173: 16.558 | AE173: 54.14 | AF173: 268.05
A174: 0404KTOTAL | B174: 4 | C174: 04K | F174: -0.1196764057 | G174: 0.03085165343 | J174: -0.3379179512 | K174: -0.1563558272 | L174: 0.2452590893 | M174: -0.3847432582 | N174: -0.03387427719 | O174: 526.68 | P174: 55.8 | Q174: 0 | R174: 0 | S174: 55.84 | T174: 102.14 | U174: 20.619 | V174: 33.31 | W174: 258.97 | X174: 598.28 | Y174: 54.13 | Z174: 0 | AA174: 0 | AB174: 84.34 | AC174: 121.07 | AD174: 16.558 | AE174: 54.14 | AF174: 268.05
A175: 0404M04M0304M031 | B175: 4 | C175: 04M | D175: 04M03 | E175: 04M031 | F175: -0.1234480922 | G175: -0.0109104669 | I175: 0.0954384411 | J175: -0.617344439 | K175: -0.09684812278 | L175: -0.1998909403 | M175: -0.2567394095 | N175: -0.1028328061 | O175: 1580.09 | P175: 470.5 | Q175: 0 | R175: 98.94 | S175: 39.05 | T175: 350.73 | U175: 20.542 | V175: 92.64 | W175: 507.68 | X175: 1802.62 | Y175: 475.69 | Z175: 0 | AA175: 90.32 | AB175: 102.05 | AC175: 388.34 | AD175: 25.674 | AE175: 124.64 | AF175: 565.87
A176: 0404M04M0304M032 | B176: 4 | C176: 04M | D176: 04M03 | E176: 04M032 | F176: -0.09611232314 | G176: 0.147635227 | H176: 0.1058526012 | I176: 0.5594548018 | J176: -0.6575957112 | K176: -0.09546354339 | L176: -0.1549036211 | M176: -0.364100049 | N176: -0.1751732286 | O176: 2415.45 | P176: 844.43 | Q176: 30.61 | R176: 99.54 | S176: 58.76 | T176: 548.33 | U176: 33.934 | V176: 129.66 | W176: 670.18 | X176: 2672.29 | Y176: 735.8 | Z176: 27.68 | AA176: 63.83 | AB176: 171.61 | AC176: 606.2 | AD176: 40.154 | AE176: 203.9 | AF176: 812.51
A177: 0404M04M0304M033 | B177: 4 | C177: 04M | D177: 04M03 | E177: 04M033 | F177: -0.05131861634 | G177: 0.1813678814 | H177: -0.1499470152 | I177: 0.1585978674 | J177: -0.5717376987 | K177: -0.06636809702 | L177: -0.06429352405 | M177: -0.2131928406 | N177: -0.1135388542 | O177: 3545.82 | P177: 1228.28 | Q177: 96.26 | R177: 94.53 | S177: 91.04 | T177: 806.77 | U177: 52.204 | V177: 218.04 | W177: 958.69 | X177: 3737.63 | Y177: 1039.71 | Z177: 113.24 | AA177: 81.59 | AB177: 212.58 | AC177: 864.12 | AD177: 55.791 | AE177: 277.12 | AF177: 1081.48
A178: 0404M04M0304M03T | B178: 4 | C178: 04M | D178: 04M03 | E178: 04M03T | F178: -0.03291780288 | G178: 0.2635408852 | I178: -0.2324521422 | J178: -0.3676553939 | K178: -0.0695960941 | L178: -0.1619606957 | M178: 0.001218397807 | N178: -0.09888967635 | O178: 546.15 | P178: 168.43 | Q178: 0 | R178: 8.42 | S178: 33.47 | T178: 104.81 | U178: 7.42 | V178: 32.87 | W178: 190.72 | X178: 564.74 | Y178: 133.3 | Z178: 1.55 | AA178: 10.97 | AB178: 52.93 | AC178: 112.65 | AD178: 8.854 | AE178: 32.83 | AF178: 211.65
A179: 0404M04M03TOTAL | B179: 4 | C179: 04M | D179: 04M03 | F179: -0.07381335131 | G179: 0.1472047425 | H179: -0.1180197091 | I179: 0.2218441095 | J179: -0.58434758 | K179: -0.07913889527 | L179: -0.1158957693 | M179: -0.2527973477 | N179: -0.1277815095 | O179: 2143.27 | P179: 723.76 | Q179: 37.59 | R179: 75.4 | S179: 58.74 | T179: 480.8 | U179: 30.468 | V179: 126.21 | W179: 610.3 | X179: 2314.08 | Y179: 630.89 | Z179: 42.62 | AA179: 61.71 | AB179: 141.32 | AC179: 522.12 | AD179: 34.462 | AE179: 168.91 | AF179: 699.71
A180: 0404M04M0504M051 | B180: 4 | C180: 04M | D180: 04M05 | E180: 04M051 | F180: -0.06600636592 | G180: 0.04304845975 | H180: 0.8072289157 | I180: -0.03163872363 | J180: -0.568986569 | K180: -0.06411890392 | L180: -0.1583515474 | M180: -0.2880354505 | N180: -0.05369994464 | O180: 2101 | P180: 690.06 | Q180: 4.5 | R180: 71.62 | S180: 45.89 | T180: 499.33 | U180: 26.57 | V180: 96.4 | W180: 666.64 | X180: 2249.48 | Y180: 661.58 | Z180: 2.49 | AA180: 73.96 | AB180: 106.47 | AC180: 533.54 | AD180: 31.569 | AE180: 135.4 | AF180: 704.47
A181: 0404M04M0504M052 | B181: 4 | C181: 04M | D181: 04M05 | E181: 04M052 | F181: -0.01011079425 | G181: 0.06199072394 | H181: -0.05375754251 | I181: 0.5983712385 | J181: -0.2351698983 | K181: -0.02542876852 | L181: 0.09607198338 | M181: -0.09611409673 | N181: -0.07629162776 | O181: 3474.62 | P181: 1083.05 | Q181: 69 | R181: 160.94 | S181: 119.52 | T181: 819.4 | U181: 54.329 | V181: 218.65 | W181: 949.72 | X181: 3510.11 | Y181: 1019.83 | Z181: 72.92 | AA181: 100.69 | AB181: 156.27 | AC181: 840.78 | AD181: 49.567 | AE181: 241.9 | AF181: 1028.16
A182: 0404M04M0504M053 | B182: 4 | C182: 04M | D182: 04M05 | E182: 04M053 | F182: -0.2410646601 | G182: 0.1386606746 | H182: -0.1736496288 | I182: -0.6023388232 | J182: -0.7157562224 | K182: -0.05880704925 | L182: -0.3438660571 | M182: -0.4913470576 | N182: -0.3890263004 | O182: 4054.65 | P182: 1459.41 | Q182: 96.84 | R182: 64.95 | S182: 52.19 | T182: 1041.43 | U182: 53.532 | V182: 275.99 | W182: 1010.3 | X182: 5342.55 | Y182: 1281.69 | Z182: 117.19 | AA182: 163.33 | AB182: 183.61 | AC182: 1106.5 | AD182: 81.587 | AE182: 542.59 | AF182: 1653.59
A183: 0404M04M0504M05T | B183: 4 | C183: 04M | D183: 04M05 | E183: 04M05T | F183: 0.1165777608 | G183: 0.346931161 | I183: -0.1666666667 | J183: -0.02513368984 | K183: 0.04468709855 | L183: 0.2683084203 | M183: 0.3549795362 | N183: -0.001465255138 | O183: 703.31 | P183: 216.6 | Q183: 0 | R183: 2.35 | S183: 36.46 | T183: 113.85 | U183: 11.794 | V183: 49.66 | W183: 272.59 | X183: 629.88 | Y183: 160.81 | Z183: 0.93 | AA183: 2.82 | AB183: 37.4 | AC183: 108.98 | AD183: 9.299 | AE183: 36.65 | AF183: 272.99
A184: 0404M04M05TOTAL | B184: 4 | C184: 04M | D184: 04M05 | F184: -0.09094936561 | G184: 0.08649330793 | H184: -0.09387413757 | I184: 0.04361089142 | J184: -0.4334430856 | K184: -0.04263787912 | L184: -0.1001909495 | M184: -0.283151631 | N184: -0.1655211292 | O184: 2729.07 | P184: 895.39 | Q184: 43.34 | R184: 92.37 | S184: 72.27 | T184: 651.82 | U184: 39.112 | V184: 165.04 | W184: 769.74 | X184: 3002.11 | Y184: 824.11 | Z184: 47.83 | AA184: 88.51 | AB184: 127.56 | AC184: 680.85 | AD184: 43.467 | AE184: 230.23 | AF184: 922.42
A185: 0404M04M0704M071 | B185: 4 | C185: 04M | D185: 04M07 | E185: 04M071 | F185: -0.2033516294 | G185: -0.2232127074 | H185: 22.4 | I185: -0.6183102418 | J185: -0.5034049704 | K185: -0.2811370907 | L185: -0.1622249851 | M185: -0.02686431533 | N185: -0.3115154176 | O185: 2103.08 | P185: 615.2 | Q185: 202.41 | R185: 42.15 | S185: 56.15 | T185: 451.64 | U185: 30.996 | V185: 171.34 | W185: 533.19 | X185: 2639.91 | Y185: 791.98 | Z185: 8.65 | AA185: 110.43 | AB185: 113.07 | AC185: 628.27 | AD185: 36.998 | AE185: 176.07 | AF185: 774.44
A186: 0404M04M0704M072 | B186: 4 | C186: 04M | D186: 04M07 | E186: 04M072 | F186: -0.119023803 | G186: 0.01836251038 | H186: 3.61716329 | I186: -0.4026214455 | J186: -0.5499434602 | K186: -0.09491099476 | L186: -0.2017385688 | M186: -0.3206687245 | N186: -0.2495311638 | O186: 4024.96 | P186: 1177.39 | Q186: 387.38 | R186: 80.67 | S186: 107.46 | T186: 864.36 | U186: 59.322 | V186: 327.92 | W186: 1020.45 | X186: 4568.75 | Y186: 1156.16 | Z186: 83.9 | AA186: 135.04 | AB186: 238.77 | AC186: 955 | AD186: 74.314 | AE186: 482.71 | AF186: 1359.75
A187: 0404M04M07TOTAL | B187: 4 | C187: 04M | D187: 04M07 | F187: -0.3307899076 | G187: -0.1912370599 | H187: 1.655666897 | I187: -0.724952741 | J187: -0.5906298003 | K187: -0.3019568735 | L187: -0.362786102 | M187: -0.4335466458 | N187: -0.4278518037 | O187: 3194.2 | P187: 934.38 | Q187: 307.42 | R187: 64.02 | S187: 85.28 | T187: 685.96 | U187: 47.078 | V187: 260.24 | W187: 809.83 | X187: 4773.09 | Y187: 1155.32 | Z187: 115.76 | AA187: 232.76 | AB187: 208.32 | AC187: 982.69 | AD187: 73.881 | AE187: 459.42 | AF187: 1415.42
A188: 0404M04M0804M081 | B188: 4 | C188: 04M | D188: 04M08 | E188: 04M081 | F188: -0.06954023342 | G188: -0.02894198256 | I188: 1.811914324 | J188: -0.342268553 | K188: -0.1119625152 | L188: 0.01707517178 | M188: -0.2796190832 | N188: -0.1006135636 | O188: 1512.36 | P188: 436.51 | Q188: 1.89 | R188: 84.02 | S188: 53 | T188: 343.04 | U188: 19.835 | V188: 77.16 | W188: 496.92 | X188: 1625.39 | Y188: 449.52 | Z188: 0 | AA188: 29.88 | AB188: 80.58 | AC188: 386.29 | AD188: 19.502 | AE188: 107.11 | AF188: 552.51
A189: 0404M04M0804M082 | B189: 4 | C189: 04M | D189: 04M08 | E189: 04M082 | F189: 0.01086850507 | G189: 0.08621149558 | H189: 1.301181102 | I189: -0.02309816721 | J189: -0.2682891285 | K189: 0.05273860282 | L189: -0.0381775115 | M189: -0.187943822 | N189: -0.03493870805 | O189: 3109.29 | P189: 1018.03 | Q189: 35.07 | R189: 116.73 | S189: 100.42 | T189: 802.45 | U189: 41.418 | V189: 154.38 | W189: 840.8 | X189: 3075.86 | Y189: 937.23 | Z189: 15.24 | AA189: 119.49 | AB189: 137.24 | AC189: 762.25 | AD189: 43.062 | AE189: 190.11 | AF189: 871.24
A190: 0404M04M0804M083 | B190: 4 | C190: 04M | D190: 04M08 | E190: 04M083 | F190: -0.1397412443 | G190: 0.08890521675 | H190: 0.5954538915 | I190: -0.02798726908 | J190: -0.4220597898 | K190: -0.06196654148 | L190: -0.08251626358 | M190: -0.5334605841 | N190: -0.22373481 | O190: 4053.35 | P190: 1289.34 | Q190: 110.9 | R190: 280.97 | S190: 70.37 | T190: 989.1 | U190: 58.952 | V190: 244.42 | W190: 1009.3 | X190: 4711.78 | Y190: 1184.07 | Z190: 69.51 | AA190: 289.06 | AB190: 121.76 | AC190: 1054.44 | AD190: 64.254 | AE190: 523.9 | AF190: 1300.2
A191: 0404M04M0804M08T | B191: 4 | C191: 04M | D191: 04M08 | E191: 04M08T | F191: -0.01958873404 | G191: 0.02316976478 | I191: 1.961589404 | J191: -0.3071253071 | K191: -0.06428132048 | L191: 0.07168968318 | M191: -0.2410351201 | N191: -0.05232224771 | O191: 402.4 | P191: 116.14 | Q191: 0.5 | R191: 22.36 | S191: 14.1 | T191: 91.27 | U191: 5.277 | V191: 20.53 | W191: 132.22 | X191: 410.44 | Y191: 113.51 | Z191: 0 | AA191: 7.55 | AB191: 20.35 | AC191: 97.54 | AD191: 4.924 | AE191: 27.05 | AF191: 139.52
A192: 0404M04M08TOTAL | B192: 4 | C192: 04M | D192: 04M08 | F192: -0.04424556877 | G192: 0.0548557324 | H192: 0.9647228222 | I192: 0.2353193313 | J192: -0.3134802271 | K192: -0.01710641744 | L192: -0.0329493786 | M192: -0.3234049569 | N192: -0.09358256128 | O192: 2363.38 | P192: 743.61 | Q192: 27.29 | R192: 115.28 | S192: 71.35 | T192: 582.62 | U192: 31.903 | V192: 123.12 | W192: 668.22 | X192: 2472.79 | Y192: 704.94 | Z192: 13.89 | AA192: 93.32 | AB192: 103.93 | AC192: 592.76 | AD192: 32.99 | AE192: 181.97 | AF192: 737.21
A193: 0404M04M0904M091 | B193: 4 | C193: 04M | D193: 04M09 | E193: 04M091 | F193: -0.147852908 | G193: -0.04520288897 | H193: 1.932311622 | J193: -0.7586783404 | K193: -0.08447785777 | L193: -0.5723863872 | M193: -0.000815926893 | N193: -0.1058390352 | O193: 1668.7 | P193: 419.07 | Q193: 22.96 | R193: 20.94 | S193: 54.85 | T193: 344.63 | U193: 22.705 | V193: 183.69 | W193: 599.83 | X193: 1958.23 | Y193: 438.91 | Z193: 7.83 | AA193: 0 | AB193: 227.29 | AC193: 376.43 | AD193: 53.097 | AE193: 183.84 | AF193: 670.83
A194: 0404M04M0904M092 | B194: 4 | C194: 04M | D194: 04M09 | E194: 04M092 | F194: -0.04278334478 | G194: 0.05032486216 | H194: -0.7468060395 | I194: 9.645137881 | J194: -0.3957681764 | K194: -0.02261837031 | L194: -0.2210694973 | M194: -0.3578858368 | N194: 0.03464236293 | O194: 3568.81 | P194: 1003.89 | Q194: 19.62 | R194: 146.69 | S194: 156.49 | T194: 773.06 | U194: 58.338 | V194: 326.56 | W194: 1084.15 | X194: 3728.32 | Y194: 955.79 | Z194: 77.49 | AA194: 13.78 | AB194: 258.99 | AC194: 790.95 | AD194: 74.895 | AE194: 508.57 | AF194: 1047.85
A195: 0404M04M0904M093 | B195: 4 | C195: 04M | D195: 04M09 | E195: 04M093 | F195: -0.1070007905 | G195: 0.08983183141 | H195: -0.3622369108 | I195: 0.9451396307 | J195: -0.4328934345 | K195: -0.08000146671 | L195: -0.09858359268 | M195: -0.3825843922 | N195: -0.1500447835 | O195: 5625.77 | P195: 1689.49 | Q195: 73.33 | R195: 254.93 | S195: 171.89 | T195: 1254.51 | U195: 87.761 | V195: 622.96 | W195: 1470.89 | X195: 6299.86 | Y195: 1550.23 | Z195: 114.98 | AA195: 131.06 | AB195: 303.1 | AC195: 1363.6 | AD195: 97.359 | AE195: 1008.98 | AF195: 1730.55
A196: 0404M04M0904M09T | B196: 4 | C196: 04M | D196: 04M09 | E196: 04M09T | F196: =O196/X196-1 -> -0.2635536837 | G196: =P196/Y196-1 -> 0.1357885859 | J196: =S196/AB196-1 -> -0.4875374665 | K196: =T196/AC196-1 -> -0.2655726725 | L196: =U196/AD196-1 -> -0.4205872862 | M196: =V196/AE196-1 -> -0.4569233963 | N196: =W196/AF196-1 -> -0.2230163887 | O196: 603.26 | P196: 121.2 | Q196: 0 | R196: 0 | S196: 64.97 | T196: 131.58 | U196: 17.956 | V196: 52.32 | W196: 215.24 | X196: 819.15 | Y196: 106.71 | Z196: 0 | AA196: 2.14 | AB196: 126.78 | AC196: 179.16 | AD196: 30.99 | AE196: 96.34 | AF196: 277.02
A197: 0404M04M09TOTAL | B197: 4 | C197: 04M | D197: 04M09 | F197: -0.1060706565 | G197: 0.05565425052 | H197: =Q197/Z197-1 -> -0.429970394 | I197: =R197/AA197-1 -> 2.129427793 | J197: -0.5176310415 | K197: -0.07778501629 | L197: -0.292543809 | M197: -0.3345760252 | N197: -0.09028167696 | O197: 2600.95 | P197: 724.96 | Q197: 25.03 | R197: 91.88 | S197: 106.29 | T197: 566.24 | U197: 42.915 | V197: 265.95 | W197: 777.7 | X197: 2909.57 | Y197: 686.74 | Z197: 43.91 | AA197: 29.36 | AB197: 220.35 | AC197: 614 | AD197: 60.661 | AE197: 399.67 | AF197: 854.88
A198: 0404M04M1004M101 | B198: 4 | C198: 04M | D198: 04M10 | E198: 04M101 | F198: -0.03883271271 | G198: 0.02168092571 | H198: 3.550797267 | I198: -0.2054944166 | J198: -0.1280656164 | K198: -0.04308977627 | L198: 0.08051104717 | M198: -0.0847722682 | N198: -0.05762439964 | O198: 3084.53 | P198: 663.97 | Q198: 99.89 | R198: 392.74 | S198: 107.37 | T198: 675.77 | U198: 40.933 | V198: 140.46 | W198: 963.4 | X198: 3209.15 | Y198: 649.88 | Z198: 21.95 | AA198: 494.32 | AB198: 123.14 | AC198: 706.2 | AD198: 37.883 | AE198: 153.47 | AF198: 1022.31
A199: 0404M04M1004M102 | B199: 4 | C199: 04M | D199: 04M10 | E199: 04M102 | F199: 0.06109275891 | G199: 0.001589516472 | H199: -0.4303182725 | I199: 0.3977703915 | J199: 0.8659082658 | K199: -0.06061131263 | L199: 0.4616740301 | M199: 0.1188537591 | N199: 0.05698619046 | O199: 3700.37 | P199: 825.46 | Q199: 65.69 | R199: 475.2 | S199: 154.18 | T199: 758.81 | U199: 60.544 | V199: 211.62 | W199: 1148.87 | X199: 3487.32 | Y199: 824.15 | Z199: 115.31 | AA199: 339.97 | AB199: 82.63 | AC199: 807.77 | AD199: 41.421 | AE199: 189.14 | AF199: 1086.93
A200: 0404M04M1004M103 | B200: 4 | C200: 04M | D200: 04M10 | E200: 04M103 | F200: -0.04190315955 | G200: -0.0340567425 | H200: -0.7500088349 | I200: 0.7804379155 | J200: 0.2860342636 | K200: -0.09632548553 | L200: 0.08961436726 | M200: -0.2274469578 | N200: -0.0882960955 | O200: 4772.06 | P200: 1031.27 | Q200: 70.74 | R200: 765.98 | S200: 212.44 | T200: 995.28 | U200: 78.267 | V200: 286.2 | W200: 1331.89 | X200: 4980.77 | Y200: 1067.63 | Z200: 282.97 | AA200: 430.22 | AB200: 165.19 | AC200: 1101.37 | AD200: 71.83 | AE200: 370.46 | AF200: 1460.88
... 991 more rows

Sheet Accueil
A1: REFERENTIEL DE COUTS Données 2011 Classification v11e
A2: Secteur ex OQN
A4: Ce référentiel fournit des données de coûts complets par GHM, hors coûts de structure
A5: (lesquels sont isolés dans une colonne spécifique).
A7: ATTENTION : les coûts complets ne sont pas directement comparables aux tarifs, compte tenu des
A8: différences de périmètre existant entre ces deux concepts.
A9: En particulier, les coûts complets incluent les activités financées en supplément
A10: (exemple : suppléments de réanimation) ou en sus du tarif (exemple : molécules onéreuses).
A12: ACCES

Sheet accueil synthèse (hidden)
A1: PRODUCTION DE FICHES SYNTHETIQUES DE PRESENTATION DES COUTS
A4: Sélection par CMD | E4: Sélection par sous CMD | I4: Sélection par racine | M4: Sélection par GHM

Sheet synthèse CMD (hidden)
A1: Fiche de synthèse CMD | J1: =CONCATENATE(B4,B5,B6,B7) -> 01TOTAL
K2: 01
A3: Identification de la catégorie majeure de diagnostics (CMD) | K3: 02
A4: CMD | B4: 01 | K4: 03
A5: sous CMD | B5: TOTAL | K5: 04
A6: racine | K6: 05
A7: GHM | K7: 06
A8: Libellé | B8: =IF(B4<>"",VLOOKUP(J1,'Coûts 11 décomposés gds postes'!A:AU,6,FALSE),"") -> Affections du système nerveux | K8: 07
C9: 2011 | D9: 2010 | E9: Evolution | K9: 08
A10: Coût moyen du séjour | C10: =IF($B$4<>"",VLOOKUP($J$1,'Coûts 11 décomposés gds postes'!$A:$J,10,FALSE),"") -> 1191.58 | D10: =IF($B$4<>"",IF(ISNA(VLOOKUP($J$1,evolutions!A:X,24,FALSE)),"NC",VLOOKUP($J$1,evolutions!A:X,24,FALSE)),"") -> 1301.77 | E10: =IF($B$4<>"",VLOOKUP($J$1,evolutions!$A:$N,6,FALSE),"") -> -0.08464628928 | G10: Coût moyen | H10: Part des postes détaillés dans chaque sous poste | K10: 09
K11: 10
A12: Nombre de séjours ENCC | C12: =IF($B$4<>"",VLOOKUP($J$1,'Coûts 11 décomposés gds postes'!$A:$J,8,FALSE),"") -> 8921 | D12: =IF($B$4<>"",IF(ISNA(VLOOKUP($J$1,'Coûts 10 décomposés gds postes'!$A:$M,8,FALSE)),"NC",VLOOKUP($J$1,'Coûts 10 décomposés gds postes'!$A:$M,8,FALSE)),"") -> 11355 | E12: =IF($B$4<>"",IF(D12<>"",IF(D12<>"NC",IF(C12<>"",C12/D12-1,""),""),""),"") -> -0.2143549097 | K12: 11
K13: 12
K14: 13
F15: Médico technique: anesthésie | G15: =IF($B$4<>"",VLOOKUP($J$1,'Coûts 11 décomposés gds postes'!$A:$AS,15,FALSE),"") -> 20.218 | H15: =IF(C10<>"",IF(B23<>0,(G15+G16+G17)/B23,""),"") -> 0.9783642999 | K15: 14
F16: Médico technique: bloc | G16: =IF($B$4<>"",VLOOKUP($J$1,'Coûts 11 décomposés gds postes'!$A:$AS,16,FALSE),"") -> 125.72 | K16: 15
F17: Médico technique: urgences | G17: =IF($B$4<>"",VLOOKUP($J$1,'Coûts 11 décomposés gds postes'!$A:$AS,18,FALSE),"") -> 1.5015 | K17: 16
K18: 17
B19: Coût moyen 2011 | C19: Poids dans le coût du GHM | D19: Evolution 2011/2010 | F19: Logistique Médicale: Pharmacie | G19: =IF($B$4<>"",VLOOKUP($J$1,'Coûts 11 décomposés gds postes'!$A:$AS,27,FALSE),"") -> 18.793 | H19: =IF(B4<>"",IF(C10<>0,(G19+G20+G21)/B24,""),"") -> 0.9580999561 | K19: 18
A20: Activités cliniques MCO (avec hébergement, hors Réa, SI, SC) | B20: =IF($B$4<>"",VLOOKUP($J$1,'Coûts 11 décomposés gds postes'!$A:$AS,11,FALSE),"") -> 172.92 | C20: =IF($C$10<>"",B20/$C$10,"") -> 0.1451182464 | D20: =IF($B$4<>"",VLOOKUP($J$1,evolutions!$A:$N,7,FALSE),"") -> -0.03799721836 | F20: Logistique Médicale: Stérilisation | G20: =IF($B$4<>"",VLOOKUP($J$1,'Coûts 11 décomposés gds postes'!$A:$AS,28,FALSE),"") -> 26.013 | K20: 20
A21: Activité de soins intensifs | B21: =IF($B$4<>"",VLOOKUP($J$1,'Coûts 11 décomposés gds postes'!A:AS,13,FALSE),"") -> 5.82 | C21: 0.004884271304 | D21: =IF($B$4<>"",VLOOKUP($J$1,evolutions!$A:$N,9,FALSE),"") -> -0.1673819742 | F21: Logistique Médicale: Génie Biomédical | G21: =IF($B$4<>"",VLOOKUP($J$1,'Coûts 11 décomposés gds postes'!$A:$AS,29,FALSE),"") -> 3.1584 | K21: 21
A22: Activité de surveillance continue | B22: =IF($B$4<>"",VLOOKUP($J$1,'Coûts 11 décomposés gds postes'!A:AS,12,FALSE),"") -> 25.41 | C22: 0.02132462781 | D22: =IF($B$4<>"",VLOOKUP($J$1,evolutions!$A:$N,8,FALSE),"") -> 0.03714285714 | K22: 23
A23: Activités Médico-techniques | B23: =IF($B$4<>"",VLOOKUP($J$1,'Coûts 11 décomposés gds postes'!A:AS,19,FALSE),"") -> 150.7 | C23: 0.1264707363 | D23: =IF($B$4<>"",VLOOKUP($J$1,evolutions!$A:$N,10,FALSE),"") -> -0.1050537443 | F23: Logistique générale: Blanchisserie | G23: =IF($B$4<>"",VLOOKUP($J$1,'Coûts 11 décomposés gds postes'!$A:$AS,20,FALSE),"") -> 10.914 | H23: =IF(C10<>"",IF(B25<>0,(G23+G24+G25+G26+G27+G28)/B25,""),"") -> 0.8379502282 | K23: 28
A24: Logistique Médicale | B24: =IF($B$4<>"",VLOOKUP($J$1,'Coûts 11 décomposés gds postes'!A:AS,30,FALSE),"") -> 50.062 | C24: 0.04201312543 | D24: =IF($B$4<>"",VLOOKUP($J$1,evolutions!$A:$N,12,FALSE),"") -> 0.1069296422 | F24: Logistique générale: Restauration | G24: =IF($B$4<>"",VLOOKUP($J$1,'Coûts 11 décomposés gds postes'!$A:$AS,21,FALSE),"") -> 23.724 | K24: TOTAL
A25: Logistique générale | B25: =IF($B$4<>"",VLOOKUP($J$1,'Coûts 11 décomposés gds postes'!A:AS,26,FALSE),"") -> 203.73 | C25: 0.1709746723 | D25: =IF($B$4<>"",VLOOKUP($J$1,evolutions!$A:$N,11,FALSE),"") -> -0.113870645 | F25: Logistique générale: Accueil et gestion des malades | G25: =IF($B$4<>"",VLOOKUP($J$1,'Coûts 11 décomposés gds postes'!$A:$AS,22,FALSE),"") -> 23.2746
A26: Charges directes | B26: =IF($B$4<>"",VLOOKUP($J$1,'Coûts 11 décomposés gds postes'!A:AS,36,FALSE),"") -> 219.28 | C26: 0.1840245724 | D26: =IF($B$4<>"",VLOOKUP($J$1,evolutions!$A:$N,13,FALSE),"") -> -0.06617834937 | F26: Logistique générale: Services administratifs à caractère général | G26: =IF($B$4<>"",VLOOKUP($J$1,'Coûts 11 décomposés gds postes'!$A:$AS,23,FALSE),"") -> 66.963
A27: Honoraires | B27: =IF($B$4<>"",VLOOKUP($J$1,'Coûts 11 décomposés gds postes'!A:AS,42,FALSE),"") -> 363.65 | C27: 0.3051830343 | D27: =IF($B$4<>"",VLOOKUP($J$1,evolutions!$A:$N,14,FALSE),"") -> -0.09039745867 | F27: Logistique générale: Entretien maintenance | G27: =IF($B$4<>"",VLOOKUP($J$1,'Coûts 11 décomposés gds postes'!$A:$AS,24,FALSE),"") -> 19.325
F28: Logistique générale: Services hôteliers | G28: =IF($B$4<>"",VLOOKUP($J$1,'Coûts 11 décomposés gds postes'!$A:$AS,25,FALSE),"") -> 26.515
F30: Charges directes: Autres consommables | G30: =IF($B$4<>"",VLOOKUP($J$1,'Coûts 11 décomposés gds postes'!$A:$AS,35,FALSE),"") -> 87.45 | H30: =IF(C10<>"",IF(B26<>0,(G30+G31+G32)/B26,""),"") -> 0.8381521343
F31: Charges directes: Spécialités pharmaceutiques facturables en sus | G31: =IF($B$4<>"",VLOOKUP($J$1,'Coûts 11 décomposés gds postes'!$A:$AS,31,FALSE),"") -> 17.33
F32: Charges directes: DMI facturables en sus | G32: =IF($B$4<>"",VLOOKUP($J$1,'Coûts 11 décomposés gds postes'!$A:$AS,33,FALSE),"") -> 79.01
F34: Honoraires médicaux: Laboratoires autres | G34: =IF($B$4<>"",VLOOKUP($J$1,'Coûts 11 décomposés gds postes'!$A:$AS,37,FALSE),"") -> 18.614 | H34: =IF(C10<>"",IF(B27<>0,(G34+G35+G36+G37)/B27,""),"") -> 0.8686704249
A35: Données de coûts: ENCC ex OQN 2011 | F35: Honoraires médicaux: imagerie | G35: =IF($B$4<>"",VLOOKUP($J$1,'Coûts 11 décomposés gds postes'!$A:$AS,38,FALSE),"") -> 37.85
F36: Honoraires médicaux: anesthésie | G36: =IF($B$4<>"",VLOOKUP($J$1,'Coûts 11 décomposés gds postes'!$A:$AS,39,FALSE),"") -> 85.428
F37: Honoraires médicaux: chirurgie | G37: =IF($B$4<>"",VLOOKUP($J$1,'Coûts 11 décomposés gds postes'!$A:$AS,40,FALSE),"") -> 174

Sheet synthèse CMD (2) (hidden)
A1: Fiche de synthèse CMD | J1: =CONCATENATE(B4,B5,B6,B7) -> 01TOTAL
K2: Affections du système nerveux | L2: 01
A3: Identification de la catégorie majeure de diagnostics (CMD) | K3: Affections de l'oeil | L3: 02
A4: CMD | B4: =IF(B8<>"",VLOOKUP(B8,K:L,2,FALSE),"") -> 01 | K4: Affections des oreilles, du nez, de la gorge, de la bouche et des dents | L4: 03
A5: sous CMD | B5: TOTAL | K5: Affections de l'appareil respiratoire | L5: 04
A6: racine | K6: Affections de l'appareil circulatoire | L6: 05
A7: GHM | K7: Affections du tube digestif | L7: 06
A8: Libellé | B8: Affections du système nerveux | K8: Affections du système hépatobiliaire et du pancréas | L8: 07
K9: Affections et traumatismes de l'appareil musculosquelettique et du tissu conjonctif | L9: 08
C10: 2011 | D10: 2010 | E10: Evolution | K10: Affections de la peau, des tissus souscutanés et des seins | L10: 09
A11: coût moyen du séjour | C11: =IF($B$4<>"",VLOOKUP($J$1,'Coûts 11 décomposés gds postes'!$A:$J,10,FALSE),"") -> 1191.58 | D11: =IF($B$4<>"",IF(ISNA(VLOOKUP($J$1,evolutions!A:X,24,FALSE)),"NC",VLOOKUP($J$1,evolutions!A:X,24,FALSE)),"") -> 1301.77 | E11: =IF($B$4<>"",VLOOKUP($J$1,evolutions!$A:$N,6,FALSE),"") -> -0.08464628928 | G11: Coût moyen | H11: Part des postes détaillés dans chaque sous poste | K11: Affections endocriniennes, métaboliques et nutritionnelles | L11: 10
K12: Affections du rein et des voies urinaires | L12: 11
A13: nombre de séjours ENCC | C13: =IF($B$4<>"",VLOOKUP($J$1,'Coûts 11 décomposés gds postes'!$A:$J,8,FALSE),"") -> 8921 | D13: =IF($B$4<>"",IF(ISNA(VLOOKUP($J$1,'Coûts 10 décomposés gds postes'!$A:$M,8,FALSE)),"NC",VLOOKUP($J$1,'Coûts 10 décomposés gds postes'!$A:$M,8,FALSE)),"") -> 11355 | E13: =IF($B$4<>"",IF(D13<>"",IF(D13<>"NC",IF(C13<>"",C13/D13-1,""),""),""),"") -> -0.2143549097 | K13: Affections de l'appareil génital masculin | L13: 12
K14: Affections de l'appareil génital féminin | L14: 13
K15: Grossesses pathologiques, accouchements et affections du post-partum | L15: 14
F16: Médico technique: anesthésie | G16: =IF($B$4<>"",VLOOKUP($J$1,'Coûts 11 décomposés gds postes'!$A:$AS,15,FALSE),"") -> 20.218 | H16: =IF(C11<>"",IF(B25<>0,(G16+G17+G18)/B25,""),"") -> 0.9783642999 | K16: Nouveau-nés, prématurés et affections de la période périnatale | L16: 15
F17: Médico technique: bloc | G17: =IF($B$4<>"",VLOOKUP($J$1,'Coûts 11 décomposés gds postes'!$A:$AS,16,FALSE),"") -> 125.72 | K17: Affections du sang et des organes hématopoïétiques | L17: 16
F18: Médico technique: urgences | G18: =IF($B$4<>"",VLOOKUP($J$1,'Coûts 11 décomposés gds postes'!$A:$AS,18,FALSE),"") -> 1.5015 | K18: Affections myéloprolifératives et tumeurs de siège imprécis ou diffus | L18: 17
K19: Maladies infectieuses et parasitaires | L19: 18
F20: Logistique Médicale: Pharmacie | G20: =IF($B$4<>"",VLOOKUP($J$1,'Coûts 11 décomposés gds postes'!$A:$AS,27,FALSE),"") -> 18.793 | H20: =IF(B4<>"",IF(C11<>0,(G20+G21+G22)/B26,""),"") -> 0.9580999561 | K20: Troubles mentaux organiques liés à l'absorption de drogues ou induits par celles-ci | L20: 20
B21: Coût moyen 2011 | C21: Poids dans le coût du GHM | D21: Evolution 2011/2010 | F21: Logistique Médicale: Stérilisation | G21: =IF($B$4<>"",VLOOKUP($J$1,'Coûts 11 décomposés gds postes'!$A:$AS,28,FALSE),"") -> 26.013 | K21: Traumatismes, allergies et empoisonnements | L21: 21
A22: activités cliniques MCO (avec hébergement, hors Réa, SI, SC) | B22: =IF($B$4<>"",VLOOKUP($J$1,'Coûts 11 décomposés gds postes'!$A:$AS,11,FALSE),"") -> 172.92 | C22: =IF($C$11<>"",B22/$C$11,"") -> 0.1451182464 | D22: =IF($B$4<>"",VLOOKUP($J$1,evolutions!$A:$N,7,FALSE),"") -> -0.03799721836 | F22: Logistique Médicale: Génie Biomédical | G22: =IF($B$4<>"",VLOOKUP($J$1,'Coûts 11 décomposés gds postes'!$A:$AS,29,FALSE),"") -> 3.1584 | K22: Facteurs influant sur l'état de santé et autres motifs de recours aux services de santé | L22: 23
A23: Activité de soins intensifs | B23: =IF($B$4<>"",VLOOKUP($J$1,'Coûts 11 décomposés gds postes'!A:AS,13,FALSE),"") -> 5.82 | C23: =IF($C$11<>"",B23/$C$11,"") -> 0.004884271304 | D23: =IF($B$4<>"",VLOOKUP($J$1,evolutions!$A:$N,9,FALSE),"") -> -0.1673819742 | K23: Séances | L23: 28
A24: Activité de surveillance continue | B24: =IF($B$4<>"",VLOOKUP($J$1,'Coûts 11 décomposés gds postes'!A:AS,12,FALSE),"") -> 25.41 | C24: 0.02132462781 | D24: =IF($B$4<>"",VLOOKUP($J$1,evolutions!$A:$N,8,FALSE),"") -> 0.03714285714 | F24: Logistique générale: Blanchisserie | G24: =IF($B$4<>"",VLOOKUP($J$1,'Coûts 11 décomposés gds postes'!$A:$AS,20,FALSE),"") -> 10.914 | H24: =IF(C11<>"",IF(B27<>0,(G24+G25+G26+G27+G28+G29)/B27,""),"") -> 0.8379502282 | K24: TOTAL | L24: TOTAL
A25: Activités Médico-techniques | B25: =IF($B$4<>"",VLOOKUP($J$1,'Coûts 11 décomposés gds postes'!A:AS,19,FALSE),"") -> 150.7 | C25: 0.1264707363 | D25: =IF($B$4<>"",VLOOKUP($J$1,evolutions!$A:$N,10,FALSE),"") -> -0.1050537443 | F25: Logistique générale: Restauration | G25: =IF($B$4<>"",VLOOKUP($J$1,'Coûts 11 décomposés gds postes'!$A:$AS,21,FALSE),"") -> 23.724
A26: Logistique Médicale | B26: =IF($B$4<>"",VLOOKUP($J$1,'Coûts 11 décomposés gds postes'!A:AS,30,FALSE),"") -> 50.062 | C26: 0.04201312543 | D26: =IF($B$4<>"",VLOOKUP($J$1,evolutions!$A:$N,12,FALSE),"") -> 0.1069296422 | F26: Logistique générale: Accueil et gestion des malades | G26: =IF($B$4<>"",VLOOKUP($J$1,'Coûts 11 décomposés gds postes'!$A:$AS,22,FALSE),"") -> 23.2746
A27: Logistique générale | B27: =IF($B$4<>"",VLOOKUP($J$1,'Coûts 11 décomposés gds postes'!A:AS,26,FALSE),"") -> 203.73 | C27: 0.1709746723 | D27: =IF($B$4<>"",VLOOKUP($J$1,evolutions!$A:$N,11,FALSE),"") -> -0.113870645 | F27: Logistique générale: Services administratifs à caractère général | G27: =IF($B$4<>"",VLOOKUP($J$1,'Coûts 11 décomposés gds postes'!$A:$AS,23,FALSE),"") -> 66.963
A28: Charges directes | B28: =IF($B$4<>"",VLOOKUP($J$1,'Coûts 11 décomposés gds postes'!A:AS,36,FALSE),"") -> 219.28 | C28: 0.1840245724 | D28: =IF($B$4<>"",VLOOKUP($J$1,evolutions!$A:$N,13,FALSE),"") -> -0.06617834937 | F28: Logistique générale: Entretien maintenance | G28: =IF($B$4<>"",VLOOKUP($J$1,'Coûts 11 décomposés gds postes'!$A:$AS,24,FALSE),"") -> 19.325
A29: Honoraires | B29: =IF($B$4<>"",VLOOKUP($J$1,'Coûts 11 décomposés gds postes'!A:AS,42,FALSE),"") -> 363.65 | C29: 0.3051830343 | D29: =IF($B$4<>"",VLOOKUP($J$1,evolutions!$A:$N,14,FALSE),"") -> -0.09039745867 | F29: Logistique générale: Services hôteliers | G29: =IF($B$4<>"",VLOOKUP($J$1,'Coûts 11 décomposés gds postes'!$A:$AS,25,FALSE),"") -> 26.515
F31: Charges directes: Autres consommables | G31: =IF($B$4<>"",VLOOKUP($J$1,'Coûts 11 décomposés gds postes'!$A:$AS,35,FALSE),"") -> 87.45 | H31: =IF(C11<>"",IF(B28<>0,(G31+G32+G33)/B28,""),"") -> 0.8381521343
F32: Charges directes: Spécialités pharmaceutiques facturables en sus | G32: =IF($B$4<>"",VLOOKUP($J$1,'Coûts 11 décomposés gds postes'!$A:$AS,31,FALSE),"") -> 17.33
F33: Charges directes: DMI facturables en sus | G33: =IF($B$4<>"",VLOOKUP($J$1,'Coûts 11 décomposés gds postes'!$A:$AS,33,FALSE),"") -> 79.01
F35: Honoraires médicaux: Laboratoires autres | G35: =IF($B$4<>"",VLOOKUP($J$1,'Coûts 11 décomposés gds postes'!$A:$AS,37,FALSE),"") -> 18.614 | H35: =IF(C11<>"",IF(B29<>0,(G35+G36+G37+G38)/B29,""),"") -> 0.8686704249
F36: Honoraires médicaux: imagerie | G36: =IF($B$4<>"",VLOOKUP($J$1,'Coûts 11 décomposés gds postes'!$A:$AS,38,FALSE),"") -> 37.85
F37: Honoraires médicaux: anesthésie | G37: =IF($B$4<>"",VLOOKUP($J$1,'Coûts 11 décomposés gds postes'!$A:$AS,39,FALSE),"") -> 85.428
A38: Données de coûts: ENCC ex OQN 2011 | F38: Honoraires médicaux: chirurgie | G38: =IF($B$4<>"",VLOOKUP($J$1,'Coûts 11 décomposés gds postes'!$A:$AS,40,FALSE),"") -> 174

Sheet synthèse sous CMD (hidden)
A1: Fiche de synthèse sous CMD | J1: =CONCATENATE(B4,B5,B6,B7) -> 0101CTOTAL
K2: 01C
A3: Identification de la sous catégorie majeure de diagnostics | K3: 01K
A4: CMD | B4: =LEFT(B5,2) -> 01 | K4: 01M
A5: Sous CMD | B5: 01C | K5: 02C
A6: racine | B6: TOTAL | K6: 02M
A7: GHM | K7: 03C
A8: Libellé | B8: =IF(B4<>"",VLOOKUP(J1,'Coûts 11 décomposés gds postes'!A:AU,6,FALSE),"") -> Affections du système nerveux - Groupes chirurgicaux | K8: 03K
C9: 2011 | D9: 2010 | E9: Evolution | G9: Coût moyen | H9: Part des postes détaillés dans chaque sous poste | K9: 03M
A10: Coût moyen du séjour | C10: =IF($B$4<>"",VLOOKUP($J$1,'Coûts 11 décomposés gds postes'!$A:$J,10,FALSE),"") -> 1184.68 | D10: =IF($B$4<>"",IF(ISNA(VLOOKUP($J$1,evolutions!A:X,24,FALSE)),"NC",VLOOKUP($J$1,evolutions!A:X,24,FALSE)),"") -> 1289.34 | E10: =IF($B$4<>"",VLOOKUP($J$1,evolutions!$A:$N,6,FALSE),"") -> -0.08117331348 | K10: 04C
K11: 04K
A12: Nombre de séjours ENCC | C12: =IF($B$4<>"",VLOOKUP($J$1,'Coûts 11 décomposés gds postes'!$A:$J,8,FALSE),"") -> 7323 | D12: =IF($B$4<>"",IF(ISNA(VLOOKUP($J$1,'Coûts 10 décomposés gds postes'!$A:$M,8,FALSE)),"NC",VLOOKUP($J$1,'Coûts 10 décomposés gds postes'!$A:$M,8,FALSE)),"") -> 8983 | E12: =IF($B$4<>"",IF(D12<>"",IF(D12<>"NC",IF(C12<>"",C12/D12-1,""),""),""),"") -> -0.1847934988 | K12: 04M
K13: 05C
K14: 05K
F15: Médico technique: anesthésie | G15: =IF($B$4<>"",VLOOKUP($J$1,'Coûts 11 décomposés gds postes'!$A:$AS,15,FALSE),"") -> 23.799 | H15: =IF(C10<>"",IF(B23<>0,(G15+G16+G17)/B23,""),"") -> 0.9854192946 | K15: 05M
F16: Médico technique: bloc | G16: =IF($B$4<>"",VLOOKUP($J$1,'Coûts 11 décomposés gds postes'!$A:$AS,16,FALSE),"") -> 144.77 | K16: 06C
F17: Médico technique: urgences | G17: =IF($B$4<>"",VLOOKUP($J$1,'Coûts 11 décomposés gds postes'!$A:$AS,18,FALSE),"") -> 0.1742 | K17: 06K
K18: 06M
B19: Coût moyen 2011 | C19: Poids dans le coût du GHM | D19: Evolution 2011/2010 | F19: Logistique Médicale: Pharmacie | G19: =IF($B$4<>"",VLOOKUP($J$1,'Coûts 11 décomposés gds postes'!$A:$AS,27,FALSE),"") -> 20.625 | H19: =IF(B4<>"",IF(C10<>0,(G19+G20+G21)/B24,""),"") -> 0.9608174445 | K19: 07C
A20: activités cliniques MCO (avec hébergement, hors Réa, SI, SC) | B20: =IF($B$4<>"",VLOOKUP($J$1,'Coûts 11 décomposés gds postes'!$A:$AS,11,FALSE),"") -> 142.88 | C20: =IF($C$10<>"",B20/$C$10,"") -> 0.1206064085 | D20: =IF($B$4<>"",VLOOKUP($J$1,evolutions!$A:$N,7,FALSE),"") -> -0.02090043171 | F20: Logistique Médicale: Stérilisation | G20: =IF($B$4<>"",VLOOKUP($J$1,'Coûts 11 décomposés gds postes'!$A:$AS,28,FALSE),"") -> 29.909 | K20: 07K
A21: Activité de soins intensifs | B21: =IF($B$4<>"",VLOOKUP($J$1,'Coûts 11 décomposés gds postes'!A:AS,13,FALSE),"") -> 6.73 | C21: 0.005680858966 | D21: =IF($B$4<>"",VLOOKUP($J$1,evolutions!$A:$N,9,FALSE),"") -> -0.001483679525 | F21: Logistique Médicale: Génie Biomédical | G21: =IF($B$4<>"",VLOOKUP($J$1,'Coûts 11 décomposés gds postes'!$A:$AS,29,FALSE),"") -> 3.487 | K21: 07M
A22: Activité de surveillance continue | B22: =IF($B$4<>"",VLOOKUP($J$1,'Coûts 11 décomposés gds postes'!A:AS,12,FALSE),"") -> 22.6 | C22: 0.01907688152 | D22: =IF($B$4<>"",VLOOKUP($J$1,evolutions!$A:$N,8,FALSE),"") -> -0.1682002208 | K22: 08C
A23: Activités Médico-techniques | B23: =IF($B$4<>"",VLOOKUP($J$1,'Coûts 11 décomposés gds postes'!A:AS,19,FALSE),"") -> 171.24 | C23: 0.1445453625 | D23: =IF($B$4<>"",VLOOKUP($J$1,evolutions!$A:$N,10,FALSE),"") -> -0.05616491209 | F23: Logistique générale: Blanchisserie | G23: =IF($B$4<>"",VLOOKUP($J$1,'Coûts 11 décomposés gds postes'!$A:$AS,20,FALSE),"") -> 9.119 | H23: =IF(C10<>"",IF(B25<>0,(G23+G24+G25+G26+G27+G28)/B25,""),"") -> 0.8450479029 | K23: 08K
A24: Logistique Médicale | B24: =IF($B$4<>"",VLOOKUP($J$1,'Coûts 11 décomposés gds postes'!A:AS,30,FALSE),"") -> 56.224 | C24: 0.0474592295 | D24: =IF($B$4<>"",VLOOKUP($J$1,evolutions!$A:$N,12,FALSE),"") -> 0.08999263309 | F24: Logistique générale: Restauration | G24: =IF($B$4<>"",VLOOKUP($J$1,'Coûts 11 décomposés gds postes'!$A:$AS,21,FALSE),"") -> 21.826 | K24: 08M
A25: Logistique générale | B25: =IF($B$4<>"",VLOOKUP($J$1,'Coûts 11 décomposés gds postes'!A:AS,26,FALSE),"") -> 187.88 | C25: 0.1585913496 | D25: =IF($B$4<>"",VLOOKUP($J$1,evolutions!$A:$N,11,FALSE),"") -> -0.1100795756 | F25: Logistique générale: Accueil et gestion des malades | G25: =IF($B$4<>"",VLOOKUP($J$1,'Coûts 11 décomposés gds postes'!$A:$AS,22,FALSE),"") -> 22.7266 | K25: 09C
A26: Charges directes | B26: =IF($B$4<>"",VLOOKUP($J$1,'Coûts 11 décomposés gds postes'!A:AS,36,FALSE),"") -> 226.67 | C26: 0.1913343688 | D26: =IF($B$4<>"",VLOOKUP($J$1,evolutions!$A:$N,13,FALSE),"") -> -0.09183060219 | F26: Logistique générale: Services administratifs à caractère général | G26: =IF($B$4<>"",VLOOKUP($J$1,'Coûts 11 décomposés gds postes'!$A:$AS,23,FALSE),"") -> 63.02 | K26: 09K
A27: Honoraires | B27: =IF($B$4<>"",VLOOKUP($J$1,'Coûts 11 décomposés gds postes'!A:AS,42,FALSE),"") -> 370.46 | C27: 0.3127089172 | D27: =IF($B$4<>"",VLOOKUP($J$1,evolutions!$A:$N,14,FALSE),"") -> -0.07793015905 | F27: Logistique générale: Entretien maintenance | G27: =IF($B$4<>"",VLOOKUP($J$1,'Coûts 11 décomposés gds postes'!$A:$AS,24,FALSE),"") -> 18.51 | K27: 09M
F28: Logistique générale: Services hôteliers | G28: =IF($B$4<>"",VLOOKUP($J$1,'Coûts 11 décomposés gds postes'!$A:$AS,25,FALSE),"") -> 23.566 | K28: 09Z
K29: 10C
F30: Charges directes: Autres consommables | G30: =IF($B$4<>"",VLOOKUP($J$1,'Coûts 11 décomposés gds postes'!$A:$AS,35,FALSE),"") -> 96.21 | H30: =IF(C10<>"",IF(B26<>0,(G30+G31+G32)/B26,""),"") -> 0.8418405612 | K30: 10M
F31: Charges directes: Spécialités pharmaceutiques facturables en sus | G31: =IF($B$4<>"",VLOOKUP($J$1,'Coûts 11 décomposés gds postes'!$A:$AS,31,FALSE),"") -> 0.52 | K31: 11C
F32: Charges directes: DMI facturables en sus | G32: =IF($B$4<>"",VLOOKUP($J$1,'Coûts 11 décomposés gds postes'!$A:$AS,33,FALSE),"") -> 94.09 | K32: 11K
K33: 11M
F34: Honoraires médicaux: Laboratoires autres | G34: =IF($B$4<>"",VLOOKUP($J$1,'Coûts 11 décomposés gds postes'!$A:$AS,37,FALSE),"") -> 12.61 | H34: =IF(C10<>"",IF(B27<>0,(G34+G35+G36+G37)/B27,""),"") -> 0.9198213032 | K34: 12C
F35: Honoraires médicaux: imagerie | G35: =IF($B$4<>"",VLOOKUP($J$1,'Coûts 11 décomposés gds postes'!$A:$AS,38,FALSE),"") -> 19.53 | K35: 12K
F36: Honoraires médicaux: anesthésie | G36: =IF($B$4<>"",VLOOKUP($J$1,'Coûts 11 décomposés gds postes'!$A:$AS,39,FALSE),"") -> 100.867 | K36: 12M
F37: Honoraires médicaux: chirurgie | G37: =IF($B$4<>"",VLOOKUP($J$1,'Coûts 11 décomposés gds postes'!$A:$AS,40,FALSE),"") -> 207.75 | K37: 13C
A38: Données de coûts: ENCC ex OQN 2011 | K38: 13K
K39: 13M
K40: 14C
K41: 14M
K42: 14Z
K43: 15M
K44: 15Z
K45: 16C
K46: 16M
K47: 17C
K48: 17K
K49: 17M
K50: 18M
K51: 20Z
K52: 21C
K53: 21M
K54: 23C
K55: 23K
K56: 23M
K57: 23Z
K58: 28Z

Sheet synthèse sous CMD (2) (hidden)
A1: Fiche de synthèse sous CMD | J1: =CONCATENATE(B4,B5,B6,B7) -> 0101CTOTAL
K2: Affections du système nerveux - Groupes chirurgicaux | L2: 01C
A3: Identification de la sous catégorie majeure de diagnostics | K3: Affections du système nerveux - Avec acte classant non opératoire | L3: 01K
A4: CMD | B4: =LEFT(B5,2) -> 01 | K4: Affections du système nerveux - Groupes 'médicaux' | L4: 01M
A5: Sous CMD | B5: =IF(B8<>"",VLOOKUP(B8,K:L,2,FALSE),"") -> 01C | K5: Affections de l'oeil - Groupes chirurgicaux | L5: 02C
A6: racine | B6: TOTAL | K6: Affections de l'oeil - Groupes 'médicaux' | L6: 02M
A7: GHM | K7: Affections des oreilles, du nez, de la gorge, de la bouche et des dents - Groupes chirurgicaux | L7: 03C
A8: Libellé | B8: Affections du système nerveux - Groupes chirurgicaux | K8: Affections des oreilles, du nez, de la gorge, de la bouche et des dents - Avec acte classant non opératoire | L8: 03K
K9: Affections des oreilles, du nez, de la gorge, de la bouche et des dents - Groupes 'médicaux' | L9: 03M
C10: 2011 | D10: 2010 | E10: Evolution | G10: Coût moyen | H10: Part des postes détaillés dans chaque sous poste | K10: Affections de l'appareil respiratoire - Groupes chirurgicaux | L10: 04C
A11: Coût moyen du séjour | C11: =IF($B$4<>"",VLOOKUP($J$1,'Coûts 11 décomposés gds postes'!$A:$J,10,FALSE),"") -> 1184.68 | D11: =IF($B$4<>"",IF(ISNA(VLOOKUP($J$1,evolutions!A:X,24,FALSE)),"NC",VLOOKUP($J$1,evolutions!A:X,24,FALSE)),"") -> 1289.34 | E11: =IF($B$4<>"",VLOOKUP($J$1,evolutions!$A:$N,6,FALSE),"") -> -0.08117331348 | K11: Affections de l'appareil respiratoire - Avec acte classant non opératoire | L11: 04K
K12: Affections de l'appareil respiratoire - Groupes 'médicaux' | L12: 04M
A13: Nombre de séjours ENCC | C13: =IF($B$4<>"",VLOOKUP($J$1,'Coûts 11 décomposés gds postes'!$A:$J,8,FALSE),"") -> 7323 | D13: =IF($B$4<>"",IF(ISNA(VLOOKUP($J$1,'Coûts 10 décomposés gds postes'!$A:$M,8,FALSE)),"NC",VLOOKUP($J$1,'Coûts 10 décomposés gds postes'!$A:$M,8,FALSE)),"") -> 8983 | E13: =IF($B$4<>"",IF(D13<>"",IF(D13<>"NC",IF(C13<>"",C13/D13-1,""),""),""),"") -> -0.1847934988 | K13: Affections de l'appareil circulatoire - Groupes chirurgicaux | L13: 05C
K14: Affections de l'appareil circulatoire - Avec acte classant non opératoire | L14: 05K
K15: Affections de l'appareil circulatoire - Groupes 'médicaux' | L15: 05M
F16: Médico technique: anesthésie | G16: =IF($B$4<>"",VLOOKUP($J$1,'Coûts 11 décomposés gds postes'!$A:$AS,15,FALSE),"") -> 23.799 | H16: =IF(C11<>"",IF(B23<>0,(G16+G17+G18)/B23,""),"") -> 0.9854192946 | K16: Affections du tube digestif - Groupes chirurgicaux | L16: 06C
F17: Médico technique: bloc | G17: =IF($B$4<>"",VLOOKUP($J$1,'Coûts 11 décomposés gds postes'!$A:$AS,16,FALSE),"") -> 144.77 | K17: Affections du tube digestif - Avec acte classant non opératoire | L17: 06K
F18: Médico technique: urgences | G18: =IF($B$4<>"",VLOOKUP($J$1,'Coûts 11 décomposés gds postes'!$A:$AS,18,FALSE),"") -> 0.1742 | K18: Affections du tube digestif - Groupes 'médicaux' | L18: 06M
B19: Coût moyen 2011 | C19: Poids dans le coût du GHM | D19: Evolution 2011/2010 | K19: Affections du système hépatobiliaire et du pancréas - Groupes chirurgicaux | L19: 07C
A20: activités cliniques MCO (avec hébergement, hors Réa, SI, SC) | B20: =IF($B$4<>"",VLOOKUP($J$1,'Coûts 11 décomposés gds postes'!$A:$AS,11,FALSE),"") -> 142.88 | C20: =IF($C$11<>"",B20/$C$11,"") -> 0.1206064085 | D20: =IF($B$4<>"",VLOOKUP($J$1,evolutions!$A:$N,7,FALSE),"") -> -0.02090043171 | F20: Logistique Médicale: Pharmacie | G20: =IF($B$4<>"",VLOOKUP($J$1,'Coûts 11 décomposés gds postes'!$A:$AS,27,FALSE),"") -> 20.625 | H20: =IF(B5<>"",IF(C11<>0,(G20+G21+G22)/B24,""),"") -> 0.9608174445 | K20: Affections du système hépatobiliaire et du pancréas - Avec acte classant non opératoire | L20: 07K
A21: Activité de soins intensifs | B21: =IF($B$4<>"",VLOOKUP($J$1,'Coûts 11 décomposés gds postes'!A:AS,13,FALSE),"") -> 6.73 | C21: =IF($C$11<>"",B21/$C$11,"") -> 0.005680858966 | D21: =IF($B$4<>"",VLOOKUP($J$1,evolutions!$A:$N,9,FALSE),"") -> -0.001483679525 | F21: Logistique Médicale: Stérilisation | G21: =IF($B$4<>"",VLOOKUP($J$1,'Coûts 11 décomposés gds postes'!$A:$AS,28,FALSE),"") -> 29.909 | K21: Affections du système hépatobiliaire et du pancréas - Groupes 'médicaux' | L21: 07M
A22: Activité de surveillance continue | B22: =IF($B$4<>"",VLOOKUP($J$1,'Coûts 11 décomposés gds postes'!A:AS,12,FALSE),"") -> 22.6 | C22: 0.01907688152 | D22: =IF($B$4<>"",VLOOKUP($J$1,evolutions!$A:$N,8,FALSE),"") -> -0.1682002208 | F22: Logistique Médicale: Génie Biomédical | G22: =IF($B$4<>"",VLOOKUP($J$1,'Coûts 11 décomposés gds postes'!$A:$AS,29,FALSE),"") -> 3.487 | K22: Affections et traumatismes de l'appareil musculosquelettique et du tissu conjonctif - Groupes chirurgicaux | L22: 08C
A23: Activités Médico-techniques | B23: =IF($B$4<>"",VLOOKUP($J$1,'Coûts 11 décomposés gds postes'!A:AS,19,FALSE),"") -> 171.24 | C23: 0.1445453625 | D23: =IF($B$4<>"",VLOOKUP($J$1,evolutions!$A:$N,10,FALSE),"") -> -0.05616491209 | K23: Affections et traumatismes de l'appareil musculosquelettique et du tissu conjonctif - Avec acte classant non opératoire | L23: 08K
A24: Logistique Médicale | B24: =IF($B$4<>"",VLOOKUP($J$1,'Coûts 11 décomposés gds postes'!A:AS,30,FALSE),"") -> 56.224 | C24: 0.0474592295 | D24: =IF($B$4<>"",VLOOKUP($J$1,evolutions!$A:$N,12,FALSE),"") -> 0.08999263309 | F24: Logistique générale: Blanchisserie | G24: =IF($B$4<>"",VLOOKUP($J$1,'Coûts 11 décomposés gds postes'!$A:$AS,20,FALSE),"") -> 9.119 | H24: =IF(C11<>"",IF(B25<>0,(G24+G25+G26+G27+G28+G29)/B25,""),"") -> 0.8450479029 | K24: Affections et traumatismes de l'appareil musculosquelettique et du tissu conjonctif - Groupes 'médicaux' | L24: 08M
A25: Logistique générale | B25: =IF($B$4<>"",VLOOKUP($J$1,'Coûts 11 décomposés gds postes'!A:AS,26,FALSE),"") -> 187.88 | C25: 0.1585913496 | D25: =IF($B$4<>"",VLOOKUP($J$1,evolutions!$A:$N,11,FALSE),"") -> -0.1100795756 | F25: Logistique générale: Restauration | G25: =IF($B$4<>"",VLOOKUP($J$1,'Coûts 11 décomposés gds postes'!$A:$AS,21,FALSE),"") -> 21.826 | K25: Affections de la peau, des tissus souscutanés et des seins - Groupes chirurgicaux | L25: 09C
A26: Charges directes | B26: =IF($B$4<>"",VLOOKUP($J$1,'Coûts 11 décomposés gds postes'!A:AS,36,FALSE),"") -> 226.67 | C26: 0.1913343688 | D26: =IF($B$4<>"",VLOOKUP($J$1,evolutions!$A:$N,13,FALSE),"") -> -0.09183060219 | F26: Logistique générale: Accueil et gestion des malades | G26: =IF($B$4<>"",VLOOKUP($J$1,'Coûts 11 décomposés gds postes'!$A:$AS,22,FALSE),"") -> 22.7266 | K26: Affections de la peau, des tissus souscutanés et des seins - Avec acte classant non opératoire | L26: 09K
A27: Honoraires | B27: =IF($B$4<>"",VLOOKUP($J$1,'Coûts 11 décomposés gds postes'!A:AS,42,FALSE),"") -> 370.46 | C27: 0.3127089172 | D27: =IF($B$4<>"",VLOOKUP($J$1,evolutions!$A:$N,14,FALSE),"") -> -0.07793015905 | F27: Logistique générale: Services administratifs à caractère général | G27: =IF($B$4<>"",VLOOKUP($J$1,'Coûts 11 décomposés gds postes'!$A:$AS,23,FALSE),"") -> 63.02 | K27: Affections de la peau, des tissus souscutanés et des seins - Groupes 'médicaux' | L27: 09M
F28: Logistique générale: Entretien maintenance | G28: =IF($B$4<>"",VLOOKUP($J$1,'Coûts 11 décomposés gds postes'!$A:$AS,24,FALSE),"") -> 18.51 | K28: Affections de la peau, des tissus souscutanés et des seins - Groupes indifférenciés | L28: 09Z
F29: Logistique générale: Services hôteliers | G29: =IF($B$4<>"",VLOOKUP($J$1,'Coûts 11 décomposés gds postes'!$A:$AS,25,FALSE),"") -> 23.566 | K29: Affections endocriniennes, métaboliques et nutritionnelles - Groupes chirurgicaux | L29: 10C
K30: Affections endocriniennes, métaboliques et nutritionnelles - Groupes 'médicaux' | L30: 10M
F31: Charges directes: Autres consommables | G31: =IF($B$4<>"",VLOOKUP($J$1,'Coûts 11 décomposés gds postes'!$A:$AS,35,FALSE),"") -> 96.21 | H31: =IF(C11<>"",IF(B26<>0,(G31+G32+G33)/B26,""),"") -> 0.8418405612 | K31: Affections du rein et des voies urinaires - Groupes chirurgicaux | L31: 11C
A32: Données de coûts: ENCC ex OQN 2011 | F32: Charges directes: Spécialités pharmaceutiques facturables en sus | G32: =IF($B$4<>"",VLOOKUP($J$1,'Coûts 11 décomposés gds postes'!$A:$AS,31,FALSE),"") -> 0.52 | K32: Affections du rein et des voies urinaires - Avec acte classant non opératoire | L32: 11K
F33: Charges directes: DMI facturables en sus | G33: =IF($B$4<>"",VLOOKUP($J$1,'Coûts 11 décomposés gds postes'!$A:$AS,33,FALSE),"") -> 94.09 | K33: Affections du rein et des voies urinaires - Groupes 'médicaux' | L33: 11M
K34: Affections de l'appareil génital masculin - Groupes chirurgicaux | L34: 12C
F35: Honoraires médicaux: Laboratoires autres | G35: =IF($B$4<>"",VLOOKUP($J$1,'Coûts 11 décomposés gds postes'!$A:$AS,37,FALSE),"") -> 12.61 | H35: =IF(C11<>"",IF(B27<>0,(G35+G36+G37+G38)/B27,""),"") -> 0.9198213032 | K35: Affections de l'appareil génital masculin - Avec acte classant non opératoire | L35: 12K
F36: Honoraires médicaux: imagerie | G36: =IF($B$4<>"",VLOOKUP($J$1,'Coûts 11 décomposés gds postes'!$A:$AS,38,FALSE),"") -> 19.53 | K36: Affections de l'appareil génital masculin - Groupes 'médicaux' | L36: 12M
F37: Honoraires médicaux: anesthésie | G37: =IF($B$4<>"",VLOOKUP($J$1,'Coûts 11 décomposés gds postes'!$A:$AS,39,FALSE),"") -> 100.867 | K37: Affections de l'appareil génital féminin - Groupes chirurgicaux | L37: 13C
F38: Honoraires médicaux: chirurgie | G38: =IF($B$4<>"",VLOOKUP($J$1,'Coûts 11 décomposés gds postes'!$A:$AS,40,FALSE),"") -> 207.75 | K38: Affections de l'appareil génital féminin - Avec acte classant non opératoire | L38: 13K
K39: Affections de l'appareil génital féminin - Groupes 'médicaux' | L39: 13M
K40: Grossesses pathologiques, accouchements et affections du post-partum - Groupes chirurgicaux | L40: 14C
K41: Grossesses pathologiques, accouchements et affections du post-partum - Groupes 'médicaux' | L41: 14M
K42: Grossesses pathologiques, accouchements et affections du post-partum - Groupes indifférenciés | L42: 14Z
K43: Nouveau-nés, prématurés et affections de la période périnatale - Groupes 'médicaux' | L43: 15M
K44: Nouveau-nés, prématurés et affections de la période périnatale - Groupes indifférenciés | L44: 15Z
K45: Affections du sang et des organes hématopoïétiques - Groupes chirurgicaux | L45: 16C
K46: Affections du sang et des organes hématopoïétiques - Groupes 'médicaux' | L46: 16M
K47: Affections myéloprolifératives et tumeurs de siège imprécis ou diffus - Groupes chirurgicaux | L47: 17C
K48: Affections myéloprolifératives et tumeurs de siège imprécis ou diffus - Avec acte classant non opératoire | L48: 17K
K49: Affections myéloprolifératives et tumeurs de siège imprécis ou diffus - Groupes 'médicaux' | L49: 17M
K50: Maladies infectieuses et parasitaires - Groupes 'médicaux' | L50: 18M
K51: Troubles mentaux organiques liés à l'absorption de drogues ou induits par celles-ci - Groupes indifférenciés | L51: 20Z
K52: Traumatismes, allergies et empoisonnements - Groupes chirurgicaux | L52: 21C
K53: Traumatismes, allergies et empoisonnements - Groupes 'médicaux' | L53: 21M
K54: Facteurs influant sur l'état de santé et autres motifs de recours aux services de santé - Groupes chirurgicaux | L54: 23C
K55: Facteurs influant sur l'état de santé et autres motifs de recours aux services de santé - Avec acte classant non opératoire | L55: 23K
K56: Facteurs influant sur l'état de santé et autres motifs de recours aux services de santé - Groupes 'médicaux' | L56: 23M
K57: Facteurs influant sur l'état de santé et autres motifs de recours aux services de santé - Groupes indifférenciés | L57: 23Z
K58: Séances - Groupes indifférenciés | L58: 28Z

Sheet synthèse racine (hidden)
A1: Fiche de synthèse Racine | J1: =CONCATENATE(B4,B5,B6,B7) -> 0101C01C05TOTAL
K2: 01C05
A3: Identification de la racine | K3: 01C06
A4: CMD | B4: =LEFT(B5,2) -> 01 | K4: 01C08
A5: Sous CMD | B5: =LEFT(B6,3) -> 01C | K5: 01C10
A6: Racine | B6: 01C05 | K6: 01C14
A7: GHM | B7: TOTAL | K7: 01C15
A8: Libellé | B8: =IF(B4<>"",VLOOKUP(J1,'Coûts 11 décomposés gds postes'!A:AU,6,FALSE),"") -> Interventions sur le rachis et la moelle pour des affections neurologiques | K8: 01K04
C9: 2011 | D9: 2010 | E9: Evolution | G9: Coût moyen | H9: Part des postes détaillés dans chaque sous poste | K9: 01K05
A10: Coût moyen du séjour | C10: =IF($B$4<>"",VLOOKUP($J$1,'Coûts 11 décomposés gds postes'!$A:$J,10,FALSE),"") -> 3963 | D10: =IF($B$4<>"",IF(ISNA(VLOOKUP($J$1,evolutions!A:X,24,FALSE)),"NC",VLOOKUP($J$1,evolutions!A:X,24,FALSE)),"") -> 4005.53 | E10: =IF($B$4<>"",VLOOKUP($J$1,evolutions!$A:$N,6,FALSE),"") -> -0.01061782086 | K10: 01K06
K11: 01M08
A12: Nombre de séjours ENCC | C12: =IF($B$4<>"",VLOOKUP($J$1,'Coûts 11 décomposés gds postes'!$A:$J,8,FALSE),"") -> 382 | D12: =IF($B$4<>"",IF(ISNA(VLOOKUP($J$1,'Coûts 10 décomposés gds postes'!$A:$M,8,FALSE)),"NC",VLOOKUP($J$1,'Coûts 10 décomposés gds postes'!$A:$M,8,FALSE)),"") -> 1212 | E12: =IF($B$4<>"",IF(D12<>"",IF(D12<>"NC",IF(C12<>"",C12/D12-1,""),""),""),"") -> -0.6848184818 | K12: 01M11
K13: 01M15
K14: 01M16
F15: Médico technique: anesthésie | G15: =IF($B$4<>"",VLOOKUP($J$1,'Coûts 11 décomposés gds postes'!$A:$AS,15,FALSE),"") -> 81.695 | H15: =IF(C10<>"",IF(B23<>0,(G15+G16+G17)/B23,""),"") -> 0.9942470533 | K15: 01M17
F16: Médico technique: bloc | G16: =IF($B$4<>"",VLOOKUP($J$1,'Coûts 11 décomposés gds postes'!$A:$AS,16,FALSE),"") -> 444.77 | K16: 01M21
F17: Médico technique: urgences | G17: =IF($B$4<>"",VLOOKUP($J$1,'Coûts 11 décomposés gds postes'!$A:$AS,18,FALSE),"") -> 0.7345 | K17: 01M22
K18: 01M25
B19: Coût moyen 2011 | C19: Poids dans le coût du GHM | D19: Evolution 2011/2010 | F19: Logistique Médicale: Pharmacie | G19: =IF($B$4<>"",VLOOKUP($J$1,'Coûts 11 décomposés gds postes'!$A:$AS,27,FALSE),"") -> 43.676 | H19: =IF(B4<>"",IF(C10<>0,(G19+G20+G21)/B24,""),"") -> 0.9154221776 | K19: 01M30
A20: activités cliniques MCO (avec hébergement, hors Réa, SI, SC) | B20: =IF($B$4<>"",VLOOKUP($J$1,'Coûts 11 décomposés gds postes'!$A:$AS,11,FALSE),"") -> 680.63 | C20: =IF($C$10<>"",B20/$C$10,"") -> 0.1717461519 | D20: =IF($B$4<>"",VLOOKUP($J$1,evolutions!$A:$N,7,FALSE),"") -> 0.1181331318 | F20: Logistique Médicale: Stérilisation | G20: =IF($B$4<>"",VLOOKUP($J$1,'Coûts 11 décomposés gds postes'!$A:$AS,28,FALSE),"") -> 74.655 | K20: 01M34
A21: Activité de soins intensifs | B21: =IF($B$4<>"",VLOOKUP($J$1,'Coûts 11 décomposés gds postes'!A:AS,13,FALSE),"") -> 12.45 | C21: 0.003141559425 | D21: =IF($B$4<>"",VLOOKUP($J$1,evolutions!$A:$N,9,FALSE),"") -> 0.4277522936 | F21: Logistique Médicale: Génie Biomédical | G21: =IF($B$4<>"",VLOOKUP($J$1,'Coûts 11 décomposés gds postes'!$A:$AS,29,FALSE),"") -> 3.898 | K21: 02C02
A22: Activité de surveillance continue | B22: =IF($B$4<>"",VLOOKUP($J$1,'Coûts 11 décomposés gds postes'!A:AS,12,FALSE),"") -> 17.45 | C22: 0.004403229876 | D22: =IF($B$4<>"",VLOOKUP($J$1,evolutions!$A:$N,8,FALSE),"") -> -0.7054852321 | K22: 02C05
A23: Activités Médico-techniques | B23: =IF($B$4<>"",VLOOKUP($J$1,'Coûts 11 décomposés gds postes'!A:AS,19,FALSE),"") -> 530.25 | C23: 0.1338001514 | D23: =IF($B$4<>"",VLOOKUP($J$1,evolutions!$A:$N,10,FALSE),"") -> 0.02309562399 | F23: Logistique générale: Blanchisserie | G23: =IF($B$4<>"",VLOOKUP($J$1,'Coûts 11 décomposés gds postes'!$A:$AS,20,FALSE),"") -> 31.967 | H23: =IF(C10<>"",IF(B25<>0,(G23+G24+G25+G26+G27+G28)/B25,""),"") -> 0.8600303093 | K23: 02C07
A24: Logistique Médicale | B24: =IF($B$4<>"",VLOOKUP($J$1,'Coûts 11 décomposés gds postes'!A:AS,30,FALSE),"") -> 133.522 | C24: 0.03369215241 | D24: =IF($B$4<>"",VLOOKUP($J$1,evolutions!$A:$N,12,FALSE),"") -> -0.1224837177 | F24: Logistique générale: Restauration | G24: =IF($B$4<>"",VLOOKUP($J$1,'Coûts 11 décomposés gds postes'!$A:$AS,21,FALSE),"") -> 96.203 | K24: 02C08
A25: Logistique générale | B25: =IF($B$4<>"",VLOOKUP($J$1,'Coûts 11 décomposés gds postes'!A:AS,26,FALSE),"") -> 485 | C25: 0.1223820338 | D25: =IF($B$4<>"",VLOOKUP($J$1,evolutions!$A:$N,11,FALSE),"") -> -0.1742994314 | F25: Logistique générale: Accueil et gestion des malades | G25: =IF($B$4<>"",VLOOKUP($J$1,'Coûts 11 décomposés gds postes'!$A:$AS,22,FALSE),"") -> 29.6657 | K25: 02C09
A26: Charges directes | B26: =IF($B$4<>"",VLOOKUP($J$1,'Coûts 11 décomposés gds postes'!A:AS,36,FALSE),"") -> 1060.54 | C26: 0.2676103962 | D26: =IF($B$4<>"",VLOOKUP($J$1,evolutions!$A:$N,13,FALSE),"") -> 0.1632937357 | F26: Logistique générale: Services administratifs à caractère général | G26: =IF($B$4<>"",VLOOKUP($J$1,'Coûts 11 décomposés gds postes'!$A:$AS,23,FALSE),"") -> 157.077 | K26: 02C11
A27: Honoraires | B27: =IF($B$4<>"",VLOOKUP($J$1,'Coûts 11 décomposés gds postes'!A:AS,42,FALSE),"") -> 1043.16 | C27: 0.2632248297 | D27: =IF($B$4<>"",VLOOKUP($J$1,evolutions!$A:$N,14,FALSE),"") -> -0.0798055803 | F27: Logistique générale: Entretien maintenance | G27: =IF($B$4<>"",VLOOKUP($J$1,'Coûts 11 décomposés gds postes'!$A:$AS,24,FALSE),"") -> 48.416 | K27: 02C12
F28: Logistique générale: Services hôteliers | G28: =IF($B$4<>"",VLOOKUP($J$1,'Coûts 11 décomposés gds postes'!$A:$AS,25,FALSE),"") -> 53.786 | K28: 02C13
K29: 02M08
F30: Charges directes: Autres consommables | G30: =IF($B$4<>"",VLOOKUP($J$1,'Coûts 11 décomposés gds postes'!$A:$AS,35,FALSE),"") -> 303.87 | H30: =IF(C10<>"",IF(B26<>0,(G30+G31+G32)/B26,""),"") -> 0.8709431045 | K30: 03C07
F31: Charges directes: Spécialités pharmaceutiques facturables en sus | G31: =IF($B$4<>"",VLOOKUP($J$1,'Coûts 11 décomposés gds postes'!$A:$AS,31,FALSE),"") -> 2.46 | K31: 03C09
F32: Charges directes: DMI facturables en sus | G32: =IF($B$4<>"",VLOOKUP($J$1,'Coûts 11 décomposés gds postes'!$A:$AS,33,FALSE),"") -> 617.34 | K32: 03C10
K33: 03C11
F34: Honoraires médicaux: Laboratoires autres | G34: =IF($B$4<>"",VLOOKUP($J$1,'Coûts 11 décomposés gds postes'!$A:$AS,37,FALSE),"") -> 51.338 | H34: =IF(C10<>"",IF(B27<>0,(G34+G35+G36+G37)/B27,""),"") -> 0.9043013536 | K34: 03C12
F35: Honoraires médicaux: imagerie | G35: =IF($B$4<>"",VLOOKUP($J$1,'Coûts 11 décomposés gds postes'!$A:$AS,38,FALSE),"") -> 74.02 | K35: 03C13
F36: Honoraires médicaux: anesthésie | G36: =IF($B$4<>"",VLOOKUP($J$1,'Coûts 11 décomposés gds postes'!$A:$AS,39,FALSE),"") -> 267.893 | K36: 03C14
A37: Données de coûts: ENCC ex OQN 2011 | F37: Honoraires médicaux: chirurgie | G37: =IF($B$4<>"",VLOOKUP($J$1,'Coûts 11 décomposés gds postes'!$A:$AS,40,FALSE),"") -> 550.08 | K37: 03C15
K38: 03C16
K39: 03C17
K40: 03C19
K41: 03C20
K42: 03C21
K43: 03C24
K44: 03C26
K45: 03C27
K46: 03C28
K47: 03C30
K48: 03K02
K49: 03K03
K50: 03K04
K51: 03M02
K52: 03M04
K53: 03M05
K54: 03M06
K55: 03M07
K56: 03M09
K57: 03M10
K58: 03M11
K59: 03M13
K60: 04C02
K61: 04C03
K62: 04C04
K63: 04K02
K64: 04M03
K65: 04M05
K66: 04M07
K67: 04M08
K68: 04M09
K69: 04M10
K70: 04M11
K71: 04M12
K72: 04M13
K73: 04M17
K74: 04M20
K75: 04M23
K76: 04M24
K77: 05C10
K78: 05C11
K79: 05C13
K80: 05C14
K81: 05C15
K82: 05C17
K83: 05C18
K84: 05C19
K85: 05C21
K86: 05C22
K87: 05K05
K88: 05K06
K89: 05K10
K90: 05K14
K91: 05K17
K92: 05K19
K93: 05K20
K94: 05K23
K95: 05K24
K96: 05K25
K97: 05K26
K98: 05M04
K99: 05M05
K100: 05M06
K101: 05M07
K102: 05M08
K103: 05M09
K104: 05M12
K105: 05M13
K106: 05M15
K107: 05M16
K108: 05M17
K109: 05M23
K110: 06C03
K111: 06C04
K112: 06C07
K113: 06C08
K114: 06C09
K115: 06C10
K116: 06C12
K117: 06C13
K118: 06C14
K119: 06C15
K120: 06C16
K121: 06C19
K122: 06C22
K123: 06C24
K124: 06C25
K125: 06K02
K126: 06K03
K127: 06K04
K128: 06K05
K129: 06K06
K130: 06M03
K131: 06M04
K132: 06M05
K133: 06M06
K134: 06M07
K135: 06M08
K136: 06M09
K137: 06M11
K138: 06M12
K139: 06M13
K140: 06M16
K141: 06M17
K142: 06M18
K143: 06M19
K144: 06M20
K145: 07C09
K146: 07C10
K147: 07C12
K148: 07C13
K149: 07C14
K150: 07K02
K151: 07K04
K152: 07M02
K153: 07M04
K154: 07M06
K155: 07M07
K156: 07M08
K157: 07M10
K158: 07M11
K159: 07M14
K160: 08C13
K161: 08C14
K162: 08C20
K163: 08C21
K164: 08C22
K165: 08C24
K166: 08C25
K167: 08C27
K168: 08C31
K169: 08C32
K170: 08C33
K171: 08C34
K172: 08C35
K173: 08C36
K174: 08C37
K175: 08C38
K176: 08C39
K177: 08C40
K178: 08C42
K179: 08C43
K180: 08C44
K181: 08C45
K182: 08C46
K183: 08C47
K184: 08C48
K185: 08C49
K186: 08C50
K187: 08C52
K188: 08C53
K189: 08C54
K190: 08C56
K191: 08C57
K192: 08C58
K193: 08C59
K194: 08C60
K195: 08K02
K196: 08M04
K197: 08M07
K198: 08M10
K199: 08M14
K200: 08M15
... 177 more rows

Sheet synthèse racine (2) (hidden)
A1: Fiche de synthèse Racine | J1: =CONCATENATE(B4,B5,B6,B7) -> 0101C01C05TOTAL
K2: Interventions sur le rachis et la moelle pour des affections neurologiques | L2: 01C05
A3: Identification de la racine | K3: Interventions sur le système vasculaire précérébral | L3: 01C06
A4: CMD | B4: =LEFT(B5,2) -> 01 | K4: Interventions sur les nerfs crâniens ou périphériques et autres interventions sur le système nerveux | L4: 01C08
A5: Sous CMD | B5: =LEFT(B6,3) -> 01C | K5: Pose d'un stimulateur médullaire | L5: 01C10
A6: Racine | B6: =IF(B8<>"",VLOOKUP(B8,K:L,2,FALSE),"") -> 01C05 | K6: Libérations de nerfs superficiels à l'exception du médian au canal carpien | L6: 01C14
A7: GHM | B7: TOTAL | K7: Libérations du médian au canal carpien | L7: 01C15
A8: Libellé | B8: Interventions sur le rachis et la moelle pour des affections neurologiques | K8: Injections de toxine botulique, en ambulatoire | L8: 01K04
K9: Séjours pour douleurs chroniques rebelles comprenant un bloc ou une infiltration, en ambulatoire | L9: 01K05
C10: 2011 | D10: 2010 | E10: Evolution | G10: Coût moyen | H10: Part des postes détaillés dans chaque sous poste | K10: Affections du système nerveux sans acte opératoire avec anesthésie, en ambulatoire | L10: 01K06
A11: Coût moyen du séjour | C11: =IF($B$4<>"",VLOOKUP($J$1,'Coûts 11 décomposés gds postes'!$A:$J,10,FALSE),"") -> 3963 | D11: =IF($B$4<>"",IF(ISNA(VLOOKUP($J$1,evolutions!A:X,24,FALSE)),"NC",VLOOKUP($J$1,evolutions!A:X,24,FALSE)),"") -> 4005.53 | E11: =IF($B$4<>"",VLOOKUP($J$1,evolutions!$A:$N,6,FALSE),"") -> -0.01061782086 | K11: Maladies dégénératives du système nerveux, âge inférieur à 80 ans | L11: 01M08
K12: Affections des nerfs crâniens et rachidiens | L12: 01M11
A13: Nombre de séjours ENCC | C13: =IF($B$4<>"",VLOOKUP($J$1,'Coûts 11 décomposés gds postes'!$A:$J,8,FALSE),"") -> 382 | D13: =IF($B$4<>"",IF(ISNA(VLOOKUP($J$1,'Coûts 10 décomposés gds postes'!$A:$M,8,FALSE)),"NC",VLOOKUP($J$1,'Coûts 10 décomposés gds postes'!$A:$M,8,FALSE)),"") -> 1212 | E13: =IF($B$4<>"",IF(D13<>"",IF(D13<>"NC",IF(C13<>"",C13/D13-1,""),""),""),"") -> -0.6848184818 | K13: Accidents ischémiques transitoires et occlusions des artères précérébrales, âge supérieur à 79 ans | L13: 01M15
K14: Accidents ischémiques transitoires et occlusions des artères précérébrales, âge inférieur à 80 ans | L14: 01M16
K15: Sclérose en plaques et ataxie cérébelleuse | L15: 01M17
F16: Médico technique: anesthésie | G16: =IF($B$4<>"",VLOOKUP($J$1,'Coûts 11 décomposés gds postes'!$A:$AS,15,FALSE),"") -> 81.695 | H16: =IF(C11<>"",IF(B23<>0,(G16+G17+G18)/B23,""),"") -> 0.9942470533 | K16: Douleurs chroniques rebelles | L16: 01M21
F17: Médico technique: bloc | G17: =IF($B$4<>"",VLOOKUP($J$1,'Coûts 11 décomposés gds postes'!$A:$AS,16,FALSE),"") -> 444.77 | K17: Migraines et céphalées | L17: 01M22
F18: Médico technique: urgences | G18: =IF($B$4<>"",VLOOKUP($J$1,'Coûts 11 décomposés gds postes'!$A:$AS,18,FALSE),"") -> 0.7345 | K18: Epilepsie, âge supérieur à 17 ans | L18: 01M25
B19: Coût moyen 2011 | C19: Poids dans le coût du GHM | D19: Evolution 2011/2010 | K19: Accidents vasculaires intracérébraux non transitoires | L19: 01M30
A20: activités cliniques MCO (avec hébergement, hors Réa, SI, SC) | B20: =IF($B$4<>"",VLOOKUP($J$1,'Coûts 11 décomposés gds postes'!$A:$AS,11,FALSE),"") -> 680.63 | C20: =IF($C$11<>"",B20/$C$11,"") -> 0.1717461519 | D20: =IF($B$4<>"",VLOOKUP($J$1,evolutions!$A:$N,7,FALSE),"") -> 0.1181331318 | F20: Logistique Médicale: Pharmacie | G20: =IF($B$4<>"",VLOOKUP($J$1,'Coûts 11 décomposés gds postes'!$A:$AS,27,FALSE),"") -> 43.676 | H20: =IF(B5<>"",IF(C11<>0,(G20+G21+G22)/B24,""),"") -> 0.9154221776 | K20: Anomalies de la démarche d'origine neurologique | L20: 01M34
A21: Activité de soins intensifs | B21: =IF($B$4<>"",VLOOKUP($J$1,'Coûts 11 décomposés gds postes'!A:AS,13,FALSE),"") -> 12.45 | C21: =IF($C$11<>"",B21/$C$11,"") -> 0.003141559425 | D21: =IF($B$4<>"",VLOOKUP($J$1,evolutions!$A:$N,9,FALSE),"") -> 0.4277522936 | F21: Logistique Médicale: Stérilisation | G21: =IF($B$4<>"",VLOOKUP($J$1,'Coûts 11 décomposés gds postes'!$A:$AS,28,FALSE),"") -> 74.655 | K21: Interventions sur la rétine | L21: 02C02
A22: Activité de surveillance continue | B22: =IF($B$4<>"",VLOOKUP($J$1,'Coûts 11 décomposés gds postes'!A:AS,12,FALSE),"") -> 17.45 | C22: 0.004403229876 | D22: =IF($B$4<>"",VLOOKUP($J$1,evolutions!$A:$N,8,FALSE),"") -> -0.7054852321 | F22: Logistique Médicale: Génie Biomédical | G22: =IF($B$4<>"",VLOOKUP($J$1,'Coûts 11 décomposés gds postes'!$A:$AS,29,FALSE),"") -> 3.898 | K22: Interventions sur le cristallin avec ou sans vitrectomie | L22: 02C05
A23: Activités Médico-techniques | B23: =IF($B$4<>"",VLOOKUP($J$1,'Coûts 11 décomposés gds postes'!A:AS,19,FALSE),"") -> 530.25 | C23: 0.1338001514 | D23: =IF($B$4<>"",VLOOKUP($J$1,evolutions!$A:$N,10,FALSE),"") -> 0.02309562399 | K23: Autres interventions extraoculaires, âge inférieur à 18 ans | L23: 02C07
A24: Logistique Médicale | B24: =IF($B$4<>"",VLOOKUP($J$1,'Coûts 11 décomposés gds postes'!A:AS,30,FALSE),"") -> 133.522 | C24: 0.03369215241 | D24: =IF($B$4<>"",VLOOKUP($J$1,evolutions!$A:$N,12,FALSE),"") -> -0.1224837177 | F24: Logistique générale: Blanchisserie | G24: =IF($B$4<>"",VLOOKUP($J$1,'Coûts 11 décomposés gds postes'!$A:$AS,20,FALSE),"") -> 31.967 | H24: =IF(C11<>"",IF(B25<>0,(G24+G25+G26+G27+G28+G29)/B25,""),"") -> 0.8600303093 | K24: Autres interventions extraoculaires, âge supérieur à 17 ans | L24: 02C08
A25: Logistique générale | B25: =IF($B$4<>"",VLOOKUP($J$1,'Coûts 11 décomposés gds postes'!A:AS,26,FALSE),"") -> 485 | C25: 0.1223820338 | D25: =IF($B$4<>"",VLOOKUP($J$1,evolutions!$A:$N,11,FALSE),"") -> -0.1742994314 | F25: Logistique générale: Restauration | G25: =IF($B$4<>"",VLOOKUP($J$1,'Coûts 11 décomposés gds postes'!$A:$AS,21,FALSE),"") -> 96.203 | K25: Allogreffes de cornée | L25: 02C09
A26: Charges directes | B26: =IF($B$4<>"",VLOOKUP($J$1,'Coûts 11 décomposés gds postes'!A:AS,36,FALSE),"") -> 1060.54 | C26: 0.2676103962 | D26: =IF($B$4<>"",VLOOKUP($J$1,evolutions!$A:$N,13,FALSE),"") -> 0.1632937357 | F26: Logistique générale: Accueil et gestion des malades | G26: =IF($B$4<>"",VLOOKUP($J$1,'Coûts 11 décomposés gds postes'!$A:$AS,22,FALSE),"") -> 29.6657 | K26: Autres interventions intraoculaires en dehors des affections sévères | L26: 02C11
A27: Honoraires | B27: =IF($B$4<>"",VLOOKUP($J$1,'Coûts 11 décomposés gds postes'!A:AS,42,FALSE),"") -> 1043.16 | C27: 0.2632248297 | D27: =IF($B$4<>"",VLOOKUP($J$1,evolutions!$A:$N,14,FALSE),"") -> -0.0798055803 | F27: Logistique générale: Services administratifs à caractère général | G27: =IF($B$4<>"",VLOOKUP($J$1,'Coûts 11 décomposés gds postes'!$A:$AS,23,FALSE),"") -> 157.077 | K27: Interventions sur le cristallin avec trabéculectomie | L27: 02C12
F28: Logistique générale: Entretien maintenance | G28: =IF($B$4<>"",VLOOKUP($J$1,'Coûts 11 décomposés gds postes'!$A:$AS,24,FALSE),"") -> 48.416 | K28: Interventions sur les muscles oculomoteurs, âge inférieur à 18 ans | L28: 02C13
F29: Logistique générale: Services hôteliers | G29: =IF($B$4<>"",VLOOKUP($J$1,'Coûts 11 décomposés gds postes'!$A:$AS,25,FALSE),"") -> 53.786 | K29: Autres affections oculaires d'origine non diabétique, âge supérieur à 17 ans | L29: 02M08
K30: Interventions sur les sinus et l'apophyse mastoïde, âge supérieur à 17 ans | L30: 03C07
F31: Charges directes: Autres consommables | G31: =IF($B$4<>"",VLOOKUP($J$1,'Coûts 11 décomposés gds postes'!$A:$AS,35,FALSE),"") -> 303.87 | H31: =IF(C11<>"",IF(B26<>0,(G31+G32+G33)/B26,""),"") -> 0.8709431045 | K31: Rhinoplasties | L31: 03C09
A32: Données de coûts: ENCC ex OQN 2011 | F32: Charges directes: Spécialités pharmaceutiques facturables en sus | G32: =IF($B$4<>"",VLOOKUP($J$1,'Coûts 11 décomposés gds postes'!$A:$AS,31,FALSE),"") -> 2.46 | K32: Amygdalectomies et/ou adénoïdectomies isolées, âge inférieur à 18 ans | L32: 03C10
F33: Charges directes: DMI facturables en sus | G33: =IF($B$4<>"",VLOOKUP($J$1,'Coûts 11 décomposés gds postes'!$A:$AS,33,FALSE),"") -> 617.34 | K33: Amygdalectomies et/ou adénoïdectomies isolées, âge supérieur à 17 ans | L33: 03C11
K34: Interventions sur les amygdales et les végétations adénoïdes autres que les amygdalectomies et/ou les adénoïdectomies isolées, âge inférieur à 18 ans | L34: 03C12
F35: Honoraires médicaux: Laboratoires autres | G35: =IF($B$4<>"",VLOOKUP($J$1,'Coûts 11 décomposés gds postes'!$A:$AS,37,FALSE),"") -> 51.338 | H35: =IF(C11<>"",IF(B27<>0,(G35+G36+G37+G38)/B27,""),"") -> 0.9043013536 | K35: Interventions sur les amygdales et les végétations adénoïdes autres que les amygdalectomies et/ou les adénoïdectomies isolées, âge supérieur à 17 ans | L35: 03C13
F36: Honoraires médicaux: imagerie | G36: =IF($B$4<>"",VLOOKUP($J$1,'Coûts 11 décomposés gds postes'!$A:$AS,38,FALSE),"") -> 74.02 | K36: Drains transtympaniques, âge inférieur à 18 ans | L36: 03C14
F37: Honoraires médicaux: anesthésie | G37: =IF($B$4<>"",VLOOKUP($J$1,'Coûts 11 décomposés gds postes'!$A:$AS,39,FALSE),"") -> 267.893 | K37: Drains transtympaniques, âge supérieur à 17 ans | L37: 03C15
F38: Honoraires médicaux: chirurgie | G38: =IF($B$4<>"",VLOOKUP($J$1,'Coûts 11 décomposés gds postes'!$A:$AS,40,FALSE),"") -> 550.08 | K38: Autres interventions chirurgicales portant sur les oreilles, le nez, la gorge ou le cou | L38: 03C16
K39: Interventions sur la bouche | L39: 03C17
K40: Ostéotomies de la face | L40: 03C19
K41: Interventions de reconstruction de l'oreille moyenne | L41: 03C20
K42: Interventions pour oreilles décollées | L42: 03C21
K43: Interventions sur les glandes salivaires | L43: 03C24
K44: Autres interventions sur la tête et le cou | L44: 03C26
K45: Interventions sur les amygdales, en ambulatoire | L45: 03C27
K46: Interventions sur les végétations adénoïdes, en ambulatoire | L46: 03C28
K47: Interventions sur l'oreille externe | L47: 03C30
K48: Affections de la bouche et des dents avec certaines extractions, réparations et prothèses dentaires | L48: 03K02
K49: Séjours comprenant une endoscopie oto-rhino-laryngologique, en ambulatoire | L49: 03K03
K50: Séjours comprenant certains actes non opératoires de la CMD 03, en ambulatoire | L50: 03K04
K51: Traumatismes et déformations du nez | L51: 03M02
K52: Otites moyennes et autres infections des voies aériennes supérieures, âge supérieur à 17 ans | L52: 03M04
K53: Troubles de l'équilibre | L53: 03M05
K54: Epistaxis | L54: 03M06
K55: Tumeurs malignes des oreilles, du nez, de la gorge ou de la bouche | L55: 03M07
K56: Autres diagnostics portant sur les oreilles, le nez, la gorge ou la bouche, âge supérieur à 17 ans | L56: 03M09
K57: Affections de la bouche et des dents sans certaines extractions, réparations ou prothèses dentaires, âge inférieur à 18 ans | L57: 03M10
K58: Affections de la bouche et des dents sans certaines extractions, réparations ou prothèses dentaires, âge supérieur à 17 ans | L58: 03M11
K59: Infections aigües sévères des voies aériennes supérieures, âge supérieur à 17 ans | L59: 03M13
K60: Interventions majeures sur le thorax | L60: 04C02
K61: Autres interventions chirurgicales sur le système respiratoire | L61: 04C03
K62: Interventions sous thoracoscopie | L62: 04C04
K63: Séjours comprenant une endoscopie bronchique, en ambulatoire | L63: 04K02
K64: Bronchites et asthme, âge supérieur à 17 ans | L64: 04M03
K65: Pneumonies et pleurésies banales, âge supérieur à 17 ans | L65: 04M05
K66: Infections et inflammations respiratoires, âge supérieur à 17 ans | L66: 04M07
K67: Bronchopneumopathies chroniques | L67: 04M08
K68: Tumeurs de l'appareil respiratoire | L68: 04M09
K69: Embolies pulmonaires | L69: 04M10
K70: Signes et symptômes respiratoires | L70: 04M11
K71: Pneumothorax | L71: 04M12
K72: Oedème pulmonaire et détresse respiratoire | L72: 04M13
K73: Epanchements pleuraux | L73: 04M17
K74: Bronchopneumopathies chroniques surinfectées | L74: 04M20
K75: Autres symptômes et recours aux soins de la CMD 04 | L75: 04M23
K76: Affections de la CMD 04 avec décès : séjours de moins de 2 jours | L76: 04M24
K77: Chirurgie majeure de revascularisation | L77: 05C10
K78: Autres interventions de chirurgie vasculaire | L78: 05C11
K79: Amputations pour troubles circulatoires portant sur le membre supérieur ou les orteils | L79: 05C13
K80: Poses d'un stimulateur cardiaque permanent avec infarctus aigu du myocarde ou insuffisance cardiaque congestive ou état de choc | L80: 05C14
K81: Poses d'un stimulateur cardiaque permanent sans infarctus aigu du myocarde, ni insuffisance cardiaque congestive, ni état de choc | L81: 05C15
K82: Ligatures de veines et éveinages | L82: 05C17
K83: Autres interventions sur le système circulatoire | L83: 05C18
K84: Poses d'un défibrillateur cardiaque | L84: 05C19
K85: Créations et réfections de fistules artérioveineuses pour affections de la CMD 05 | L85: 05C21
K86: Remplacements de stimulateurs cardiaques permanents | L86: 05C22
K87: Endoprothèses vasculaires avec infarctus du myocarde | L87: 05K05
K88: Endoprothèses vasculaires sans infarctus du myocarde | L88: 05K06
K89: Actes diagnostiques par voie vasculaire | L89: 05K10
K90: Mise en place de certains accès vasculaires pour des affections de la CMD 05, séjours de moins de 2 jours | L90: 05K14
K91: Affections cardiovasculaires sans acte opératoire de la CMD 05, avec anesthésie, en ambulatoire | L91: 05K17
K92: Traitements majeurs de troubles du rythme par voie vasculaire | L92: 05K19
K93: Autres traitements de troubles du rythme par voie vasculaire | L93: 05K20
K94: Ablations, repositionnements et poses de sondes cardiaques supplémentaires par voie vasculaire, âge supérieur à 17 ans | L94: 05K23
K95: Dilatations coronaires et autres actes thérapeutiques sur le coeur par voie vasculaire, âge supérieur à 17 ans | L95: 05K24
K96: Actes thérapeutiques sur les artères par voie vasculaire, âge supérieur à 17 ans | L96: 05K25
K97: Actes thérapeutiques sur les accès vasculaires ou les veines par voie vasculaire, âge supérieur à 17 ans | L97: 05K26
K98: Infarctus aigu du myocarde | L98: 05M04
K99: Syncopes et lipothymies | L99: 05M05
K100: Angine de poitrine | L100: 05M06
K101: Thrombophlébites veineuses profondes | L101: 05M07
K102: Arythmies et troubles de la conduction cardiaque | L102: 05M08
K103: Insuffisances cardiaques et états de choc circulatoire | L103: 05M09
K104: Troubles vasculaires périphériques | L104: 05M12
K105: Douleurs thoraciques | L105: 05M13
K106: Hypertension artérielle | L106: 05M15
K107: Athérosclérose coronarienne | L107: 05M16
K108: Autres affections de l'appareil circulatoire | L108: 05M17
K109: Symptômes et autres recours aux soins de la CMD 05 | L109: 05M23
K110: Résections rectales | L110: 06C03
K111: Interventions majeures sur l'intestin grêle et le côlon | L111: 06C04
K112: Interventions mineures sur l'intestin grêle et le côlon | L112: 06C07
K113: Appendicectomies compliquées | L113: 06C08
K114: Appendicectomies non compliquées | L114: 06C09
K115: Interventions réparatrices pour hernies et éventrations, âge inférieur à 18 ans | L115: 06C10
K116: Interventions réparatrices pour hernies inguinales et crurales, âge supérieur à 17 ans | L116: 06C12
K117: Libérations d'adhérences péritonéales | L117: 06C13
K118: Interventions sur le rectum et l'anus autres que les résections rectales | L118: 06C14
K119: Autres interventions sur le tube digestif en dehors des laparotomies | L119: 06C15
K120: Interventions sur l'oesophage, l'estomac et le duodénum pour tumeurs malignes, âge supérieur à 17 ans | L120: 06C16
K121: Hémorroïdectomies | L121: 06C19
K122: Interventions sur l'oesophage, l'estomac et le duodénum pour affections autres que malignes ou ulcères, âge supérieur à 17 ans | L122: 06C22
K123: Cures d'éventrations postopératoires, âge supérieur à 17 ans | L123: 06C24
K124: Interventions réparatrices pour hernies à l'exception des hernies inguinales, crurales, âge supérieur à 17 ans | L124: 06C25
K125: Endoscopies digestives thérapeutiques et anesthésie : séjours de moins de 2 jours | L125: 06K02
K126: Séjours comprenant une endoscopie digestive thérapeutique sans anesthésie, en ambulatoire | L126: 06K03
K127: Endoscopie digestive diagnostique et anesthésie, en ambulatoire | L127: 06K04
K128: Séjours comprenant une endoscopie digestive diagnostique sans anesthésie, en ambulatoire | L128: 06K05
K129: Affections digestives sans acte opératoire de la CMD 06, avec anesthésie, en ambulatoire | L129: 06K06
K130: Autres gastroentérites et maladies diverses du tube digestif, âge supérieur à 17 ans | L130: 06M03
K131: Hémorragies digestives | L131: 06M04
K132: Autres tumeurs malignes du tube digestif | L132: 06M05
K133: Occlusions intestinales non dues à une hernie | L133: 06M06
K134: Maladies inflammatoires de l'intestin | L134: 06M07
K135: Autres affections digestives, âge inférieur à 18 ans | L135: 06M08
K136: Autres affections digestives, âge supérieur à 17 ans | L136: 06M09
K137: Ulcères gastroduodénaux non compliqués | L137: 06M11
K138: Douleurs abdominales | L138: 06M12
K139: Tumeurs malignes de l'oesophage et de l'estomac | L139: 06M13
K140: Explorations et surveillance pour affections de l'appareil digestif | L140: 06M16
K141: Soins de stomies digestives | L141: 06M17
K142: Symptômes et autres recours aux soins de la CMD 06 | L142: 06M18
K143: Affections sévères du tube digestif | L143: 06M19
K144: Tumeurs bénignes de l'appareil digestif | L144: 06M20
K145: Interventions sur le foie, le pancréas et les veines porte ou cave pour tumeurs malignes | L145: 07C09
K146: Interventions sur le foie, le pancréas et les veines porte ou cave pour affections non malignes | L146: 07C10
K147: Autres interventions sur les voies biliaires sauf cholécystectomies isolées | L147: 07C12
K148: Cholécystectomies sans exploration de la voie biliaire principale pour affections aigües | L148: 07C13
K149: Cholécystectomies sans exploration de la voie biliaire principale à l'exception des affections aigües | L149: 07C14
K150: Endoscopies biliaires thérapeutiques et anesthésie : séjours de moins de 2 jours | L150: 07K02
K151: Endoscopie biliaire diagnostique et anesthésie, en ambulatoire | L151: 07K04
K152: Affections des voies biliaires | L152: 07M02
K153: Autres affections hépatiques | L153: 07M04
K154: Affections malignes du système hépato-biliaire ou du pancréas | L154: 07M06
K155: Cirrhoses alcooliques | L155: 07M07
K156: Autres cirrhoses et fibrose hépatique | L156: 07M08
K157: Pancréatites aigües | L157: 07M10
K158: Autres affections non malignes du pancréas | L158: 07M11
K159: Symptômes et autres recours aux soins de la CMD 07 | L159: 07M14
K160: Résections osseuses localisées et/ou ablation de matériel de fixation interne au niveau de la hanche et du fémur | L160: 08C13
K161: Résections osseuses localisées et/ou ablation de matériel de fixation interne au niveau d'une localisation autre que la hanche et le fémur | L161: 08C14
K162: Greffes de peau pour maladie de l'appareil musculosquelettique ou du tissu conjonctif | L162: 08C20
K163: Autres interventions portant sur l'appareil musculosquelettique et le tissu conjonctif | L163: 08C21
K164: Interventions pour reprise de prothèses articulaires | L164: 08C22
K165: Prothèses de genou | L165: 08C24
K166: Prothèses d'épaule | L166: 08C25
K167: Autres interventions sur le rachis | L167: 08C27
K168: Interventions sur la jambe, âge inférieur à 18 ans | L168: 08C31
K169: Interventions sur la jambe, âge supérieur à 17 ans | L169: 08C32
K170: Interventions sur la cheville et l'arrière-pied à l'exception des fractures | L170: 08C33
K171: Interventions sur les ligaments croisés sous arthroscopie | L171: 08C34
K172: Interventions sur le bras, coude et épaule | L172: 08C35
K173: Interventions sur le pied, âge inférieur à 18 ans | L173: 08C36
K174: Interventions sur le pied, âge supérieur à 17 ans | L174: 08C37
K175: Autres arthroscopies du genou | L175: 08C38
K176: Interventions sur l'avant-bras | L176: 08C39
K177: Arthroscopies d'autres localisations | L177: 08C40
K178: Interventions non mineures sur les tissus mous | L178: 08C42
K179: Interventions non mineures sur la main | L179: 08C43
K180: Autres interventions sur la main | L180: 08C44
K181: Ménisectomie sous arthroscopie | L181: 08C45
K182: Autres interventions sur les tissus mous | L182: 08C46
K183: Prothèses de hanche pour traumatismes récents | L183: 08C47
K184: Prothèses de hanche pour des affections autres que des traumatismes récents | L184: 08C48
K185: Interventions sur la hanche et le fémur pour traumatismes récents, âge supérieur à 17 ans | L185: 08C49
K186: Interventions sur la hanche et le fémur sauf traumatismes récents, âge supérieur à 17 ans | L186: 08C50
K187: Autres interventions majeures sur le rachis | L187: 08C52
K188: Interventions sur le genou pour traumatismes | L188: 08C53
K189: Interventions sur le genou pour des affections autres que traumatiques | L189: 08C54
K190: Interventions pour infections ostéoarticulaires | L190: 08C56
K191: Libérations articulaires du membre inférieur à l'exception de la hanche et du pied | L191: 08C57
K192: Arthroscopies de l'épaule | L192: 08C58
K193: Ténosynovectomies du poignet | L193: 08C59
K194: Interventions sur le poignet autres que les ténosynovectomies | L194: 08C60
K195: Affections de l'appareil musculosquelettique sans acte opératoire de la CMD 08, avec anesthésie, en ambulatoire | L195: 08K02
K196: Fractures de la hanche et du bassin | L196: 08M04
K197: Fractures, entorses, luxations et dislocations de la jambe, âge supérieur à 17 ans | L197: 08M07
K198: Maladies osseuses et arthropathies spécifiques | L198: 08M10
K199: Affections du tissu conjonctif | L199: 08M14
K200: Tendinites, myosites et bursites | L200: 08M15
... 177 more rows

Sheet synthèse GHM (hidden)
A1: Fiche de synthèse GHM | K1: 01C051 | L1: Interventions sur le rachis et la moelle pour des affections neurologiques, niveau 1
K2: 01C052 | L2: Interventions sur le rachis et la moelle pour des affections neurologiques, niveau 2
A3: Identification du GHM | K3: 01C061 | L3: Interventions sur le système vasculaire précérébral, niveau 1
A4: GHM | B4: 01C051 | K4: 01C062 | L4: Interventions sur le système vasculaire précérébral, niveau 2
A5: Libellé | B5: =IF(B4<>"",VLOOKUP(B4,K:L,2,FALSE),"") -> Interventions sur le rachis et la moelle pour des affections neurologiques, niveau 1 | K5: 01C081 | L5: Interventions sur les nerfs crâniens ou périphériques et autres interventions sur le système nerveux, niveau 1
K6: 01C08J | L6: Interventions sur les nerfs crâniens ou périphériques et autres interventions sur le système nerveux, en ambulatoire
C7: 2011 | D7: 2010 | E7: Evolution | H7: Part des postes détaillés dans chaque sous poste | K7: 01C101 | L7: Pose d'un stimulateur médullaire, niveau 1
A8: Coût moyen du séjour | C8: =IF($B$4<>"",VLOOKUP($B$4,'Coûts décomposés'!A:E,5,FALSE),"") -> 3769.64 | D8: =IF($B$4<>"",IF(ISNA(VLOOKUP($B$4,'Coûts 10 décomposés gds postes'!E:M,9,FALSE)),"NC",VLOOKUP($B$4,'Coûts 10 décomposés gds postes'!E:M,9,FALSE)),"") -> 3686.76 | E8: =IF(B4<>"",VLOOKUP($B$4,evolutions!$E:$N,2,FALSE),"") -> 0.02248044353 | K8: 01C141 | L8: Libérations de nerfs superficiels à l'exception du médian au canal carpien, niveau 1
H9: Part des postes détaillés dans chaque sous poste | K9: 01C14J | L9: Libérations de nerfs superficiels à l'exception du médian au canal carpien, en ambulatoire
A10: Nombre de séjours ENCC | C10: =IF($B$4<>"",VLOOKUP($B$4,'Coûts décomposés'!A:E,4,FALSE),"") -> 263 | D10: =IF($B$4<>"",IF(ISNA(VLOOKUP($B$4,'Coûts 10 décomposés gds postes'!E:M,4,FALSE)),"NC",VLOOKUP($B$4,'Coûts 10 décomposés gds postes'!E:M,4,FALSE)),"") -> 768 | E10: =IF($B$4<>"",IF(D10<>"",IF(D10<>"NC",IF(C10<>"",C10/D10-1,""),""),""),"") -> -0.6575520833 | G10: Coût moyen | K10: 01C151 | L10: Libérations du médian au canal carpien, niveau 1
K11: 01C15J | L11: Libérations du médian au canal carpien, en ambulatoire
A12: Intervalle de confiance | B12: Borne Basse | C12: =IF($B$4<>"",VLOOKUP($B$4,'Intervalle de confiance'!A:M,12,FALSE),"") -> 2968.8 | D12: =IF($B$4<>"",IF(ISNA(VLOOKUP($B$4,'Coûts 10 décomposés gds postes'!E:M,7,FALSE)),"NC",VLOOKUP($B$4,'Coûts 10 décomposés gds postes'!E:M,7,FALSE)),"") -> 3182.88 | K12: 01K04J | L12: Injections de toxine botulique, en ambulatoire
B13: Borne Haute | C13: =IF($B$4<>"",VLOOKUP($B$4,'Intervalle de confiance'!A:M,13,FALSE),"") -> 4570.49 | D13: =IF($B$4<>"",IF(ISNA(VLOOKUP($B$4,'Coûts 10 décomposés gds postes'!E:M,8,FALSE)),"NC",VLOOKUP($B$4,'Coûts 10 décomposés gds postes'!E:M,8,FALSE)),"") -> 4190.64 | K13: 01K05J | L13: Séjours pour douleurs chroniques rebelles comprenant un bloc ou une infiltration, en ambulatoire
F14: Cliniques: Personnel soignant | G14: =IF($B$4<>"",VLOOKUP($B$4,'Coûts décomposés'!$A:$DP,10,FALSE),"") -> 507.21 | H14: =IF(C10<>"",IF(B23<>0,(G14+G15)/B23,""),"") -> 0.9801289509 | K14: 01K06J | L14: Affections du système nerveux sans acte opératoire avec anesthésie, en ambulatoire
F15: Cliniques: Personnel autre | G15: =IF($B$4<>"",VLOOKUP($B$4,'Coûts décomposés'!$A:$DP,8,FALSE),"") -> 99.333 | K15: 01M081 | L15: Maladies dégénératives du système nerveux, âge inférieur à 80 ans, niveau 1
K16: 01M111 | L16: Affections des nerfs crâniens et rachidiens, niveau 1
K17: 01M11T | L17: Affections des nerfs crâniens et rachidiens, très courte durée
F18: Soins intensifs: Personnel soignant | G18: =IF($B$4<>"",VLOOKUP($B$4,'Coûts décomposés'!$A:$DP,21,FALSE),"") -> 9.01 | H18: =IF(C10<>"",IF(B24<>0,(G18+G19)/B24,""),"") -> 0.9926188069 | K18: 01M15T | L18: Accidents ischémiques transitoires et occlusions des artères précérébrales, âge supérieur à 79 ans, très courte durée
F19: Soins intensifs: Personnel autre | G19: =IF($B$4<>"",VLOOKUP($B$4,'Coûts décomposés'!$A:$DP,20,FALSE),"") -> 0.807 | K19: 01M161 | L19: Accidents ischémiques transitoires et occlusions des artères précérébrales, âge inférieur à 80 ans, niveau 1
K20: 01M16T | L20: Accidents ischémiques transitoires et occlusions des artères précérébrales, âge inférieur à 80 ans, très courte durée
F21: Surveillance continue: Personnel soignant | G21: =IF($B$4<>"",VLOOKUP($B$4,'Coûts décomposés'!$A:$DP,16,FALSE),"") -> 9.55 | H21: =IF(C10<>"",IF(B25<>0,(G21+G22)/B25,""),"") -> 0.9800371402 | K21: 01M171 | L21: Sclérose en plaques et ataxie cérébelleuse, niveau 1
B22: Coût moyen 2011 | C22: Poids dans le coût du GHM | D22: Evolution 2011/2010 | F22: Surveillance continue: Personnel autre | G22: =IF($B$4<>"",VLOOKUP($B$4,'Coûts décomposés'!$A:$DP,14,FALSE),"") -> 1.005 | K22: 01M211 | L22: Douleurs chroniques rebelles, niveau 1
A23: Activités cliniques MCO (avec hébergement, hors Réa, SI, SC) | B23: =IF($B$4<>"",VLOOKUP($B$4,'Coûts décomposés'!$A:$DP,11,FALSE),"") -> 618.84 | C23: =IF($C$10<>"",B23/$C$8,"") -> 0.1641642173 | D23: =IF($B$4<>"",VLOOKUP($B$4,evolutions!$E:$N,3,FALSE),"") -> 0.1729562729 | K23: 01M21T | L23: Douleurs chroniques rebelles, très courte durée
A24: Activité de soins intensifs | B24: =IF($B$4<>"",VLOOKUP($B$4,'Coûts décomposés'!$A:$DP,22,FALSE),"") -> 9.89 | C24: =IF($C$10<>"",B24/$C$8,"") -> 0.002623592704 | D24: =IF($B$4<>"",VLOOKUP($B$4,evolutions!$E:$N,5,FALSE),"") -> 0.7724014337 | F24: Médico technique: anesthésie | G24: =IF($B$4<>"",VLOOKUP($B$4,'Coûts décomposés'!$A:$DP,29,FALSE),"") -> 80.861 | H24: =IF(C10<>"",IF(B26<>0,(G24+G25+G26)/B26,""),"") -> 0.9930332131 | K24: 01M221 | L24: Migraines et céphalées, niveau 1
A25: Activité de surveillance continue | B25: =IF($B$4<>"",VLOOKUP($B$4,'Coûts décomposés'!$A:$DP,17,FALSE),"") -> 10.77 | C25: 0.002857036746 | D25: =IF($B$4<>"",VLOOKUP($B$4,evolutions!$E:$N,4,FALSE),"") -> -0.6102062975 | F25: Médico technique: bloc | G25: =IF($B$4<>"",VLOOKUP($B$4,'Coûts décomposés'!$A:$DP,35,FALSE),"") -> 441.82 | K25: 01M22T | L25: Migraines et céphalées, très courte durée
A26: Activités Médico-techniques | B26: =IF($B$4<>"",VLOOKUP($B$4,'Coûts décomposés'!$A:$DP,78,FALSE),"") -> 526.9 | C26: 0.1397746204 | D26: =IF($B$4<>"",VLOOKUP($B$4,evolutions!$E:$N,6,FALSE),"") -> 0.05403188702 | F26: Médico technique: urgences | G26: =IF($B$4<>"",VLOOKUP($B$4,'Coûts décomposés'!$A:$DP,73,FALSE),"") -> 0.5482 | K26: 01M25T | L26: Epilepsie, âge supérieur à 17 ans, très courte durée
A27: Logistique Médicale | B27: =IF($B$4<>"",VLOOKUP($B$4,'Coûts décomposés'!$A:$DP,96,FALSE),"") -> 132.168 | C27: 0.03506117295 | D27: =IF($B$4<>"",VLOOKUP($B$4,evolutions!$E:$N,8,FALSE),"") -> -0.08433501223 | K27: 01M301 | L27: Accidents vasculaires intracérébraux non transitoires, niveau 1
A28: Logistique générale | B28: =IF($B$4<>"",VLOOKUP($B$4,'Coûts décomposés'!$A:$DP,90,FALSE),"") -> 441.74 | C28: 0.1171836037 | D28: =IF($B$4<>"",VLOOKUP($B$4,evolutions!$E:$N,7,FALSE),"") -> -0.1343693049 | F28: Logistique générale: Blanchisserie | G28: =IF($B$4<>"",VLOOKUP($B$4,'Coûts décomposés'!$A:$DP,79,FALSE),"") -> 28.568 | H28: =IF(C10<>"",IF(B28<>0,(G28+G29)/B28,""),"") -> 0.2640150315 | K28: 01M302 | L28: Accidents vasculaires intracérébraux non transitoires, niveau 2
A29: Charges directes | B29: =IF($B$4<>"",VLOOKUP($B$4,'Coûts décomposés'!$A:$DP,107,FALSE),"") -> 1043.62 | C29: 0.2768487176 | D29: =IF($B$4<>"",VLOOKUP($B$4,evolutions!$E:$N,9,FALSE),"") -> 0.1783661717 | F29: Logistique générale: Restauration | G29: =IF($B$4<>"",VLOOKUP($B$4,'Coûts décomposés'!$A:$DP,80,FALSE),"") -> 88.058 | K29: 01M34Z | L29: Anomalies de la démarche d'origine neurologique
A30: Honoraires | B30: =IF($B$4<>"",VLOOKUP($B$4,'Coûts décomposés'!$A:$DP,117,FALSE),"") -> 985.71 | C30: 0.261486508 | D30: =IF($B$4<>"",VLOOKUP($B$4,evolutions!$E:$N,10,FALSE),"") -> -0.07490239507 | K30: 02C021 | L30: Interventions sur la rétine, niveau 1
F31: Charges directes: Spécialités pharmaceutiques facturables en sus | G31: =IF($B$4<>"",VLOOKUP($B$4,'Coûts décomposés'!$A:$DP,97,FALSE),"") -> 3.19 | H31: =IF(C10<>"",IF(B29<>0,(G31+G32)/B29,""),"") -> 0.5936356145 | K31: 02C02J | L31: Interventions sur la rétine, en ambulatoire
F32: Charges directes: DMI facturables en sus | G32: =IF($B$4<>"",VLOOKUP($B$4,'Coûts décomposés'!$A:$DP,100,FALSE),"") -> 616.34 | K32: 02C051 | L32: Interventions sur le cristallin avec ou sans vitrectomie, niveau 1
K33: 02C05J | L33: Interventions sur le cristallin avec ou sans vitrectomie, en ambulatoire
F34: Honoraires médicaux: Laboratoires autres | G34: =IF($B$4<>"",VLOOKUP($B$4,'Coûts décomposés'!$A:$DP,109,FALSE),"") -> 43.406 | H34: =IF(C10<>"",IF(B30<>0,(G34+G35+G36+G37)/B30,""),"") -> 0.9127999107 | K34: 02C07J | L34: Autres interventions extraoculaires, âge inférieur à 18 ans, en ambulatoire
F35: Honoraires médicaux: imagerie | G35: =IF($B$4<>"",VLOOKUP($B$4,'Coûts décomposés'!$A:$DP,110,FALSE),"") -> 72.54 | K35: 02C081 | L35: Autres interventions extraoculaires, âge supérieur à 17 ans, niveau 1
A36: Données de coûts: ENCC ex OQN 2011 | F36: Honoraires médicaux: anesthésie | G36: =IF($B$4<>"",VLOOKUP($B$4,'Coûts décomposés'!$A:$DP,111,FALSE),"") -> 258.83 | K36: 02C08J | L36: Autres interventions extraoculaires, âge supérieur à 17 ans, en ambulatoire
F37: Honoraires médicaux: chirurgie | G37: =IF($B$4<>"",VLOOKUP($B$4,'Coûts décomposés'!$A:$DP,113,FALSE),"") -> 524.98 | K37: 02C091 | L37: Allogreffes de cornée, niveau 1
K38: 02C111 | L38: Autres interventions intraoculaires en dehors des affections sévères, niveau 1
K39: 02C11J | L39: Autres interventions intraoculaires en dehors des affections sévères, en ambulatoire
K40: 02C121 | L40: Interventions sur le cristallin avec trabéculectomie, niveau 1
K41: 02C12J | L41: Interventions sur le cristallin avec trabéculectomie, en ambulatoire
K42: 02C131 | L42: Interventions sur les muscles oculomoteurs, âge inférieur à 18 ans, niveau 1
K43: 02M081 | L43: Autres affections oculaires d'origine non diabétique, âge supérieur à 17 ans, niveau 1
K44: 02M08T | L44: Autres affections oculaires d'origine non diabétique, âge supérieur à 17 ans, très courte durée
K45: 03C071 | L45: Interventions sur les sinus et l'apophyse mastoïde, âge supérieur à 17 ans, niveau 1
K46: 03C072 | L46: Interventions sur les sinus et l'apophyse mastoïde, âge supérieur à 17 ans, niveau 2
K47: 03C07J | L47: Interventions sur les sinus et l'apophyse mastoïde, âge supérieur à 17 ans, en ambulatoire
K48: 03C091 | L48: Rhinoplasties, niveau 1
K49: 03C09J | L49: Rhinoplasties, en ambulatoire
K50: 03C101 | L50: Amygdalectomies et/ou adénoïdectomies isolées, âge inférieur à 18 ans, niveau 1
K51: 03C111 | L51: Amygdalectomies et/ou adénoïdectomies isolées, âge supérieur à 17 ans, niveau 1
K52: 03C121 | L52: Interventions sur les amygdales et les végétations adénoïdes autres que les amygdalectomies et/ou les adénoïdectomies isolées, âge inférieur à 18 ans, niveau 1
K53: 03C131 | L53: Interventions sur les amygdales et les végétations adénoïdes autres que les amygdalectomies et/ou les adénoïdectomies isolées, âge supérieur à 17 ans, niveau 1
K54: 03C14J | L54: Drains transtympaniques, âge inférieur à 18 ans, en ambulatoire
K55: 03C15J | L55: Drains transtympaniques, âge supérieur à 17 ans, en ambulatoire
K56: 03C161 | L56: Autres interventions chirurgicales portant sur les oreilles, le nez, la gorge ou le cou, niveau 1
K57: 03C16J | L57: Autres interventions chirurgicales portant sur les oreilles, le nez, la gorge ou le cou, en ambulatoire
K58: 03C171 | L58: Interventions sur la bouche, niveau 1
K59: 03C17J | L59: Interventions sur la bouche, en ambulatoire
K60: 03C191 | L60: Ostéotomies de la face, niveau 1
K61: 03C19J | L61: Ostéotomies de la face, en ambulatoire
K62: 03C201 | L62: Interventions de reconstruction de l'oreille moyenne, niveau 1
K63: 03C20J | L63: Interventions de reconstruction de l'oreille moyenne, en ambulatoire
K64: 03C211 | L64: Interventions pour oreilles décollées, niveau 1
K65: 03C21J | L65: Interventions pour oreilles décollées, en ambulatoire
K66: 03C241 | L66: Interventions sur les glandes salivaires, niveau 1
K67: 03C24J | L67: Interventions sur les glandes salivaires, en ambulatoire
K68: 03C261 | L68: Autres interventions sur la tête et le cou, niveau 1
K69: 03C27J | L69: Interventions sur les amygdales, en ambulatoire
K70: 03C28J | L70: Interventions sur les végétations adénoïdes, en ambulatoire
K71: 03C30J | L71: Interventions sur l'oreille externe, en ambulatoire
K72: 03K021 | L72: Affections de la bouche et des dents avec certaines extractions, réparations et prothèses dentaires, niveau 1
K73: 03K02J | L73: Affections de la bouche et des dents avec certaines extractions, réparations et prothèses dentaires, en ambulatoire
K74: 03K03J | L74: Séjours comprenant une endoscopie oto-rhino-laryngologique, en ambulatoire
K75: 03K04J | L75: Séjours comprenant certains actes non opératoires de la CMD 03, en ambulatoire
K76: 03M021 | L76: Traumatismes et déformations du nez, niveau 1
K77: 03M02T | L77: Traumatismes et déformations du nez, très courte durée
K78: 03M04T | L78: Otites moyennes et autres infections des voies aériennes supérieures, âge supérieur à 17 ans, très courte durée
K79: 03M051 | L79: Troubles de l'équilibre, niveau 1
K80: 03M05T | L80: Troubles de l'équilibre, très courte durée
K81: 03M061 | L81: Epistaxis, niveau 1
K82: 03M06T | L82: Epistaxis, très courte durée
K83: 03M071 | L83: Tumeurs malignes des oreilles, du nez, de la gorge ou de la bouche, niveau 1
K84: 03M091 | L84: Autres diagnostics portant sur les oreilles, le nez, la gorge ou la bouche, âge supérieur à 17 ans, niveau 1
K85: 03M09T | L85: Autres diagnostics portant sur les oreilles, le nez, la gorge ou la bouche, âge supérieur à 17 ans, très courte durée
K86: 03M10T | L86: Affections de la bouche et des dents sans certaines extractions, réparations ou prothèses dentaires, âge inférieur à 18 ans, très courte durée
K87: 03M111 | L87: Affections de la bouche et des dents sans certaines extractions, réparations ou prothèses dentaires, âge supérieur à 17 ans, niveau 1
K88: 03M11T | L88: Affections de la bouche et des dents sans certaines extractions, réparations ou prothèses dentaires, âge supérieur à 17 ans, très courte durée
K89: 03M131 | L89: Infections aigües sévères des voies aériennes supérieures, âge supérieur à 17 ans, niveau 1
K90: 04C021 | L90: Interventions majeures sur le thorax, niveau 1
K91: 04C022 | L91: Interventions majeures sur le thorax, niveau 2
K92: 04C023 | L92: Interventions majeures sur le thorax, niveau 3
K93: 04C024 | L93: Interventions majeures sur le thorax, niveau 4
K94: 04C031 | L94: Autres interventions chirurgicales sur le système respiratoire, niveau 1
K95: 04C041 | L95: Interventions sous thoracoscopie, niveau 1
K96: 04C042 | L96: Interventions sous thoracoscopie, niveau 2
K97: 04K02J | L97: Séjours comprenant une endoscopie bronchique, en ambulatoire
K98: 04M031 | L98: Bronchites et asthme, âge supérieur à 17 ans, niveau 1
K99: 04M032 | L99: Bronchites et asthme, âge supérieur à 17 ans, niveau 2
K100: 04M033 | L100: Bronchites et asthme, âge supérieur à 17 ans, niveau 3
K101: 04M03T | L101: Bronchites et asthme, âge supérieur à 17 ans, très courte durée
K102: 04M051 | L102: Pneumonies et pleurésies banales, âge supérieur à 17 ans, niveau 1
K103: 04M052 | L103: Pneumonies et pleurésies banales, âge supérieur à 17 ans, niveau 2
K104: 04M053 | L104: Pneumonies et pleurésies banales, âge supérieur à 17 ans, niveau 3
K105: 04M05T | L105: Transferts et autres séjours pour pneumonies et pleurésies banales, âge supérieur à 17 ans
K106: 04M071 | L106: Infections et inflammations respiratoires, âge supérieur à 17 ans, niveau 1
K107: 04M072 | L107: Infections et inflammations respiratoires, âge supérieur à 17 ans, niveau 2
K108: 04M081 | L108: Bronchopneumopathies chroniques, niveau 1
K109: 04M082 | L109: Bronchopneumopathies chroniques, niveau 2
K110: 04M083 | L110: Bronchopneumopathies chroniques, niveau 3
K111: 04M08T | L111: Bronchopneumopathies chroniques, très courte durée
K112: 04M091 | L112: Tumeurs de l'appareil respiratoire, niveau 1
K113: 04M092 | L113: Tumeurs de l'appareil respiratoire, niveau 2
K114: 04M093 | L114: Tumeurs de l'appareil respiratoire, niveau 3
K115: 04M09T | L115: Tumeurs de l'appareil respiratoire, très courte durée
K116: 04M101 | L116: Embolies pulmonaires, niveau 1
K117: 04M102 | L117: Embolies pulmonaires, niveau 2
K118: 04M103 | L118: Embolies pulmonaires, niveau 3
K119: 04M111 | L119: Signes et symptômes respiratoires, niveau 1
K120: 04M112 | L120: Signes et symptômes respiratoires, niveau 2
K121: 04M121 | L121: Pneumothorax, niveau 1
K122: 04M131 | L122: Oedème pulmonaire et détresse respiratoire, niveau 1
K123: 04M132 | L123: Oedème pulmonaire et détresse respiratoire, niveau 2
K124: 04M133 | L124: Oedème pulmonaire et détresse respiratoire, niveau 3
K125: 04M171 | L125: Epanchements pleuraux, niveau 1
K126: 04M172 | L126: Epanchements pleuraux, niveau 2
K127: 04M173 | L127: Epanchements pleuraux, niveau 3
K128: 04M201 | L128: Bronchopneumopathies chroniques surinfectées, niveau 1
K129: 04M202 | L129: Bronchopneumopathies chroniques surinfectées, niveau 2
K130: 04M203 | L130: Bronchopneumopathies chroniques surinfectées, niveau 3
K131: 04M23Z | L131: Autres symptômes et recours aux soins de la CMD 04
K132: 04M24E | L132: Affections de la CMD 04 avec décès : séjours de moins de 2 jours
K133: 05C101 | L133: Chirurgie majeure de revascularisation, niveau 1
K134: 05C102 | L134: Chirurgie majeure de revascularisation, niveau 2
K135: 05C103 | L135: Chirurgie majeure de revascularisation, niveau 3
K136: 05C104 | L136: Chirurgie majeure de revascularisation, niveau 4
K137: 05C111 | L137: Autres interventions de chirurgie vasculaire, niveau 1
K138: 05C112 | L138: Autres interventions de chirurgie vasculaire, niveau 2
K139: 05C113 | L139: Autres interventions de chirurgie vasculaire, niveau 3
K140: 05C131 | L140: Amputations pour troubles circulatoires portant sur le membre supérieur ou les orteils, niveau 1
K141: 05C141 | L141: Poses d'un stimulateur cardiaque permanent avec infarctus aigu du myocarde ou insuffisance cardiaque congestive ou état de choc, niveau 1
K142: 05C142 | L142: Poses d'un stimulateur cardiaque permanent avec infarctus aigu du myocarde ou insuffisance cardiaque congestive ou état de choc, niveau 2
K143: 05C151 | L143: Poses d'un stimulateur cardiaque permanent sans infarctus aigu du myocarde, ni insuffisance cardiaque congestive, ni état de choc, niveau 1
K144: 05C152 | L144: Poses d'un stimulateur cardiaque permanent sans infarctus aigu du myocarde, ni insuffisance cardiaque congestive, ni état de choc, niveau 2
K145: 05C171 | L145: Ligatures de veines et éveinages, niveau 1
K146: 05C17J | L146: Ligatures de veines et éveinages, en ambulatoire
K147: 05C181 | L147: Autres interventions sur le système circulatoire, niveau 1
K148: 05C18J | L148: Autres interventions sur le système circulatoire, en ambulatoire
K149: 05C191 | L149: Poses d'un défibrillateur cardiaque, niveau 1
K150: 05C211 | L150: Créations et réfections de fistules artérioveineuses pour affections de la CMD 05, niveau 1
K151: 05C21J | L151: Créations et réfections de fistules artérioveineuses pour affections de la CMD 05, en ambulatoire
K152: 05C221 | L152: Remplacements de stimulateurs cardiaques permanents, niveau 1
K153: 05C22T | L153: Remplacements de stimulateurs cardiaques permanents, très courte durée
K154: 05K051 | L154: Endoprothèses vasculaires avec infarctus du myocarde, niveau 1
K155: 05K052 | L155: Endoprothèses vasculaires avec infarctus du myocarde, niveau 2
K156: 05K061 | L156: Endoprothèses vasculaires sans infarctus du myocarde, niveau 1
K157: 05K062 | L157: Endoprothèses vasculaires sans infarctus du myocarde, niveau 2
K158: 05K063 | L158: Endoprothèses vasculaires sans infarctus du myocarde, niveau 3
K159: 05K06T | L159: Endoprothèses vasculaires sans infarctus du myocarde, très courte durée
K160: 05K101 | L160: Actes diagnostiques par voie vasculaire, niveau 1
K161: 05K102 | L161: Actes diagnostiques par voie vasculaire, niveau 2
K162: 05K103 | L162: Actes diagnostiques par voie vasculaire, niveau 3
K163: 05K10J | L163: Actes diagnostiques par voie vasculaire, en ambulatoire
K164: 05K14Z | L164: Mise en place de certains accès vasculaires pour des affections de la CMD 05, séjours de moins de 2 jours
K165: 05K17J | L165: Affections cardiovasculaires sans acte opératoire de la CMD 05, avec anesthésie, en ambulatoire
K166: 05K191 | L166: Traitements majeurs de troubles du rythme par voie vasculaire, niveau 1
K167: 05K201 | L167: Autres traitements de troubles du rythme par voie vasculaire, niveau 1
K168: 05K231 | L168: Ablations, repositionnements et poses de sondes cardiaques supplémentaires par voie vasculaire, âge supérieur à 17 ans, niveau 1
K169: 05K241 | L169: Dilatations coronaires et autres actes thérapeutiques sur le coeur par voie vasculaire, âge supérieur à 17 ans, niveau 1
K170: 05K251 | L170: Actes thérapeutiques sur les artères par voie vasculaire, âge supérieur à 17 ans, niveau 1
K171: 05K261 | L171: Actes thérapeutiques sur les accès vasculaires ou les veines par voie vasculaire, âge supérieur à 17 ans, niveau 1
K172: 05K26J | L172: Actes thérapeutiques sur les accès vasculaires ou les veines par voie vasculaire, âge supérieur à 17 ans, en ambulatoire
K173: 05M041 | L173: Infarctus aigu du myocarde, niveau 1
K174: 05M042 | L174: Infarctus aigu du myocarde, niveau 2
K175: 05M051 | L175: Syncopes et lipothymies, niveau 1
K176: 05M052 | L176: Syncopes et lipothymies, niveau 2
K177: 05M05T | L177: Syncopes et lipothymies, très courte durée
K178: 05M061 | L178: Angine de poitrine, niveau 1
K179: 05M062 | L179: Angine de poitrine, niveau 2
K180: 05M071 | L180: Thrombophlébites veineuses profondes, niveau 1
K181: 05M072 | L181: Thrombophlébites veineuses profondes, niveau 2
K182: 05M073 | L182: Thrombophlébites veineuses profondes, niveau 3
K183: 05M081 | L183: Arythmies et troubles de la conduction cardiaque, niveau 1
K184: 05M082 | L184: Arythmies et troubles de la conduction cardiaque, niveau 2
K185: 05M083 | L185: Arythmies et troubles de la conduction cardiaque, niveau 3
K186: 05M08T | L186: Arythmies et troubles de la conduction cardiaque, très courte durée
K187: 05M091 | L187: Insuffisances cardiaques et états de choc circulatoire, niveau 1
K188: 05M092 | L188: Insuffisances cardiaques et états de choc circulatoire, niveau 2
K189: 05M093 | L189: Insuffisances cardiaques et états de choc circulatoire, niveau 3
K190: 05M09T | L190: Insuffisances cardiaques et états de choc circulatoire, très courte durée
K191: 05M121 | L191: Troubles vasculaires périphériques, niveau 1
K192: 05M122 | L192: Troubles vasculaires périphériques, niveau 2
K193: 05M123 | L193: Troubles vasculaires périphériques, niveau 3
K194: 05M12T | L194: Troubles vasculaires périphériques, très courte durée
K195: 05M131 | L195: Douleurs thoraciques, niveau 1
K196: 05M132 | L196: Douleurs thoraciques, niveau 2
K197: 05M13T | L197: Douleurs thoraciques, très courte durée
K198: 05M151 | L198: Hypertension artérielle, niveau 1
K199: 05M152 | L199: Hypertension artérielle, niveau 2
K200: 05M15T | L200: Hypertension artérielle, très courte durée
... 533 more rows

Sheet synthèse GHM (2) (hidden)
A1: Fiche de synthèse GHM | K1: Interventions sur le rachis et la moelle pour des affections neurologiques, niveau 1 | L1: 01C051
K2: Interventions sur le rachis et la moelle pour des affections neurologiques, niveau 2 | L2: 01C052
A3: Identification du GHM | K3: Interventions sur le système vasculaire précérébral, niveau 1 | L3: 01C061
A4: GHM | B4: =IF(B5<>"",VLOOKUP(B5,K:L,2,FALSE),"") -> 01C051 | K4: Interventions sur le système vasculaire précérébral, niveau 2 | L4: 01C062
A5: Libellé | B5: Interventions sur le rachis et la moelle pour des affections neurologiques, niveau 1 | K5: Interventions sur les nerfs crâniens ou périphériques et autres interventions sur le système nerveux, niveau 1 | L5: 01C081
K6: Interventions sur les nerfs crâniens ou périphériques et autres interventions sur le système nerveux, en ambulatoire | L6: 01C08J
K7: Pose d'un stimulateur médullaire, niveau 1 | L7: 01C101
C8: 2011 | D8: 2010 | E8: Evolution | G8: Coût moyen | H8: Part des postes détaillés dans chaque sous poste | K8: Libérations de nerfs superficiels à l'exception du médian au canal carpien, niveau 1 | L8: 01C141
A9: Coût moyen du séjour | C9: =IF($B$4<>"",VLOOKUP($B$4,'Coûts décomposés'!A:E,5,FALSE),"") -> 3769.64 | D9: =IF($B$4<>"",IF(ISNA(VLOOKUP($B$4,'Coûts 10 décomposés gds postes'!E:M,9,FALSE)),"NC",VLOOKUP($B$4,'Coûts 10 décomposés gds postes'!E:M,9,FALSE)),"") -> 3686.76 | E9: =IF(B5<>"",VLOOKUP($B$4,evolutions!$E:$N,2,FALSE),"") -> 0.02248044353 | K9: Libérations de nerfs superficiels à l'exception du médian au canal carpien, en ambulatoire | L9: 01C14J
K10: Libérations du médian au canal carpien, niveau 1 | L10: 01C151
A11: Nombre de séjours ENCC | C11: =IF($B$4<>"",VLOOKUP($B$4,'Coûts décomposés'!A:E,4,FALSE),"") -> 263 | D11: =IF($B$4<>"",IF(ISNA(VLOOKUP($B$4,'Coûts 10 décomposés gds postes'!E:M,4,FALSE)),"NC",VLOOKUP($B$4,'Coûts 10 décomposés gds postes'!E:M,4,FALSE)),"") -> 768 | E11: =IF($B$4<>"",IF(D11<>"",IF(D11<>"NC",IF(C11<>"",C11/D11-1,""),""),""),"") -> -0.6575520833 | K11: Libérations du médian au canal carpien, en ambulatoire | L11: 01C15J
K12: Injections de toxine botulique, en ambulatoire | L12: 01K04J
A13: Intervalle de confiance | B13: Borne Basse | C13: =IF($B$4<>"",VLOOKUP($B$4,'Intervalle de confiance'!A:M,12,FALSE),"") -> 2968.8 | D13: =IF($B$4<>"",IF(ISNA(VLOOKUP($B$4,'Coûts 10 décomposés gds postes'!E:M,7,FALSE)),"NC",VLOOKUP($B$4,'Coûts 10 décomposés gds postes'!E:M,7,FALSE)),"") -> 3182.88 | K13: Séjours pour douleurs chroniques rebelles comprenant un bloc ou une infiltration, en ambulatoire | L13: 01K05J
B14: Borne Haute | C14: =IF($B$4<>"",VLOOKUP($B$4,'Intervalle de confiance'!A:M,13,FALSE),"") -> 4570.49 | D14: =IF($B$4<>"",IF(ISNA(VLOOKUP($B$4,'Coûts 10 décomposés gds postes'!E:M,8,FALSE)),"NC",VLOOKUP($B$4,'Coûts 10 décomposés gds postes'!E:M,8,FALSE)),"") -> 4190.64 | F14: Cliniques: Personnel soignant | G14: =IF($B$4<>"",VLOOKUP($B$4,'Coûts décomposés'!$A:$DP,10,FALSE),"") -> 507.21 | H14: =IF(C11<>"",IF(B24<>0,(G14+G15)/B24,""),"") -> 0.9801289509 | K14: Affections du système nerveux sans acte opératoire avec anesthésie, en ambulatoire | L14: 01K06J
F15: Cliniques: Personnel autre | G15: =IF($B$4<>"",VLOOKUP($B$4,'Coûts décomposés'!$A:$DP,8,FALSE),"") -> 99.333 | K15: Maladies dégénératives du système nerveux, âge inférieur à 80 ans, niveau 1 | L15: 01M081
K16: Affections des nerfs crâniens et rachidiens, niveau 1 | L16: 01M111
K17: Affections des nerfs crâniens et rachidiens, très courte durée | L17: 01M11T
F18: Soins intensifs: Personnel soignant | G18: =IF($B$4<>"",VLOOKUP($B$4,'Coûts décomposés'!$A:$DP,21,FALSE),"") -> 9.01 | H18: =IF(C11<>"",IF(B25<>0,(G18+G19)/B25,""),"") -> 0.9926188069 | K18: Accidents ischémiques transitoires et occlusions des artères précérébrales, âge supérieur à 79 ans, très courte durée | L18: 01M15T
F19: Soins intensifs: Personnel autre | G19: =IF($B$4<>"",VLOOKUP($B$4,'Coûts décomposés'!$A:$DP,20,FALSE),"") -> 0.807 | K19: Accidents ischémiques transitoires et occlusions des artères précérébrales, âge inférieur à 80 ans, niveau 1 | L19: 01M161
K20: Accidents ischémiques transitoires et occlusions des artères précérébrales, âge inférieur à 80 ans, très courte durée | L20: 01M16T
F21: Surveillance continue: Personnel soignant | G21: =IF($B$4<>"",VLOOKUP($B$4,'Coûts décomposés'!$A:$DP,16,FALSE),"") -> 9.55 | H21: =IF(C11<>"",IF(B26<>0,(G21+G22)/B26,""),"") -> 0.9800371402 | K21: Sclérose en plaques et ataxie cérébelleuse, niveau 1 | L21: 01M171
F22: Surveillance continue: Personnel autre | G22: =IF($B$4<>"",VLOOKUP($B$4,'Coûts décomposés'!$A:$DP,14,FALSE),"") -> 1.005 | K22: Douleurs chroniques rebelles, niveau 1 | L22: 01M211
B23: Coût moyen 2011 | C23: Poids dans le coût du GHM | D23: Evolution 2011/2010 | K23: Douleurs chroniques rebelles, très courte durée | L23: 01M21T
A24: activités cliniques MCO (avec hébergement, hors Réa, SI, SC) | B24: =IF($B$4<>"",VLOOKUP($B$4,'Coûts décomposés'!$A:$DP,11,FALSE),"") -> 618.84 | C24: =IF($C$11<>"",B24/$C$9,"") -> 0.1641642173 | D24: =IF($B$4<>"",VLOOKUP($B$4,evolutions!$E:$N,3,FALSE),"") -> 0.1729562729 | F24: Médico technique: anesthésie | G24: =IF($B$4<>"",VLOOKUP($B$4,'Coûts décomposés'!$A:$DP,29,FALSE),"") -> 80.861 | H24: =IF(C11<>"",IF(B27<>0,(G24+G25+G26)/B27,""),"") -> 0.9930332131 | K24: Migraines et céphalées, niveau 1 | L24: 01M221
A25: Activité de soins intensifs | B25: =IF($B$4<>"",VLOOKUP($B$4,'Coûts décomposés'!$A:$DP,22,FALSE),"") -> 9.89 | C25: =IF($C$11<>"",B25/$C$9,"") -> 0.002623592704 | D25: =IF($B$4<>"",VLOOKUP($B$4,evolutions!$E:$N,5,FALSE),"") -> 0.7724014337 | F25: Médico technique: bloc | G25: =IF($B$4<>"",VLOOKUP($B$4,'Coûts décomposés'!$A:$DP,35,FALSE),"") -> 441.82 | K25: Migraines et céphalées, très courte durée | L25: 01M22T
A26: Activité de surveillance continue | B26: =IF($B$4<>"",VLOOKUP($B$4,'Coûts décomposés'!$A:$DP,17,FALSE),"") -> 10.77 | C26: 0.002857036746 | D26: =IF($B$4<>"",VLOOKUP($B$4,evolutions!$E:$N,4,FALSE),"") -> -0.6102062975 | F26: Médico technique: urgences | G26: =IF($B$4<>"",VLOOKUP($B$4,'Coûts décomposés'!$A:$DP,73,FALSE),"") -> 0.5482 | K26: Epilepsie, âge supérieur à 17 ans, très courte durée | L26: 01M25T
A27: Activités Médico-techniques | B27: =IF($B$4<>"",VLOOKUP($B$4,'Coûts décomposés'!$A:$DP,78,FALSE),"") -> 526.9 | C27: 0.1397746204 | D27: =IF($B$4<>"",VLOOKUP($B$4,evolutions!$E:$N,6,FALSE),"") -> 0.05403188702 | K27: Accidents vasculaires intracérébraux non transitoires, niveau 1 | L27: 01M301
A28: Logistique Médicale | B28: =IF($B$4<>"",VLOOKUP($B$4,'Coûts décomposés'!$A:$DP,96,FALSE),"") -> 132.168 | C28: 0.03506117295 | D28: =IF($B$4<>"",VLOOKUP($B$4,evolutions!$E:$N,8,FALSE),"") -> -0.08433501223 | F28: Logistique générale: Blanchisserie | G28: =IF($B$4<>"",VLOOKUP($B$4,'Coûts décomposés'!$A:$DP,79,FALSE),"") -> 28.568 | H28: =IF(C11<>"",IF(B29<>0,(G28+G29)/B29,""),"") -> 0.2640150315 | K28: Accidents vasculaires intracérébraux non transitoires, niveau 2 | L28: 01M302
A29: Logistique générale | B29: =IF($B$4<>"",VLOOKUP($B$4,'Coûts décomposés'!$A:$DP,90,FALSE),"") -> 441.74 | C29: 0.1171836037 | D29: =IF($B$4<>"",VLOOKUP($B$4,evolutions!$E:$N,7,FALSE),"") -> -0.1343693049 | F29: Logistique générale: Restauration | G29: =IF($B$4<>"",VLOOKUP($B$4,'Coûts décomposés'!$A:$DP,80,FALSE),"") -> 88.058 | K29: Anomalies de la démarche d'origine neurologique | L29: 01M34Z
A30: Charges directes | B30: =IF($B$4<>"",VLOOKUP($B$4,'Coûts décomposés'!$A:$DP,107,FALSE),"") -> 1043.62 | C30: 0.2768487176 | D30: =IF($B$4<>"",VLOOKUP($B$4,evolutions!$E:$N,9,FALSE),"") -> 0.1783661717 | K30: Interventions sur la rétine, niveau 1 | L30: 02C021
A31: Honoraires | B31: =IF($B$4<>"",VLOOKUP($B$4,'Coûts décomposés'!$A:$DP,117,FALSE),"") -> 985.71 | C31: 0.261486508 | D31: =IF($B$4<>"",VLOOKUP($B$4,evolutions!$E:$N,10,FALSE),"") -> -0.07490239507 | F31: Charges directes: Spécialités pharmaceutiques facturables en sus | G31: =IF($B$4<>"",VLOOKUP($B$4,'Coûts décomposés'!$A:$DP,97,FALSE),"") -> 3.19 | H31: =IF(C11<>"",IF(B30<>0,(G31+G32)/B30,""),"") -> 0.5936356145 | K31: Interventions sur la rétine, en ambulatoire | L31: 02C02J
F32: Charges directes: DMI facturables en sus | G32: =IF($B$4<>"",VLOOKUP($B$4,'Coûts décomposés'!$A:$DP,100,FALSE),"") -> 616.34 | K32: Interventions sur le cristallin avec ou sans vitrectomie, niveau 1 | L32: 02C051
K33: Interventions sur le cristallin avec ou sans vitrectomie, en ambulatoire | L33: 02C05J
F34: Honoraires médicaux: Laboratoires autres | G34: =IF($B$4<>"",VLOOKUP($B$4,'Coûts décomposés'!$A:$DP,109,FALSE),"") -> 43.406 | H34: =IF(C11<>"",IF(B31<>0,(G34+G35+G36+G37)/B31,""),"") -> 0.9127999107 | K34: Autres interventions extraoculaires, âge inférieur à 18 ans, en ambulatoire | L34: 02C07J
F35: Honoraires médicaux: imagerie | G35: =IF($B$4<>"",VLOOKUP($B$4,'Coûts décomposés'!$A:$DP,110,FALSE),"") -> 72.54 | K35: Autres interventions extraoculaires, âge supérieur à 17 ans, niveau 1 | L35: 02C081
F36: Honoraires médicaux: anesthésie | G36: =IF($B$4<>"",VLOOKUP($B$4,'Coûts décomposés'!$A:$DP,111,FALSE),"") -> 258.83 | K36: Autres interventions extraoculaires, âge supérieur à 17 ans, en ambulatoire | L36: 02C08J
A37: Données de coûts: ENCC ex OQN 2011 | F37: Honoraires médicaux: chirurgie | G37: =IF($B$4<>"",VLOOKUP($B$4,'Coûts décomposés'!$A:$DP,113,FALSE),"") -> 524.98 | K37: Allogreffes de cornée, niveau 1 | L37: 02C091
K38: Autres interventions intraoculaires en dehors des affections sévères, niveau 1 | L38: 02C111
K39: Autres interventions intraoculaires en dehors des affections sévères, en ambulatoire | L39: 02C11J
K40: Interventions sur le cristallin avec trabéculectomie, niveau 1 | L40: 02C121
K41: Interventions sur le cristallin avec trabéculectomie, en ambulatoire | L41: 02C12J
K42: Interventions sur les muscles oculomoteurs, âge inférieur à 18 ans, niveau 1 | L42: 02C131
K43: Autres affections oculaires d'origine non diabétique, âge supérieur à 17 ans, niveau 1 | L43: 02M081
K44: Autres affections oculaires d'origine non diabétique, âge supérieur à 17 ans, très courte durée | L44: 02M08T
K45: Interventions sur les sinus et l'apophyse mastoïde, âge supérieur à 17 ans, niveau 1 | L45: 03C071
K46: Interventions sur les sinus et l'apophyse mastoïde, âge supérieur à 17 ans, niveau 2 | L46: 03C072
K47: Interventions sur les sinus et l'apophyse mastoïde, âge supérieur à 17 ans, en ambulatoire | L47: 03C07J
K48: Rhinoplasties, niveau 1 | L48: 03C091
K49: Rhinoplasties, en ambulatoire | L49: 03C09J
K50: Amygdalectomies et/ou adénoïdectomies isolées, âge inférieur à 18 ans, niveau 1 | L50: 03C101
K51: Amygdalectomies et/ou adénoïdectomies isolées, âge supérieur à 17 ans, niveau 1 | L51: 03C111
K52: Interventions sur les amygdales et les végétations adénoïdes autres que les amygdalectomies et/ou les adénoïdectomies isolées, âge inférieur à 18 ans, niveau 1 | L52: 03C121
K53: Interventions sur les amygdales et les végétations adénoïdes autres que les amygdalectomies et/ou les adénoïdectomies isolées, âge supérieur à 17 ans, niveau 1 | L53: 03C131
K54: Drains transtympaniques, âge inférieur à 18 ans, en ambulatoire | L54: 03C14J
K55: Drains transtympaniques, âge supérieur à 17 ans, en ambulatoire | L55: 03C15J
K56: Autres interventions chirurgicales portant sur les oreilles, le nez, la gorge ou le cou, niveau 1 | L56: 03C161
K57: Autres interventions chirurgicales portant sur les oreilles, le nez, la gorge ou le cou, en ambulatoire | L57: 03C16J
K58: Interventions sur la bouche, niveau 1 | L58: 03C171
K59: Interventions sur la bouche, en ambulatoire | L59: 03C17J
K60: Ostéotomies de la face, niveau 1 | L60: 03C191
K61: Ostéotomies de la face, en ambulatoire | L61: 03C19J
K62: Interventions de reconstruction de l'oreille moyenne, niveau 1 | L62: 03C201
K63: Interventions de reconstruction de l'oreille moyenne, en ambulatoire | L63: 03C20J
K64: Interventions pour oreilles décollées, niveau 1 | L64: 03C211
K65: Interventions pour oreilles décollées, en ambulatoire | L65: 03C21J
K66: Interventions sur les glandes salivaires, niveau 1 | L66: 03C241
K67: Interventions sur les glandes salivaires, en ambulatoire | L67: 03C24J
K68: Autres interventions sur la tête et le cou, niveau 1 | L68: 03C261
K69: Interventions sur les amygdales, en ambulatoire | L69: 03C27J
K70: Interventions sur les végétations adénoïdes, en ambulatoire | L70: 03C28J
K71: Interventions sur l'oreille externe, en ambulatoire | L71: 03C30J
K72: Affections de la bouche et des dents avec certaines extractions, réparations et prothèses dentaires, niveau 1 | L72: 03K021
K73: Affections de la bouche et des dents avec certaines extractions, réparations et prothèses dentaires, en ambulatoire | L73: 03K02J
K74: Séjours comprenant une endoscopie oto-rhino-laryngologique, en ambulatoire | L74: 03K03J
K75: Séjours comprenant certains actes non opératoires de la CMD 03, en ambulatoire | L75: 03K04J
K76: Traumatismes et déformations du nez, niveau 1 | L76: 03M021
K77: Traumatismes et déformations du nez, très courte durée | L77: 03M02T
K78: Otites moyennes et autres infections des voies aériennes supérieures, âge supérieur à 17 ans, très courte durée | L78: 03M04T
K79: Troubles de l'équilibre, niveau 1 | L79: 03M051
K80: Troubles de l'équilibre, très courte durée | L80: 03M05T
K81: Epistaxis, niveau 1 | L81: 03M061
K82: Epistaxis, très courte durée | L82: 03M06T
K83: Tumeurs malignes des oreilles, du nez, de la gorge ou de la bouche, niveau 1 | L83: 03M071
K84: Autres diagnostics portant sur les oreilles, le nez, la gorge ou la bouche, âge supérieur à 17 ans, niveau 1 | L84: 03M091
K85: Autres diagnostics portant sur les oreilles, le nez, la gorge ou la bouche, âge supérieur à 17 ans, très courte durée | L85: 03M09T
K86: Affections de la bouche et des dents sans certaines extractions, réparations ou prothèses dentaires, âge inférieur à 18 ans, très courte durée | L86: 03M10T
K87: Affections de la bouche et des dents sans certaines extractions, réparations ou prothèses dentaires, âge supérieur à 17 ans, niveau 1 | L87: 03M111
K88: Affections de la bouche et des dents sans certaines extractions, réparations ou prothèses dentaires, âge supérieur à 17 ans, très courte durée | L88: 03M11T
K89: Infections aigües sévères des voies aériennes supérieures, âge supérieur à 17 ans, niveau 1 | L89: 03M131
K90: Interventions majeures sur le thorax, niveau 1 | L90: 04C021
K91: Interventions majeures sur le thorax, niveau 2 | L91: 04C022
K92: Interventions majeures sur le thorax, niveau 3 | L92: 04C023
K93: Interventions majeures sur le thorax, niveau 4 | L93: 04C024
K94: Autres interventions chirurgicales sur le système respiratoire, niveau 1 | L94: 04C031
K95: Interventions sous thoracoscopie, niveau 1 | L95: 04C041
K96: Interventions sous thoracoscopie, niveau 2 | L96: 04C042
K97: Séjours comprenant une endoscopie bronchique, en ambulatoire | L97: 04K02J
K98: Bronchites et asthme, âge supérieur à 17 ans, niveau 1 | L98: 04M031
K99: Bronchites et asthme, âge supérieur à 17 ans, niveau 2 | L99: 04M032
K100: Bronchites et asthme, âge supérieur à 17 ans, niveau 3 | L100: 04M033
K101: Bronchites et asthme, âge supérieur à 17 ans, très courte durée | L101: 04M03T
K102: Pneumonies et pleurésies banales, âge supérieur à 17 ans, niveau 1 | L102: 04M051
K103: Pneumonies et pleurésies banales, âge supérieur à 17 ans, niveau 2 | L103: 04M052
K104: Pneumonies et pleurésies banales, âge supérieur à 17 ans, niveau 3 | L104: 04M053
K105: Transferts et autres séjours pour pneumonies et pleurésies banales, âge supérieur à 17 ans | L105: 04M05T
K106: Infections et inflammations respiratoires, âge supérieur à 17 ans, niveau 1 | L106: 04M071
K107: Infections et inflammations respiratoires, âge supérieur à 17 ans, niveau 2 | L107: 04M072
K108: Bronchopneumopathies chroniques, niveau 1 | L108: 04M081
K109: Bronchopneumopathies chroniques, niveau 2 | L109: 04M082
K110: Bronchopneumopathies chroniques, niveau 3 | L110: 04M083
K111: Bronchopneumopathies chroniques, très courte durée | L111: 04M08T
K112: Tumeurs de l'appareil respiratoire, niveau 1 | L112: 04M091
K113: Tumeurs de l'appareil respiratoire, niveau 2 | L113: 04M092
K114: Tumeurs de l'appareil respiratoire, niveau 3 | L114: 04M093
K115: Tumeurs de l'appareil respiratoire, très courte durée | L115: 04M09T
K116: Embolies pulmonaires, niveau 1 | L116: 04M101
K117: Embolies pulmonaires, niveau 2 | L117: 04M102
K118: Embolies pulmonaires, niveau 3 | L118: 04M103
K119: Signes et symptômes respiratoires, niveau 1 | L119: 04M111
K120: Signes et symptômes respiratoires, niveau 2 | L120: 04M112
K121: Pneumothorax, niveau 1 | L121: 04M121
K122: Oedème pulmonaire et détresse respiratoire, niveau 1 | L122: 04M131
K123: Oedème pulmonaire et détresse respiratoire, niveau 2 | L123: 04M132
K124: Oedème pulmonaire et détresse respiratoire, niveau 3 | L124: 04M133
K125: Epanchements pleuraux, niveau 1 | L125: 04M171
K126: Epanchements pleuraux, niveau 2 | L126: 04M172
K127: Epanchements pleuraux, niveau 3 | L127: 04M173
K128: Bronchopneumopathies chroniques surinfectées, niveau 1 | L128: 04M201
K129: Bronchopneumopathies chroniques surinfectées, niveau 2 | L129: 04M202
K130: Bronchopneumopathies chroniques surinfectées, niveau 3 | L130: 04M203
K131: Autres symptômes et recours aux soins de la CMD 04 | L131: 04M23Z
K132: Affections de la CMD 04 avec décès : séjours de moins de 2 jours | L132: 04M24E
K133: Chirurgie majeure de revascularisation, niveau 1 | L133: 05C101
K134: Chirurgie majeure de revascularisation, niveau 2 | L134: 05C102
K135: Chirurgie majeure de revascularisation, niveau 3 | L135: 05C103
K136: Chirurgie majeure de revascularisation, niveau 4 | L136: 05C104
K137: Autres interventions de chirurgie vasculaire, niveau 1 | L137: 05C111
K138: Autres interventions de chirurgie vasculaire, niveau 2 | L138: 05C112
K139: Autres interventions de chirurgie vasculaire, niveau 3 | L139: 05C113
K140: Amputations pour troubles circulatoires portant sur le membre supérieur ou les orteils, niveau 1 | L140: 05C131
K141: Poses d'un stimulateur cardiaque permanent avec infarctus aigu du myocarde ou insuffisance cardiaque congestive ou état de choc, niveau 1 | L141: 05C141
K142: Poses d'un stimulateur cardiaque permanent avec infarctus aigu du myocarde ou insuffisance cardiaque congestive ou état de choc, niveau 2 | L142: 05C142
K143: Poses d'un stimulateur cardiaque permanent sans infarctus aigu du myocarde, ni insuffisance cardiaque congestive, ni état de choc, niveau 1 | L143: 05C151
K144: Poses d'un stimulateur cardiaque permanent sans infarctus aigu du myocarde, ni insuffisance cardiaque congestive, ni état de choc, niveau 2 | L144: 05C152
K145: Ligatures de veines et éveinages, niveau 1 | L145: 05C171
K146: Ligatures de veines et éveinages, en ambulatoire | L146: 05C17J
K147: Autres interventions sur le système circulatoire, niveau 1 | L147: 05C181
K148: Autres interventions sur le système circulatoire, en ambulatoire | L148: 05C18J
K149: Poses d'un défibrillateur cardiaque, niveau 1 | L149: 05C191
K150: Créations et réfections de fistules artérioveineuses pour affections de la CMD 05, niveau 1 | L150: 05C211
K151: Créations et réfections de fistules artérioveineuses pour affections de la CMD 05, en ambulatoire | L151: 05C21J
K152: Remplacements de stimulateurs cardiaques permanents, niveau 1 | L152: 05C221
K153: Remplacements de stimulateurs cardiaques permanents, très courte durée | L153: 05C22T
K154: Endoprothèses vasculaires avec infarctus du myocarde, niveau 1 | L154: 05K051
K155: Endoprothèses vasculaires avec infarctus du myocarde, niveau 2 | L155: 05K052
K156: Endoprothèses vasculaires sans infarctus du myocarde, niveau 1 | L156: 05K061
K157: Endoprothèses vasculaires sans infarctus du myocarde, niveau 2 | L157: 05K062
K158: Endoprothèses vasculaires sans infarctus du myocarde, niveau 3 | L158: 05K063
K159: Endoprothèses vasculaires sans infarctus du myocarde, très courte durée | L159: 05K06T
K160: Actes diagnostiques par voie vasculaire, niveau 1 | L160: 05K101
K161: Actes diagnostiques par voie vasculaire, niveau 2 | L161: 05K102
K162: Actes diagnostiques par voie vasculaire, niveau 3 | L162: 05K103
K163: Actes diagnostiques par voie vasculaire, en ambulatoire | L163: 05K10J
K164: Mise en place de certains accès vasculaires pour des affections de la CMD 05, séjours de moins de 2 jours | L164: 05K14Z
K165: Affections cardiovasculaires sans acte opératoire de la CMD 05, avec anesthésie, en ambulatoire | L165: 05K17J
K166: Traitements majeurs de troubles du rythme par voie vasculaire, niveau 1 | L166: 05K191
K167: Autres traitements de troubles du rythme par voie vasculaire, niveau 1 | L167: 05K201
K168: Ablations, repositionnements et poses de sondes cardiaques supplémentaires par voie vasculaire, âge supérieur à 17 ans, niveau 1 | L168: 05K231
K169: Dilatations coronaires et autres actes thérapeutiques sur le coeur par voie vasculaire, âge supérieur à 17 ans, niveau 1 | L169: 05K241
K170: Actes thérapeutiques sur les artères par voie vasculaire, âge supérieur à 17 ans, niveau 1 | L170: 05K251
K171: Actes thérapeutiques sur les accès vasculaires ou les veines par voie vasculaire, âge supérieur à 17 ans, niveau 1 | L171: 05K261
K172: Actes thérapeutiques sur les accès vasculaires ou les veines par voie vasculaire, âge supérieur à 17 ans, en ambulatoire | L172: 05K26J
K173: Infarctus aigu du myocarde, niveau 1 | L173: 05M041
K174: Infarctus aigu du myocarde, niveau 2 | L174: 05M042
K175: Syncopes et lipothymies, niveau 1 | L175: 05M051
K176: Syncopes et lipothymies, niveau 2 | L176: 05M052
K177: Syncopes et lipothymies, très courte durée | L177: 05M05T
K178: Angine de poitrine, niveau 1 | L178: 05M061
K179: Angine de poitrine, niveau 2 | L179: 05M062
K180: Thrombophlébites veineuses profondes, niveau 1 | L180: 05M071
K181: Thrombophlébites veineuses profondes, niveau 2 | L181: 05M072
K182: Thrombophlébites veineuses profondes, niveau 3 | L182: 05M073
K183: Arythmies et troubles de la conduction cardiaque, niveau 1 | L183: 05M081
K184: Arythmies et troubles de la conduction cardiaque, niveau 2 | L184: 05M082
K185: Arythmies et troubles de la conduction cardiaque, niveau 3 | L185: 05M083
K186: Arythmies et troubles de la conduction cardiaque, très courte durée | L186: 05M08T
K187: Insuffisances cardiaques et états de choc circulatoire, niveau 1 | L187: 05M091
K188: Insuffisances cardiaques et états de choc circulatoire, niveau 2 | L188: 05M092
K189: Insuffisances cardiaques et états de choc circulatoire, niveau 3 | L189: 05M093
K190: Insuffisances cardiaques et états de choc circulatoire, très courte durée | L190: 05M09T
K191: Troubles vasculaires périphériques, niveau 1 | L191: 05M121
K192: Troubles vasculaires périphériques, niveau 2 | L192: 05M122
K193: Troubles vasculaires périphériques, niveau 3 | L193: 05M123
K194: Troubles vasculaires périphériques, très courte durée | L194: 05M12T
K195: Douleurs thoraciques, niveau 1 | L195: 05M131
K196: Douleurs thoraciques, niveau 2 | L196: 05M132
K197: Douleurs thoraciques, très courte durée | L197: 05M13T
K198: Hypertension artérielle, niveau 1 | L198: 05M151
K199: Hypertension artérielle, niveau 2 | L199: 05M152
K200: Hypertension artérielle, très courte durée | L200: 05M15T
... 533 more rows

Sheet accueil données détaillées (hidden)
A1: DONNEES DE COUTS DETAILLEES
E4: Données de coûts par GHM 2011
E12: Données de coûts par GHM 2010
E18: Données de coûts par GHS 2011
E24: Données sur les UO 2011

Sheet Coûts décomposés (hidden)
A2: Informations sur le GHM | F2: Dépenses cliniques (clinique + SI + SC + REA) | X2: Dépenses Médico-Techniques | CA2: Logistique et Gestion Générale | CM2: Logistique Médicale | CS2: Charges directes (hors honoraires) | DD2: Honoraires | DN2: Structure
A3: GHM V11 | B3: Libellé GHM | C3: Coût modifié (*) | D3: Nombre de séjours ENCC 2011 | E3: Coût complet hors structure | F3: Amortissement location clinique (hors SI SC réa) | G3: Entretien maintenance clinique (hors SI SC réa) | H3: Personnel autre clinique (hors SI SC réa) | I3: Personnel médical clinique (hors SI SC réa) | J3: Personnel soignant clinique (hors SI SC réa) | K3: Dépenses cliniques | L3: Amortissement location surveillance continue | M3: Entretien maintenance surveillance continue | N3: Personnel autre surveillance continue | O3: Personnel médical surveillance continue | P3: Personnel soignant surveillance continue | Q3: Dépenses SC | R3: Amortissement location soins intensifs | S3: Entretien maintenance soins intensifs | T3: Personnel autre soins intensifs | U3: Personnel soignant soins intensifs | V3: Dépenses SI | W3: TOTAL Dépenses cliniques + SI + SC | X3: Amortissement Anesthésie | Y3: Entretien Anesthésie | Z3: Personnel autre Anesthésie | AA3: Personnel médical Anesthésie | AB3: Personnel soignant Anesthésie | AC3: Dépenses totales Anesthésie | AD3: Amortissement Bloc | AE3: Entretien Bloc | AF3: Personnel autre Bloc | AG3: Personnel médical Bloc | AH3: Personnel soignant Bloc | AI3: Dépenses totales Bloc | AJ3: Amortissement Bloc Obstétrique | AK3: Entretien Bloc Obstétrique | AL3: Personnel autre Bloc Obstétrique | AM3: Personnel soignant Bloc Obstétrique | AN3: Dépenses totales Bloc Obstétrique | AO3: Amortissement Dialyse | AP3: Entretien Dialyse | AQ3: Personnel autre Dialyse | AR3: Personnel soignant Dialyse | AS3: Dialyse en sus | AT3: Dépenses totales Dialyse | AU3: Amortissement Exploration fonctionnelle | AV3: Entretien Exploration fonctionnelle | AW3: Personnel autre Exploration fonctionnelle | AX3: Personnel soignant Exploration fonctionnelle | AY3: Dépenses totales Exploration fonctionnelle | AZ3: Amortissement Imagerie | BA3: Entretien Imagerie | BB3: Personnel autre Imagerie | BC3: Personnel soignant Imagerie | BD3: Dépenses totales Imagerie | BE3: Amortissement Imagerie interventionnelle | BF3: Entretien Imagerie interventionnelle | BG3: Personnel autre Imagerie interventionnelle | BH3: Personnel soignant Imagerie interventionnelle | BI3: Dépenses totales Imagerie interventionnelle | BJ3: Amortissement Laboratoire B | BK3: Entretien Laboratoire B | BL3: Personnel autre Laboratoire B | BM3: Personnel médical Laboratoire B | BN3: Personnel soignant Laboratoire B | BO3: Dépenses totales Laboratoire B | BP3: Amortissement Urgences | BQ3: Entretien Urgences | BR3: Personnel autre Urgences | BS3: Personnel médical Urgences | BT3: Personnel soignant Urgences | BU3: Dépenses totales Urgences | BV3: Amortissement Autres MT | BW3: Entretien Autres MT | BX3: Personnel autre Autres MT | BY3: Dépenses totales Autres MT | BZ3: TOTAL Dépenses MT | CA3: LGG Blanchisserie | CB3: LGG Restauration | CC3: LGG Accueil et gestion des malades | CD3: LGG Services administratifs à caractère général | CE3: LGG Services administratifs liés au personnel | CF3: LGG Brancardage et transport pédestre des patients | CG3: LGG DIM | CH3: LGG DSIO | CI3: LGG Entretien maintenance | CJ3: LGG Services hôteliers | CK3: LGG Transport motorisé des patients (hors SMUR) | CL3: TOTAL Dépenses LGG | CM3: LM Pharmacie | CN3: LM Stérilisation | CO3: LM Génie Biomédical | CP3: LM Hygiène et Vigilance | CQ3: Autre LM | CR3: TOTAL Dépenses LM | CS3: CD Spécialités pharmaceutiques facturables en sus | CT3: CD Spécialités pharmaceutiques non facturables en sus | CU3: CD Sang | CV3: CD DMI facturables en sus | CW3: CD DMI non facturables en sus | CX3: CD Autres consommables | CY3: CD Sous-traitance SMUR | CZ3: CD Sous-traitance Laboratoire | DA3: CD Sous-traitance Hospitalisation à l'extérieur | DB3: CD Sous-traitance Autre | DC3: TOTAL Charges directes hors honoraires | DD3: Honoraires médicaux - Laboratoire d'anatomie pathologie | DE3: Honoraires médicaux - Laboratoires autres | DF3: Honoraires médicaux - Imagerie | DG3: Honoraires médicaux - Anesthésie | DH3: Honoraires médicaux - Obstétrique | DI3: Honoraires médicaux - Chirurgie | DJ3: Honoraires médicaux - Autres actes médicaux | DK3: Honoraires soignants | DL3: Honoraires autres | DM3: TOTAL Honoraires | DN3: Structure - Financier | DO3: Structure - Immobilier | DP3: TOTAL Structure
A4: 01C051 | B4: Interventions sur le rachis et la moelle pour des affections neurologiques, niveau 1 | D4: 263 | E4: 3769.64 | F4: 9.8 | G4: 1.94 | H4: 99.333 | I4: 0.556 | J4: 507.21 | K4: 618.84 | L4: 0.0833 | M4: 0.1361 | N4: 1.005 | O4: 0 | P4: 9.55 | Q4: 10.77 | R4: 0.0121 | S4: 0.0651 | T4: 0.807 | U4: 9.01 | V4: 9.89 | W4: 639.5 | X4: 5.6376 | Y4: 4.0079 | Z4: 0.64309 | AA4: 1.4603 | AB4: 69.112 | AC4: 80.861 | AD4: 60.888 | AE4: 37.14 | AF4: 82.367 | AG4: 0 | AH4: 261.421 | AI4: 441.82 | AJ4: 0 | AK4: 0 | AL4: 0 | AM4: 0 | AN4: 0 | AO4: 0 | AP4: 0 | AQ4: 0 | AR4: 0 | AS4: 0 | AT4: 0 | AU4: 0.0128 | AV4: 0.0027 | AW4: 0.145 | AX4: 0.093 | AY4: 0.253 | AZ4: 0.0587 | BA4: 0.0661 | BB4: 0.3294 | BC4: 0 | BD4: 0.454 | BE4: 0.0857 | BF4: 0.041 | BG4: 0.171 | BH4: 0.046 | BI4: 0.343 | BJ4: 0.14938 | BK4: 0.05203 | BL4: 1.6709 | BM4: 0.5489 | BN4: 0.11989 | BO4: 2.541 | BP4: 0.00837 | BQ4: 0.00222 | BR4: 0.05521 | BS4: 0.05305 | BT4: 0.4294 | BU4: 0.5482 | BV4: 0.01114 | BW4: 0.001415 | BX4: 0.07455 | BY4: 0.08711 | BZ4: 526.9 | CA4: 28.568 | CB4: 88.058 | CC4: 28.6625 | CD4: 141.147 | CE4: 17.92 | CF4: 10.8544 | CG4: 10.762 | CH4: 20.803 | CI4: 45.209 | CJ4: 49.4 | CK4: 0.35468 | CL4: 441.74 | CM4: 41.72 | CN4: 74.964 | CO4: 4.399 | CP4: 11.0849 | CQ4: 0 | CR4: 132.168 | CS4: 3.19 | CT4: 66.277 | CU4: 0.933 | CV4: 616.34 | CW4: 47.01 | CX4: 301.96 | CY4: 0.2293 | CZ4: 0.16897 | DA4: 0.0265 | DB4: 7.4976 | DC4: 1043.62 | DD4: 0 | DE4: 43.406 | DF4: 72.54 | DG4: 258.83 | DH4: 0 | DI4: 524.98 | DJ4: 27.83 | DK4: 4.7852 | DL4: 53.351 | DM4: 985.71 | DN4: 16.897 | DO4: 197.787 | DP4: 214.68
A5: 01C052 | B5: Interventions sur le rachis et la moelle pour des affections neurologiques, niveau 2 | D5: 119 | E5: 4618.85 | F5: 11.284 | G5: 2.9521 | H5: 147.091 | I5: 0.513 | J5: 728.4 | K5: 890.24 | L5: 0.3465 | M5: 0.4325 | N5: 3.512 | O5: 0 | P5: 35.83 | Q5: 40.12 | R5: 0.0259 | S5: 0.1392 | T5: 1.725 | U5: 19.25 | V5: 21.14 | W5: 951.5 | X5: 5.2285 | Y5: 5.1075 | Z5: 0.61325 | AA5: 3.39737 | AB5: 70.176 | AC5: 84.522 | AD5: 55.496 | AE5: 41.444 | AF5: 77.993 | AG5: 0 | AH5: 279.843 | AI5: 454.78 | AJ5: 0 | AK5: 0 | AL5: 0 | AM5: 0 | AN5: 0 | AO5: 0 | AP5: 0 | AQ5: 0 | AR5: 0 | AS5: 0 | AT5: 0 | AU5: 0.0477 | AV5: 0.0484 | AW5: 0.075 | AX5: 0.148 | AY5: 0.319 | AZ5: 0.0232 | BA5: 0.0261 | BB5: 0.1301 | BC5: 0 | BD5: 0.179 | BE5: 0.0153 | BF5: 0.0073 | BG5: 0.031 | BH5: 0.008 | BI5: 0.061 | BJ5: 0.01959 | BK5: 0.00682 | BL5: 0.2192 | BM5: 0.072 | BN5: 0.01573 | BO5: 0.333 | BP5: 0.02785 | BQ5: 0.00668 | BR5: 0.13037 | BS5: 0.09215 | BT5: 1.1094 | BU5: 1.3665 | BV5: 0.00577 | BW5: 0.000733 | BX5: 0.03862 | BY5: 0.04512 | BZ5: 541.6 | CA5: 43.494 | CB5: 123.83 | CC5: 33.0684 | CD5: 211.111 | CE5: 29.598 | CF5: 19.5527 | CG5: 11.4436 | CH5: 31.393 | CI5: 59.296 | CJ5: 68.662 | CK5: 0.2705 | CL5: 631.72 | CM5: 50.307 | CN5: 73.607 | CO5: 2.1985 | CP5: 12.0021 | CQ5: 0 | CR5: 138.115 | CS5: 0 | CT5: 97.874 | CU5: 35.702 | CV5: 620.71 | CW5: 42.52 | CX5: 310.37 | CY5: 0.2928 | CZ5: 0.02216 | DA5: 0.074 | DB5: 10.3385 | DC5: 1117.91 | DD5: 0 | DE5: 78.24 | DF5: 79.04 | DG5: 298.633 | DH5: 0 | DI5: 635.21 | DJ5: 63.13 | DK5: 7.3859 | DL5: 76.37 | DM5: 1238 | DN5: 26.877 | DO5: 287.341 | DP5: 314.22
A6: 01C061 | B6: Interventions sur le système vasculaire précérébral, niveau 1 | D6: 346 | E6: 4522.57 | F6: 5.108 | G6: 1.0364 | H6: 64.121 | I6: 2.63 | J6: 373.18 | K6: 446.08 | L6: 2.7519 | M6: 1.3252 | N6: 19.709 | O6: 0 | P6: 284.63 | Q6: 308.42 | R6: 0.2932 | S6: 0.7129 | T6: 7.112 | U6: 67.45 | V6: 75.57 | W6: 830.06 | X6: 4.7559 | Y6: 2.9614 | Z6: 1.58785 | AA6: 0 | AB6: 86.339 | AC6: 95.644 | AD6: 118.647 | AE6: 39.741 | AF6: 126.873 | AG6: 0.63187 | AH6: 396.58 | AI6: 682.47 | AJ6: 0 | AK6: 0 | AL6: 0 | AM6: 0 | AN6: 0 | AO6: 0 | AP6: 0 | AQ6: 0 | AR6: 0 | AS6: 0 | AT6: 0 | AU6: 0.1052 | AV6: 0.0698 | AW6: 0.781 | AX6: 0.602 | AY6: 1.558 | AZ6: 0.3068 | BA6: 0.3458 | BB6: 1.722 | BC6: 0 | BD6: 2.375 | BE6: 0.9766 | BF6: 0.6397 | BG6: 1.885 | BH6: 2.009 | BI6: 5.51 | BJ6: 0.72459 | BK6: 0.25237 | BL6: 8.1051 | BM6: 2.6624 | BN6: 0.58156 | BO6: 12.326 | BP6: 0.00258 | BQ6: 0 | BR6: 0.00999 | BS6: 0.01485 | BT6: 0.127 | BU6: 0.1544 | BV6: 0.00381 | BW6: 0.000483 | BX6: 0.02548 | BY6: 0.02977 | BZ6: 800.07 | CA6: 27.01 | CB6: 80.002 | CC6: 21.9157 | CD6: 151.505 | CE6: 17.992 | CF6: 12.7564 | CG6: 7.1776 | CH6: 27.059 | CI6: 49.25 | CJ6: 64.509 | CK6: 1.03451 | CL6: 460.21 | CM6: 59.94 | CN6: 147.243 | CO6: 12.4002 | CP6: 10.5774 | CQ6: 0.00515 | CR6: 230.165 | CS6: 0 | CT6: 72.763 | CU6: 1.779 | CV6: 74.13 | CW6: 82.37 | CX6: 473.76 | CY6: 0.1597 | CZ6: 0.8196 | DA6: 0.0312 | DB6: 0 | DC6: 705.81 | DD6: 0 | DE6: 112.619 | DF6: 69.26 | DG6: 388.118 | DH6: 0 | DI6: 749.41 | DJ6: 162.57 | DK6: 8.4374 | DL6: 5.824 | DM6: 1496.25 | DN6: 26.493 | DO6: 128.481 | DP6: 154.97
A7: 01C062 | B7: Interventions sur le système vasculaire précérébral, niveau 2 | D7: 130 | E7: 5944.51 | F7: 5.666 | G7: 1.154 | H7: 91.168 | I7: 5.127 | J7: 534.48 | K7: 637.59 | L7: 2.9129 | M7: 1.4428 | N7: 27.55 | O7: 0 | P7: 418.33 | Q7: 450.24 | R7: 0.6134 | S7: 2.9182 | T7: 13.785 | U7: 148.22 | V7: 165.53 | W7: 1253.36 | X7: 5.7851 | Y7: 3.1039 | Z7: 1.38576 | AA7: 0 | AB7: 91.554 | AC7: 101.829 | AD7: 128.094 | AE7: 36.936 | AF7: 121.277 | AG7: 1.5131 | AH7: 394.511 | AI7: 682.33 | AJ7: 0 | AK7: 0 | AL7: 0 | AM7: 0 | AN7: 0 | AO7: 0 | AP7: 0 | AQ7: 0 | AR7: 0 | AS7: 7.4605 | AT7: 7.461 | AU7: 0.9722 | AV7: 0.426 | AW7: 9.026 | AX7: 6.317 | AY7: 16.741 | AZ7: 1.3354 | BA7: 0.9049 | BB7: 5.2401 | BC7: 0 | BD7: 7.48 | BE7: 5.007 | BF7: 2.9996 | BG7: 7.629 | BH7: 3.952 | BI7: 19.588 | BJ7: 0.93082 | BK7: 0.3242 | BL7: 10.412 | BM7: 3.4201 | BN7: 0.74708 | BO7: 15.834 | BP7: 0.0078 | BQ7: 0.00218 | BR7: 0.01321 | BS7: 0 | BT7: 0.1393 | BU7: 0.1625 | BV7: 0.03717 | BW7: 0.00472 | BX7: 0.24876 | BY7: 0.29066 | BZ7: 851.72 | CA7: 37.87 | CB7: 115.402 | CC7: 26.8751 | CD7: 236.265 | CE7: 26.231 | CF7: 24.6263 | CG7: 7.9723 | CH7: 42.29 | CI7: 90.679 | CJ7: 105.828 | CK7: 1.42121 | CL7: 715.46 | CM7: 72.957 | CN7: 151.625 | CO7: 13.1056 | CP7: 13.2716 | CQ7: 0.01168 | CR7: 250.971 | CS7: 3.29 | CT7: 74.67 | CU7: 54.33 | CV7: 279.4 | CW7: 81.67 | CX7: 523.62 | CY7: 0.1058 | CZ7: 1.05287 | DA7: 0.0272 | DB7: 0 | DC7: 1018.17 | DD7: 0 | DE7: 173.091 | DF7: 163.19 | DG7: 423.288 | DH7: 0 | DI7: 774.91 | DJ7: 281.6 | DK7: 12.2633 | DL7: 26.484 | DM7: 1854.83 | DN7: 50.376 | DO7: 172.809 | DP7: 223.18
A8: 01C081 | B8: Interventions sur les nerfs crâniens ou périphériques et autres interventions sur le système nerveux, niveau 1 | D8: 108 | E8: 1920.14 | F8: 3.041 | G8: 0.776 | H8: 45.708 | I8: 1.223 | J8: 189.42 | K8: 240.17 | L8: 0.2291 | M8: 0.0944 | N8: 1.821 | O8: 0 | P8: 17.31 | Q8: 19.45 | R8: 0 | S8: 0 | T8: 0 | U8: 0 | V8: 0 | W8: 259.62 | X8: 4.4104 | Y8: 3.5312 | Z8: 1.59435 | AA8: 0 | AB8: 60.411 | AC8: 69.947 | AD8: 52.928 | AE8: 18.981 | AF8: 70.101 | AG8: 0.59624 | AH8: 179.527 | AI8: 322.13 | AJ8: 0 | AK8: 0 | AL8: 0 | AM8: 0 | AN8: 0 | AO8: 0 | AP8: 0 | AQ8: 0 | AR8: 0 | AS8: 0 | AT8: 0 | AU8: 0.0098 | AV8: 0.0021 | AW8: 0.111 | AX8: 0.071 | AY8: 0.194 | AZ8: 0.0068 | BA8: 0.0077 | BB8: 0.0382 | BC8: 0 | BD8: 0.053 | BE8: 0.0135 | BF8: 0.0065 | BG8: 0.027 | BH8: 0.007 | BI8: 0.054 | BJ8: 0.18377 | BK8: 0.06401 | BL8: 2.0556 | BM8: 0.6752 | BN8: 0.14749 | BO8: 3.126 | BP8: 0.05907 | BQ8: 0.00124 | BR8: 0.15755 | BS8: 0.17067 | BT8: 4.7091 | BU8: 5.0976 | BV8: 0 | BW8: 0 | BX8: 0 | BY8: 0 | BZ8: 400.6 | CA8: 11.982 | CB8: 37.999 | CC8: 26.9078 | CD8: 75.637 | CE8: 8.556 | CF8: 4.8667 | CG8: 7.3838 | CH8: 11.581 | CI8: 16.492 | CJ8: 27.679 | CK8: 0.32628 | CL8: 229.41 | CM8: 29.608 | CN8: 59.48 | CO8: 13.1014 | CP8: 3.9472 | CQ8: 0 | CR8: 106.136 | CS8: 0 | CT8: 45.741 | CU8: 0.079 | CV8: 10.81 | CW8: 18.92 | CX8: 198.98 | CY8: 0.0048 | CZ8: 0.20787 | DA8: 0.0121 | DB8: 0 | DC8: 274.76 | DD8: 0 | DE8: 21.985 | DF8: 16 | DG8: 158.05 | DH8: 0 | DI8: 391.33 | DJ8: 55.48 | DK8: 1.1919 | DL8: 5.582 | DM8: 649.62 | DN8: 9.072 | DO8: 57.816 | DP8: 66.89
A9: 01C08J | B9: Interventions sur les nerfs crâniens ou périphériques et autres interventions sur le système nerveux, en ambulatoire | D9: 181 | E9: 1119.7 | F9: 1.414 | G9: 0.1431 | H9: 17.233 | I9: 0.032 | J9: 54.43 | K9: 73.25 | L9: 0 | M9: 0 | N9: 0 | O9: 0 | P9: 0 | Q9: 0 | R9: 0 | S9: 0 | T9: 0 | U9: 0 | V9: 0 | W9: 73.25 | X9: 2.0514 | Y9: 0.9169 | Z9: 0.85549 | AA9: 0.53224 | AB9: 20.296 | AC9: 24.652 | AD9: 24.678 | AE9: 6.319 | AF9: 38.35 | AG9: 0.01511 | AH9: 64.515 | AI9: 133.88 | AJ9: 0 | AK9: 0 | AL9: 0 | AM9: 0 | AN9: 0 | AO9: 0 | AP9: 0 | AQ9: 0 | AR9: 0 | AS9: 0 | AT9: 0 | AU9: 0.0053 | AV9: 0.0143 | AW9: 0 | AX9: 0.02 | AY9: 0.04 | AZ9: 0 | BA9: 0 | BB9: 0 | BC9: 0 | BD9: 0 | BE9: 0 | BF9: 0 | BG9: 0 | BH9: 0 | BI9: 0 | BJ9: 0 | BK9: 0 | BL9: 0 | BM9: 0 | BN9: 0 | BO9: 0 | BP9: 0.00481 | BQ9: 0 | BR9: 0.00561 | BS9: 0 | BT9: 0.6295 | BU9: 0.64 | BV9: 0 | BW9: 0 | BX9: 0 | BY9: 0 | BZ9: 159.21 | CA9: 6.176 | CB9: 9.164 | CC9: 27.0295 | CD9: 77.164 | CE9: 11.035 | CF9: 2.4651 | CG9: 7.322 | CH9: 9.603 | CI9: 24.471 | CJ9: 25.705 | CK9: 0.21186 | CL9: 200.35 | CM9: 12.87 | CN9: 25.872 | CO9: 8.3366 | CP9: 0.5895 | CQ9: 0 | CR9: 47.669 | CS9: 0.18 | CT9: 17.406 | CU9: 0.009 | CV9: 0.24 | CW9: 3.95 | CX9: 78.39 | CY9: 0 | CZ9: 0 | DA9: 0.001 | DB9: 0 | DC9: 100.18 | DD9: 0 | DE9: 3.316 | DF9: 12.76 | DG9: 148.002 | DH9: 0 | DI9: 343.07 | DJ9: 31.53 | DK9: 0.1215 | DL9: 0.246 | DM9: 539.04 | DN9: 7.598 | DO9: 61.609 | DP9: 69.21
A10: 01C101 | B10: Pose d'un stimulateur médullaire, niveau 1 | D10: 101 | E10: 6427.98 | F10: 5.23 | G10: 0.3312 | H10: 62.318 | I10: 2.39 | J10: 308.41 | K10: 378.68 | L10: 0 | M10: 0 | N10: 0 | O10: 0 | P10: 0 | Q10: 0 | R10: 0 | S10: 0 | T10: 0 | U10: 0 | V10: 0 | W10: 378.68 | X10: 5.6817 | Y10: 3.9688 | Z10: 2.1057 | AA10: 0 | AB10: 51.732 | AC10: 63.488 | AD10: 9.746 | AE10: 4.698 | AF10: 15.57 | AG10: 0 | AH10: 49.606 | AI10: 79.62 | AJ10: 0 | AK10: 0 | AL10: 0 | AM10: 0 | AN10: 0 | AO10: 0 | AP10: 0 | AQ10: 0 | AR10: 0 | AS10: 0 | AT10: 0 | AU10: 0 | AV10: 0 | AW10: 0 | AX10: 0 | AY10: 0 | AZ10: 0.0173 | BA10: 0.0195 | BB10: 0.0971 | BC10: 0 | BD10: 0.134 | BE10: 0.0412 | BF10: 0.0197 | BG10: 0.082 | BH10: 0.022 | BI10: 0.165 | BJ10: 0.05203 | BK10: 0.01812 | BL10: 0.582 | BM10: 0.1912 | BN10: 0.04176 | BO10: 0.885 | BP10: 0 | BQ10: 0 | BR10: 0 | BS10: 0 | BT10: 0 | BU10: 0 | BV10: 0.00794 | BW10: 0.001008 | BX10: 0.05312 | BY10: 0.06207 | BZ10: 144.35 | CA10: 20.583 | CB10: 38.606 | CC10: 22.2001 | CD10: 78.013 | CE10: 15.125 | CF10: 13.1188 | CG10: 6.4618 | CH10: 29.376 | CI10: 20.932 | CJ10: 47.021 | CK10: 0.13818 | CL10: 291.58 | CM10: 14.025 | CN10: 24.235 | CO10: 4.5919 | CP10: 4.7429 | CQ10: 0 | CR10: 47.595 | CS10: 0 | CT10: 29.622 | CU10: 0.131 | CV10: 5120.59 | CW10: 3.61 | CX10: 81.02 | CY10: 0 | CZ10: 0.05886 | DA10: 0.1715 | DB10: 0 | DC10: 5235.21 | DD10: 0 | DE10: 10.876 | DF10: 36.33 | DG10: 83.433 | DH10: 0 | DI10: 128.71 | DJ10: 64.15 | DK10: 0.6088 | DL10: 6.462 | DM10: 330.57 | DN10: 9.039 | DO10: 105.814 | DP10: 114.85
A11: 01C141 | B11: Libérations de nerfs superficiels à l'exception du médian au canal carpien, niveau 1 | D11: 300 | E11: 1072.82 | F11: 2.049 | G11: 0.4842 | H11: 30.435 | I11: 0.521 | J11: 163.66 | K11: 197.15 | L11: 0 | M11: 0 | N11: 0 | O11: 0 | P11: 0 | Q11: 0 | R11: 0 | S11: 0 | T11: 0 | U11: 0 | V11: 0 | W11: 197.15 | X11: 1.7353 | Y11: 1.7307 | Z11: 0.98831 | AA11: 0.09192 | AB11: 24.218 | AC11: 28.764 | AD11: 28.799 | AE11: 12.382 | AF11: 30.574 | AG11: 0.07838 | AH11: 88.324 | AI11: 160.16 | AJ11: 0 | AK11: 0 | AL11: 0 | AM11: 0 | AN11: 0 | AO11: 0 | AP11: 0 | AQ11: 0 | AR11: 0 | AS11: 0 | AT11: 0 | AU11: 0.0082 | AV11: 0.0126 | AW11: 0.042 | AX11: 0.044 | AY11: 0.107 | AZ11: 0.0203 | BA11: 0.0229 | BB11: 0.1138 | BC11: 0 | BD11: 0.157 | BE11: 0.0069 | BF11: 0.0033 | BG11: 0.014 | BH11: 0.004 | BI11: 0.028 | BJ11: 0.04813 | BK11: 0.01676 | BL11: 0.5384 | BM11: 0.1769 | BN11: 0.03863 | BO11: 0.819 | BP11: 0 | BQ11: 0 | BR11: 0 | BS11: 0 | BT11: 0 | BU11: 0 | BV11: 0.00486 | BW11: 0.000617 | BX11: 0.03253 | BY11: 0.03801 | BZ11: 190.07 | CA11: 8.449 | CB11: 31.482 | CC11: 19.7536 | CD11: 55.413 | CE11: 5.364 | CF11: 3.7882 | CG11: 8.4415 | CH11: 6.958 | CI11: 12.81 | CJ11: 19.146 | CK11: 0.10873 | CL11: 171.71 | CM11: 28.784 | CN11: 33.851 | CO11: 4.1682 | CP11: 1.4786 | CQ11: 0 | CR11: 68.282 | CS11: 0 | CT11: 20.412 | CU11: 0.186 | CV11: 0.19 | CW11: 13.71 | CX11: 105.06 | CY11: 0.0318 | CZ11: 0.05444 | DA11: 0.0116 | DB11: 0 | DC11: 139.66 | DD11: 0 | DE11: 7.289 | DF11: 17.62 | DG11: 83.025 | DH11: 0 | DI11: 175.22 | DJ11: 18.53 | DK11: 0.4296 | DL11: 3.824 | DM11: 305.95 | DN11: 7.065 | DO11: 49.101 | DP11: 56.17
A12: 01C14J | B12: Libérations de nerfs superficiels à l'exception du médian au canal carpien, en ambulatoire | D12: 614 | E12: 832.83 | F12: 2.107 | G12: 0.1411 | H12: 16.528 | I12: 0.049 | J12: 47.24 | K12: 66.06 | L12: 0 | M12: 0 | N12: 0 | O12: 0 | P12: 0 | Q12: 0 | R12: 0 | S12: 0 | T12: 0 | U12: 0 | V12: 0 | W12: 66.06 | X12: 1.4923 | Y12: 0.7881 | Z12: 1.04865 | AA12: 0.14314 | AB12: 16.845 | AC12: 20.317 | AD12: 25.773 | AE12: 10.06 | AF12: 29.001 | AG12: 0.20694 | AH12: 67.41 | AI12: 132.45 | AJ12: 0 | AK12: 0 | AL12: 0 | AM12: 0 | AN12: 0 | AO12: 0 | AP12: 0 | AQ12: 0 | AR12: 0 | AS12: 0 | AT12: 0 | AU12: 0.005 | AV12: 0.0133 | AW12: 0 | AX12: 0.019 | AY12: 0.037 | AZ12: 0 | BA12: 0 | BB12: 0 | BC12: 0 | BD12: 0 | BE12: 0 | BF12: 0 | BG12: 0 | BH12: 0 | BI12: 0 | BJ12: 0 | BK12: 0 | BL12: 0 | BM12: 0 | BN12: 0 | BO12: 0 | BP12: 0.00055 | BQ12: 0 | BR12: 0.01956 | BS12: 0 | BT12: 0.0729 | BU12: 0.093 | BV12: 0 | BW12: 0 | BX12: 0 | BY12: 0 | BZ12: 152.9 | CA12: 5.479 | CB12: 9.297 | CC12: 21.4129 | CD12: 68.853 | CE12: 7.491 | CF12: 4.4725 | CG12: 7.8172 | CH12: 9.306 | CI12: 20.318 | CJ12: 27.856 | CK12: 0.10077 | CL12: 182.4 | CM12: 23.023 | CN12: 25.075 | CO12: 4.4629 | CP12: 1.0059 | CQ12: 0 | CR12: 53.567 | CS12: 0.33 | CT12: 13.433 | CU12: 0.002 | CV12: 1.48 | CW12: 9.92 | CX12: 77.98 | CY12: 0 | CZ12: 0 | DA12: 0.0006 | DB12: 0.0753 | DC12: 103.22 | DD12: 0 | DE12: 0.855 | DF12: 15.65 | DG12: 79.381 | DH12: 0 | DI12: 164.72 | DJ12: 13.88 | DK12: 0.0227 | DL12: 0.18 | DM12: 274.69 | DN12: 6.131 | DO12: 74.843 | DP12: 80.97
A13: 01C151 | B13: Libérations du médian au canal carpien, niveau 1 | D13: 341 | E13: 840.7 | F13: 1.706 | G13: 0.2697 | H13: 24.043 | I13: 1.618 | J13: 139.16 | K13: 166.79 | L13: 0 | M13: 0 | N13: 0 | O13: 0 | P13: 0 | Q13: 0 | R13: 0 | S13: 0 | T13: 0 | U13: 0 | V13: 0 | W13: 166.79 | X13: 1.4651 | Y13: 0.7628 | Z13: 0.39484 | AA13: 0.13719 | AB13: 18.845 | AC13: 21.605 | AD13: 17.88 | AE13: 6.769 | AF13: 21.631 | AG13: 0.23771 | AH13: 60.314 | AI13: 106.83 | AJ13: 0 | AK13: 0 | AL13: 0 | AM13: 0 | AN13: 0 | AO13: 0 | AP13: 0 | AQ13: 0 | AR13: 0 | AS13: 0 | AT13: 0 | AU13: 0.0658 | AV13: 0.0701 | AW13: 0.488 | AX13: 0.4 | AY13: 1.024 | AZ13: 0.0019 | BA13: 0.0022 | BB13: 0.0109 | BC13: 0 | BD13: 0.015 | BE13: 0.0148 | BF13: 0.0071 | BG13: 0.03 | BH13: 0.008 | BI13: 0.059 | BJ13: 0.13339 | BK13: 0.04646 | BL13: 1.4921 | BM13: 0.4901 | BN13: 0.10706 | BO13: 2.269 | BP13: 0 | BQ13: 0 | BR13: 0 | BS13: 0 | BT13: 0 | BU13: 0 | BV13: 0.00077 | BW13: 9.7e-05 | BX13: 0.00514 | BY13: 0.006 | BZ13: 131.81 | CA13: 7.773 | CB13: 27.136 | CC13: 23.0284 | CD13: 45.198 | CE13: 5.509 | CF13: 3.0619 | CG13: 7.6199 | CH13: 7.089 | CI13: 12.402 | CJ13: 18.016 | CK13: 0.362 | CL13: 157.2 | CM13: 19.598 | CN13: 22.483 | CO13: 3.3805 | CP13: 1.6621 | CQ13: 0 | CR13: 47.123 | CS13: 0 | CT13: 13.776 | CU13: 0.065 | CV13: 4.89 | CW13: 6.91 | CX13: 65.96 | CY13: 0.0121 | CZ13: 0.15088 | DA13: 0.0048 | DB13: 0.0147 | DC13: 91.79 | DD13: 0 | DE13: 8.25 | DF13: 10.42 | DG13: 72.588 | DH13: 0 | DI13: 142.84 | DJ13: 9.79 | DK13: 0.7635 | DL13: 1.342 | DM13: 246 | DN13: 7.9 | DO13: 34.259 | DP13: 42.16
A14: 01C15J | B14: Libérations du médian au canal carpien, en ambulatoire | D14: 4820 | E14: 566.32 | F14: 1.219 | G14: 0.1596 | H14: 13.986 | I14: 0.042 | J14: 49.79 | K14: 65.2 | L14: 0 | M14: 0 | N14: 0 | O14: 0 | P14: 0 | Q14: 0 | R14: 0 | S14: 0 | T14: 0 | U14: 0 | V14: 0 | W14: 65.2 | X14: 0.87 | Y14: 0.6211 | Z14: 0.27067 | AA14: 0.15435 | AB14: 8.199 | AC14: 10.115 | AD14: 12.245 | AE14: 5.134 | AF14: 13.662 | AG14: 0.06565 | AH14: 34.956 | AI14: 66.06 | AJ14: 0 | AK14: 0 | AL14: 0 | AM14: 0 | AN14: 0 | AO14: 0 | AP14: 0 | AQ14: 0 | AR14: 0 | AS14: 0 | AT14: 0 | AU14: 0.0139 | AV14: 0.0374 | AW14: 0 | AX14: 0.053 | AY14: 0.105 | AZ14: 0 | BA14: 0 | BB14: 0 | BC14: 0 | BD14: 0 | BE14: 0 | BF14: 0 | BG14: 0 | BH14: 0 | BI14: 0 | BJ14: 0 | BK14: 0 | BL14: 0 | BM14: 0 | BN14: 0 | BO14: 0 | BP14: 0.00014 | BQ14: 0 | BR14: 0.00016 | BS14: 0 | BT14: 0.0183 | BU14: 0.0186 | BV14: 0 | BW14: 0 | BX14: 0 | BY14: 0 | BZ14: 76.3 | CA14: 5.639 | CB14: 9.702 | CC14: 22.1049 | CD14: 43.376 | CE14: 4.497 | CF14: 2.5188 | CG14: 7.6984 | CH14: 6.2 | CI14: 12.013 | CJ14: 15.302 | CK14: 0.15602 | CL14: 129.21 | CM14: 13.951 | CN14: 14.969 | CO14: 1.9251 | CP14: 0.7532 | CQ14: 0 | CR14: 31.598 | CS14: 0.44 | CT14: 7.497 | CU14: 0.178 | CV14: 0.42 | CW14: 8.82 | CX14: 42.48 | CY14: 0 | CZ14: 0 | DA14: 0.0045 | DB14: 0.0407 | DC14: 59.87 | DD14: 0 | DE14: 0.711 | DF14: 9.08 | DG14: 59.749 | DH14: 0 | DI14: 126.29 | DJ14: 7.95 | DK14: 0.0146 | DL14: 0.352 | DM14: 204.15 | DN14: 5.801 | DO14: 37.407 | DP14: 43.21
A15: 01K04J | B15: Injections de toxine botulique, en ambulatoire | D15: 244 | E15: 309.55 | F15: 0.492 | G15: 0.0564 | H15: 12.926 | I15: 0 | J15: 59.52 | K15: 72.99 | L15: 0 | M15: 0 | N15: 0 | O15: 0 | P15: 0 | Q15: 0 | R15: 0 | S15: 0 | T15: 0 | U15: 0 | V15: 0 | W15: 72.99 | X15: 0 | Y15: 0 | Z15: 0 | AA15: 0 | AB15: 0 | AC15: 0 | AD15: 2.814 | AE15: 0.91 | AF15: 2.921 | AG15: 0 | AH15: 9.432 | AI15: 16.08 | AJ15: 0 | AK15: 0 | AL15: 0 | AM15: 0 | AN15: 0 | AO15: 0 | AP15: 0 | AQ15: 0 | AR15: 0 | AS15: 0 | AT15: 0 | AU15: 0 | AV15: 0 | AW15: 0 | AX15: 0 | AY15: 0 | AZ15: 0 | BA15: 0 | BB15: 0 | BC15: 0 | BD15: 0 | BE15: 0 | BF15: 0 | BG15: 0 | BH15: 0 | BI15: 0 | BJ15: 0 | BK15: 0 | BL15: 0 | BM15: 0 | BN15: 0 | BO15: 0 | BP15: 0 | BQ15: 0 | BR15: 0 | BS15: 0 | BT15: 0 | BU15: 0 | BV15: 0 | BW15: 0 | BX15: 0 | BY15: 0 | BZ15: 16.08 | CA15: 6.663 | CB15: 7.214 | CC15: 33.348 | CD15: 11.79 | CE15: 1.663 | CF15: 2.1669 | CG15: 9.2035 | CH15: 2.736 | CI15: 4.484 | CJ15: 5.922 | CK15: 0 | CL15: 85.19 | CM15: 2.562 | CN15: 2.767 | CO15: 0.2811 | CP15: 0.5644 | CQ15: 0 | CR15: 6.174 | CS15: 0 | CT15: 53.627 | CU15: 0.001 | CV15: 0 | CW15: 3.07 | CX15: 12.77 | CY15: 0 | CZ15: 0 | DA15: 0 | DB15: 0 | DC15: 69.47 | DD15: 0 | DE15: 0 | DF15: 0.51 | DG15: 0 | DH15: 0 | DI15: 0 | DJ15: 59.14 | DK15: 0 | DL15: 0 | DM15: 59.64 | DN15: 2.682 | DO15: 11.53 | DP15: 14.21
A16: 01K05J | B16: Séjours pour douleurs chroniques rebelles comprenant un bloc ou une infiltration, en ambulatoire | D16: 40 | E16: 442.26 | F16: 0.582 | G16: 0.6387 | H16: 27.931 | I16: 1.611 | J16: 98.58 | K16: 129.34 | L16: 0 | M16: 0 | N16: 0 | O16: 0 | P16: 0 | Q16: 0 | R16: 0 | S16: 0 | T16: 0 | U16: 0 | V16: 0 | W16: 129.34 | X16: 0 | Y16: 0 | Z16: 0 | AA16: 0 | AB16: 0 | AC16: 0 | AD16: 9.591 | AE16: 4.185 | AF16: 12.09 | AG16: 0.50098 | AH16: 27.89 | AI16: 54.26 | AJ16: 0 | AK16: 0 | AL16: 0 | AM16: 0 | AN16: 0 | AO16: 0 | AP16: 0 | AQ16: 0 | AR16: 0 | AS16: 0 | AT16: 0 | AU16: 0 | AV16: 0 | AW16: 0 | AX16: 0 | AY16: 0 | AZ16: 0 | BA16: 0 | BB16: 0 | BC16: 0 | BD16: 0 | BE16: 0 | BF16: 0 | BG16: 0 | BH16: 0 | BI16: 0 | BJ16: 0 | BK16: 0 | BL16: 0 | BM16: 0 | BN16: 0 | BO16: 0 | BP16: 0 | BQ16: 0 | BR16: 0 | BS16: 0 | BT16: 0 | BU16: 0 | BV16: 0 | BW16: 0 | BX16: 0 | BY16: 0 | BZ16: 54.26 | CA16: 8.053 | CB16: 6.156 | CC16: 33.521 | CD16: 45.48 | CE16: 4.734 | CF16: 5.2395 | CG16: 6.701 | CH16: 7.277 | CI16: 9.744 | CJ16: 24.997 | CK16: 0.03625 | CL16: 151.94 | CM16: 6.696 | CN16: 11.78 | CO16: 0.2972 | CP16: 0 | CQ16: 0 | CR16: 18.773 | CS16: 0 | CT16: 11.193 | CU16: 0.002 | CV16: 0 | CW16: 0.13 | CX16: 34.65 | CY16: 0 | CZ16: 0 | DA16: 0 | DB16: 0 | DC16: 45.98 | DD16: 0 | DE16: 0 | DF16: 9.17 | DG16: 0 | DH16: 0 | DI16: 0 | DJ16: 32.81 | DK16: 0 | DL16: 0 | DM16: 41.98 | DN16: 10.296 | DO16: 17.813 | DP16: 28.11
A17: 01K06J | B17: Affections du système nerveux sans acte opératoire avec anesthésie, en ambulatoire | D17: 59 | E17: 845.86 | F17: 0.747 | G17: 0.0935 | H17: 16.431 | I17: 0.013 | J17: 54.27 | K17: 71.55 | L17: 0 | M17: 0 | N17: 0 | O17: 0 | P17: 0 | Q17: 0 | R17: 0 | S17: 0 | T17: 0 | U17: 0 | V17: 0 | W17: 71.55 | X17: 0.548 | Y17: 0.3416 | Z17: 0.60199 | AA17: 0.12387 | AB17: 10.524 | AC17: 12.139 | AD17: 11.939 | AE17: 5.598 | AF17: 11.039 | AG17: 0.19199 | AH17: 31.798 | AI17: 60.57 | AJ17: 0 | AK17: 0 | AL17: 0 | AM17: 0 | AN17: 0 | AO17: 0 | AP17: 0 | AQ17: 0 | AR17: 0 | AS17: 0 | AT17: 0 | AU17: 0.2348 | AV17: 0.2719 | AW17: 0 | AX17: 0.572 | AY17: 1.079 | AZ17: 0 | BA17: 0 | BB17: 0 | BC17: 0 | BD17: 0 | BE17: 0.8983 | BF17: 0.6612 | BG17: 7.608 | BH17: 1.492 | BI17: 10.659 | BJ17: 0 | BK17: 0 | BL17: 0 | BM17: 0 | BN17: 0 | BO17: 0 | BP17: 0 | BQ17: 0 | BR17: 0 | BS17: 0 | BT17: 0 | BU17: 0 | BV17: 0 | BW17: 0 | BX17: 0 | BY17: 0 | BZ17: 84.44 | CA17: 5.76 | CB17: 8.702 | CC17: 25.5584 | CD17: 38.628 | CE17: 3.793 | CF17: 3.7477 | CG17: 8.6936 | CH17: 6.707 | CI17: 13.484 | CJ17: 14.839 | CK17: 0.08916 | CL17: 130 | CM17: 9.858 | CN17: 10.847 | CO17: 0.8953 | CP17: 1.7476 | CQ17: 0 | CR17: 23.349 | CS17: 0.54 | CT17: 7.058 | CU17: 0.002 | CV17: 0 | CW17: 9.9 | CX17: 75.92 | CY17: 0 | CZ17: 0 | DA17: 0.0024 | DB17: 0 | DC17: 93.42 | DD17: 0 | DE17: 6.106 | DF17: 269.96 | DG17: 66.384 | DH17: 0 | DI17: 52.08 | DJ17: 47.62 | DK17: 0.4191 | DL17: 0.525 | DM17: 443.09 | DN17: 7.075 | DO17: 38.994 | DP17: 46.07
A18: 01M081 | B18: Maladies dégénératives du système nerveux, âge inférieur à 80 ans, niveau 1 | D18: 56 | E18: 1705.78 | F18: 7.021 | G18: 0.6881 | H18: 71.186 | I18: 13.052 | J18: 419.9 | K18: 511.85 | L18: 0 | M18: 0 | N18: 0 | O18: 0 | P18: 0 | Q18: 0 | R18: 0 | S18: 0 | T18: 0 | U18: 0 | V18: 0 | W18: 511.85 | X18: 0 | Y18: 0 | Z18: 0 | AA18: 0 | AB18: 0 | AC18: 0 | AD18: 6.203 | AE18: 2.312 | AF18: 8.31 | AG18: 0 | AH18: 18.923 | AI18: 35.75 | AJ18: 0 | AK18: 0 | AL18: 0 | AM18: 0 | AN18: 0 | AO18: 0 | AP18: 0 | AQ18: 0 | AR18: 0 | AS18: 0 | AT18: 0 | AU18: 0.2854 | AV18: 0.5411 | AW18: 0 | AX18: 0.886 | AY18: 1.713 | AZ18: 0 | BA18: 0 | BB18: 0 | BC18: 0 | BD18: 0 | BE18: 0 | BF18: 0 | BG18: 0 | BH18: 0 | BI18: 0 | BJ18: 0 | BK18: 0 | BL18: 0 | BM18: 0 | BN18: 0 | BO18: 0 | BP18: 0.08142 | BQ18: 0.01323 | BR18: 0.5616 | BS18: 0.6965 | BT18: 4.8663 | BU18: 6.2191 | BV18: 0 | BW18: 0 | BX18: 0 | BY18: 0 | BZ18: 43.68 | CA18: 27.003 | CB18: 59.81 | CC18: 22.7733 | CD18: 131.075 | CE18: 20.117 | CF18: 12.4695 | CG18: 7.7274 | CH18: 28.095 | CI18: 29.718 | CJ18: 58.429 | CK18: 0.01123 | CL18: 397.23 | CM18: 11.887 | CN18: 8.024 | CO18: 2.2727 | CP18: 1.9035 | CQ18: 0 | CR18: 24.088 | CS18: 105.88 | CT18: 30.672 | CU18: 0.7 | CV18: 0 | CW18: 1.83 | CX18: 44.52 | CY18: 0.051 | CZ18: 0 | DA18: 0.3166 | DB18: 0 | DC18: 183.97 | DD18: 0 | DE18: 128.846 | DF18: 156.94 | DG18: 0 | DH18: 0 | DI18: 0 | DJ18: 240.48 | DK18: 1.8472 | DL18: 16.85 | DM18: 544.97 | DN18: 9.775 | DO18: 141.105 | DP18: 150.88
A19: 01M111 | B19: Affections des nerfs crâniens et rachidiens, niveau 1 | D19: 109 | E19: 3072.95 | F19: 6.918 | G19: 0.5547 | H19: 69.986 | I19: 10.778 | J19: 390.4 | K19: 478.64 | L19: 0 | M19: 0 | N19: 0 | O19: 0 | P19: 0 | Q19: 0 | R19: 0 | S19: 0 | T19: 0 | U19: 0 | V19: 0 | W19: 478.64 | X19: 0.0642 | Y19: 0.0626 | Z19: 0.09823 | AA19: 0 | AB19: 1.41 | AC19: 1.635 | AD19: 7.143 | AE19: 3.332 | AF19: 6.917 | AG19: 0 | AH19: 16.742 | AI19: 34.14 | AJ19: 0 | AK19: 0 | AL19: 0 | AM19: 0 | AN19: 0 | AO19: 0 | AP19: 0 | AQ19: 0 | AR19: 0 | AS19: 0 | AT19: 0 | AU19: 0.0567 | AV19: 0.1521 | AW19: 0 | AX19: 0.217 | AY19: 0.426 | AZ19: 0.2572 | BA19: 0.0279 | BB19: 0.4594 | BC19: 0 | BD19: 0.745 | BE19: 0.094 | BF19: 0.0369 | BG19: 1.818 | BH19: 0.042 | BI19: 1.99 | BJ19: 0.06312 | BK19: 0.02198 | BL19: 0.706 | BM19: 0.2319 | BN19: 0.05066 | BO19: 1.074 | BP19: 0.12753 | BQ19: 0.02707 | BR19: 0.79613 | BS19: 0.83751 | BT19: 6.6576 | BU19: 8.4459 | BV19: 0.01131 | BW19: 0.001436 | BX19: 0.07569 | BY19: 0.08844 | BZ19: 48.54 | CA19: 26.789 | CB19: 53.908 | CC19: 23.6806 | CD19: 121.78 | CE19: 20.108 | CF19: 14.3524 | CG19: 8.3492 | CH19: 29.844 | CI19: 30.538 | CJ19: 58.576 | CK19: 0.09114 | CL19: 388.02 | CM19: 10.867 | CN19: 6.719 | CO19: 1.2774 | CP19: 2.1862 | CQ19: 0 | CR19: 21.05 | CS19: 1554.39 | CT19: 27.251 | CU19: 0.612 | CV19: 0 | CW19: 5.11 | CX19: 47.1 | CY19: 0.0393 | CZ19: 0.07139 | DA19: 0.1893 | DB19: 0 | DC19: 1634.76 | DD19: 0 | DE19: 131.741 | DF19: 177.03 | DG19: 6.427 | DH19: 0 | DI19: 3.21 | DJ19: 176.04 | DK19: 2.4879 | DL19: 5.007 | DM19: 501.94 | DN19: 12.561 | DO19: 137.475 | DP19: 150.04
A20: 01M11T | B20: Affections des nerfs crâniens et rachidiens, très courte durée | D20: 119 | E20: 558.01 | F20: 1.021 | G20: 0.2475 | H20: 19.941 | I20: 3.257 | J20: 94.76 | K20: 119.22 | L20: 0 | M20: 0 | N20: 0 | O20: 0 | P20: 0 | Q20: 0 | R20: 0 | S20: 0 | T20: 0 | U20: 0 | V20: 0 | W20: 119.22 | X20: 0 | Y20: 0 | Z20: 0.07001 | AA20: 0 | AB20: 0.719 | AC20: 0.789 | AD20: 8.694 | AE20: 4.289 | AF20: 8.614 | AG20: 0 | AH20: 21.943 | AI20: 43.54 | AJ20: 0 | AK20: 0 | AL20: 0 | AM20: 0 | AN20: 0 | AO20: 0 | AP20: 0 | AQ20: 0 | AR20: 0 | AS20: 0 | AT20: 0 | AU20: 0.0073 | AV20: 0.0038 | AW20: 0.072 | AX20: 0.05 | AY20: 0.133 | AZ20: 0 | BA20: 0 | BB20: 0 | BC20: 0 | BD20: 0 | BE20: 0.0102 | BF20: 0 | BG20: 0.999 | BH20: 0 | BI20: 1.009 | BJ20: 0.01611 | BK20: 0.00561 | BL20: 0.1802 | BM20: 0.0592 | BN20: 0.01293 | BO20: 0.274 | BP20: 0.09975 | BQ20: 0.01537 | BR20: 0.90036 | BS20: 0.66225 | BT20: 5.6776 | BU20: 7.3554 | BV20: 0 | BW20: 0 | BX20: 0 | BY20: 0 | BZ20: 53.1 | CA20: 6.161 | CB20: 9.746 | CC20: 20.8362 | CD20: 27.304 | CE20: 3.365 | CF20: 2.7523 | CG20: 8.0748 | CH20: 7.158 | CI20: 7.729 | CJ20: 12.44 | CK20: 0.01343 | CL20: 105.58 | CM20: 5.219 | CN20: 8.416 | CO20: 0.8751 | CP20: 1.115 | CQ20: 0 | CR20: 15.624 | CS20: 0 | CT20: 9.636 | CU20: 0.16 | CV20: 0 | CW20: 4.99 | CX20: 37.33 | CY20: 0.0229 | CZ20: 0.01822 | DA20: 0.1194 | DB20: 0 | DC20: 52.27 | DD20: 0 | DE20: 31.111 | DF20: 145.4 | DG20: 2.387 | DH20: 0 | DI20: 0 | DJ20: 31.61 | DK20: 0.4112 | DL20: 1.282 | DM20: 212.21 | DN20: 2.505 | DO20: 35.107 | DP20: 37.61
A21: 01M15T | B21: Accidents ischémiques transitoires et occlusions des artères précérébrales, âge supérieur à 79 ans, très courte durée | D21: 37 | E21: 1267.91 | F21: 2.222 | G21: 0.4911 | H21: 33.593 | I21: 9.194 | J21: 183.93 | K21: 229.43 | L21: 0 | M21: 0 | N21: 0 | O21: 0 | P21: 0 | Q21: 0 | R21: 0.1302 | S21: 0.1517 | T21: 1.378 | U21: 18.77 | V21: 20.43 | W21: 249.86 | X21: 0.0393 | Y21: 0.0006 | Z21: 0.53493 | AA21: 0 | AB21: 7.667 | AC21: 8.242 | AD21: 4.509 | AE21: 2.046 | AF21: 4.642 | AG21: 0 | AH21: 10.749 | AI21: 21.95 | AJ21: 0 | AK21: 0 | AL21: 0 | AM21: 0 | AN21: 0 | AO21: 0 | AP21: 0 | AQ21: 0 | AR21: 0 | AS21: 0 | AT21: 0 | AU21: 0.8145 | AV21: 0.1709 | AW21: 9.227 | AX21: 5.925 | AY21: 16.137 | AZ21: 1.8047 | BA21: 2.0345 | BB21: 10.1308 | BC21: 0 | BD21: 13.97 | BE21: 5.038 | BF21: 2.8412 | BG21: 14.767 | BH21: 3.641 | BI21: 26.287 | BJ21: 0.29103 | BK21: 0.10136 | BL21: 3.2554 | BM21: 1.0693 | BN21: 0.23358 | BO21: 4.951 | BP21: 0.13785 | BQ21: 0.04311 | BR21: 1.21803 | BS21: 1.40379 | BT21: 8.7992 | BU21: 11.602 | BV21: 0 | BW21: 0 | BX21: 0 | BY21: 0 | BZ21: 103.14 | CA21: 10.044 | CB21: 20.821 | CC21: 26.6766 | CD21: 48.671 | CE21: 6.724 | CF21: 7.1517 | CG21: 8.0318 | CH21: 10.418 | CI21: 19.047 | CJ21: 24.579 | CK21: 0.19464 | CL21: 182.36 | CM21: 10.699 | CN21: 5.08 | CO21: 1.1102 | CP21: 2.4036 | CQ21: 0 | CR21: 19.293 | CS21: 0 | CT21: 17.126 | CU21: 0.224 | CV21: 18.28 | CW21: 2.35 | CX21: 84.15 | CY21: 0.024 | CZ21: 0.32919 | DA21: 0.3597 | DB21: 0 | DC21: 122.85 | DD21: 0 | DE21: 59.104 | DF21: 409.78 | DG21: 32.157 | DH21: 0 | DI21: 0 | DJ21: 86.19 | DK21: 3.1942 | DL21: 0 | DM21: 590.42 | DN21: 10.557 | DO21: 49.682 | DP21: 60.24
A22: 01M161 | B22: Accidents ischémiques transitoires et occlusions des artères précérébrales, âge inférieur à 80 ans, niveau 1 | D22: 31 | E22: 2248.55 | F22: 6.065 | G22: 1.1883 | H22: 103.606 | I22: 6 | J22: 545.95 | K22: 662.81 | L22: 0.2099 | M22: 0.2152 | N22: 0.98 | O22: 0 | P22: 31.35 | Q22: 32.75 | R22: 0 | S22: 0 | T22: 0 | U22: 0 | V22: 0 | W22: 695.56 | X22: 0.7475 | Y22: 0.6297 | Z22: 0 | AA22: 0 | AB22: 1.894 | AC22: 3.272 | AD22: 5.042 | AE22: 1.825 | AF22: 5.221 | AG22: 0 | AH22: 13.325 | AI22: 25.41 | AJ22: 0 | AK22: 0 | AL22: 0 | AM22: 0 | AN22: 0 | AO22: 0 | AP22: 0 | AQ22: 0 | AR22: 0 | AS22: 0 | AT22: 0 | AU22: 0.2179 | AV22: 0.5074 | AW22: 0.354 | AX22: 0.941 | AY22: 2.02 | AZ22: 0.0254 | BA22: 0.0286 | BB22: 0.1424 | BC22: 0 | BD22: 0.196 | BE22: 0.1626 | BF22: 0.0722 | BG22: 1.428 | BH22: 0.081 | BI22: 1.744 | BJ22: 0.14366 | BK22: 0.05004 | BL22: 1.607 | BM22: 0.5279 | BN22: 0.1153 | BO22: 2.444 | BP22: 0.15283 | BQ22: 0.04158 | BR22: 1.36539 | BS22: 1.595 | BT22: 10.215 | BU22: 13.3697 | BV22: 0 | BW22: 0 | BX22: 0 | BY22: 0 | BZ22: 48.46 | CA22: 29.418 | CB22: 75.783 | CC22: 23.3836 | CD22: 164.773 | CE22: 24.091 | CF22: 12.4762 | CG22: 7.4447 | CH22: 28.508 | CI22: 37.309 | CJ22: 70.02 | CK22: 0.07367 | CL22: 473.28 | CM22: 20.65 | CN22: 10.495 | CO22: 1.1325 | CP22: 3.0351 | CQ22: 0 | CR22: 35.313 | CS22: 0.02 | CT22: 35.718 | CU22: 0.419 | CV22: 82.56 | CW22: 7.87 | CX22: 51.03 | CY22: 0.0236 | CZ22: 0.1625 | DA22: 0.209 | DB22: 0 | DC22: 178.01 | DD22: 0 | DE22: 121.648 | DF22: 411.28 | DG22: 21.139 | DH22: 0 | DI22: 22.82 | DJ22: 228.32 | DK22: 5.2556 | DL22: 7.473 | DM22: 817.93 | DN22: 12.251 | DO22: 135.401 | DP22: 147.65
A23: 01M16T | B23: Accidents ischémiques transitoires et occlusions des artères précérébrales, âge inférieur à 80 ans, très courte durée | D23: 86 | E23: 1343 | F23: 1.482 | G23: 0.2892 | H23: 30.049 | I23: 1.678 | J23: 158.73 | K23: 192.23 | L23: 0 | M23: 0 | N23: 0 | O23: 0 | P23: 0 | Q23: 0 | R23: 0.0345 | S23: 0.0296 | T23: 0.225 | U23: 3.47 | V23: 3.76 | W23: 195.99 | X23: 0.1227 | Y23: 0.002 | Z23: 0.53885 | AA23: 0 | AB23: 11.513 | AC23: 12.176 | AD23: 3.929 | AE23: 1.631 | AF23: 3.706 | AG23: 0 | AH23: 9.192 | AI23: 18.46 | AJ23: 0 | AK23: 0 | AL23: 0 | AM23: 0 | AN23: 0 | AO23: 0 | AP23: 0 | AQ23: 0 | AR23: 0 | AS23: 0 | AT23: 0 | AU23: 0.2374 | AV23: 0.0709 | AW23: 2.593 | AX23: 1.698 | AY23: 4.599 | AZ23: 4.408 | BA23: 4.9693 | BB23: 24.7445 | BC23: 0 | BD23: 34.122 | BE23: 9.6251 | BF23: 4.6946 | BG23: 29.175 | BH23: 6.742 | BI23: 50.237 | BJ23: 0.32991 | BK23: 0.1149 | BL23: 3.6903 | BM23: 1.2122 | BN23: 0.26478 | BO23: 5.612 | BP23: 0.09246 | BQ23: 0.01509 | BR23: 0.74371 | BS23: 0.67669 | BT23: 5.1529 | BU23: 6.6808 | BV23: 0 | BW23: 0 | BX23: 0 | BY23: 0 | BZ23: 131.88 | CA23: 8.834 | CB23: 23.008 | CC23: 27.1454 | CD23: 51.659 | CE23: 6.658 | CF23: 6.2498 | CG23: 8.2489 | CH23: 9.165 | CI23: 21.478 | CJ23: 24.104 | CK23: 0.42834 | CL23: 186.98 | CM23: 11.889 | CN23: 3.65 | CO23: 1.889 | CP23: 2.6617 | CQ23: 0 | CR23: 20.09 | CS23: 0 | CT23: 13.331 | CU23: 0.055 | CV23: 33.86 | CW23: 3.2 | CX23: 109.4 | CY23: 0.0037 | CZ23: 0.37316 | DA23: 0.0498 | DB23: 0 | DC23: 160.27 | DD23: 0 | DE23: 45.558 | DF23: 502.15 | DG23: 31.268 | DH23: 0 | DI23: 0 | DJ23: 65.39 | DK23: 3.4226 | DL23: 0 | DM23: 647.78 | DN23: 13.192 | DO23: 39.994 | DP23: 53.19
A24: 01M171 | B24: Sclérose en plaques et ataxie cérébelleuse, niveau 1 | D24: 84 | E24: 1090.82 | F24: 4.504 | G24: 0.5918 | H24: 48.407 | I24: 4.689 | J24: 279.87 | K24: 338.07 | L24: 0 | M24: 0 | N24: 0 | O24: 0 | P24: 0 | Q24: 0 | R24: 0 | S24: 0 | T24: 0 | U24: 0 | V24: 0 | W24: 338.07 | X24: 0 | Y24: 0 | Z24: 0 | AA24: 0 | AB24: 0 | AC24: 0 | AD24: 1.08 | AE24: 0.45 | AF24: 1.285 | AG24: 0 | AH24: 2.912 | AI24: 5.73 | AJ24: 0 | AK24: 0 | AL24: 0 | AM24: 0 | AN24: 0 | AO24: 0 | AP24: 0 | AQ24: 0 | AR24: 0 | AS24: 0 | AT24: 0 | AU24: 0.0718 | AV24: 0.1927 | AW24: 0 | AX24: 0.274 | AY24: 0.539 | AZ24: 0 | BA24: 0 | BB24: 0 | BC24: 0 | BD24: 0 | BE24: 0 | BF24: 0 | BG24: 0 | BH24: 0 | BI24: 0 | BJ24: 0 | BK24: 0 | BL24: 0 | BM24: 0 | BN24: 0 | BO24: 0 | BP24: 0.02967 | BQ24: 0.0042 | BR24: 0.19314 | BS24: 0.24317 | BT24: 1.7333 | BU24: 2.2035 | BV24: 0 | BW24: 0 | BX24: 0 | BY24: 0 | BZ24: 8.47 | CA24: 18.61 | CB24: 42.109 | CC24: 21.8941 | CD24: 96.906 | CE24: 13.406 | CF24: 7.0568 | CG24: 8.9933 | CH24: 17.123 | CI24: 22.082 | CJ24: 37.6 | CK24: 0.01527 | CL24: 285.8 | CM24: 6.142 | CN24: 1.07 | CO24: 0.5029 | CP24: 0.9089 | CQ24: 0 | CR24: 8.623 | CS24: 105.8 | CT24: 16.263 | CU24: 0.573 | CV24: 0 | CW24: 0.45 | CX24: 16.19 | CY24: 0.0813 | CZ24: 0 | DA24: 0.0505 | DB24: 0 | DC24: 139.4 | DD24: 0 | DE24: 94.961 | DF24: 68.67 | DG24: 0 | DH24: 0 | DI24: 0.33 | DJ24: 142.95 | DK24: 1.7875 | DL24: 1.774 | DM24: 310.47 | DN24: 7.483 | DO24: 105.08 | DP24: 112.56
A25: 01M211 | B25: Douleurs chroniques rebelles, niveau 1 | D25: 53 | E25: 1423.57 | F25: 2 | G25: 1.2982 | H25: 65.715 | I25: 3.589 | J25: 288.52 | K25: 361.12 | L25: 3.918 | M25: 0 | N25: 30.618 | O25: 0.0915 | P25: 246 | Q25: 280.63 | R25: 0 | S25: 0 | T25: 0 | U25: 0 | V25: 0 | W25: 641.75 | X25: 0.2216 | Y25: 0.2679 | Z25: 0.15173 | AA25: 0 | AB25: 2.572 | AC25: 3.214 | AD25: 4.322 | AE25: 1.817 | AF25: 4.737 | AG25: 0.04877 | AH25: 9.838 | AI25: 20.76 | AJ25: 0 | AK25: 0 | AL25: 0 | AM25: 0 | AN25: 0 | AO25: 0 | AP25: 0 | AQ25: 0 | AR25: 0 | AS25: 0 | AT25: 0 | AU25: 0 | AV25: 0 | AW25: 0 | AX25: 0 | AY25: 0 | AZ25: 0 | BA25: 0 | BB25: 0 | BC25: 0 | BD25: 0 | BE25: 0 | BF25: 0 | BG25: 0 | BH25: 0 | BI25: 0 | BJ25: 0 | BK25: 0 | BL25: 0 | BM25: 0 | BN25: 0 | BO25: 0 | BP25: 0 | BQ25: 0 | BR25: 0 | BS25: 0 | BT25: 0 | BU25: 0 | BV25: 0 | BW25: 0 | BX25: 0 | BY25: 0 | BZ25: 23.98 | CA25: 26.398 | CB25: 52.661 | CC25: 21.8725 | CD25: 133.143 | CE25: 14.556 | CF25: 10.4285 | CG25: 9.8415 | CH25: 18.847 | CI25: 33.764 | CJ25: 53.602 | CK25: 0.07614 | CL25: 375.19 | CM25: 13.521 | CN25: 4.101 | CO25: 0.4838 | CP25: 0.3992 | CQ25: 0 | CR25: 18.506 | CS25: 0 | CT25: 36.321 | CU25: 0.252 | CV25: 0 | CW25: 1.77 | CX25: 55.79 | CY25: 0.0382 | CZ25: 0 | DA25: 0.048 | DB25: 0 | DC25: 94.22 | DD25: 0 | DE25: 20.076 | DF25: 16.64 | DG25: 1.543 | DH25: 0 | DI25: 2.17 | DJ25: 205.86 | DK25: 1.5945 | DL25: 22.053 | DM25: 269.93 | DN25: 19.946 | DO25: 134.189 | DP25: 154.14
A26: 01M21T | B26: Douleurs chroniques rebelles, très courte durée | D26: 319 | E26: 538.38 | F26: 2.252 | G26: 0.0241 | H26: 25.96 | I26: 0.073 | J26: 79.84 | K26: 108.15 | L26: 0 | M26: 0 | N26: 0 | O26: 0 | P26: 0 | Q26: 0 | R26: 0 | S26: 0 | T26: 0 | U26: 0 | V26: 0 | W26: 108.15 | X26: 0 | Y26: 0 | Z26: 0 | AA26: 0 | AB26: 0 | AC26: 0 | AD26: 15.657 | AE26: 2.171 | AF26: 27.357 | AG26: 0.00175 | AH26: 34.44 | AI26: 79.63 | AJ26: 0 | AK26: 0 | AL26: 0 | AM26: 0 | AN26: 0 | AO26: 0 | AP26: 0 | AQ26: 0 | AR26: 0 | AS26: 0 | AT26: 0 | AU26: 0 | AV26: 0 | AW26: 0 | AX26: 0 | AY26: 0 | AZ26: 0 | BA26: 0 | BB26: 0 | BC26: 0 | BD26: 0 | BE26: 0 | BF26: 0 | BG26: 0 | BH26: 0 | BI26: 0 | BJ26: 0 | BK26: 0 | BL26: 0 | BM26: 0 | BN26: 0 | BO26: 0 | BP26: 0 | BQ26: 0 | BR26: 0 | BS26: 0 | BT26: 0 | BU26: 0 | BV26: 0 | BW26: 0 | BX26: 0 | BY26: 0 | BZ26: 79.63 | CA26: 6.028 | CB26: 9.119 | CC26: 32.8797 | CD26: 60.613 | CE26: 8.756 | CF26: 0.1111 | CG26: 7.8108 | CH26: 6.73 | CI26: 21.054 | CJ26: 18.573 | CK26: 0.01776 | CL26: 171.69 | CM26: 7.513 | CN26: 15.176 | CO26: 5.4429 | CP26: 0.0034 | CQ26: 0 | CR26: 28.136 | CS26: 11.87 | CT26: 12.476 | CU26: 0.056 | CV26: 0 | CW26: 0.9 | CX26: 44.04 | CY26: 0.0007 | CZ26: 0 | DA26: 0.0005 | DB26: 0 | DC26: 69.34 | DD26: 0 | DE26: 2.229 | DF26: 0.69 | DG26: 0 | DH26: 0 | DI26: 0 | DJ26: 78.48 | DK26: 0.0305 | DL26: 0 | DM26: 81.43 | DN26: 1.33 | DO26: 50.414 | DP26: 51.74
A27: 01M221 | B27: Migraines et céphalées, niveau 1 | D27: 87 | E27: 925.66 | F27: 3.135 | G27: 0.6185 | H27: 44.446 | I27: 10.106 | J27: 259.71 | K27: 318.01 | L27: 0.2161 | M27: 0 | N27: 1.619 | O27: 0 | P27: 13.47 | Q27: 15.31 | R27: 0 | S27: 0 | T27: 0 | U27: 0 | V27: 0 | W27: 333.32 | X27: 0.1066 | Y27: 0.1256 | Z27: 0.05746 | AA27: 0.02466 | AB27: 1.469 | AC27: 1.783 | AD27: 2.923 | AE27: 1.333 | AF27: 3.242 | AG27: 0.03025 | AH27: 8.679 | AI27: 16.21 | AJ27: 0 | AK27: 0 | AL27: 0 | AM27: 0 | AN27: 0 | AO27: 0 | AP27: 0 | AQ27: 0 | AR27: 0 | AS27: 0 | AT27: 0 | AU27: 0.0044 | AV27: 0.0117 | AW27: 0 | AX27: 0.017 | AY27: 0.033 | AZ27: 0 | BA27: 0 | BB27: 0 | BC27: 0 | BD27: 0 | BE27: 0.0046 | BF27: 0.0022 | BG27: 0.009 | BH27: 0.002 | BI27: 0.018 | BJ27: 0 | BK27: 0 | BL27: 0 | BM27: 0 | BN27: 0 | BO27: 0 | BP27: 0.25257 | BQ27: 0.055 | BR27: 1.73782 | BS27: 1.79296 | BT27: 13.861 | BU27: 17.6994 | BV27: 0 | BW27: 0 | BX27: 0 | BY27: 0 | BZ27: 35.74 | CA27: 15.239 | CB27: 30.675 | CC27: 21.4483 | CD27: 62.007 | CE27: 10.743 | CF27: 9.0146 | CG27: 7.1913 | CH27: 16.984 | CI27: 17.138 | CJ27: 33.055 | CK27: 0.01548 | CL27: 223.51 | CM27: 6.317 | CN27: 4.744 | CO27: 1.0903 | CP27: 1.4443 | CQ27: 0.01345 | CR27: 13.61 | CS27: 0 | CT27: 19.901 | CU27: 0.353 | CV27: 0 | CW27: 1.09 | CX27: 26.59 | CY27: 0.0104 | CZ27: 0 | DA27: 0.4342 | DB27: 0.0079 | DC27: 48.38 | DD27: 0 | DE27: 59.952 | DF27: 88.8 | DG27: 0.897 | DH27: 0 | DI27: 1.18 | DJ27: 118.86 | DK27: 0.4537 | DL27: 0.954 | DM27: 271.1 | DN27: 6.504 | DO27: 86.851 | DP27: 93.35
A28: 01M22T | B28: Migraines et céphalées, très courte durée | D28: 58 | E28: 404.03 | F28: 1.174 | G28: 0.1829 | H28: 21.408 | I28: 5.547 | J28: 113.47 | K28: 141.78 | L28: 0.0587 | M28: 0 | N28: 0.44 | O28: 0 | P28: 3.66 | Q28: 4.16 | R28: 0 | S28: 0 | T28: 0 | U28: 0 | V28: 0 | W28: 145.94 | X28: 0.0102 | Y28: 0.012 | Z28: 0.00547 | AA28: 0 | AB28: 0.124 | AC28: 0.152 | AD28: 1.832 | AE28: 0.942 | AF28: 1.883 | AG28: 0.24828 | AH28: 5.121 | AI28: 10.03 | AJ28: 0 | AK28: 0 | AL28: 0 | AM28: 0 | AN28: 0 | AO28: 0 | AP28: 0 | AQ28: 0 | AR28: 0 | AS28: 0 | AT28: 0 | AU28: 0 | AV28: 0 | AW28: 0 | AX28: 0 | AY28: 0 | AZ28: 0 | BA28: 0 | BB28: 0 | BC28: 0 | BD28: 0 | BE28: 0 | BF28: 0 | BG28: 0 | BH28: 0 | BI28: 0 | BJ28: 0 | BK28: 0 | BL28: 0 | BM28: 0 | BN28: 0 | BO28: 0 | BP28: 0.14843 | BQ28: 0.03141 | BR28: 1.63544 | BS28: 0.95982 | BT28: 8.6602 | BU28: 11.4353 | BV28: 0 | BW28: 0 | BX28: 0 | BY28: 0 | BZ28: 21.61 | CA28: 5.93 | CB28: 8.579 | CC28: 20.6102 | CD28: 29.228 | CE28: 3.013 | CF28: 2.7587 | CG28: 5.7853 | CH28: 7.928 | CI28: 7.839 | CJ28: 14.141 | CK28: 0.02765 | CL28: 105.84 | CM28: 3.265 | CN28: 2.716 | CO28: 0.4386 | CP28: 0.5688 | CQ28: 0 | CR28: 6.988 | CS28: 0 | CT28: 9.212 | CU28: 0.11 | CV28: 0 | CW28: 0.8 | CX28: 15.18 | CY28: 0 | CZ28: 0 | DA28: 0.526 | DB28: 0 | DC28: 25.83 | DD28: 0 | DE28: 13.398 | DF28: 23.12 | DG28: 0 | DH28: 0 | DI28: 8.99 | DJ28: 47.27 | DK28: 0.1587 | DL28: 4.883 | DM28: 97.82 | DN28: 2.667 | DO28: 39.434 | DP28: 42.1
A29: 01M25T | B29: Epilepsie, âge supérieur à 17 ans, très courte durée | D29: 30 | E29: 624.14 | F29: 2.005 | G29: 0.5543 | H29: 27.502 | I29: 19.19 | J29: 180.14 | K29: 229.39 | L29: 0 | M29: 0 | N29: 0 | O29: 0 | P29: 0 | Q29: 0 | R29: 0 | S29: 0 | T29: 0 | U29: 0 | V29: 0 | W29: 229.39 | X29: 0 | Y29: 0 | Z29: 0 | AA29: 0 | AB29: 0 | AC29: 0 | AD29: 0.444 | AE29: 0.157 | AF29: 0.675 | AG29: 0 | AH29: 1.582 | AI29: 2.86 | AJ29: 0 | AK29: 0 | AL29: 0 | AM29: 0 | AN29: 0 | AO29: 0 | AP29: 0 | AQ29: 0 | AR29: 0 | AS29: 0 | AT29: 0 | AU29: 0 | AV29: 0 | AW29: 0 | AX29: 0 | AY29: 0 | AZ29: 0 | BA29: 0 | BB29: 0 | BC29: 0 | BD29: 0 | BE29: 0 | BF29: 0 | BG29: 0 | BH29: 0 | BI29: 0 | BJ29: 0 | BK29: 0 | BL29: 0 | BM29: 0 | BN29: 0 | BO29: 0 | BP29: 0.36722 | BQ29: 0.09239 | BR29: 3.43057 | BS29: 3.3377 | BT29: 23.114 | BU29: 30.3419 | BV29: 0 | BW29: 0 | BX29: 0 | BY29: 0 | BZ29: 33.2 | CA29: 6.693 | CB29: 10.579 | CC29: 22.7251 | CD29: 27.196 | CE29: 4.684 | CF29: 3.884 | CG29: 6.6482 | CH29: 8.214 | CI29: 7.181 | CJ29: 14.712 | CK29: 0.00506 | CL29: 112.52 | CM29: 4.771 | CN29: 4.473 | CO29: 0.5761 | CP29: 1.1821 | CQ29: 0 | CR29: 11.003 | CS29: 0.01 | CT29: 24.025 | CU29: 0.386 | CV29: 0 | CW29: 19.83 | CX29: 21.47 | CY29: 0 | CZ29: 0 | DA29: 0.8145 | DB29: 0 | DC29: 66.53 | DD29: 0 | DE29: 54.984 | DF29: 58.63 | DG29: 0 | DH29: 0 | DI29: 0 | DJ29: 57.76 | DK29: 0.124 | DL29: 0 | DM29: 171.5 | DN29: 2.519 | DO29: 38.649 | DP29: 41.17
A30: 01M301 | B30: Accidents vasculaires intracérébraux non transitoires, niveau 1 | D30: 90 | E30: 2625.83 | F30: 13.99 | G30: 0.5973 | H30: 139.384 | I30: 31.691 | J30: 720.76 | K30: 906.42 | L30: 0 | M30: 0 | N30: 0 | O30: 0 | P30: 0 | Q30: 0 | R30: 0.0332 | S30: 0.1612 | T30: 0.275 | U30: 5.73 | V30: 6.2 | W30: 912.62 | X30: 0.0079 | Y30: 0.0093 | Z30: 0.00428 | AA30: 0 | AB30: 0.097 | AC30: 0.119 | AD30: 0.793 | AE30: 0.286 | AF30: 1.365 | AG30: 0 | AH30: 3.086 | AI30: 5.53 | AJ30: 0 | AK30: 0 | AL30: 0 | AM30: 0 | AN30: 0 | AO30: 0 | AP30: 0 | AQ30: 0 | AR30: 0 | AS30: 0 | AT30: 0 | AU30: 0.0302 | AV30: 0.0811 | AW30: 0 | AX30: 0.116 | AY30: 0.227 | AZ30: 0 | BA30: 0 | BB30: 0 | BC30: 0 | BD30: 0 | BE30: 0.1325 | BF30: 0.1541 | BG30: 0.297 | BH30: 1.158 | BI30: 1.742 | BJ30: 0 | BK30: 0 | BL30: 0 | BM30: 0 | BN30: 0 | BO30: 0 | BP30: 0.42691 | BQ30: 0.12532 | BR30: 3.98468 | BS30: 4.61314 | BT30: 29.1272 | BU30: 38.2772 | BV30: 0 | BW30: 0 | BX30: 0 | BY30: 0 | BZ30: 45.89 | CA30: 59.164 | CB30: 83.183 | CC30: 24.0787 | CD30: 208.174 | CE30: 45.102 | CF30: 35.8942 | CG30: 7.1228 | CH30: 64.667 | CI30: 49.348 | CJ30: 118.354 | CK30: 0.00242 | CL30: 695.09 | CM30: 17.175 | CN30: 3.222 | CO30: 1.9077 | CP30: 4.3047 | CQ30: 0.07875 | CR30: 26.689 | CS30: 0.02 | CT30: 52.065 | CU30: 1.433 | CV30: 0 | CW30: 0.07 | CX30: 40.04 | CY30: 0 | CZ30: 0 | DA30: 0.7941 | DB30: 0 | DC30: 94.43 | DD30: 0 | DE30: 140.372 | DF30: 379.3 | DG30: 0.482 | DH30: 0 | DI30: 0.49 | DJ30: 294.9 | DK30: 5.0989 | DL30: 30.453 | DM30: 851.1 | DN30: 23.37 | DO30: 292.55 | DP30: 315.92
A31: 01M302 | B31: Accidents vasculaires intracérébraux non transitoires, niveau 2 | D31: 40 | E31: 3503.99 | F31: 20.378 | G31: 1.7124 | H31: 202.906 | I31: 48.618 | J31: 1027.53 | K31: 1301.14 | L31: 1.0088 | M31: 0 | N31: 10.014 | O31: 0 | P31: 47.43 | Q31: 58.45 | R31: 0.1722 | S31: 0.1479 | T31: 1.121 | U31: 17.33 | V31: 18.77 | W31: 1378.36 | X31: 0 | Y31: 0 | Z31: 0 | AA31: 0 | AB31: 0 | AC31: 0 | AD31: 1.58 | AE31: 0.387 | AF31: 1.302 | AG31: 0 | AH31: 3.405 | AI31: 6.67 | AJ31: 0 | AK31: 0 | AL31: 0 | AM31: 0 | AN31: 0 | AO31: 0 | AP31: 0 | AQ31: 0 | AR31: 0 | AS31: 2.549 | AT31: 2.549 | AU31: 0.3924 | AV31: 0.0963 | AW31: 4.382 | AX31: 2.835 | AY31: 7.706 | AZ31: 0.1315 | BA31: 0.1483 | BB31: 0.7382 | BC31: 0 | BD31: 1.018 | BE31: 0.165 | BF31: 0.1352 | BG31: 0.349 | BH31: 0.763 | BI31: 1.412 | BJ31: 0.12154 | BK31: 0.04233 | BL31: 1.3595 | BM31: 0.4466 | BN31: 0.09755 | BO31: 2.067 | BP31: 0.38991 | BQ31: 0.12013 | BR31: 3.61236 | BS31: 4.16327 | BT31: 26.0962 | BU31: 34.3818 | BV31: 0 | BW31: 0 | BX31: 0 | BY31: 0 | BZ31: 55.81 | CA31: 85.343 | CB31: 119.921 | CC31: 24.3602 | CD31: 303.377 | CE31: 62.749 | CF31: 50.8345 | CG31: 7.3157 | CH31: 90.451 | CI31: 77.744 | CJ31: 166.218 | CK31: 0.19493 | CL31: 988.51 | CM31: 26.387 | CN31: 5.834 | CO31: 2.0024 | CP31: 6.7322 | CQ31: 0.0234 | CR31: 40.979 | CS31: 0 | CT31: 75.522 | CU31: 2.271 | CV31: 0.01 | CW31: 0.17 | CX31: 63.27 | CY31: 0.0506 | CZ31: 0.13747 | DA31: 1.1713 | DB31: 0.0594 | DC31: 142.66 | DD31: 0 | DE31: 173.449 | DF31: 316.74 | DG31: 0 | DH31: 0 | DI31: 0 | DJ31: 358.22 | DK31: 5.8388 | DL31: 43.426 | DM31: 897.67 | DN31: 37.621 | DO31: 436.186 | DP31: 473.81
A32: 01M34Z | B32: Anomalies de la démarche d'origine neurologique | D32: 56 | E32: 2670.16 | F32: 18.471 | G32: 0.9514 | H32: 156.325 | I32: 51.685 | J32: 822.14 | K32: 1049.57 | L32: 0 | M32: 0 | N32: 0 | O32: 0 | P32: 0 | Q32: 0 | R32: 0 | S32: 0 | T32: 0 | U32: 0 | V32: 0 | W32: 1049.57 | X32: 0 | Y32: 0 | Z32: 0 | AA32: 0 | AB32: 0 | AC32: 0 | AD32: 0.182 | AE32: 0.103 | AF32: 0.244 | AG32: 0 | AH32: 0.698 | AI32: 1.23 | AJ32: 0 | AK32: 0 | AL32: 0 | AM32: 0 | AN32: 0 | AO32: 0 | AP32: 0 | AQ32: 0 | AR32: 0 | AS32: 0 | AT32: 0 | AU32: 0.0014 | AV32: 0.0038 | AW32: 0 | AX32: 0.005 | AY32: 0.011 | AZ32: 0 | BA32: 0 | BB32: 0 | BC32: 0 | BD32: 0 | BE32: 0.1453 | BF32: 0.1691 | BG32: 0.326 | BH32: 1.27 | BI32: 1.91 | BJ32: 0 | BK32: 0 | BL32: 0 | BM32: 0 | BN32: 0 | BO32: 0 | BP32: 0.31207 | BQ32: 0.09378 | BR32: 2.87392 | BS32: 3.26702 | BT32: 20.8919 | BU32: 27.4387 | BV32: 0 | BW32: 0 | BX32: 0 | BY32: 0 | BZ32: 30.59 | CA32: 67.891 | CB32: 91.456 | CC32: 24.3747 | CD32: 229.355 | CE32: 51.315 | CF32: 43.5012 | CG32: 7.1782 | CH32: 78.922 | CI32: 57.872 | CJ32: 137.353 | CK32: 0.00589 | CL32: 789.23 | CM32: 18.903 | CN32: 3.23 | CO32: 1.9665 | CP32: 5.2453 | CQ32: 0.05528 | CR32: 29.4 | CS32: 0 | CT32: 60.053 | CU32: 8.789 | CV32: 0 | CW32: 0.12 | CX32: 42.96 | CY32: 0 | CZ32: 0 | DA32: 0.914 | DB32: 0 | DC32: 112.84 | DD32: 0 | DE32: 155.157 | DF32: 167.74 | DG32: 0 | DH32: 0 | DI32: 1.03 | DJ32: 306.55 | DK32: 4.475 | DL32: 23.591 | DM32: 658.54 | DN32: 28.086 | DO32: 342.238 | DP32: 370.32
A33: 02C021 | B33: Interventions sur la rétine, niveau 1 | D33: 1194 | E33: 1855.21 | F33: 1.071 | G33: 0.4617 | H33: 40.713 | I33: 0.554 | J33: 174.61 | K33: 217.41 | L33: 0.0041 | M33: 0 | N33: 0.027 | O33: 0 | P33: 0.39 | Q33: 0.42 | R33: 0.0005 | S33: 0.0026 | T33: 0.032 | U33: 0.36 | V33: 0.39 | W33: 218.22 | X33: 2.3594 | Y33: 1.3042 | Z33: 4.90891 | AA33: 0 | AB33: 31.461 | AC33: 40.034 | AD33: 41.044 | AE33: 21.804 | AF33: 76.936 | AG33: 0 | AH33: 176.276 | AI33: 316.06 | AJ33: 0 | AK33: 0 | AL33: 0 | AM33: 0 | AN33: 0 | AO33: 0 | AP33: 0 | AQ33: 0 | AR33: 0 | AS33: 0 | AT33: 0 | AU33: 0 | AV33: 0 | AW33: 0 | AX33: 0 | AY33: 0 | AZ33: 0 | BA33: 0 | BB33: 0 | BC33: 0 | BD33: 0 | BE33: 0 | BF33: 0 | BG33: 0 | BH33: 0 | BI33: 0 | BJ33: 0 | BK33: 0 | BL33: 0 | BM33: 0 | BN33: 0 | BO33: 0 | BP33: 0 | BQ33: 0 | BR33: 0 | BS33: 0 | BT33: 0 | BU33: 0 | BV33: 0 | BW33: 0 | BX33: 0 | BY33: 0 | BZ33: 356.09 | CA33: 8.729 | CB33: 32.99 | CC33: 18.1921 | CD33: 48.168 | CE33: 6.852 | CF33: 1.7393 | CG33: 7.745 | CH33: 3.973 | CI33: 14.637 | CJ33: 21.76 | CK33: 0.04957 | CL33: 164.83 | CM33: 70.644 | CN33: 59.325 | CO33: 14.4886 | CP33: 0.3801 | CQ33: 0 | CR33: 144.838 | CS33: 1.27 | CT33: 37.954 | CU33: 0.464 | CV33: 0 | CW33: 82.15 | CX33: 214.62 | CY33: 0.0308 | CZ33: 0 | DA33: 0.0171 | DB33: 0 | DC33: 336.51 | DD33: 0 | DE33: 9.701 | DF33: 0.35 | DG33: 169.383 | DH33: 0 | DI33: 444.56 | DJ33: 9.76 | DK33: 0.4058 | DL33: 0.557 | DM33: 634.71 | DN33: 4.021 | DO33: 66.667 | DP33: 70.69
A34: 02C02J | B34: Interventions sur la rétine, en ambulatoire | D34: 65 | E34: 1425.83 | F34: 4.243 | G34: 0.1827 | H34: 13.564 | I34: 0.016 | J34: 46.18 | K34: 64.18 | L34: 0 | M34: 0 | N34: 0 | O34: 0 | P34: 0 | Q34: 0 | R34: 0 | S34: 0 | T34: 0 | U34: 0 | V34: 0 | W34: 64.18 | X34: 2.1805 | Y34: 3.9658 | Z34: 1.5799 | AA34: 0 | AB34: 34.105 | AC34: 41.831 | AD34: 27.945 | AE34: 17.7 | AF34: 47.109 | AG34: 0 | AH34: 130.742 | AI34: 223.5 | AJ34: 0 | AK34: 0 | AL34: 0 | AM34: 0 | AN34: 0 | AO34: 0 | AP34: 0 | AQ34: 0 | AR34: 0 | AS34: 0 | AT34: 0 | AU34: 0 | AV34: 0 | AW34: 0 | AX34: 0 | AY34: 0 | AZ34: 0 | BA34: 0 | BB34: 0 | BC34: 0 | BD34: 0 | BE34: 0 | BF34: 0 | BG34: 0 | BH34: 0 | BI34: 0 | BJ34: 0 | BK34: 0 | BL34: 0 | BM34: 0 | BN34: 0 | BO34: 0 | BP34: 0 | BQ34: 0 | BR34: 0 | BS34: 0 | BT34: 0 | BU34: 0 | BV34: 0 | BW34: 0 | BX34: 0 | BY34: 0 | BZ34: 265.33 | CA34: 4.602 | CB34: 10.471 | CC34: 18.0881 | CD34: 114.661 | CE34: 12.401 | CF34: 8.4148 | CG34: 6.6155 | CH34: 12.023 | CI34: 27 | CJ34: 48.533 | CK34: 0.06052 | CL34: 262.87 | CM34: 47.112 | CN34: 45.327 | CO34: 11.1837 | CP34: 1.2741 | CQ34: 0 | CR34: 104.897 | CS34: 0 | CT34: 23.843 | CU34: 0.035 | CV34: 0 | CW34: 70.39 | CX34: 161.1 | CY34: 0 | CZ34: 0 | DA34: 0 | DB34: 0 | DC34: 255.37 | DD34: 0 | DE34: 1.021 | DF34: 0 | DG34: 130.633 | DH34: 0 | DI34: 329.02 | DJ34: 12.43 | DK34: 0 | DL34: 0.09 | DM34: 473.19 | DN34: 16.818 | DO34: 115.215 | DP34: 132.03
A35: 02C051 | B35: Interventions sur le cristallin avec ou sans vitrectomie, niveau 1 | D35: 5147 | E35: 1187.09 | F35: 1.594 | G35: 0.2906 | H35: 24.809 | I35: 0.804 | J35: 128.04 | K35: 155.53 | L35: 0.0008 | M35: 0.0025 | N35: 0.015 | O35: 0 | P35: 0.17 | Q35: 0.18 | R35: 0.0001 | S35: 0.0003 | T35: 0.003 | U35: 0.04 | V35: 0.04 | W35: 155.76 | X35: 2.5258 | Y35: 1.5814 | Z35: 1.1625 | AA35: 0.10524 | AB35: 25.268 | AC35: 30.643 | AD35: 15.734 | AE35: 9.157 | AF35: 23.627 | AG35: 0.43485 | AH35: 65.945 | AI35: 114.9 | AJ35: 0 | AK35: 0 | AL35: 0 | AM35: 0 | AN35: 0 | AO35: 0 | AP35: 0 | AQ35: 0 | AR35: 0 | AS35: 0.0364 | AT35: 0.036 | AU35: 0.009 | AV35: 0.0019 | AW35: 0.101 | AX35: 0.065 | AY35: 0.177 | AZ35: 0.001 | BA35: 0.0011 | BB35: 0.0054 | BC35: 0 | BD35: 0.007 | BE35: 0.0036 | BF35: 0.0017 | BG35: 0.007 | BH35: 0.002 | BI35: 0.015 | BJ35: 0.06329 | BK35: 0.02204 | BL35: 0.7079 | BM35: 0.2325 | BN35: 0.05079 | BO35: 1.077 | BP35: 0 | BQ35: 0 | BR35: 0 | BS35: 0 | BT35: 0 | BU35: 0 | BV35: 0 | BW35: 0 | BX35: 0 | BY35: 0 | BZ35: 146.85 | CA35: 6.713 | CB35: 24.721 | CC35: 20.5831 | CD35: 38.302 | CE35: 4.583 | CF35: 3.454 | CG35: 7.0398 | CH35: 6.507 | CI35: 10.664 | CJ35: 17.921 | CK35: 0.14058 | CL35: 140.63 | CM35: 31.466 | CN35: 22.589 | CO35: 3.0935 | CP35: 1.734 | CQ35: 0.02432 | CR35: 58.907 | CS35: 0.06 | CT35: 16.857 | CU35: 0.038 | CV35: 0.31 | CW35: 162.28 | CX35: 95.74 | CY35: 0.0056 | CZ35: 0.07159 | DA35: 0.0181 | DB35: 0.3304 | DC35: 275.71 | DD35: 0 | DE35: 3.428 | DF35: 1.9 | DG35: 141.71 | DH35: 0 | DI35: 254.23 | DJ35: 7.66 | DK35: 0.2857 | DL35: 0.028 | DM35: 409.24 | DN35: 5.408 | DO35: 39.253 | DP35: 44.66
A36: 02C05J | B36: Interventions sur le cristallin avec ou sans vitrectomie, en ambulatoire | D36: 22180 | E36: 1103.51 | F36: 2.816 | G36: 0.1648 | H36: 15.169 | I36: 0.048 | J36: 47.47 | K36: 65.67 | L36: 0 | M36: 0 | N36: 0 | O36: 0 | P36: 0 | Q36: 0 | R36: 0 | S36: 0 | T36: 0 | U36: 0 | V36: 0 | W36: 65.67 | X36: 2.3323 | Y36: 1.3941 | Z36: 1.51916 | AA36: 0.08787 | AB36: 19.909 | AC36: 25.243 | AD36: 15.235 | AE36: 8.613 | AF36: 23.853 | AG36: 0.47469 | AH36: 62.396 | AI36: 110.57 | AJ36: 0 | AK36: 0 | AL36: 0 | AM36: 0 | AN36: 0 | AO36: 0 | AP36: 0 | AQ36: 0 | AR36: 0 | AS36: 0 | AT36: 0 | AU36: 0 | AV36: 0 | AW36: 0 | AX36: 0 | AY36: 0 | AZ36: 0 | BA36: 0 | BB36: 0 | BC36: 0 | BD36: 0 | BE36: 0 | BF36: 0 | BG36: 0 | BH36: 0 | BI36: 0 | BJ36: 0 | BK36: 0 | BL36: 0 | BM36: 0 | BN36: 0 | BO36: 0 | BP36: 2e-05 | BQ36: 0 | BR36: 0.00058 | BS36: 0 | BT36: 0.003 | BU36: 0.0036 | BV36: 0 | BW36: 0 | BX36: 0 | BY36: 0 | BZ36: 135.82 | CA36: 5.246 | CB36: 10.19 | CC36: 19.6404 | CD36: 60.452 | CE36: 6.926 | CF36: 4.4906 | CG36: 6.4045 | CH36: 9.053 | CI36: 16.825 | CJ36: 27.904 | CK36: 0.04195 | CL36: 167.17 | CM36: 29.146 | CN36: 21.274 | CO36: 3.5448 | CP36: 0.9916 | CQ36: 0 | CR36: 54.957 | CS36: 0.7 | CT36: 12.059 | CU36: 0.024 | CV36: 0.34 | CW36: 166 | CX36: 92.25 | CY36: 0 | CZ36: 0 | DA36: 0.0012 | DB36: 0.1021 | DC36: 271.48 | DD36: 0 | DE36: 0.396 | DF36: 0.05 | DG36: 136.522 | DH36: 0 | DI36: 264.71 | DJ36: 6.71 | DK36: 0.0207 | DL36: 0.002 | DM36: 408.41 | DN36: 5.786 | DO36: 74.145 | DP36: 79.93
A37: 02C07J | B37: Autres interventions extraoculaires, âge inférieur à 18 ans, en ambulatoire | D37: 200 | E37: 426.26 | F37: 1.547 | G37: 0.0814 | H37: 12.083 | I37: 0 | J37: 53.96 | K37: 67.68 | L37: 0 | M37: 0 | N37: 0 | O37: 0 | P37: 0 | Q37: 0 | R37: 0 | S37: 0 | T37: 0 | U37: 0 | V37: 0 | W37: 67.68 | X37: 0.6687 | Y37: 0.571 | Z37: 0.4091 | AA37: 0.00826 | AB37: 9.578 | AC37: 11.235 | AD37: 5.791 | AE37: 3.46 | AF37: 10.179 | AG37: 0 | AH37: 23.917 | AI37: 43.35 | AJ37: 0 | AK37: 0 | AL37: 0 | AM37: 0 | AN37: 0 | AO37: 0 | AP37: 0 | AQ37: 0 | AR37: 0 | AS37: 0 | AT37: 0 | AU37: 0 | AV37: 0 | AW37: 0 | AX37: 0 | AY37: 0 | AZ37: 0 | BA37: 0 | BB37: 0 | BC37: 0 | BD37: 0 | BE37: 0 | BF37: 0 | BG37: 0 | BH37: 0 | BI37: 0 | BJ37: 0 | BK37: 0 | BL37: 0 | BM37: 0 | BN37: 0 | BO37: 0 | BP37: 0.00065 | BQ37: 0 | BR37: 0.05188 | BS37: 0 | BT37: 0.0871 | BU37: 0.1396 | BV37: 0 | BW37: 0 | BX37: 0 | BY37: 0 | BZ37: 54.72 | CA37: 5.488 | CB37: 9.659 | CC37: 18.7571 | CD37: 28.57 | CE37: 3.482 | CF37: 2.9765 | CG37: 6.4965 | CH37: 5.54 | CI37: 9.717 | CJ37: 14.846 | CK37: 0.00975 | CL37: 105.54 | CM37: 16.829 | CN37: 7.742 | CO37: 1.4208 | CP37: 0.4538 | CQ37: 0 | CR37: 26.446 | CS37: 0.43 | CT37: 3.448 | CU37: 0 | CV37: 0 | CW37: 20.38 | CX37: 22.75 | CY37: 0 | CZ37: 0 | DA37: 0.0008 | DB37: 0 | DC37: 47.01 | DD37: 0 | DE37: 0 | DF37: 0 | DG37: 72.109 | DH37: 0 | DI37: 37.33 | DJ37: 15.43 | DK37: 0 | DL37: 0 | DM37: 124.87 | DN37: 1.729 | DO37: 40.067 | DP37: 41.8
A38: 02C081 | B38: Autres interventions extraoculaires, âge supérieur à 17 ans, niveau 1 | D38: 270 | E38: 1093.94 | F38: 1.471 | G38: 0.4823 | H38: 29.646 | I38: 0.754 | J38: 140.78 | K38: 173.13 | L38: 0.0107 | M38: 0.0032 | N38: 0.085 | O38: 0 | P38: 1.04 | Q38: 1.14 | R38: 0 | S38: 0 | T38: 0 | U38: 0 | V38: 0 | W38: 174.27 | X38: 2.7289 | Y38: 1.5421 | Z38: 3.12574 | AA38: 0.06733 | AB38: 29.072 | AC38: 36.536 | AD38: 20.736 | AE38: 8.404 | AF38: 32.021 | AG38: 0.28265 | AH38: 84.747 | AI38: 146.19 | AJ38: 0 | AK38: 0 | AL38: 0 | AM38: 0 | AN38: 0 | AO38: 0 | AP38: 0 | AQ38: 0 | AR38: 0 | AS38: 0 | AT38: 0 | AU38: 0.0133 | AV38: 0.0242 | AW38: 0.052 | AX38: 0.067 | AY38: 0.157 | AZ38: 0.0056 | BA38: 0.0064 | BB38: 0.0317 | BC38: 0 | BD38: 0.044 | BE38: 0.0021 | BF38: 0.001 | BG38: 0.004 | BH38: 0.001 | BI38: 0.009 | BJ38: 0.07204 | BK38: 0.02509 | BL38: 0.8058 | BM38: 0.2647 | BN38: 0.05782 | BO38: 1.225 | BP38: 0.00331 | BQ38: 0.00116 | BR38: 0.01819 | BS38: 0.02097 | BT38: 0.1314 | BU38: 0.1751 | BV38: 0 | BW38: 0 | BX38: 0 | BY38: 0 | BZ38: 184.34 | CA38: 7.817 | CB38: 26.704 | CC38: 21.6679 | CD38: 43.741 | CE38: 6.092 | CF38: 3.5408 | CG38: 7.1708 | CH38: 6.035 | CI38: 13.816 | CJ38: 21.193 | CK38: 0.15236 | CL38: 157.93 | CM38: 25.185 | CN38: 30.256 | CO38: 6.5701 | CP38: 1.5765 | CQ38: 0.00623 | CR38: 63.593 | CS38: 0.08 | CT38: 19.445 | CU38: 1.508 | CV38: 0.82 | CW38: 47.43 | CX38: 98.39 | CY38: 0.007 | CZ38: 0.08148 | DA38: 0.0156 | DB38: 0.0371 | DC38: 167.81 | DD38: 0 | DE38: 6.376 | DF38: 0.36 | DG38: 110.706 | DH38: 0 | DI38: 193.21 | DJ38: 34.98 | DK38: 0.3035 | DL38: 0.053 | DM38: 346 | DN38: 6.404 | DO38: 45.244 | DP38: 51.65
A39: 02C08J | B39: Autres interventions extraoculaires, âge supérieur à 17 ans, en ambulatoire | D39: 1606 | E39: 747.49 | F39: 4.234 | G39: 0.2406 | H39: 15.955 | I39: 0.017 | J39: 46.52 | K39: 66.96 | L39: 0 | M39: 0 | N39: 0 | O39: 0 | P39: 0 | Q39: 0 | R39: 0 | S39: 0 | T39: 0 | U39: 0 | V39: 0 | W39: 66.96 | X39: 1.2827 | Y39: 0.5805 | Z39: 1.82195 | AA39: 0.02741 | AB39: 11.692 | AC39: 15.405 | AD39: 13.336 | AE39: 6.338 | AF39: 25.814 | AG39: 0.10754 | AH39: 61.696 | AI39: 107.29 | AJ39: 0 | AK39: 0 | AL39: 0 | AM39: 0 | AN39: 0 | AO39: 0 | AP39: 0 | AQ39: 0 | AR39: 0 | AS39: 0 | AT39: 0 | AU39: 0.0212 | AV39: 0.0567 | AW39: 0 | AX39: 0.081 | AY39: 0.159 | AZ39: 0 | BA39: 0 | BB39: 0 | BC39: 0 | BD39: 0 | BE39: 0 | BF39: 0 | BG39: 0 | BH39: 0 | BI39: 0 | BJ39: 0 | BK39: 0 | BL39: 0 | BM39: 0 | BN39: 0 | BO39: 0 | BP39: 0.0024 | BQ39: 0 | BR39: 0.19229 | BS39: 0 | BT39: 0.3229 | BU39: 0.5176 | BV39: 0 | BW39: 0 | BX39: 0 | BY39: 0 | BZ39: 123.37 | CA39: 5.369 | CB39: 10.297 | CC39: 19.978 | CD39: 59.219 | CE39: 8.868 | CF39: 3.1254 | CG39: 6.4173 | CH39: 6.675 | CI39: 17.961 | CJ39: 28.772 | CK39: 0.06625 | CL39: 166.75 | CM39: 26.939 | CN39: 21.849 | CO39: 5.5099 | CP39: 0.623 | CQ39: 0 | CR39: 54.921 | CS39: 0.33 | CT39: 10.129 | CU39: 0.252 | CV39: 1.81 | CW39: 20.33 | CX39: 66.05 | CY39: 0.0001 | CZ39: 0 | DA39: 0.0018 | DB39: 0.0343 | DC39: 98.93 | DD39: 0 | DE39: 0.466 | DF39: 0 | DG39: 55.488 | DH39: 0 | DI39: 165.96 | DJ39: 14.63 | DK39: 0.0054 | DL39: 0.005 | DM39: 236.56 | DN39: 3.777 | DO39: 76.816 | DP39: 80.59
A40: 02C091 | B40: Allogreffes de cornée, niveau 1 | D40: 66 | E40: 2536.98 | F40: 0.339 | G40: 0.3039 | H40: 55.73 | I40: 1.362 | J40: 215.83 | K40: 273.57 | L40: 0.0849 | M40: 0 | N40: 0.486 | O40: 0 | P40: 12.49 | Q40: 13.06 | R40: 0 | S40: 0 | T40: 0 | U40: 0 | V40: 0 | W40: 286.63 | X40: 2.4411 | Y40: 0.0185 | Z40: 7.95882 | AA40: 0 | AB40: 17.957 | AC40: 28.375 | AD40: 8.013 | AE40: 0.157 | AF40: 41.571 | AG40: 0 | AH40: 80.262 | AI40: 130 | AJ40: 0 | AK40: 0 | AL40: 0 | AM40: 0 | AN40: 0 | AO40: 0 | AP40: 0 | AQ40: 0 | AR40: 0 | AS40: 0 | AT40: 0 | AU40: 0 | AV40: 0 | AW40: 0 | AX40: 0 | AY40: 0 | AZ40: 0 | BA40: 0 | BB40: 0 | BC40: 0 | BD40: 0 | BE40: 0 | BF40: 0 | BG40: 0 | BH40: 0 | BI40: 0 | BJ40: 0 | BK40: 0 | BL40: 0 | BM40: 0 | BN40: 0 | BO40: 0 | BP40: 0 | BQ40: 0 | BR40: 0 | BS40: 0 | BT40: 0 | BU40: 0 | BV40: 0 | BW40: 0 | BX40: 0 | BY40: 0 | BZ40: 158.38 | CA40: 11.693 | CB40: 39.368 | CC40: 20.8281 | CD40: 51.745 | CE40: 10.656 | CF40: 0 | CG40: 5.6536 | CH40: 2.084 | CI40: 16.099 | CJ40: 29.404 | CK40: 0.10915 | CL40: 187.64 | CM40: 15.976 | CN40: 30.548 | CO40: 14.0126 | CP40: 0 | CQ40: 0 | CR40: 60.536 | CS40: 0 | CT40: 32.283 | CU40: 0 | CV40: 0 | CW40: 1196.87 | CX40: 116.35 | CY40: 0 | CZ40: 0 | DA40: 0 | DB40: 0 | DC40: 1345.51 | DD40: 0 | DE40: 40.029 | DF40: 0 | DG40: 138.255 | DH40: 0 | DI40: 302 | DJ40: 17.89 | DK40: 0 | DL40: 0.121 | DM40: 498.29 | DN40: 2.123 | DO40: 78.647 | DP40: 80.77
A41: 02C111 | B41: Autres interventions intraoculaires en dehors des affections sévères, niveau 1 | D41: 179 | E41: 932.68 | F41: 1.046 | G41: 0.4257 | H41: 30.287 | I41: 0.876 | J41: 145.71 | K41: 178.35 | L41: 0 | M41: 0 | N41: 0 | O41: 0 | P41: 0 | Q41: 0 | R41: 0 | S41: 0 | T41: 0 | U41: 0 | V41: 0 | W41: 178.35 | X41: 1.1601 | Y41: 0.891 | Z41: 0.91315 | AA41: 0 | AB41: 16.252 | AC41: 19.216 | AD41: 11.544 | AE41: 11.141 | AF41: 22.673 | AG41: 0 | AH41: 60.345 | AI41: 105.7 | AJ41: 0 | AK41: 0 | AL41: 0 | AM41: 0 | AN41: 0 | AO41: 0 | AP41: 0 | AQ41: 0 | AR41: 0 | AS41: 0 | AT41: 0 | AU41: 0 | AV41: 0 | AW41: 0 | AX41: 0 | AY41: 0 | AZ41: 0 | BA41: 0 | BB41: 0 | BC41: 0 | BD41: 0 | BE41: 0 | BF41: 0 | BG41: 0 | BH41: 0 | BI41: 0 | BJ41: 0 | BK41: 0 | BL41: 0 | BM41: 0 | BN41: 0 | BO41: 0 | BP41: 0 | BQ41: 0 | BR41: 0 | BS41: 0 | BT41: 0 | BU41: 0 | BV41: 0 | BW41: 0 | BX41: 0 | BY41: 0 | BZ41: 124.92 | CA41: 6.748 | CB41: 30.518 | CC41: 17.4613 | CD41: 39.181 | CE41: 5.568 | CF41: 2.8612 | CG41: 6.2071 | CH41: 5.576 | CI41: 13.727 | CJ41: 19.536 | CK41: 0.01543 | CL41: 147.4 | CM41: 68.692 | CN41: 17.801 | CO41: 2.9112 | CP41: 0.274 | CQ41: 0 | CR41: 89.679 | CS41: 0 | CT41: 8.107 | CU41: 0.476 | CV41: 0 | CW41: 13.59 | CX41: 49.6 | CY41: 0.0033 | CZ41: 0 | DA41: 0.0381 | DB41: 0 | DC41: 71.81 | DD41: 0 | DE41: 4.483 | DF41: 0 | DG41: 99.519 | DH41: 0 | DI41: 201.87 | DJ41: 14.3 | DK41: 0.1338 | DL41: 0.233 | DM41: 320.53 | DN41: 2.67 | DO41: 57.35 | DP41: 60.02
A42: 02C11J | B42: Autres interventions intraoculaires en dehors des affections sévères, en ambulatoire | D42: 154 | E42: 786.24 | F42: 2.369 | G42: 0.1679 | H42: 17.324 | I42: 0.038 | J42: 51.51 | K42: 71.4 | L42: 0 | M42: 0 | N42: 0 | O42: 0 | P42: 0 | Q42: 0 | R42: 0 | S42: 0 | T42: 0 | U42: 0 | V42: 0 | W42: 71.4 | X42: 0.966 | Y42: 1.0296 | Z42: 0.70664 | AA42: 0.04634 | AB42: 12.271 | AC42: 15.019 | AD42: 13.749 | AE42: 8.774 | AF42: 25.227 | AG42: 0.00098 | AH42: 62.791 | AI42: 110.54 | AJ42: 0 | AK42: 0 | AL42: 0 | AM42: 0 | AN42: 0 | AO42: 0 | AP42: 0 | AQ42: 0 | AR42: 0 | AS42: 0 | AT42: 0 | AU42: 0.001 | AV42: 0.0027 | AW42: 0 | AX42: 0.004 | AY42: 0.008 | AZ42: 0 | BA42: 0 | BB42: 0 | BC42: 0 | BD42: 0 | BE42: 0 | BF42: 0 | BG42: 0 | BH42: 0 | BI42: 0 | BJ42: 0 | BK42: 0 | BL42: 0 | BM42: 0 | BN42: 0 | BO42: 0 | BP42: 0 | BQ42: 0 | BR42: 0 | BS42: 0 | BT42: 0 | BU42: 0 | BV42: 0 | BW42: 0 | BX42: 0 | BY42: 0 | BZ42: 125.57 | CA42: 5.327 | CB42: 9.56 | CC42: 22.1249 | CD42: 54.639 | CE42: 7.648 | CF42: 3.1759 | CG42: 8.1198 | CH42: 5.876 | CI42: 17.257 | CJ42: 23.915 | CK42: 0.05566 | CL42: 157.7 | CM42: 25.155 | CN42: 19.416 | CO42: 2.9104 | CP42: 1.2282 | CQ42: 0 | CR42: 48.709 | CS42: 13.53 | CT42: 16.071 | CU42: 0.011 | CV42: 0 | CW42: 20.62 | CX42: 72.56 | CY42: 0 | CZ42: 0 | DA42: 0.0023 | DB42: 0.5415 | DC42: 123.33 | DD42: 0 | DE42: 0.738 | DF42: 0 | DG42: 85.61 | DH42: 0 | DI42: 148.18 | DJ42: 25 | DK42: 0 | DL42: 0 | DM42: 259.53 | DN42: 3.983 | DO42: 75.807 | DP42: 79.79
A43: 02C121 | B43: Interventions sur le cristallin avec trabéculectomie, niveau 1 | D43: 75 | E43: 1517.79 | F43: 2.222 | G43: 0.4165 | H43: 34.146 | I43: 0.969 | J43: 137.11 | K43: 174.87 | L43: 0 | M43: 0 | N43: 0 | O43: 0 | P43: 0 | Q43: 0 | R43: 0 | S43: 0 | T43: 0 | U43: 0 | V43: 0 | W43: 174.87 | X43: 2.8597 | Y43: 2.3739 | Z43: 0.51964 | AA43: 0 | AB43: 28.707 | AC43: 34.461 | AD43: 27.948 | AE43: 17.141 | AF43: 35.375 | AG43: 0.17019 | AH43: 117.783 | AI43: 198.42 | AJ43: 0 | AK43: 0 | AL43: 0 | AM43: 0 | AN43: 0 | AO43: 0 | AP43: 0 | AQ43: 0 | AR43: 0 | AS43: 0 | AT43: 0 | AU43: 0 | AV43: 0 | AW43: 0 | AX43: 0 | AY43: 0 | AZ43: 0 | BA43: 0 | BB43: 0 | BC43: 0 | BD43: 0 | BE43: 0.0075 | BF43: 0.0036 | BG43: 0.015 | BH43: 0.004 | BI43: 0.03 | BJ43: 0.03639 | BK43: 0.01268 | BL43: 0.4071 | BM43: 0.1337 | BN43: 0.02921 | BO43: 0.619 | BP43: 0 | BQ43: 0 | BR43: 0 | BS43: 0 | BT43: 0 | BU43: 0 | BV43: 0 | BW43: 0 | BX43: 0 | BY43: 0 | BZ43: 233.53 | CA43: 6.322 | CB43: 27.461 | CC43: 20.3567 | CD43: 39.649 | CE43: 6.113 | CF43: 2.6764 | CG43: 5.8428 | CH43: 5.855 | CI43: 10.793 | CJ43: 17.118 | CK43: 0.06033 | CL43: 142.25 | CM43: 42.67 | CN43: 36.944 | CO43: 4.2919 | CP43: 2.3236 | CQ43: 0 | CR43: 86.23 | CS43: 0 | CT43: 17.36 | CU43: 0.03 | CV43: 0.23 | CW43: 182.63 | CX43: 125.29 | CY43: 0.0015 | CZ43: 0.04116 | DA43: 0.0081 | DB43: 0.526 | DC43: 326.12 | DD43: 0 | DE43: 2.709 | DF43: 1.02 | DG43: 188.809 | DH43: 0 | DI43: 359.41 | DJ43: 2.52 | DK43: 0.3299 | DL43: 0 | DM43: 554.8 | DN43: 4.706 | DO43: 45.39 | DP43: 50.1
A44: 02C12J | B44: Interventions sur le cristallin avec trabéculectomie, en ambulatoire | D44: 61 | E44: 1447.37 | F44: 2.22 | G44: 0.1605 | H44: 14.944 | I44: 0 | J44: 36.9 | K44: 54.23 | L44: 0 | M44: 0 | N44: 0 | O44: 0 | P44: 0 | Q44: 0 | R44: 0 | S44: 0 | T44: 0 | U44: 0 | V44: 0 | W44: 54.23 | X44: 3.7454 | Y44: 2.2016 | Z44: 1.5743 | AA44: 0 | AB44: 23.721 | AC44: 31.242 | AD44: 30.819 | AE44: 14.708 | AF44: 35.051 | AG44: 0.70616 | AH44: 120.263 | AI44: 201.55 | AJ44: 0 | AK44: 0 | AL44: 0 | AM44: 0 | AN44: 0 | AO44: 0 | AP44: 0 | AQ44: 0 | AR44: 0 | AS44: 0 | AT44: 0 | AU44: 0 | AV44: 0 | AW44: 0 | AX44: 0 | AY44: 0 | AZ44: 0 | BA44: 0 | BB44: 0 | BC44: 0 | BD44: 0 | BE44: 0 | BF44: 0 | BG44: 0 | BH44: 0 | BI44: 0 | BJ44: 0 | BK44: 0 | BL44: 0 | BM44: 0 | BN44: 0 | BO44: 0 | BP44: 0 | BQ44: 0 | BR44: 0 | BS44: 0 | BT44: 0 | BU44: 0 | BV44: 0 | BW44: 0 | BX44: 0 | BY44: 0 | BZ44: 232.79 | CA44: 4.701 | CB44: 11.335 | CC44: 18.14 | CD44: 102.71 | CE44: 15.612 | CF44: 5.1492 | CG44: 5.3453 | CH44: 13.898 | CI44: 22.586 | CJ44: 37.626 | CK44: 0.02106 | CL44: 237.12 | CM44: 17.173 | CN44: 42.145 | CO44: 5.0326 | CP44: 2.2664 | CQ44: 0 | CR44: 66.617 | CS44: 0.16 | CT44: 14.649 | CU44: 0.037 | CV44: 0 | CW44: 166.81 | CX44: 132.77 | CY44: 0 | CZ44: 0 | DA44: 0.0016 | DB44: 0 | DC44: 314.42 | DD44: 0 | DE44: 0.668 | DF44: 0 | DG44: 181.958 | DH44: 0 | DI44: 356.77 | DJ44: 2.8 | DK44: 0 | DL44: 0 | DM44: 542.19 | DN44: 11.082 | DO44: 106.569 | DP44: 117.65
A45: 02C131 | B45: Interventions sur les muscles oculomoteurs, âge inférieur à 18 ans, niveau 1 | D45: 37 | E45: 966.45 | F45: 1.843 | G45: 0.2917 | H45: 31.961 | I45: 0.051 | J45: 131.56 | K45: 165.71 | L45: 0 | M45: 0 | N45: 0 | O45: 0 | P45: 0 | Q45: 0 | R45: 0 | S45: 0 | T45: 0 | U45: 0 | V45: 0 | W45: 165.71 | X45: 2.6446 | Y45: 2.6966 | Z45: 0.68316 | AA45: 0 | AB45: 31.439 | AC45: 37.464 | AD45: 13.327 | AE45: 8.973 | AF45: 30.516 | AG45: 0 | AH45: 70.512 | AI45: 123.33 | AJ45: 0 | AK45: 0 | AL45: 0 | AM45: 0 | AN45: 0 | AO45: 0 | AP45: 0 | AQ45: 0 | AR45: 0 | AS45: 0 | AT45: 0 | AU45: 0 | AV45: 0 | AW45: 0 | AX45: 0 | AY45: 0 | AZ45: 0 | BA45: 0 | BB45: 0 | BC45: 0 | BD45: 0 | BE45: 0 | BF45: 0 | BG45: 0 | BH45: 0 | BI45: 0 | BJ45: 0.09606 | BK45: 0.03346 | BL45: 1.0745 | BM45: 0.353 | BN45: 0.0771 | BO45: 1.634 | BP45: 0 | BQ45: 0 | BR45: 0 | BS45: 0 | BT45: 0 | BU45: 0 | BV45: 0 | BW45: 0 | BX45: 0 | BY45: 0 | BZ45: 162.43 | CA45: 7.529 | CB45: 23.147 | CC45: 26.0239 | CD45: 34.61 | CE45: 4.444 | CF45: 3.7379 | CG45: 7.9776 | CH45: 6.975 | CI45: 11.595 | CJ45: 16.947 | CK45: 0.10234 | CL45: 143.09 | CM45: 30.167 | CN45: 19.731 | CO45: 1.6125 | CP45: 2.3696 | CQ45: 0 | CR45: 53.881 | CS45: 0 | CT45: 16.176 | CU45: 0.052 | CV45: 0.37 | CW45: 6.6 | CX45: 69.98 | CY45: 0.0051 | CZ45: 0.10866 | DA45: 0.0307 | DB45: 1.3479 | DC45: 94.67 | DD45: 0 | DE45: 3.768 | DF45: 0 | DG45: 131.013 | DH45: 0 | DI45: 209.21 | DJ45: 2.22 | DK45: 0.4644 | DL45: 0 | DM45: 346.68 | DN45: 4.052 | DO45: 48.25 | DP45: 52.3
A46: 02M081 | B46: Autres affections oculaires d'origine non diabétique, âge supérieur à 17 ans, niveau 1 | D46: 34 | E46: 956.63 | F46: 2.79 | G46: 0.2817 | H46: 47.93 | I46: 3.95 | J46: 211.58 | K46: 266.54 | L46: 0 | M46: 0.2165 | N46: 0 | O46: 0 | P46: 9.55 | Q46: 9.76 | R46: 0 | S46: 0 | T46: 0 | U46: 0 | V46: 0 | W46: 276.3 | X46: 1.6209 | Y46: 0.4177 | Z46: 0.48826 | AA46: 0 | AB46: 8.204 | AC46: 10.731 | AD46: 10.349 | AE46: 5.118 | AF46: 11.721 | AG46: 0.50068 | AH46: 30.811 | AI46: 58.5 | AJ46: 0 | AK46: 0 | AL46: 0 | AM46: 0 | AN46: 0 | AO46: 0 | AP46: 0 | AQ46: 0 | AR46: 0 | AS46: 0 | AT46: 0 | AU46: 0 | AV46: 0 | AW46: 0 | AX46: 0 | AY46: 0 | AZ46: 0 | BA46: 0 | BB46: 0 | BC46: 0 | BD46: 0 | BE46: 0 | BF46: 0 | BG46: 0 | BH46: 0 | BI46: 0 | BJ46: 0 | BK46: 0 | BL46: 0 | BM46: 0 | BN46: 0 | BO46: 0 | BP46: 0.13235 | BQ46: 0.03205 | BR46: 1.18151 | BS46: 0.61768 | BT46: 6.5731 | BU46: 8.5366 | BV46: 0 | BW46: 0 | BX46: 0 | BY46: 0 | BZ46: 77.77 | CA46: 11.48 | CB46: 29.47 | CC46: 22.5139 | CD46: 54.447 | CE46: 7.584 | CF46: 7.7206 | CG46: 6.6083 | CH46: 15.101 | CI46: 13.754 | CJ46: 30.294 | CK46: 0.01185 | CL46: 198.98 | CM46: 14.364 | CN46: 13.275 | CO46: 2.4996 | CP46: 2.5154 | CQ46: 0 | CR46: 32.653 | CS46: 0 | CT46: 15.872 | CU46: 0.133 | CV46: 0 | CW46: 18.16 | CX46: 39.45 | CY46: 0 | CZ46: 0 | DA46: 0.1971 | DB46: 0.1357 | DC46: 73.96 | DD46: 0 | DE46: 56.227 | DF46: 85.27 | DG46: 32.072 | DH46: 0 | DI46: 57.46 | DJ46: 63.37 | DK46: 2.3159 | DL46: 0.256 | DM46: 296.97 | DN46: 6.854 | DO46: 70.049 | DP46: 76.9
A47: 02M08T | B47: Autres affections oculaires d'origine non diabétique, âge supérieur à 17 ans, très courte durée | D47: 92 | E47: 469.54 | F47: 1.191 | G47: 0.1449 | H47: 16.946 | I47: 1.565 | J47: 69.41 | K47: 89.26 | L47: 0 | M47: 0 | N47: 0 | O47: 0 | P47: 0 | Q47: 0 | R47: 0 | S47: 0 | T47: 0 | U47: 0 | V47: 0 | W47: 89.26 | X47: 0.9325 | Y47: 0.4886 | Z47: 0.21983 | AA47: 0 | AB47: 4.888 | AC47: 6.529 | AD47: 6.927 | AE47: 2.603 | AF47: 7.359 | AG47: 0.14209 | AH47: 21.088 | AI47: 38.12 | AJ47: 0 | AK47: 0 | AL47: 0 | AM47: 0 | AN47: 0 | AO47: 0 | AP47: 0 | AQ47: 0 | AR47: 0 | AS47: 0 | AT47: 0 | AU47: 0.1405 | AV47: 0.3768 | AW47: 0 | AX47: 0.537 | AY47: 1.054 | AZ47: 0 | BA47: 0 | BB47: 0 | BC47: 0 | BD47: 0 | BE47: 0 | BF47: 0 | BG47: 0 | BH47: 0 | BI47: 0 | BJ47: 0 | BK47: 0 | BL47: 0 | BM47: 0 | BN47: 0 | BO47: 0 | BP47: 0.03778 | BQ47: 0.00897 | BR47: 0.4312 | BS47: 0.18385 | BT47: 2.0282 | BU47: 2.69 | BV47: 0 | BW47: 0 | BX47: 0 | BY47: 0 | BZ47: 48.39 | CA47: 5.363 | CB47: 9.183 | CC47: 21.8272 | CD47: 32.062 | CE47: 4.18 | CF47: 2.0763 | CG47: 6.5721 | CH47: 6.022 | CI47: 9.249 | CJ47: 14.383 | CK47: 0.01514 | CL47: 110.93 | CM47: 10.046 | CN47: 8.767 | CO47: 0.919 | CP47: 0.6438 | CQ47: 0 | CR47: 20.376 | CS47: 0.58 | CT47: 5.669 | CU47: 0.036 | CV47: 6.19 | CW47: 4.89 | CX47: 26.47 | CY47: 0.0024 | CZ47: 0 | DA47: 0.0611 | DB47: 0.0037 | DC47: 43.91 | DD47: 0 | DE47: 3.576 | DF47: 17.14 | DG47: 31.028 | DH47: 0 | DI47: 72.12 | DJ47: 31.81 | DK47: 0.0483 | DL47: 0.937 | DM47: 156.67 | DN47: 2.106 | DO47: 39.781 | DP47: 41.89
A48: 03C071 | B48: Interventions sur les sinus et l'apophyse mastoïde, âge supérieur à 17 ans, niveau 1 | D48: 1403 | E48: 1347.08 | F48: 3.29 | G48: 0.9824 | H48: 38.518 | I48: 0.633 | J48: 180.19 | K48: 223.61 | L48: 0.0143 | M48: 0.0275 | N48: 0.16 | O48: 0 | P48: 2.04 | Q48: 2.24 | R48: 0.033 | S48: 0.0052 | T48: 0.343 | U48: 1.7 | V48: 2.08 | W48: 227.93 | X48: 3.6685 | Y48: 2.9253 | Z48: 1.30767 | AA48: 0.03838 | AB48: 39.095 | AC48: 47.035 | AD48: 23.112 | AE48: 8.109 | AF48: 25.738 | AG48: 0.04347 | AH48: 76.604 | AI48: 133.61 | AJ48: 0 | AK48: 0 | AL48: 0 | AM48: 0 | AN48: 0 | AO48: 0 | AP48: 0 | AQ48: 0 | AR48: 0 | AS48: 0 | AT48: 0 | AU48: 0.0341 | AV48: 0.0725 | AW48: 0.087 | AX48: 0.157 | AY48: 0.35 | AZ48: 0.0047 | BA48: 0.0053 | BB48: 0.0265 | BC48: 0 | BD48: 0.037 | BE48: 0.0181 | BF48: 0.0097 | BG48: 0.03 | BH48: 0.012 | BI48: 0.069 | BJ48: 0.07664 | BK48: 0.02669 | BL48: 0.8573 | BM48: 0.2816 | BN48: 0.06151 | BO48: 1.304 | BP48: 0.0003 | BQ48: 9e-05 | BR48: 0.00289 | BS48: 0.00333 | BT48: 0.0209 | BU48: 0.0275 | BV48: 0 | BW48: 0 | BX48: 0 | BY48: 0 | BZ48: 182.43 | CA48: 10.6 | CB48: 31.761 | CC48: 27.7562 | CD48: 60.626 | CE48: 6.99 | CF48: 8.0151 | CG48: 8.1141 | CH48: 12.791 | CI48: 23.114 | CJ48: 29.746 | CK48: 0.12068 | CL48: 219.63 | CM48: 17.159 | CN48: 25.852 | CO48: 3.8427 | CP48: 3.41 | CQ48: 0.0121 | CR48: 50.276 | CS48: 0.46 | CT48: 18.91 | CU48: 0.82 | CV48: 0.57 | CW48: 7.28 | CX48: 104.31 | CY48: 0.0091 | CZ48: 0.08669 | DA48: 0.0267 | DB48: 0.5477 | DC48: 133.03 | DD48: 0 | DE48: 18.897 | DF48: 1.25 | DG48: 123.781 | DH48: 0 | DI48: 254.39 | DJ48: 134.05 | DK48: 1.0454 | DL48: 0.362 | DM48: 533.78 | DN48: 11.696 | DO48: 55.922 | DP48: 67.62
A49: 03C072 | B49: Interventions sur les sinus et l'apophyse mastoïde, âge supérieur à 17 ans, niveau 2 | D49: 35 | E49: 2122.68 | F49: 5.928 | G49: 2.9209 | H49: 91.25 | I49: 0.567 | J49: 389.58 | K49: 490.25 | L49: 0.1523 | M49: 0.2121 | N49: 1.064 | O49: 0 | P49: 19.55 | Q49: 20.98 | R49: 0 | S49: 0 | T49: 0 | U49: 0 | V49: 0 | W49: 511.23 | X49: 3.3725 | Y49: 3.1507 | Z49: 0.6245 | AA49: 0 | AB49: 28.524 | AC49: 35.671 | AD49: 25.563 | AE49: 9.954 | AF49: 28.171 | AG49: 0.03662 | AH49: 86.384 | AI49: 150.11 | AJ49: 0 | AK49: 0 | AL49: 0 | AM49: 0 | AN49: 0 | AO49: 0 | AP49: 0 | AQ49: 0 | AR49: 0 | AS49: 0 | AT49: 0 | AU49: 0.1742 | AV49: 0.4672 | AW49: 0 | AX49: 0.666 | AY49: 1.307 | AZ49: 0 | BA49: 0 | BB49: 0 | BC49: 0 | BD49: 0 | BE49: 0 | BF49: 0 | BG49: 0 | BH49: 0 | BI49: 0 | BJ49: 0 | BK49: 0 | BL49: 0 | BM49: 0 | BN49: 0 | BO49: 0 | BP49: 0 | BQ49: 0 | BR49: 0 | BS49: 0 | BT49: 0 | BU49: 0 | BV49: 0 | BW49: 0 | BX49: 0 | BY49: 0 | BZ49: 187.09 | CA49: 21.416 | CB49: 73.193 | CC49: 37.7003 | CD49: 137.595 | CE49: 14.001 | CF49: 17.2031 | CG49: 10.5962 | CH49: 21.845 | CI49: 59.223 | CJ49: 67.541 | CK49: 0.10242 | CL49: 460.42 | CM49: 22.654 | CN49: 29.756 | CO49: 3.1469 | CP49: 5.633 | CQ49: 0 | CR49: 61.189 | CS49: 0 | CT49: 29.467 | CU49: 0.136 | CV49: 0.73 | CW49: 6.75 | CX49: 134.81 | CY49: 0.0212 | CZ49: 0 | DA49: 0.0074 | DB49: 3.6465 | DC49: 175.56 | DD49: 0 | DE49: 79.287 | DF49: 2.69 | DG49: 148.083 | DH49: 0 | DI49: 314.53 | DJ49: 179.41 | DK49: 3.0277 | DL49: 0.181 | DM49: 727.2 | DN49: 24.74 | DO49: 120.125 | DP49: 144.87
A50: 03C07J | B50: Interventions sur les sinus et l'apophyse mastoïde, âge supérieur à 17 ans, en ambulatoire | D50: 318 | E50: 758.16 | F50: 0.645 | G50: 0.0566 | H50: 15.424 | I50: 0.017 | J50: 59.74 | K50: 75.89 | L50: 0 | M50: 0 | N50: 0 | O50: 0 | P50: 0 | Q50: 0 | R50: 0 | S50: 0 | T50: 0 | U50: 0 | V50: 0 | W50: 75.89 | X50: 1.8591 | Y50: 1.7121 | Z50: 0.70439 | AA50: 0.01238 | AB50: 22.629 | AC50: 26.917 | AD50: 13.14 | AE50: 5.526 | AF50: 16.416 | AG50: 0.09484 | AH50: 44.338 | AI50: 79.51 | AJ50: 0 | AK50: 0 | AL50: 0 | AM50: 0 | AN50: 0 | AO50: 0 | AP50: 0 | AQ50: 0 | AR50: 0 | AS50: 0 | AT50: 0 | AU50: 0.0118 | AV50: 0.0316 | AW50: 0 | AX50: 0.045 | AY50: 0.088 | AZ50: 0 | BA50: 0 | BB50: 0 | BC50: 0 | BD50: 0 | BE50: 0 | BF50: 0 | BG50: 0 | BH50: 0 | BI50: 0 | BJ50: 0 | BK50: 0 | BL50: 0 | BM50: 0 | BN50: 0 | BO50: 0 | BP50: 0 | BQ50: 0 | BR50: 0 | BS50: 0 | BT50: 0 | BU50: 0 | BV50: 0 | BW50: 0 | BX50: 0 | BY50: 0 | BZ50: 106.52 | CA50: 6.014 | CB50: 7.398 | CC50: 22.902 | CD50: 36.344 | CE50: 4.467 | CF50: 3.8009 | CG50: 8.7644 | CH50: 7.577 | CI50: 11.134 | CJ50: 15.564 | CK50: 0.00722 | CL50: 123.97 | CM50: 9.202 | CN50: 13.002 | CO50: 1.4677 | CP50: 1.4289 | CQ50: 0.00707 | CR50: 25.107 | CS50: 0.41 | CT50: 11.917 | CU50: 0.001 | CV50: 0 | CW50: 3.81 | CX50: 57.8 | CY50: 0 | CZ50: 0 | DA50: 0.0027 | DB50: 0.0081 | DC50: 73.94 | DD50: 0 | DE50: 4.872 | DF50: 0.85 | DG50: 94.489 | DH50: 0 | DI50: 143.23 | DJ50: 109.2 | DK50: 0.0964 | DL50: 0 | DM50: 352.74 | DN50: 4.683 | DO50: 46.15 | DP50: 50.83
A51: 03C091 | B51: Rhinoplasties, niveau 1 | D51: 901 | E51: 1070.48 | F51: 2.329 | G51: 0.9359 | H51: 38.569 | I51: 0.738 | J51: 174.54 | K51: 217.11 | L51: 0.0119 | M51: 0.0059 | N51: 0.181 | O51: 0.0055 | P51: 1.21 | Q51: 1.41 | R51: 0.0151 | S51: 0.0065 | T51: 0.129 | U51: 0.71 | V51: 0.87 | W51: 219.39 | X51: 1.9737 | Y51: 1.7337 | Z51: 1.00656 | AA51: 0.05069 | AB51: 30.881 | AC51: 35.645 | AD51: 20.854 | AE51: 5.944 | AF51: 21.712 | AG51: 0.04065 | AH51: 67.653 | AI51: 116.2 | AJ51: 0 | AK51: 0 | AL51: 0 | AM51: 0 | AN51: 0 | AO51: 0 | AP51: 0 | AQ51: 0 | AR51: 0 | AS51: 0 | AT51: 0 | AU51: 0.0036 | AV51: 0.0017 | AW51: 0.037 | AX51: 0.025 | AY51: 0.067 | AZ51: 0.0039 | BA51: 0.0044 | BB51: 0.022 | BC51: 0 | BD51: 0.03 | BE51: 0.0096 | BF51: 0.0046 | BG51: 0.019 | BH51: 0.005 | BI51: 0.038 | BJ51: 0.17789 | BK51: 0.06196 | BL51: 1.9898 | BM51: 0.6536 | BN51: 0.14277 | BO51: 3.026 | BP51: 0 | BQ51: 0 | BR51: 0 | BS51: 0 | BT51: 0 | BU51: 0 | BV51: 0 | BW51: 0 | BX51: 0 | BY51: 0 | BZ51: 155.01 | CA51: 10.528 | CB51: 32.854 | CC51: 29.8387 | CD51: 59.682 | CE51: 7.198 | CF51: 7.1844 | CG51: 8.56 | CH51: 9.77 | CI51: 23.762 | CJ51: 28.309 | CK51: 0.25433 | CL51: 217.94 | CM51: 12.292 | CN51: 23.039 | CO51: 3.9997 | CP51: 2.1521 | CQ51: 0 | CR51: 41.483 | CS51: 0.02 | CT51: 15.601 | CU51: 0.059 | CV51: 0.27 | CW51: 11.93 | CX51: 88.44 | CY51: 0.0089 | CZ51: 0.20121 | DA51: 0.0105 | DB51: 0.5511 | DC51: 117.09 | DD51: 0 | DE51: 11.26 | DF51: 0.39 | DG51: 93.377 | DH51: 0 | DI51: 201.1 | DJ51: 12.38 | DK51: 0.9841 | DL51: 0.075 | DM51: 319.56 | DN51: 12.704 | DO51: 52.979 | DP51: 65.68
A52: 03C09J | B52: Rhinoplasties, en ambulatoire | D52: 175 | E52: 753.75 | F52: 0.407 | G52: 0.0693 | H52: 18.221 | I52: 0 | J52: 59.74 | K52: 78.44 | L52: 0 | M52: 0 | N52: 0 | O52: 0 | P52: 0 | Q52: 0 | R52: 0 | S52: 0 | T52: 0 | U52: 0 | V52: 0 | W52: 78.44 | X52: 0.706 | Y52: 0.6276 | Z52: 0.17425 | AA52: 0 | AB52: 14.557 | AC52: 16.065 | AD52: 21.646 | AE52: 7.716 | AF52: 17.214 | AG52: 0.05838 | AH52: 49.224 | AI52: 95.86 | AJ52: 0 | AK52: 0 | AL52: 0 | AM52: 0 | AN52: 0 | AO52: 0 | AP52: 0 | AQ52: 0 | AR52: 0 | AS52: 0 | AT52: 0 | AU52: 0 | AV52: 0 | AW52: 0 | AX52: 0 | AY52: 0 | AZ52: 0 | BA52: 0 | BB52: 0 | BC52: 0 | BD52: 0 | BE52: 0 | BF52: 0 | BG52: 0 | BH52: 0 | BI52: 0 | BJ52: 0 | BK52: 0 | BL52: 0 | BM52: 0 | BN52: 0 | BO52: 0 | BP52: 0.0024 | BQ52: 0 | BR52: 0.19207 | BS52: 0 | BT52: 0.3226 | BU52: 0.517 | BV52: 0 | BW52: 0 | BX52: 0 | BY52: 0 | BZ52: 112.44 | CA52: 5.428 | CB52: 7.912 | CC52: 27.7618 | CD52: 46.182 | CE52: 3.914 | CF52: 2.7525 | CG52: 11.7302 | CH52: 4.59 | CI52: 16.972 | CJ52: 14.498 | CK52: 0.05065 | CL52: 141.79 | CM52: 7.571 | CN52: 16.486 | CO52: 1.1623 | CP52: 0.9618 | CQ52: 0 | CR52: 26.181 | CS52: 0 | CT52: 12.618 | CU52: 0.002 | CV52: 0 | CW52: 8.42 | CX52: 69.46 | CY52: 0 | CZ52: 0 | DA52: 0 | DB52: 0.1234 | DC52: 90.63 | DD52: 0 | DE52: 3.692 | DF52: 0 | DG52: 92.87 | DH52: 0 | DI52: 198.45 | DJ52: 8.96 | DK52: 0.2994 | DL52: 0 | DM52: 304.27 | DN52: 6.914 | DO52: 55.567 | DP52: 62.48
A53: 03C101 | B53: Amygdalectomies et/ou adénoïdectomies isolées, âge inférieur à 18 ans, niveau 1 | D53: 1543 | E53: 680.39 | F53: 2.182 | G53: 0.3068 | H53: 27.434 | I53: 0.474 | J53: 138.08 | K53: 168.48 | L53: 0 | M53: 0 | N53: 0 | O53: 0 | P53: 0 | Q53: 0 | R53: 0 | S53: 0 | T53: 0 | U53: 0 | V53: 0 | W53: 168.48 | X53: 1.3518 | Y53: 0.8666 | Z53: 0.57513 | AA53: 0.0743 | AB53: 14.687 | AC53: 17.554 | AD53: 6.784 | AE53: 3.238 | AF53: 8.537 | AG53: 0.04868 | AH53: 25.281 | AI53: 43.89 | AJ53: 0 | AK53: 0 | AL53: 0 | AM53: 0 | AN53: 0 | AO53: 0 | AP53: 0 | AQ53: 0 | AR53: 0 | AS53: 0 | AT53: 0 | AU53: 0.0313 | AV53: 0.0841 | AW53: 0 | AX53: 0.12 | AY53: 0.235 | AZ53: 0.0017 | BA53: 0.002 | BB53: 0.0098 | BC53: 0 | BD53: 0.013 | BE53: 0.0017 | BF53: 0.0008 | BG53: 0.003 | BH53: 0.001 | BI53: 0.007 | BJ53: 0.0902 | BK53: 0.03142 | BL53: 1.009 | BM53: 0.3314 | BN53: 0.0724 | BO53: 1.534 | BP53: 0.00054 | BQ53: 0.00012 | BR53: 0.00141 | BS53: 0 | BT53: 0.0148 | BU53: 0.0169 | BV53: 0 | BW53: 0 | BX53: 0 | BY53: 0 | BZ53: 63.25 | CA53: 7.767 | CB53: 24.52 | CC53: 22.2716 | CD53: 41.876 | CE53: 4.232 | CF53: 3.6044 | CG53: 7.1447 | CH53: 8.385 | CI53: 12.975 | CJ53: 17.632 | CK53: 0.13463 | CL53: 150.54 | CM53: 15.83 | CN53: 8.477 | CO53: 1.1104 | CP53: 1.033 | CQ53: 0.00227 | CR53: 26.452 | CS53: 0 | CT53: 8.739 | CU53: 0.048 | CV53: 0.07 | CW53: 6.51 | CX53: 32.23 | CY53: 0.0079 | CZ53: 0.10203 | DA53: 0.0215 | DB53: 0.2089 | DC53: 47.94 | DD53: 0 | DE53: 5.415 | DF53: 0.11 | DG53: 106.303 | DH53: 0 | DI53: 98.65 | DJ53: 12.92 | DK53: 0.3049 | DL53: 0.03 | DM53: 223.73 | DN53: 5.744 | DO53: 44.928 | DP53: 50.67
A54: 03C111 | B54: Amygdalectomies et/ou adénoïdectomies isolées, âge supérieur à 17 ans, niveau 1 | D54: 484 | E54: 813.13 | F54: 2.92 | G54: 0.5424 | H54: 36.176 | I54: 0.888 | J54: 190.72 | K54: 231.24 | L54: 0.0038 | M54: 0.0062 | N54: 0.048 | O54: 0 | P54: 0.43 | Q54: 0.49 | R54: 0 | S54: 0 | T54: 0 | U54: 0 | V54: 0 | W54: 231.73 | X54: 0.9494 | Y54: 0.6771 | Z54: 0.37504 | AA54: 0.07039 | AB54: 12.958 | AC54: 15.03 | AD54: 7.109 | AE54: 3.116 | AF54: 8.546 | AG54: 0.0184 | AH54: 25.623 | AI54: 44.41 | AJ54: 0 | AK54: 0 | AL54: 0 | AM54: 0 | AN54: 0 | AO54: 0 | AP54: 0 | AQ54: 0 | AR54: 0 | AS54: 0 | AT54: 0 | AU54: 0.0409 | AV54: 0.1096 | AW54: 0 | AX54: 0.156 | AY54: 0.307 | AZ54: 0 | BA54: 0 | BB54: 0 | BC54: 0 | BD54: 0 | BE54: 0 | BF54: 0 | BG54: 0 | BH54: 0 | BI54: 0 | BJ54: 0.19892 | BK54: 0.06928 | BL54: 2.2251 | BM54: 0.7309 | BN54: 0.15965 | BO54: 3.384 | BP54: 0.00164 | BQ54: 0.00067 | BR54: 0 | BS54: 0 | BT54: 0 | BU54: 0.0023 | BV54: 0 | BW54: 0 | BX54: 0 | BY54: 0 | BZ54: 63.14 | CA54: 10.682 | CB54: 35.896 | CC54: 21.9767 | CD54: 61.167 | CE54: 6.387 | CF54: 5.423 | CG54: 7.225 | CH54: 10.97 | CI54: 19.2 | CJ54: 25.053 | CK54: 0.23623 | CL54: 204.22 | CM54: 16.412 | CN54: 8.616 | CO54: 1.2149 | CP54: 1.0651 | CQ54: 0.0112 | CR54: 27.319 | CS54: 0 | CT54: 9.895 | CU54: 0.061 | CV54: 0.09 | CW54: 7.47 | CX54: 36.84 | CY54: 0.0103 | CZ54: 0.225 | DA54: 0.0193 | DB54: 0.159 | DC54: 54.77 | DD54: 0 | DE54: 18.191 | DF54: 0.47 | DG54: 92.389 | DH54: 0 | DI54: 88.91 | DJ54: 30.5 | DK54: 1.1069 | DL54: 0.391 | DM54: 231.96 | DN54: 9.766 | DO54: 56.989 | DP54: 66.76
A55: 03C121 | B55: Interventions sur les amygdales et les végétations adénoïdes autres que les amygdalectomies et/ou les adénoïdectomies isolées, âge inférieur à 18 ans, niveau 1 | D55: 286 | E55: 804.97 | F55: 2.295 | G55: 0.3822 | H55: 25.506 | I55: 0.664 | J55: 134.41 | K55: 163.26 | L55: 0.0578 | M55: 0 | N55: 0.331 | O55: 0 | P55: 8.5 | Q55: 8.89 | R55: 0 | S55: 0 | T55: 0 | U55: 0 | V55: 0 | W55: 172.14 | X55: 1.8845 | Y55: 1.0662 | Z55: 0.75577 | AA55: 0.03354 | AB55: 18.552 | AC55: 22.292 | AD55: 10.469 | AE55: 4.747 | AF55: 11.39 | AG55: 0.10764 | AH55: 35.162 | AI55: 61.88 | AJ55: 0 | AK55: 0 | AL55: 0 | AM55: 0 | AN55: 0 | AO55: 0 | AP55: 0 | AQ55: 0 | AR55: 0 | AS55: 0 | AT55: 0 | AU55: 0.0254 | AV55: 0.0681 | AW55: 0 | AX55: 0.097 | AY55: 0.19 | AZ55: 0 | BA55: 0 | BB55: 0 | BC55: 0 | BD55: 0 | BE55: 0 | BF55: 0 | BG55: 0 | BH55: 0 | BI55: 0 | BJ55: 0.05808 | BK55: 0.02023 | BL55: 0.6497 | BM55: 0.2134 | BN55: 0.04662 | BO55: 0.988 | BP55: 0 | BQ55: 0 | BR55: 0 | BS55: 0 | BT55: 0 | BU55: 0 | BV55: 0 | BW55: 0 | BX55: 0 | BY55: 0 | BZ55: 85.35 | CA55: 7.215 | CB55: 25.796 | CC55: 21.9787 | CD55: 44.01 | CE55: 3.287 | CF55: 3.9247 | CG55: 7.0715 | CH55: 8.746 | CI55: 14.299 | CJ55: 18.463 | CK55: 0.1105 | CL55: 154.9 | CM55: 21.897 | CN55: 12.517 | CO55: 1.7709 | CP55: 1.2578 | CQ55: 0 | CR55: 37.443 | CS55: 0 | CT55: 8.836 | CU55: 0.025 | CV55: 0.42 | CW55: 8.83 | CX55: 43.42 | CY55: 0.0041 | CZ55: 0.0657 | DA55: 0.0143 | DB55: 0.1994 | DC55: 61.82 | DD55: 0 | DE55: 4.64 | DF55: 0.34 | DG55: 144.167 | DH55: 0 | DI55: 121.4 | DJ55: 22.34 | DK55: 0.2224 | DL55: 0.221 | DM55: 293.32 | DN55: 6.084 | DO55: 44.576 | DP55: 50.66
A56: 03C131 | B56: Interventions sur les amygdales et les végétations adénoïdes autres que les amygdalectomies et/ou les adénoïdectomies isolées, âge supérieur à 17 ans, niveau 1 | D56: 67 | E56: 1093.16 | F56: 2.36 | G56: 0.644 | H56: 42.15 | I56: 0.377 | J56: 199.16 | K56: 244.69 | L56: 0.0373 | M56: 0.2341 | N56: 0.347 | O56: 0 | P56: 11.91 | Q56: 12.53 | R56: 0.2141 | S56: 0 | T56: 2.439 | U56: 11.5 | V56: 14.16 | W56: 271.38 | X56: 2.2166 | Y56: 2.2475 | Z56: 1.13056 | AA56: 0 | AB56: 27.086 | AC56: 32.681 | AD56: 10.967 | AE56: 4.444 | AF56: 13.987 | AG56: 0.01359 | AH56: 38.587 | AI56: 68 | AJ56: 0 | AK56: 0 | AL56: 0 | AM56: 0 | AN56: 0 | AO56: 0 | AP56: 0 | AQ56: 0 | AR56: 0 | AS56: 0 | AT56: 0 | AU56: 0.0388 | AV56: 0.1041 | AW56: 0 | AX56: 0.148 | AY56: 0.291 | AZ56: 0 | BA56: 0 | BB56: 0 | BC56: 0 | BD56: 0 | BE56: 0.0131 | BF56: 0.0062 | BG56: 0.026 | BH56: 0.007 | BI56: 0.052 | BJ56: 0.07587 | BK56: 0.02642 | BL56: 0.8486 | BM56: 0.2788 | BN56: 0.06089 | BO56: 1.291 | BP56: 0.01796 | BQ56: 0.00548 | BR56: 0.17144 | BS56: 0.19758 | BT56: 1.2385 | BU56: 1.6309 | BV56: 0 | BW56: 0 | BX56: 0 | BY56: 0 | BZ56: 103.94 | CA56: 12.11 | CB56: 33.396 | CC56: 23.9486 | CD56: 65.659 | CE56: 6.938 | CF56: 6.9119 | CG56: 7.4882 | CH56: 13.378 | CI56: 21.418 | CJ56: 29.084 | CK56: 0.09229 | CL56: 220.42 | CM56: 18.05 | CN56: 12.263 | CO56: 1.6805 | CP56: 1.6757 | CQ56: 0.01315 | CR56: 33.682 | CS56: 0 | CT56: 15.224 | CU56: 0.078 | CV56: 0.03 | CW56: 8.27 | CX56: 57.68 | CY56: 0.0112 | CZ56: 0.08581 | DA56: 0.0459 | DB56: 0.0387 | DC56: 81.47 | DD56: 0 | DE56: 39.694 | DF56: 3.35 | DG56: 124.554 | DH56: 0 | DI56: 162.17 | DJ56: 50.25 | DK56: 1.0109 | DL56: 1.241 | DM56: 382.26 | DN56: 8.875 | DO56: 69.928 | DP56: 78.8
A57: 03C14J | B57: Drains transtympaniques, âge inférieur à 18 ans, en ambulatoire | D57: 2021 | E57: 412.24 | F57: 0.587 | G57: 0.0516 | H57: 12.034 | I57: 0.017 | J57: 56.09 | K57: 68.79 | L57: 0 | M57: 0 | N57: 0 | O57: 0 | P57: 0 | Q57: 0 | R57: 0 | S57: 0 | T57: 0 | U57: 0 | V57: 0 | W57: 68.79 | X57: 1.1936 | Y57: 0.8026 | Z57: 0.34045 | AA57: 0.02147 | AB57: 12.126 | AC57: 14.485 | AD57: 3.082 | AE57: 2.268 | AF57: 4.648 | AG57: 0.00863 | AH57: 12.653 | AI57: 22.66 | AJ57: 0 | AK57: 0 | AL57: 0 | AM57: 0 | AN57: 0 | AO57: 0 | AP57: 0 | AQ57: 0 | AR57: 0 | AS57: 0 | AT57: 0 | AU57: 0.0031 | AV57: 0.0082 | AW57: 0 | AX57: 0.012 | AY57: 0.023 | AZ57: 0 | BA57: 0 | BB57: 0 | BC57: 0 | BD57: 0 | BE57: 0 | BF57: 0 | BG57: 0 | BH57: 0 | BI57: 0 | BJ57: 0 | BK57: 0 | BL57: 0 | BM57: 0 | BN57: 0 | BO57: 0 | BP57: 0 | BQ57: 0 | BR57: 0 | BS57: 0 | BT57: 0 | BU57: 0 | BV57: 0 | BW57: 0 | BX57: 0 | BY57: 0 | BZ57: 37.17 | CA57: 5.389 | CB57: 9.356 | CC57: 19.81 | CD57: 21.794 | CE57: 2.349 | CF57: 2.3698 | CG57: 6.9943 | CH57: 5.063 | CI57: 7.551 | CJ57: 11.032 | CK57: 0.00415 | CL57: 91.71 | CM57: 12.354 | CN57: 3.77 | CO57: 0.5407 | CP57: 0.5401 | CQ57: 0 | CR57: 17.205 | CS57: 0.29 | CT57: 3.991 | CU57: 0 | CV57: 0.03 | CW57: 4.25 | CX57: 14.71 | CY57: 0 | CZ57: 0 | DA57: 0.0017 | DB57: 0.0078 | DC57: 23.28 | DD57: 0 | DE57: 0.748 | DF57: 0 | DG57: 86.64 | DH57: 0 | DI57: 1.69 | DJ57: 85.02 | DK57: 0 | DL57: 0.002 | DM57: 174.1 | DN57: 1.563 | DO57: 29.937 | DP57: 31.5
A58: 03C15J | B58: Drains transtympaniques, âge supérieur à 17 ans, en ambulatoire | D58: 333 | E58: 373.29 | F58: 0.909 | G58: 0.0596 | H58: 12.603 | I58: 0.075 | J58: 53.79 | K58: 67.44 | L58: 0 | M58: 0 | N58: 0 | O58: 0 | P58: 0 | Q58: 0 | R58: 0 | S58: 0 | T58: 0 | U58: 0 | V58: 0 | W58: 67.44 | X58: 0.7426 | Y58: 0.6503 | Z58: 0.31529 | AA58: 0.03979 | AB58: 9.108 | AC58: 10.856 | AD58: 3.376 | AE58: 1.912 | AF58: 4.087 | AG58: 0.00271 | AH58: 11.327 | AI58: 20.71 | AJ58: 0 | AK58: 0 | AL58: 0 | AM58: 0 | AN58: 0 | AO58: 0 | AP58: 0 | AQ58: 0 | AR58: 0 | AS58: 0 | AT58: 0 | AU58: 0.0016 | AV58: 0.0042 | AW58: 0 | AX58: 0.006 | AY58: 0.012 | AZ58: 0 | BA58: 0 | BB58: 0 | BC58: 0 | BD58: 0 | BE58: 0 | BF58: 0 | BG58: 0 | BH58: 0 | BI58: 0 | BJ58: 0 | BK58: 0 | BL58: 0 | BM58: 0 | BN58: 0 | BO58: 0 | BP58: 0 | BQ58: 0 | BR58: 0 | BS58: 0 | BT58: 0 | BU58: 0 | BV58: 0 | BW58: 0 | BX58: 0 | BY58: 0 | BZ58: 31.57 | CA58: 5.703 | CB58: 8.741 | CC58: 22.804 | CD58: 22.962 | CE58: 2.087 | CF58: 2.0052 | CG58: 7.9732 | CH58: 4.161 | CI58: 7.556 | CJ58: 9.859 | CK58: 0.02345 | CL58: 93.87 | CM58: 9.346 | CN58: 3.674 | CO58: 0.4573 | CP58: 0.5005 | CQ58: 0 | CR58: 13.977 | CS58: 0.71 | CT58: 4.509 | CU58: 0 | CV58: 0.42 | CW58: 2.87 | CX58: 16.12 | CY58: 0 | CZ58: 0 | DA58: 0.0013 | DB58: 0.0404 | DC58: 24.67 | DD58: 0 | DE58: 1.274 | DF58: 0 | DG58: 66.363 | DH58: 0 | DI58: 2.22 | DJ58: 71.86 | DK58: 0.0276 | DL58: 0 | DM58: 141.75 | DN58: 2.423 | DO58: 27.57 | DP58: 29.99
A59: 03C161 | B59: Autres interventions chirurgicales portant sur les oreilles, le nez, la gorge ou le cou, niveau 1 | D59: 291 | E59: 1237.99 | F59: 4.997 | G59: 0.7698 | H59: 46.693 | I59: 0.652 | J59: 221.63 | K59: 274.74 | L59: 0.0311 | M59: 0.0507 | N59: 0.328 | O59: 0 | P59: 3.56 | Q59: 3.97 | R59: 0 | S59: 0 | T59: 0 | U59: 0 | V59: 0 | W59: 278.72 | X59: 2.4593 | Y59: 2.0642 | Z59: 0.73775 | AA59: 0.10457 | AB59: 27.334 | AC59: 32.7 | AD59: 17.091 | AE59: 7.717 | AF59: 21.308 | AG59: 0.0141 | AH59: 65.569 | AI59: 111.7 | AJ59: 0 | AK59: 0 | AL59: 0 | AM59: 0 | AN59: 0 | AO59: 0 | AP59: 0 | AQ59: 0 | AR59: 0 | AS59: 0 | AT59: 0 | AU59: 0.0197 | AV59: 0.0251 | AW59: 0.126 | AX59: 0.114 | AY59: 0.285 | AZ59: 0.006 | BA59: 0.0068 | BB59: 0.0338 | BC59: 0 | BD59: 0.047 | BE59: 0.0216 | BF59: 0.0158 | BG59: 0.011 | BH59: 0.023 | BI59: 0.071 | BJ59: 0.10195 | BK59: 0.03551 | BL59: 1.1404 | BM59: 0.3746 | BN59: 0.08182 | BO59: 1.734 | BP59: 0.08446 | BQ59: 0.01894 | BR59: 0.26702 | BS59: 0.09171 | BT59: 2.7255 | BU59: 3.1876 | BV59: 0 | BW59: 0 | BX59: 0 | BY59: 0 | BZ59: 149.72 | CA59: 12.008 | CB59: 38.105 | CC59: 24.3041 | CD59: 66.41 | CE59: 9.355 | CF59: 7.0332 | CG59: 7.2222 | CH59: 16.189 | CI59: 20.933 | CJ59: 31.539 | CK59: 0.16924 | CL59: 233.27 | CM59: 15.849 | CN59: 21.087 | CO59: 3.2804 | CP59: 3.3549 | CQ59: 0.0319 | CR59: 43.604 | CS59: 0.11 | CT59: 17.764 | CU59: 0.072 | CV59: 45.99 | CW59: 10.82 | CX59: 94 | CY59: 0.0076 | CZ59: 0.11531 | DA59: 0.035 | DB59: 0.3906 | DC59: 169.29 | DD59: 0 | DE59: 23.026 | DF59: 7.9 | DG59: 99.357 | DH59: 0 | DI59: 182.55 | DJ59: 48.83 | DK59: 1.1582 | DL59: 0.564 | DM59: 363.39 | DN59: 9.854 | DO59: 70.014 | DP59: 79.87
A60: 03C16J | B60: Autres interventions chirurgicales portant sur les oreilles, le nez, la gorge ou le cou, en ambulatoire | D60: 291 | E60: 700.23 | F60: 0.835 | G60: 0.0711 | H60: 15.419 | I60: 0.057 | J60: 55.18 | K60: 71.56 | L60: 0 | M60: 0 | N60: 0 | O60: 0 | P60: 0 | Q60: 0 | R60: 0 | S60: 0 | T60: 0 | U60: 0 | V60: 0 | W60: 71.56 | X60: 1.5279 | Y60: 1.4181 | Z60: 0.63871 | AA60: 0.01329 | AB60: 16.254 | AC60: 19.852 | AD60: 11.888 | AE60: 5.649 | AF60: 15.522 | AG60: 0.11228 | AH60: 45.923 | AI60: 79.09 | AJ60: 0 | AK60: 0 | AL60: 0 | AM60: 0 | AN60: 0 | AO60: 0 | AP60: 0 | AQ60: 0 | AR60: 0 | AS60: 0 | AT60: 0 | AU60: 0 | AV60: 0 | AW60: 0 | AX60: 0 | AY60: 0 | AZ60: 0 | BA60: 0 | BB60: 0 | BC60: 0 | BD60: 0 | BE60: 0 | BF60: 0 | BG60: 0 | BH60: 0 | BI60: 0 | BJ60: 0 | BK60: 0 | BL60: 0 | BM60: 0 | BN60: 0 | BO60: 0 | BP60: 0.00447 | BQ60: 0.00059 | BR60: 0.14252 | BS60: 0 | BT60: 0.3031 | BU60: 0.4507 | BV60: 0 | BW60: 0 | BX60: 0 | BY60: 0 | BZ60: 99.4 | CA60: 6.317 | CB60: 7.782 | CC60: 24.4287 | CD60: 38.169 | CE60: 6.08 | CF60: 3.7467 | CG60: 7.313 | CH60: 7.178 | CI60: 11.955 | CJ60: 17.818 | CK60: 0.03354 | CL60: 130.82 | CM60: 11.717 | CN60: 12.994 | CO60: 1.248 | CP60: 1.5046 | CQ60: 0.0054 | CR60: 27.468 | CS60: 0.33 | CT60: 7.807 | CU60: 0.003 | CV60: 58.09 | CW60: 19.52 | CX60: 51.96 | CY60: 0 | CZ60: 0 | DA60: 0.0016 | DB60: 0.2198 | DC60: 137.93 | DD60: 0 | DE60: 4.228 | DF60: 0.63 | DG60: 73.112 | DH60: 0 | DI60: 132.16 | DJ60: 22.85 | DK60: 0.0667 | DL60: 0.014 | DM60: 233.06 | DN60: 4.127 | DO60: 48.753 | DP60: 52.88
